{"text_format":"1","workbook":"xlsx","n_sheets":19,"sheets":["Programmer","IMPORTANT MESSAGE!","Instructions","Teacher Roster (optional)","Other Staff Roster (optional)","Training and Documentation","Enter Student Data","Enter Cycle Data","TempStuDB","Lookups","StuDB","TempCycleDB","CycleDB","output_calc","output_calc2","Implementation Data Dashboard","Student Outcome Data Dashboard","HWC Notices Entered","Cycle Data Entered"],"not_rendered":{"charts":46,"images":3,"macros":1,"external_links":0,"defined_names":14,"comments":2,"pivot_tables":0},"unopened":[],"bounds":{"document_bytes":16777216,"sheet_cells":100000,"rows_first":2000,"rows_last":500,"rows_between":2000,"halvings":0,"cell_chars":16384,"cell_head_chars":4096},"cells_cut":0,"cells_raw":0,"read":"whole","date_system":"1900"}

{"sheet":"Programmer","index":0,"n_rows":67,"n_cols":23,"rows_kept":67,"cut":false,"hidden":true,"merged":[[35,3,37,3],[56,3,58,3],[60,3,61,3]]}
[]
[null,"Tab","Contents"]
[null,{"$f":"MID(CELL(\"Filename\",'Enter Student Data'!A1),FIND(\"]\",CELL(\"Filename\",'Enter Student Data'!A1))+1,255)","v":"Enter Student Data"},"Worksheet where user enters data for student incidents received from Law Enforcement"]
[null,{"$f":"MID(CELL(\"Filename\",'Enter Cycle Data'!A2),FIND(\"]\",CELL(\"Filename\",'Enter Cycle Data'!A2))+1,255)","v":"Enter Cycle Data"},"Worksheet where user enters data for cycle outcomes/incidents as gleaned from state databases or other sources"]
[null,{"$f":"MID(CELL(\"Filename\",'Training and Documentation'!#REF!),FIND(\"]\",CELL(\"Filename\",'Training and Documentation'!#REF!))+1,255)","v":{"$error":"#REF!"}},"Overview of the components expected to be in place prior to launching HWC program"]
[null,{"$f":"MID(CELL(\"Filename\",StuDB!#REF!),FIND(\"]\",CELL(\"Filename\",StuDB!#REF!))+1,255)","v":{"$error":"#REF!"}},"Database of all student incidents entered"]
[null,{"$f":"MID(CELL(\"Filename\",CycleDB!A5),FIND(\"]\",CELL(\"Filename\",CycleDB!A5))+1,255)","v":"CycleDB"},"Database of all cycle information entered"]
[null,{"$f":"MID(CELL(\"Filename\",Lookups!A6),FIND(\"]\",CELL(\"Filename\",Lookups!A6))+1,255)","v":"Lookups"},"Reference information used by macros/formulas/data validations"]
[]
[]
[]
[]
[]
[null,"Are references to this now in LOOKUP in all Modules?"]
[null,"Cat… need to check!"]
[]
[null,"v37.3","2020-11-11"]
[null,"v38.1","2021-01-28","Added tab for HWC School Team Data Review Meeting Discussion Guide"]
[null,null,null,"Added interaction that prompts user if they want to SAVE EXCEL when they SAVE STUDENT REFERRAL data"]
[null,null,null,"Added interaction that prompts user if they want to SAVE EXCEL when they SAVE CYCLE data"]
[null,null,null,"Changed all instances of \"Guidance Counselors\" to \"School Counselors"]
[null,null,null,"Added an interrupt when user checks the \"OVERRIDE\" checkbox so that now it ALSO asks if they truly have notified all teachers (other staff) first."]
[]
[null,"v38.2","2021-01-29"]
[null,"lots of changes not logged… yeesh"]
[]
[null,"v39","2021-03-26","Override checkboxes replaced by radio buttons to select how to enter data on notifying teachers / other staff"]
[null,null,null,"Added DELETE THIS REFERRRAL button"]
[null,null,null,"Added CLEAR PAGE button"]
[null,null,null,"Added code that asks user to specify if they want a NEW INCIDENT when and EXISTING ID is selected"]
[null,null,null,"can print to PDF all the graphs now, too"]
[]
[null,"v40","2021-04-02","output_calc","changed the way the cumulative MH and School Counselor (Guidance) are pulled from the dataset into the graph data. Instead of rollup, pull the entered data"]
[null,null,null,"Enter Cycle Data","put the highlighting on M32:N33 back to light yellow with blue font - indicating that this is manually collected  Because it was erroneous to think that referrals from one cycle to the next could just be added"]
[null,null,null,"Enter Counselor Data (optional)","Added tab to provide a place for Data Lead to collect all Counselor Workbook data for all counselors in a school. Also added buttons to clear data on page and to enter sample data (that makes sense)",null,null,null,null,null,null,null,null,null,null,null,null,null,null,null,null,null,2]
[null,null,null,"Enter Cycle Data","in order to fix the popup message that was appearing telling the user they had bad dates before any dates were even entered on a new incident… instead… I put the code to intercept a save. If the ReferralDate is after TODAY, then it won't save the Incident and puts the Focal Cell to the Referral Date.  \nIf any of the Notification Dates are prior to the Referral Date, then the Incident will not save and the Focal Cell is set to the first instance of a Notification Date that is too early.  Will repeat each time user tried to save until all dates are fixed!  thanks for the suggestion, Doug!"]
[null,null,null,null,"K32:N33 - instead of having them write in the values here… we could make these be formulas (and then hide rows…  and ask them to fill in the separate tab… OR .. .put the tables from the other tab directly into this tab so it's all in one….   Here are the formulas for these four cells:"]
[null,null,null,null,"=INDEX('Enter Counselor Data (optional)'!D11:D34,MATCH(D4,'Enter Counselor Data (optional)'!B11:B34,0),1)\n\n=INDEX('Enter Counselor Data (optional)'!D11:D34,MATCH(D4,'Enter Counselor Data (optional)'!B11:B34,0)+1,1)\n\n=INDEX('Enter Counselor Data (optional)'!E11:E34,MATCH(D4,'Enter Counselor Data (optional)'!B11:B34,0),1)\n\n=INDEX('Enter Counselor Data (optional)'!E11:E34,MATCH(D4,'Enter Counselor Data (optional)'!B11:B34,0)+1,1)"]
[null,null,null,"macros for Add Teacher and Add Other Staff","Macros were not written correctly for working with three columns of data pulled from multiple sources. Added code that first deletes any blank rows (cuz any blank row in the middle of the list was confusing the system into thinking the blank row was where new data should be pasted)"]
[null,null,null,"Lookups","Moved Old column Q to column O and then added in formulas in new P:Q so that teachers and other staff now have the other two fields pulled in from the staff lists.  This is cuz just having the names alone was causing multiple duplications in the list and would have quickly resulted in lost data."]
[null,null,null,"Teacher Roster (optional)","Added data validation to column headers and other title cells, then minimized text appearing in data validation popups on data entry cells (where possible)"]
[null,null,null,"Other Staff Roster (optional)","Added data validation to column headers and other title cells, then minimized text appearing in data validation popups on data entry cells (where possible)"]
[]
[null,"v43","2021-04-12","Training and Documentation","changed the order so mental health was 2nd from left. Others shifted to right one.\\"]
[null,null,null,"Enter Student Data","color change"]
[]
[null,null,null,"Both dashboards","graphs weren't always updating when a graph was selected and then the cycle was changed. Put in some code that detects which graph was selected and then re-selects (refreshes by re-running macro)"]
[]
[]
[]
[]
[]
[null,"v53",null,null,"HWC Notice replaces \"Incident\""]
[]
[]
[null,"v60","2021-06-22","Enter Cycle Data","Decision made to \"get rid of\" the counselor data entry interactive cells.  Instead, removed button that activated.  Logic and macros still there if need to restore in the future."]
[null,null,null,"Enter Student Data","Added macro function to the radio button click such that now the selection of an option applies write-protection (or removes write protection) on the Teacher Name and Class Info and Date of Informing"]
[null,null,null,null,"External Mental Health Providers replaces Mental Health Providers in these places:"]
[null,null,null,null," - Training and Documentation [B27]\n - Enter Cycle Data [B33]\n - Implementation Data Dashboard [B33, AG11, AH16]\n - output_calc [many]"]
[null,null,null,"Implementation Data Dashboard","changed stems to be \"Only 1 HWC notice\" and \"Two or more HWC notices\" for all graphs. Required smishing graphs more to allow for more wordy legends\n - output_calc [many]"]
[null,null,null,"Implementation Data Dashboard","Made these graphs into stacked bar:"]
[null,null,null,null," - Number of HWC Notices: Year to Current Cycle\n - Number of Students Identified for HWC Support: Year to Current Cycle\n -  DID NOT MAKE STACKS FOR CYCLE / ALL CYCLES.  Not needed there."]
[null,null,null,"Enter Cycle Data","[W32:W33] Added error message if try to have YtD values for counselor or Mental Health that are less than a previous cycle. Plus conditional format on column M for Ytd cells"]
[]
[]
[]
[null,"v66",null,"very Hide tabs"]

{"sheet":"IMPORTANT MESSAGE!","index":1,"n_rows":11,"n_cols":2,"rows_kept":11,"cut":false,"hidden":true,"merged":[]}
[]
[null,"4/2/2021: This workbook is a DRAFT, only.  This is NOT the final version."]
[null,"The final version is anticipated at the end of 2021."]
[]
[null,"Further inquiries or comment should be made to:"]
[null,"catherine.hall@sri.com"]
[null,"and"]
[null,"victoria.schaefer@sri.com"]
[]
[]
[null,"Data contained in this workbook are completely fictitious."]

{"sheet":"Instructions","index":2,"n_rows":74,"n_cols":2,"rows_kept":74,"cut":false,"hidden":false,"merged":[]}
[]
[null,"HWC Data Collection Tool"]
[null,"The HWC Data Lead Workbook serves as a data collection and reporting tool for schools that implement the Handle With Care program. "]
[]
[]
[]
[null,"Overview"]
[]
[null,"Enable Macros"]
[null,"When you open the HWC Data Lead Workbook, find the yellow highlighted row near the top of the screen that says “SECURITY WARNING: Macros have been disabled. Enable Content.” "]
[null,"Click the “Enable Content” button in the yellow highlighted row to allow all the behind-the-scenes programming to run. If content is not enabled, most of the functionality of this workbook will not work properly.\n\nIf you cannot enable macros in this manner, you may need to change a setting in Excel. See Microsoft guidance on enabling macros:"]
[null,"https://support.microsoft.com/en-us/office/enable-or-disable-macros-in-office-files-12b036fd-d140-4e74-b45e-16fed1a7e5c6?ui=en-us&rs=en-us&ad=us"]
[]
[null,"Save the file"]
[null,"After enabling macros, save the file in a secure location. We recommend the following naming convention: HWC Data Lead Workbook_YOUR SCHOOL_YEAR."]
[]
[null,"Workbook Functionality"]
["\n","1.  Enter data ONLY in yellow cells. Other cells are protected to prevent writing over formulas or header text."]
[null,"2. If you need to copy/paste from another data source, always copy and paste values (not just copy/paste). The HWC Data Lead Workbook has formatting that can be lost when cells are pasted over. For example, if you paste over a cell with yellow background, the background color is lost, and in the future you may not realize you need to update this cell. In addition, if you paste over a data entry cell, you may inadvertently add formulas or formatting from the source file, creating unexpected problems in this workbook and/or unplanned connections across workbooks."]
[null,"3. Do not drag and drop cells either within this workbook or from another external workbook. Similar to pasting over a cell, dragging and dropping cells could also break the Excel workbook’s functionality."]
[]
[]
[]
[null,"About the tabs"]
[]
[null,"Instructions"]
[null,"View-only"]
[null,"Provides instructions for users."]
[]
[null,"Teacher Roster (optional)"]
[null,"Optional data entry"]
[null,"Allows for entry of a list of teacher names, emails, and one additional field accessible when entering teacher information for a student who received an HWC notice (in the Enter Student Data tab)."]
[null,"No action is required as teachers' names are automatically added to the roster when you save teacher data as part of an HWC notice associated with a student. However, you may choose to create a list of teachers before entering any HWC notices or at any point in time. Having a pre-established list makes the teacher information available to you as a drop-down list in the data entry of a student's HWC notice. We suggest the format of last name, first initial."]
[]
[]
[null,"Other Staff Roster (optional)"]
[null,"Optional data entry"]
[null,"Allows for entry of a list of other staff names, emails, and one additional field accessible when entering other staff information for a student who received an HWC notice (in the Enter Student Data tab)."]
[null,"No action is required as other staff's names are automatically added to the roster when you save other staff data as part of an HWC notice associated with a student. However, you may choose to create a list of other staff before entering any HWC notices or at any point in time. Having a pre-established list makes the other staff information available to you as a drop-down list in the data entry of a student's HWC notice. We suggest the format of last name, first initial."]
[]
[]
[null,"Training and Documentation"]
[null,"Required data entry"]
[null,"Documents progress toward completion of necessary HWC training and document preparation."]
[]
[null,"Mark each requirement as Yes or No at the start of the program. Revisit this page mid-program as a quality check (for example, you may have hired new staff that need training), and update each requirement’s status."]
[]
[]
[null,"Enter Student Data"]
[null,"Required data entry"]
[null,"Documents HWC notices for each student identified for HWC support. "]
[]
[null,"Enter information about each student identified for HWC support, view information about a student identified for HWC support, update/edit information about an existing HWC notice, or delete an HWC notice.\n\nData collected: Student ID, student grade level, date of HWC notice, student's teachers (and any other staff to inform about the HWC notice), and dates on which teachers/staff were informed."]
[]
[]
[null,"Enter Cycle Data"]
[null,"Required data entry"]
[null,"Documents aggregate information (such as attendance, behavior, and achievement) for three groups: students identified for HWC support during the cycle, students ever identified for HWC support, and all students in the school."]
[]
[null,"You will need to pull data from your school’s data system (which varies by state, district, and/or school) to populate cells in this tab.  Your school leadership team will decide what type of achievement scores to track (e.g., GPA, standardized test scores, etc.). "]
[]
[]
[null,"Implementation Data Dashboard"]
[null,"View-only summary"]
[null,"Displays table and graphical summaries of the implementation data entered on the Enter Student Data tab; graphs have accompanying explanatory notes to facilitate understanding."]
[]
[null,"View summary values in table format and/or click on the buttons/graphs to interact with the graphical displays.  Clicking on a graph reveals explanatory notes and highlights data values in the table."]
[]
[]
[null,"Student Outcome Data Dashboard"]
[null,"View-only summary"]
[null,"Displays table and graphical summaries of the student outcome data entered on the Enter Cycle Data tab (e.g., behavior, attendance, achievement); graphs have accompanying explanatory notes to facilitate understanding."]
[]
[null,"View summary values in table format and/or click on the buttons/graphs to interact with the graphical displays.  Clicking on a graph reveals explanatory notes and highlights data values in the table."]

{"sheet":"Teacher Roster (optional)","index":3,"n_rows":450,"n_cols":4,"rows_kept":450,"cut":false,"hidden":false,"merged":[]}
[null,"Name (Last name, F.I.)","Email","Additional (e.g., grade, staff ID, etc.)"]
[1]
[2]
[3]
[4]
[5]
[6]
[7]
[8]
[9]
[10]
[11]
[12]
[13]
[14]
[15]
[16]
[17]
[18]
[19]
[20]
[21]
[22]
[23]
[24]
[25]
[26]
[27]
[28]
[29]
[30]
[31]
[32]
[33]
[34]
[35]
[36]
[37]
[38]
[39]
[40]
[41]
[42]
[43]
[44]
[45]
[46]
[47]
[48]
[49]
[50]
[51]
[52]
[53]
[54]
[55]
[56]
[57]
[58]
[59]
[60]
[61]
[62]
[63]
[64]
[65]
[66]
[67]
[68]
[69]
[70]
[71]
[72]
[73]
[74]
[75]
[76]
[77]
[78]
[79]
[80]
[81]
[82]
[83]
[84]
[85]
[86]
[87]
[88]
[89]
[90]
[91]
[92]
[93]
[94]
[95]
[96]
[97]
[98]
[99]
[100]
[101]
[102]
[103]
[104]
[105]
[106]
[107]
[108]
[109]
[110]
[111]
[112]
[113]
[114]
[115]
[116]
[117]
[118]
[119]
[120]
[121]
[122]
[123]
[124]
[125]
[126]
[127]
[128]
[129]
[130]
[131]
[132]
[133]
[134]
[135]
[136]
[137]
[138]
[139]
[140]
[141]
[142]
[143]
[144]
[145]
[146]
[147]
[148]
[149]
[150]
[151]
[152]
[153]
[154]
[155]
[156]
[157]
[158]
[159]
[160]
[161]
[162]
[163]
[164]
[165]
[166]
[167]
[168]
[169]
[170]
[171]
[172]
[173]
[174]
[175]
[176]
[177]
[178]
[179]
[180]
[181]
[182]
[183]
[184]
[185]
[186]
[187]
[188]
[189]
[190]
[191]
[192]
[193]
[194]
[195]
[196]
[197]
[198]
[199]
[200]
[201]
[202]
[203]
[204]
[205]
[206]
[207]
[208]
[209]
[210]
[211]
[212]
[213]
[214]
[215]
[216]
[217]
[218]
[219]
[220]
[221]
[222]
[223]
[224]
[225]
[226]
[227]
[228]
[229]
[230]
[231]
[232]
[233]
[234]
[235]
[236]
[237]
[238]
[239]
[240]
[241]
[242]
[243]
[244]
[245]
[246]
[247]
[248]
[249]
[250]
[251]
[252]
[253]
[254]
[255]
[256]
[257]
[258]
[259]
[260]
[261]
[262]
[263]
[264]
[265]
[266]
[267]
[268]
[269]
[270]
[271]
[272]
[273]
[274]
[275]
[276]
[277]
[278]
[279]
[280]
[281]
[282]
[283]
[284]
[285]
[286]
[287]
[288]
[289]
[290]
[291]
[292]
[293]
[294]
[295]
[296]
[297]
[298]
[299]
[300]
[301]
[302]
[303]
[304]
[305]
[306]
[307]
[308]
[309]
[310]
[311]
[312]
[313]
[314]
[315]
[316]
[317]
[318]
[319]
[320]
[321]
[322]
[323]
[324]
[325]
[326]
[327]
[328]
[329]
[330]
[331]
[332]
[333]
[334]
[335]
[336]
[337]
[338]
[339]
[340]
[341]
[342]
[343]
[344]
[345]
[346]
[347]
[348]
[349]
[350]
[351]
[352]
[353]
[354]
[355]
[356]
[357]
[358]
[359]
[360]
[361]
[362]
[363]
[364]
[365]
[366]
[367]
[368]
[369]
[370]
[371]
[372]
[373]
[374]
[375]
[376]
[377]
[378]
[379]
[380]
[381]
[382]
[383]
[384]
[385]
[386]
[387]
[388]
[389]
[390]
[391]
[392]
[393]
[394]
[395]
[396]
[397]
[398]
[399]
[400]
[401]
[402]
[403]
[404]
[405]
[406]
[407]
[408]
[409]
[410]
[411]
[412]
[413]
[414]
[415]
[416]
[417]
[418]
[419]
[420]
[421]
[422]
[423]
[424]
[425]
[426]
[427]
[428]
[429]
[430]
[431]
[432]
[433]
[434]
[435]
[436]
[437]
[438]
[439]
[440]
[441]
[442]
[443]
[444]
[445]
[446]
[447]
[448]
[449]

{"sheet":"Other Staff Roster (optional)","index":4,"n_rows":450,"n_cols":4,"rows_kept":450,"cut":false,"hidden":false,"merged":[]}
[null,"Name (Last name, F.I.)","Email","Additional (e.g., grade, staff ID, etc.)"]
[1]
[2]
[3]
[4]
[5]
[6]
[7]
[8]
[9]
[10]
[11]
[12]
[13]
[14]
[15]
[16]
[17]
[18]
[19]
[20]
[21]
[22]
[23]
[24]
[25]
[26]
[27]
[28]
[29]
[30]
[31]
[32]
[33]
[34]
[35]
[36]
[37]
[38]
[39]
[40]
[41]
[42]
[43]
[44]
[45]
[46]
[47]
[48]
[49]
[50]
[51]
[52]
[53]
[54]
[55]
[56]
[57]
[58]
[59]
[60]
[61]
[62]
[63]
[64]
[65]
[66]
[67]
[68]
[69]
[70]
[71]
[72]
[73]
[74]
[75]
[76]
[77]
[78]
[79]
[80]
[81]
[82]
[83]
[84]
[85]
[86]
[87]
[88]
[89]
[90]
[91]
[92]
[93]
[94]
[95]
[96]
[97]
[98]
[99]
[100]
[101]
[102]
[103]
[104]
[105]
[106]
[107]
[108]
[109]
[110]
[111]
[112]
[113]
[114]
[115]
[116]
[117]
[118]
[119]
[120]
[121]
[122]
[123]
[124]
[125]
[126]
[127]
[128]
[129]
[130]
[131]
[132]
[133]
[134]
[135]
[136]
[137]
[138]
[139]
[140]
[141]
[142]
[143]
[144]
[145]
[146]
[147]
[148]
[149]
[150]
[151]
[152]
[153]
[154]
[155]
[156]
[157]
[158]
[159]
[160]
[161]
[162]
[163]
[164]
[165]
[166]
[167]
[168]
[169]
[170]
[171]
[172]
[173]
[174]
[175]
[176]
[177]
[178]
[179]
[180]
[181]
[182]
[183]
[184]
[185]
[186]
[187]
[188]
[189]
[190]
[191]
[192]
[193]
[194]
[195]
[196]
[197]
[198]
[199]
[200]
[201]
[202]
[203]
[204]
[205]
[206]
[207]
[208]
[209]
[210]
[211]
[212]
[213]
[214]
[215]
[216]
[217]
[218]
[219]
[220]
[221]
[222]
[223]
[224]
[225]
[226]
[227]
[228]
[229]
[230]
[231]
[232]
[233]
[234]
[235]
[236]
[237]
[238]
[239]
[240]
[241]
[242]
[243]
[244]
[245]
[246]
[247]
[248]
[249]
[250]
[251]
[252]
[253]
[254]
[255]
[256]
[257]
[258]
[259]
[260]
[261]
[262]
[263]
[264]
[265]
[266]
[267]
[268]
[269]
[270]
[271]
[272]
[273]
[274]
[275]
[276]
[277]
[278]
[279]
[280]
[281]
[282]
[283]
[284]
[285]
[286]
[287]
[288]
[289]
[290]
[291]
[292]
[293]
[294]
[295]
[296]
[297]
[298]
[299]
[300]
[301]
[302]
[303]
[304]
[305]
[306]
[307]
[308]
[309]
[310]
[311]
[312]
[313]
[314]
[315]
[316]
[317]
[318]
[319]
[320]
[321]
[322]
[323]
[324]
[325]
[326]
[327]
[328]
[329]
[330]
[331]
[332]
[333]
[334]
[335]
[336]
[337]
[338]
[339]
[340]
[341]
[342]
[343]
[344]
[345]
[346]
[347]
[348]
[349]
[350]
[351]
[352]
[353]
[354]
[355]
[356]
[357]
[358]
[359]
[360]
[361]
[362]
[363]
[364]
[365]
[366]
[367]
[368]
[369]
[370]
[371]
[372]
[373]
[374]
[375]
[376]
[377]
[378]
[379]
[380]
[381]
[382]
[383]
[384]
[385]
[386]
[387]
[388]
[389]
[390]
[391]
[392]
[393]
[394]
[395]
[396]
[397]
[398]
[399]
[400]
[401]
[402]
[403]
[404]
[405]
[406]
[407]
[408]
[409]
[410]
[411]
[412]
[413]
[414]
[415]
[416]
[417]
[418]
[419]
[420]
[421]
[422]
[423]
[424]
[425]
[426]
[427]
[428]
[429]
[430]
[431]
[432]
[433]
[434]
[435]
[436]
[437]
[438]
[439]
[440]
[441]
[442]
[443]
[444]
[445]
[446]
[447]
[448]
[449]

{"sheet":"Training and Documentation","index":5,"n_rows":93,"n_cols":20,"rows_kept":93,"cut":false,"hidden":false,"merged":[[91,2,91,9],[65,1,65,9],[66,1,66,9],[67,2,67,9],[68,2,68,9],[69,2,69,9],[70,2,70,9],[71,2,71,9],[72,2,72,9],[95,7,95,8],[85,1,85,9],[86,1,86,9],[75,1,75,9],[76,1,76,9],[77,2,77,9],[78,2,78,9],[79,2,79,9],[80,2,80,9],[81,2,81,9],[82,2,82,9],[92,2,92,9],[87,2,87,9],[88,2,88,9],[89,2,89,9],[90,2,90,9],[55,1,55,9],[56,1,56,9],[57,2,57,9],[58,2,58,9],[59,2,59,9],[60,2,60,9],[61,2,61,9],[62,2,62,9],[38,2,38,9],[39,2,39,9],[40,2,40,9],[45,1,45,9],[46,1,46,9],[41,2,41,9],[42,2,42,9],[50,2,50,9],[51,2,51,9],[52,2,52,9],[47,2,47,9],[48,2,48,9],[49,2,49,9],[31,2,31,9],[32,2,32,9],[36,1,36,9],[35,1,35,9],[37,2,37,9],[16,1,16,9],[25,1,25,9],[26,1,26,9],[30,2,30,9],[22,2,22,9],[27,2,27,9],[28,2,28,9],[29,2,29,9],[17,2,17,9],[18,2,18,9],[19,2,19,9],[20,2,20,9],[21,2,21,9],[1,19,6,19],[0,0,1,10],[4,2,4,4],[4,5,4,9],[15,1,15,9],[4,12,4,17],[5,12,7,17]]}
["Program Setup"]
[null,null,null,null,null,null,null,null,null,null,null,null,null,null,null,null,null,null,null,{"$f":"IF(SUM(C9:J9)=8,\"All requirements are in place.; \",IF(SUM(C9:J9)=7,\"This requirement remains\",\"These requirements remain\")&\" unaddressed:\")&CHAR(10)&IF(C9=0,\"MOUs;  \",\"\")&IF(D9=0,\"Mental health space;  \",\"\")&IF(E9=0,\"Identify HWC Contact;  \",\"\")&IF(F9=0,\"Form School Team;  \",\"\")&IF(G9=0,\"Training;  \",\"\")&IF(H9=0,\"Book Study;  \",\"\")&IF(I9=0,\"Required Forms;  \",\"\")&IF(J9=0,\"Protocols;  \",\"\")","v":"These requirements remain unaddressed:\nMOUs;  Mental health space;  Identify HWC Contact;  Form School Team;  Training;  Book Study;  Required Forms;  Protocols;  "}]
["Requirements Checklist"]
[null,"Select or enter \"Yes\" or \"No\" for each requirement at the start of the program and at mid-program."]
[null,null,"School Leaders",null,null,"Teachers and School Staff",null,null,null,null,null,null,"Note:"]
[null,null,"MOUs","Mental Health Space","Identify HWC School Contact","Form HWC School Team","Training","Book Study / Strategic Planning","Required Forms","Protocols",null,"\n",{"$f":"LEFT(T2,LEN(T2)-3)","v":"These requirements remain unaddressed:\nMOUs;  Mental health space;  Identify HWC Contact;  Form School Team;  Training;  Book Study;  Required Forms;  Protocols"}]
[null,"Start of Program"]
[null,"Mid-Program"]
[null,null,{"$f":"IF(IF(C8=\"\",C7,C8)=\"Yes\",1,0)","v":0},{"$f":"IF(IF(D8=\"\",D7,D8)=\"Yes\",1,0)","v":0},{"$f":"IF(IF(E8=\"\",E7,E8)=\"Yes\",1,0)","v":0},{"$f":"IF(IF(F8=\"\",F7,F8)=\"Yes\",1,0)","v":0},0,0,0,0]
[]
["Requirements Details"]
[null,"Click a button to show the table to track details for each requirement (optional)"]
[null,null,null,null,null,null,null,null,null,null,null,null,"x\nx"]
[]
[]
[null,"MOUs"]
[null,"Are all MOUs completed and signed?"]
[null,"Date","Notes"]
[null,null,null,null,null,null,null,null,null,null,null,null,null,null,null,null,null,null,null,{"$f":"C19","v":0}]
[null,null,null,null,null,null,null,null,null,null,null,null,null,null,null,null,null,null,null,{"$f":"C20","v":0}]
[null,null,null,null,null,null,null,null,null,null,null,null,null,null,null,null,null,null,null,0]
[null,null,null,null,null,null,null,null,null,null,null,null,null,null,null,null,null,null,null,0]
[null,null,null,null,null,null,null,null,null,null,null,null,null,null,null,null,null,null,null,0]
[]
[]
[null,"Mental Health Space"]
[null,"Has the external mental health provider been provided space at school?"]
[null,"Date","Notes"]
[null,null,null,null,null,null,null,null,null,null,null,null,null,null,null,null,null,null,null,{"$f":"C29","v":0}]
[null,null,null,null,null,null,null,null,null,null,null,null,null,null,null,null,null,null,null,{"$f":"C30","v":0}]
[null,null,null,null,null,null,null,null,null,null,null,null,null,null,null,null,null,null,null,0]
[null,null,null,null,null,null,null,null,null,null,null,null,null,null,null,null,null,null,null,0]
[null,null,null,null,null,null,null,null,null,null,null,null,null,null,null,null,null,null,null,0]
[]
[]
[null,"Identify HWC School Contact"]
[null,"Have you identified the school contact to receive HWC notices from law enforcement, EMS, and fire departments?"]
[null,"Date","Notes"]
[null,null,null,null,null,null,null,null,null,null,null,null,null,null,null,null,null,null,null,{"$f":"C39","v":0}]
[null,null,null,null,null,null,null,null,null,null,null,null,null,null,null,null,null,null,null,{"$f":"C40","v":0}]
[null,null,null,null,null,null,null,null,null,null,null,null,null,null,null,null,null,null,null,0]
[null,null,null,null,null,null,null,null,null,null,null,null,null,null,null,null,null,null,null,0]
[null,null,null,null,null,null,null,null,null,null,null,null,null,null,null,null,null,null,null,0]
[]
[]
[null,"Form HWC School Team"]
[null,"Have you formed your HWC school team?"]
[null,"Date","Notes"]
[null,null,null,null,null,null,null,null,null,null,null,null,null,null,null,null,null,null,null,{"$f":"C49","v":0}]
[null,null,null,null,null,null,null,null,null,null,null,null,null,null,null,null,null,null,null,{"$f":"C50","v":0}]
[null,null,null,null,null,null,null,null,null,null,null,null,null,null,null,null,null,null,null,0]
[null,null,null,null,null,null,null,null,null,null,null,null,null,null,null,null,null,null,null,0]
[null,null,null,null,null,null,null,null,null,null,null,null,null,null,null,null,null,null,null,0]
[]
[]
[null,"Training"]
[null,"Are ALL teachers and school staff trained (in HWC)?"]
[null,"Date","Notes"]
[null,null,null,null,null,null,null,null,null,null,null,null,null,null,null,null,null,null,null,{"$f":"C59","v":0}]
[null,null,null,null,null,null,null,null,null,null,null,null,null,null,null,null,null,null,null,{"$f":"C60","v":0}]
[null,null,null,null,null,null,null,null,null,null,null,null,null,null,null,null,null,null,null,0]
[null,null,null,null,null,null,null,null,null,null,null,null,null,null,null,null,null,null,null,0]
[null,null,null,null,null,null,null,null,null,null,null,null,null,null,null,null,null,null,null,0]
[]
[]
[null,"Book Study or Strategic Planning Activity"]
[null,"Have all teachers and school staff participated in a book study or strategic planning activity? "]
[null,"Date","Notes"]
[null,null,null,null,null,null,null,null,null,null,null,null,null,null,null,null,null,null,null,{"$f":"C69","v":0}]
[null,null,null,null,null,null,null,null,null,null,null,null,null,null,null,null,null,null,null,{"$f":"C70","v":0}]
[null,null,null,null,null,null,null,null,null,null,null,null,null,null,null,null,null,null,null,0]
[null,null,null,null,null,null,null,null,null,null,null,null,null,null,null,null,null,null,null,0]
[null,null,null,null,null,null,null,null,null,null,null,null,null,null,null,null,null,null,null,0]
[]
[]
[null,"Required Forms"]
[null,"Do all teachers and school staff have access to all required forms (e.g., HWC form, parental permission to treat)? "]
[null,"Date","Notes"]
[null,null,null,null,null,null,null,null,null,null,null,null,null,null,null,null,null,null,null,{"$f":"C79","v":0}]
[null,null,null,null,null,null,null,null,null,null,null,null,null,null,null,null,null,null,null,{"$f":"C80","v":0}]
[null,null,null,null,null,null,null,null,null,null,null,null,null,null,null,null,null,null,null,0]
[null,null,null,null,null,null,null,null,null,null,null,null,null,null,null,null,null,null,null,0]
[null,null,null,null,null,null,null,null,null,null,null,null,null,null,null,null,null,null,null,0]
[]
[]
[null,"Protocols"]
[null,"Are all protocols ready for use? "]
[null,"Date","Notes"]
[null,null,null,null,null,null,null,null,null,null,null,null,null,null,null,null,null,null,null,{"$f":"C89","v":0}]
[null,null,null,null,null,null,null,null,null,null,null,null,null,null,null,null,null,null,null,{"$f":"C90","v":0}]
[null,null,null,null,null,null,null,null,null,null,null,null,null,null,null,null,null,null,null,0]
[null,null,null,null,null,null,null,null,null,null,null,null,null,null,null,null,null,null,null,0]
[null,null,null,null,null,null,null,null,null,null,null,null,null,null,null,null,null,null,null,0]

{"sheet":"Enter Student Data","index":6,"n_rows":38,"n_cols":21,"rows_kept":38,"cut":false,"hidden":false,"merged":[[20,1,20,8],[6,1,6,8],[11,15,17,15],[25,15,31,15],[7,8,7,9],[8,8,8,9],[11,4,11,7],[12,4,12,7],[13,4,13,7],[14,4,14,7],[15,4,15,7],[16,4,16,7],[8,4,8,7],[7,4,7,7],[21,4,21,7],[25,8,25,9],[3,3,3,5],[1,3,1,5],[17,8,17,9],[11,8,11,9],[12,8,12,9],[17,4,17,7],[15,8,15,9],[16,8,16,9],[13,8,13,9],[14,8,14,9],[9,8,9,9],[10,8,10,9],[9,4,9,7],[10,4,10,7],[26,4,26,7],[26,8,26,9],[21,8,21,9],[22,4,22,7],[22,8,22,9],[23,4,23,7],[23,8,23,9],[31,4,31,7],[31,8,31,9],[6,11,6,13],[7,11,7,12],[8,11,8,12],[29,4,29,7],[29,8,29,9],[30,4,30,7],[30,8,30,9],[27,4,27,7],[27,8,27,9],[24,4,24,7],[24,8,24,9],[28,4,28,7],[28,8,28,9],[25,4,25,7],[34,15,35,15],[36,15,37,15],[24,11,26,13],[27,11,31,13],[2,19,3,19],[1,15,3,15],[3,11,3,13],[1,11,1,13],[20,11,20,13],[21,11,21,12],[22,11,22,12],[10,11,12,13],[13,11,17,13],[34,9,34,12]]}
[]
[null,null,null,"Student ID: ",null,null,null,null,"HWC Notice Date:","Incident Date \n(if known):",null,"Select or Enter Student Grade:",null,null,null,"Save HWC Notice Data",null,{"$f":"IF(ISERROR(VLOOKUP(G2,Lookups!G:G,1,FALSE)),\"Create new ID list\",\"xx\")","v":"Create new ID list"},"Grade",{"$f":"TODAY()","v":"2021-12-09"},"TODAY"]
[null,null,null,null,null,null,null,null,null,null,null,null,null,null,null,null,null,null,null,{"$f":"IF(MIN(I9:I32)=0,TODAY(),MIN(I9:I32))","v":"2021-12-09"}]
[null,null,null,"HWC Notice ID: ",null,null,"New HWC Notice",null,null,null,null,null,null,null,null,null,null,"ReferralDate",{"$f":"I4","v":"00:00:00"},null,"MIN"]
[]
[]
[null,"Teacher(s)",null,null,null,null,null,null,null,null,null,"Number of Teachers that …",null,null,null,null,null,"AvgTchNotifDays",null,{"$f":"IF(OR(N8=0,T8),\"\",AVERAGE(Q9:Q18))","v":""}]
[null,"Name","Email","Additional","Class / Role",null,null,null,"Date Teacher Was Informed",null,null,"Should be informed:",null,{"$f":"IF(T8,\"\",COUNTA(B9:B18))","v":0},null,null,null,"TchrNotifiedOverride",null,{"$f":"IF(U8=2,TRUE,FALSE)","v":false},1]
[null,null,{"$f":"IFERROR(IF(VLOOKUP($B9,'Teacher Roster (optional)'!$B:$D,COLUMNS($B9:C9),FALSE)=\"\",\"\",VLOOKUP($B9,'Teacher Roster (optional)'!$B:$D,COLUMNS($B9:C9),FALSE)),\"\")","v":""},{"$f":"IFERROR(IF(VLOOKUP($B9,'Teacher Roster (optional)'!$B:$D,COLUMNS($B9:D9),FALSE)=\"\",\"\",VLOOKUP($B9,'Teacher Roster (optional)'!$B:$D,COLUMNS($B9:D9),FALSE)),\"\")","v":""},null,null,null,null,null,null,null,"Have been informed:",null,{"$f":"IF(T8,\"\",IF(AND(B9<>\"\",ISNUMBER(I9)),1,0)+IF(AND(B10<>\"\",ISNUMBER(I10)),1,0)+IF(AND(B11<>\"\",ISNUMBER(I11)),1,0)+IF(AND(B12<>\"\",ISNUMBER(I12)),1,0)+IF(AND(B13<>\"\",ISNUMBER(I13)),1,0)+IF(AND(B14<>\"\",ISNUMBER(I14)),1,0)+IF(AND(B15<>\"\",ISNUMBER(I15)),1,0)+IF(AND(B16<>\"\",ISNUMBER(I16)),1,0)+IF(AND(B17<>\"\",ISNUMBER(I17)),1,0)+IF(AND(B18<>\"\",ISNUMBER(I18)),1,0))","v":0},null,null,{"$f":"IF(B9<>\"\",IF(ISNUMBER(I9),I9-$I$4,TODAY()-$I$4),\"\")","v":""},"Tchr1_Name","Tchr1_Info","Tchr1_DateNotified"]
[null,null,{"$f":"IFERROR(IF(VLOOKUP($B10,'Teacher Roster (optional)'!$B:$D,COLUMNS($B10:C10),FALSE)=\"\",\"\",VLOOKUP($B10,'Teacher Roster (optional)'!$B:$D,COLUMNS($B10:C10),FALSE)),\"\")","v":""},{"$f":"IFERROR(IF(VLOOKUP($B10,'Teacher Roster (optional)'!$B:$D,COLUMNS($B10:D10),FALSE)=\"\",\"\",VLOOKUP($B10,'Teacher Roster (optional)'!$B:$D,COLUMNS($B10:D10),FALSE)),\"\")","v":""},null,null,null,null,null,null,null,null,null,null,null,null,{"$f":"IF(B10<>\"\",IF(ISNUMBER(I10),I10-$I$4,TODAY()-$I$4),\"\")","v":""},"Tchr2_Name","Tchr2_Info","Tchr2_DateNotified"]
[null,null,{"$f":"IFERROR(IF(VLOOKUP($B11,'Teacher Roster (optional)'!$B:$D,COLUMNS($B11:C11),FALSE)=\"\",\"\",VLOOKUP($B11,'Teacher Roster (optional)'!$B:$D,COLUMNS($B11:C11),FALSE)),\"\")","v":""},{"$f":"IFERROR(IF(VLOOKUP($B11,'Teacher Roster (optional)'!$B:$D,COLUMNS($B11:D11),FALSE)=\"\",\"\",VLOOKUP($B11,'Teacher Roster (optional)'!$B:$D,COLUMNS($B11:D11),FALSE)),\"\")","v":""},null,null,null,null,null,null,null,"I would like to record dates that teachers were informed",null,null,null,"Note:","","Tchr3_Name","Tchr3_Info","Tchr3_DateNotified"]
[null,null,{"$f":"IFERROR(IF(VLOOKUP($B12,'Teacher Roster (optional)'!$B:$D,COLUMNS($B12:C12),FALSE)=\"\",\"\",VLOOKUP($B12,'Teacher Roster (optional)'!$B:$D,COLUMNS($B12:C12),FALSE)),\"\")","v":""},{"$f":"IFERROR(IF(VLOOKUP($B12,'Teacher Roster (optional)'!$B:$D,COLUMNS($B12:D12),FALSE)=\"\",\"\",VLOOKUP($B12,'Teacher Roster (optional)'!$B:$D,COLUMNS($B12:D12),FALSE)),\"\")","v":""},null,null,null,null,null,null,false,null,null,null,false,{"$f":"IF(G2=\"\",\"\",IF(I4=\"\",\"Please enter an HWC Notice Date in cell I4, above.\",IF(N8=0,\"Enter or select name(s) for Teachers in column B;  OR\"&CHAR(10)&\"Select 'I would like to indicate that all teachers have been informed' from the option box to the left.\",IF(T8,\"Because you selected to not record the dates teachers were informed, the average number of days to inform teachers for this HWC Notice will not be used in any summaries.\",\"Based on the HWC Notice Date (\"&TEXT($I$4,\"M/D/YY\")&\") in cell I4 above, and the dates that each teacher was informed, the average number of days to inform teachers for this HWC Notice is \"&IF(MOD(T7,1)=0,TEXT(T7,\"#\"),TEXT(T7,\"#.0\"))&IF(AND(T7>0,T7<=1),\" day\",\" days\")&\" (as of today).\"))))","v":""},"","Tchr4_Name","Tchr4_Info","Tchr4_DateNotified"]
[null,null,{"$f":"IFERROR(IF(VLOOKUP($B13,'Teacher Roster (optional)'!$B:$D,COLUMNS($B13:C13),FALSE)=\"\",\"\",VLOOKUP($B13,'Teacher Roster (optional)'!$B:$D,COLUMNS($B13:C13),FALSE)),\"\")","v":""},{"$f":"IFERROR(IF(VLOOKUP($B13,'Teacher Roster (optional)'!$B:$D,COLUMNS($B13:D13),FALSE)=\"\",\"\",VLOOKUP($B13,'Teacher Roster (optional)'!$B:$D,COLUMNS($B13:D13),FALSE)),\"\")","v":""},null,null,null,null,null,null,null,null,null,null,null,null,"","Tchr5_Name","Tchr5_Info","Tchr5_DateNotified"]
[null,null,{"$f":"IFERROR(IF(VLOOKUP($B14,'Teacher Roster (optional)'!$B:$D,COLUMNS($B14:C14),FALSE)=\"\",\"\",VLOOKUP($B14,'Teacher Roster (optional)'!$B:$D,COLUMNS($B14:C14),FALSE)),\"\")","v":""},{"$f":"IFERROR(IF(VLOOKUP($B14,'Teacher Roster (optional)'!$B:$D,COLUMNS($B14:D14),FALSE)=\"\",\"\",VLOOKUP($B14,'Teacher Roster (optional)'!$B:$D,COLUMNS($B14:D14),FALSE)),\"\")","v":""},null,null,null,null,null,null,null,"I would like to indicate that all teachers have been informed (without specifying dates)",null,null,null,null,"","Tchr6_Name","Tchr6_Info","Tchr6_DateNotified"]
[null,null,{"$f":"IFERROR(IF(VLOOKUP($B15,'Teacher Roster (optional)'!$B:$D,COLUMNS($B15:C15),FALSE)=\"\",\"\",VLOOKUP($B15,'Teacher Roster (optional)'!$B:$D,COLUMNS($B15:C15),FALSE)),\"\")","v":""},{"$f":"IFERROR(IF(VLOOKUP($B15,'Teacher Roster (optional)'!$B:$D,COLUMNS($B15:D15),FALSE)=\"\",\"\",VLOOKUP($B15,'Teacher Roster (optional)'!$B:$D,COLUMNS($B15:D15),FALSE)),\"\")","v":""},null,null,null,null,null,null,null,null,null,null,null,null,"","Tchr7_Name","Tchr7_Info","Tchr7_DateNotified"]
[null,null,{"$f":"IFERROR(IF(VLOOKUP($B16,'Teacher Roster (optional)'!$B:$D,COLUMNS($B16:C16),FALSE)=\"\",\"\",VLOOKUP($B16,'Teacher Roster (optional)'!$B:$D,COLUMNS($B16:C16),FALSE)),\"\")","v":""},{"$f":"IFERROR(IF(VLOOKUP($B16,'Teacher Roster (optional)'!$B:$D,COLUMNS($B16:D16),FALSE)=\"\",\"\",VLOOKUP($B16,'Teacher Roster (optional)'!$B:$D,COLUMNS($B16:D16),FALSE)),\"\")","v":""},null,null,null,null,null,null,null,null,null,null,null,null,"","Tchr8_Name","Tchr8_Info","Tchr8_DateNotified"]
[null,null,{"$f":"IFERROR(IF(VLOOKUP($B17,'Teacher Roster (optional)'!$B:$D,COLUMNS($B17:C17),FALSE)=\"\",\"\",VLOOKUP($B17,'Teacher Roster (optional)'!$B:$D,COLUMNS($B17:C17),FALSE)),\"\")","v":""},{"$f":"IFERROR(IF(VLOOKUP($B17,'Teacher Roster (optional)'!$B:$D,COLUMNS($B17:D17),FALSE)=\"\",\"\",VLOOKUP($B17,'Teacher Roster (optional)'!$B:$D,COLUMNS($B17:D17),FALSE)),\"\")","v":""},null,null,null,null,null,null,null,null,null,null,null,null,"","Tchr9_Name","Tchr9_Info","Tchr9_DateNotified"]
[null,null,{"$f":"IFERROR(IF(VLOOKUP($B18,'Teacher Roster (optional)'!$B:$D,COLUMNS($B18:C18),FALSE)=\"\",\"\",VLOOKUP($B18,'Teacher Roster (optional)'!$B:$D,COLUMNS($B18:C18),FALSE)),\"\")","v":""},{"$f":"IFERROR(IF(VLOOKUP($B18,'Teacher Roster (optional)'!$B:$D,COLUMNS($B18:D18),FALSE)=\"\",\"\",VLOOKUP($B18,'Teacher Roster (optional)'!$B:$D,COLUMNS($B18:D18),FALSE)),\"\")","v":""},null,null,null,null,null,null,null,null,null,null,null,null,"","Tchr10_Name","Tchr10_Info","Tchr10_DateNotified"]
[]
[]
[null,"Other Staff (School Counselors, Principals, and Nurses)",null,null,null,null,null,null,null,null,null,"Number of Other Staff that …",null,null,null,null,null,"AvgStaffNotifDays",null,{"$f":"IF(OR(N22=0,T22),\"\",AVERAGE(Q23:Q32))","v":""}]
[null,"Name","Email","Additional","Class / Role",null,null,null,"Date Other Staff Was Informed",null,null,"Should be informed:",null,{"$f":"IF(T22,\"\",COUNTA(B23:B32))","v":0},null,null,null,"StaffNotifiedOverride",null,{"$f":"IF(U22=2,TRUE,FALSE)","v":false},1]
[null,null,{"$f":"IFERROR(IF(VLOOKUP($B23,'Other Staff Roster (optional)'!$B:$D,COLUMNS($B23:C23),FALSE)=\"\",\"\",VLOOKUP($B23,'Other Staff Roster (optional)'!$B:$D,COLUMNS($B23:C23),FALSE)),\"\")","v":""},{"$f":"IFERROR(IF(VLOOKUP($B23,'Other Staff Roster (optional)'!$B:$D,COLUMNS($B23:D23),FALSE)=\"\",\"\",VLOOKUP($B23,'Other Staff Roster (optional)'!$B:$D,COLUMNS($B23:D23),FALSE)),\"\")","v":""},null,null,null,null,null,null,null,"Have been informed:",null,{"$f":"IF(T22,\"\",IF(AND(B23<>\"\",ISNUMBER(I23)),1,0)+IF(AND(B24<>\"\",ISNUMBER(I24)),1,0)+IF(AND(B25<>\"\",ISNUMBER(I25)),1,0)+IF(AND(B26<>\"\",ISNUMBER(I26)),1,0)+IF(AND(B27<>\"\",ISNUMBER(I27)),1,0)+IF(AND(B28<>\"\",ISNUMBER(I28)),1,0)+IF(AND(B29<>\"\",ISNUMBER(I29)),1,0)+IF(AND(B30<>\"\",ISNUMBER(I30)),1,0)+IF(AND(B31<>\"\",ISNUMBER(I31)),1,0)+IF(AND(B32<>\"\",ISNUMBER(I32)),1,0))","v":0},null,null,{"$f":"IF(B23<>\"\",IF(ISNUMBER(I23),I23-$I$4,TODAY()-$I$4),\"\")","v":""},"Staff1_Name","Staff1_Info","Staff1_DateNotified"]
[null,null,{"$f":"IFERROR(IF(VLOOKUP($B24,'Other Staff Roster (optional)'!$B:$D,COLUMNS($B24:C24),FALSE)=\"\",\"\",VLOOKUP($B24,'Other Staff Roster (optional)'!$B:$D,COLUMNS($B24:C24),FALSE)),\"\")","v":""},{"$f":"IFERROR(IF(VLOOKUP($B24,'Other Staff Roster (optional)'!$B:$D,COLUMNS($B24:D24),FALSE)=\"\",\"\",VLOOKUP($B24,'Other Staff Roster (optional)'!$B:$D,COLUMNS($B24:D24),FALSE)),\"\")","v":""},null,null,null,null,null,null,null,null,null,null,null,null,{"$f":"IF(B24<>\"\",IF(ISNUMBER(I24),I24-$I$4,TODAY()-$I$4),\"\")","v":""},"Staff2_Name","Staff2_Info","Staff2_DateNotified"]
[null,null,{"$f":"IFERROR(IF(VLOOKUP($B25,'Other Staff Roster (optional)'!$B:$D,COLUMNS($B25:C25),FALSE)=\"\",\"\",VLOOKUP($B25,'Other Staff Roster (optional)'!$B:$D,COLUMNS($B25:C25),FALSE)),\"\")","v":""},{"$f":"IFERROR(IF(VLOOKUP($B25,'Other Staff Roster (optional)'!$B:$D,COLUMNS($B25:D25),FALSE)=\"\",\"\",VLOOKUP($B25,'Other Staff Roster (optional)'!$B:$D,COLUMNS($B25:D25),FALSE)),\"\")","v":""},null,null,null,null,null,null,null,"I would like to record dates that all other staff were informed",null,null,null,"Note:","","Staff3_Name","Staff3_Info","Staff3_DateNotified"]
[null,null,{"$f":"IFERROR(IF(VLOOKUP($B26,'Other Staff Roster (optional)'!$B:$D,COLUMNS($B26:C26),FALSE)=\"\",\"\",VLOOKUP($B26,'Other Staff Roster (optional)'!$B:$D,COLUMNS($B26:C26),FALSE)),\"\")","v":""},{"$f":"IFERROR(IF(VLOOKUP($B26,'Other Staff Roster (optional)'!$B:$D,COLUMNS($B26:D26),FALSE)=\"\",\"\",VLOOKUP($B26,'Other Staff Roster (optional)'!$B:$D,COLUMNS($B26:D26),FALSE)),\"\")","v":""},null,null,null,null,null,null,null,null,null,null,null,{"$f":"IF(G2=\"\",\"\",IF(I4=\"\",\"Please enter an HWC Notice Date in cell I4, above.\",IF(N22=0,\"Enter or select name(s) for Other Staff in column B;  OR\"&CHAR(10)&\"Select 'I would like to indicate that all other staff have been informed' from the option box to the left.\",IF(T22,\"Because you selected to not record the dates other staff were informed, the average number of days to inform other staff for this notice will not be used in any summaries.\",\"Based on the HWC Notice Date (\"&TEXT($I$4,\"M/D/YY\")&\") in cell I4 above, and the dates that each other staff member was informed, the average number of days to inform other staff for this HWC Notice is \"&IF(MOD(T21,1)=0,TEXT(T21,\"#\"),TEXT(T21,\"#.0\"))&IF(AND(T21>0,T21<=1),\" day\",\" days\")&\" (as of today).\"))))","v":""},"","Staff4_Name","Staff4_Info","Staff4_DateNotified"]
[null,null,{"$f":"IFERROR(IF(VLOOKUP($B27,'Other Staff Roster (optional)'!$B:$D,COLUMNS($B27:C27),FALSE)=\"\",\"\",VLOOKUP($B27,'Other Staff Roster (optional)'!$B:$D,COLUMNS($B27:C27),FALSE)),\"\")","v":""},{"$f":"IFERROR(IF(VLOOKUP($B27,'Other Staff Roster (optional)'!$B:$D,COLUMNS($B27:D27),FALSE)=\"\",\"\",VLOOKUP($B27,'Other Staff Roster (optional)'!$B:$D,COLUMNS($B27:D27),FALSE)),\"\")","v":""},null,null,null,null,null,null,null,null,null,null,null,null,"","Staff5_Name","Staff5_Info","Staff5_DateNotified"]
[null,null,{"$f":"IFERROR(IF(VLOOKUP($B28,'Other Staff Roster (optional)'!$B:$D,COLUMNS($B28:C28),FALSE)=\"\",\"\",VLOOKUP($B28,'Other Staff Roster (optional)'!$B:$D,COLUMNS($B28:C28),FALSE)),\"\")","v":""},{"$f":"IFERROR(IF(VLOOKUP($B28,'Other Staff Roster (optional)'!$B:$D,COLUMNS($B28:D28),FALSE)=\"\",\"\",VLOOKUP($B28,'Other Staff Roster (optional)'!$B:$D,COLUMNS($B28:D28),FALSE)),\"\")","v":""},null,null,null,null,null,null,null,"I would like to indicate that all other staff have been informed (without specifying dates)",null,null,null,null,"","Staff6_Name","Staff6_Info","Staff6_DateNotified"]
[null,null,{"$f":"IFERROR(IF(VLOOKUP($B29,'Other Staff Roster (optional)'!$B:$D,COLUMNS($B29:C29),FALSE)=\"\",\"\",VLOOKUP($B29,'Other Staff Roster (optional)'!$B:$D,COLUMNS($B29:C29),FALSE)),\"\")","v":""},{"$f":"IFERROR(IF(VLOOKUP($B29,'Other Staff Roster (optional)'!$B:$D,COLUMNS($B29:D29),FALSE)=\"\",\"\",VLOOKUP($B29,'Other Staff Roster (optional)'!$B:$D,COLUMNS($B29:D29),FALSE)),\"\")","v":""},null,null,null,null,null,null,null,null,null,null,null,null,"","Staff7_Name","Staff7_Info","Staff7_DateNotified"]
[null,null,{"$f":"IFERROR(IF(VLOOKUP($B30,'Other Staff Roster (optional)'!$B:$D,COLUMNS($B30:C30),FALSE)=\"\",\"\",VLOOKUP($B30,'Other Staff Roster (optional)'!$B:$D,COLUMNS($B30:C30),FALSE)),\"\")","v":""},{"$f":"IFERROR(IF(VLOOKUP($B30,'Other Staff Roster (optional)'!$B:$D,COLUMNS($B30:D30),FALSE)=\"\",\"\",VLOOKUP($B30,'Other Staff Roster (optional)'!$B:$D,COLUMNS($B30:D30),FALSE)),\"\")","v":""},null,null,null,null,null,null,null,null,null,null,null,null,"","Staff8_Name","Staff8_Info","Staff8_DateNotified"]
[null,null,{"$f":"IFERROR(IF(VLOOKUP($B31,'Other Staff Roster (optional)'!$B:$D,COLUMNS($B31:C31),FALSE)=\"\",\"\",VLOOKUP($B31,'Other Staff Roster (optional)'!$B:$D,COLUMNS($B31:C31),FALSE)),\"\")","v":""},{"$f":"IFERROR(IF(VLOOKUP($B31,'Other Staff Roster (optional)'!$B:$D,COLUMNS($B31:D31),FALSE)=\"\",\"\",VLOOKUP($B31,'Other Staff Roster (optional)'!$B:$D,COLUMNS($B31:D31),FALSE)),\"\")","v":""},null,null,null,null,null,null,null,null,null,null,null,null,"","Staff9_Name","Staff9_Info","Staff9_DateNotified"]
[null,null,{"$f":"IFERROR(IF(VLOOKUP($B32,'Other Staff Roster (optional)'!$B:$D,COLUMNS($B32:C32),FALSE)=\"\",\"\",VLOOKUP($B32,'Other Staff Roster (optional)'!$B:$D,COLUMNS($B32:C32),FALSE)),\"\")","v":""},{"$f":"IFERROR(IF(VLOOKUP($B32,'Other Staff Roster (optional)'!$B:$D,COLUMNS($B32:D32),FALSE)=\"\",\"\",VLOOKUP($B32,'Other Staff Roster (optional)'!$B:$D,COLUMNS($B32:D32),FALSE)),\"\")","v":""},null,null,null,null,null,null,null,null,null,null,null,null,"","Staff10_Name","Staff10_Info","Staff10_DateNotified"]
[]
[null,null,null,null,null,null,null,null,null,null,null,null,null,null,null,null,null,"Flag Sheet Change","FALSEFALSE",{"$f":"IF(G2=\"\",\"\",IF(I4&B9&E9&I9&B10&E10&I10&B11&E11&I11&B12&E12&I12&B13&E13&I13&B14&E14&I14&B15&E15&I15&B16&E16&I16&B17&E17&I17&B18&E18&I18&B23&E23&I23&B24&E24&I24&B25&E25&I25&B26&E26&I26&B27&E27&I27&B28&E28&I28&B29&E29&I29&B30&E30&I30&B31&E31&I31&B32&E32&I32&T8&T22&L4=S34,\"\",\"Something on this worksheet changed. Trigger color change for SAVE button!\"))","v":""}]
[null,null,null,null,null,null,null,null,null,"This HWC notice last updated: ",null,null,null,null,null,"This Notice Data is assigned to:"]
[null,null,null,null,null,null,null,null,null,null,null,null,null,null,null,null,"Cycle: ",{"$f":"IF(I4=\"\",\"! No Cycle associated with this date!\",IF(AND(I4>=CycleDB!B2,I4<=CycleDB!C2),CycleDB!A2,IF(AND(I4>=CycleDB!B3,I4<=CycleDB!C3),CycleDB!A3,IF(AND(I4>=CycleDB!B4,I4<=CycleDB!C4),CycleDB!A4,IF(AND(I4>=CycleDB!B5,I4<=CycleDB!C5),CycleDB!A5,IF(AND(I4>=CycleDB!B6,I4<=CycleDB!C6),CycleDB!A6,IF(AND(I4>=CycleDB!B7,I4<=CycleDB!C7),CycleDB!A7,IF(AND(I4>=CycleDB!B8,I4<=CycleDB!C8),CycleDB!A8,IF(AND(I4>=CycleDB!B9,I4<=CycleDB!C9),CycleDB!A9,IF(AND(I4>=CycleDB!B10,I4<=CycleDB!C10),CycleDB!A10,IF(AND(I4>=CycleDB!B11,I4<=CycleDB!C11),CycleDB!A11,IF(AND(I4>=CycleDB!B12,I4<=CycleDB!C12),CycleDB!A12,IF(AND(I4>=CycleDB!B13,I4<=CycleDB!C13),CycleDB!A13,\"! No Cycle associated with this date!\")))))))))))))","v":"! No Cycle associated with this date!"}]
[null,null,null,null,null,null,null,null,null,null,null,null,null,null,null,{"$f":"R36","v":"! No Cycle associated with this date!"}]
[null,null,null,null,null,null,null,null,null,null,null,null,null,null,null,null,"Cycle: ",{"$f":"IFERROR(IF(INDEX(CycleDB!A2:A13,MATCH(MIN(R36:R37),CycleDB!B2:B13,1),1)=INDEX(CycleDB!A2:A13,MATCH(MIN(R36:R37),CycleDB!B2:B13,-1),1),INDEX(CycleDB!A2:A13,MATCH(MIN(R36:R37),CycleDB!B2:B13,1),1),\"! No Cycle associated with this date!\"),\"! No Cycle associated with this date!\")","v":"! No Cycle associated with this date!"}]

{"sheet":"Enter Cycle Data","index":7,"n_rows":130,"n_cols":52,"rows_kept":130,"cut":false,"hidden":false,"merged":[[1,1,1,3],[6,9,6,13],[28,26,32,26],[0,22,1,23],[30,1,30,8],[31,1,31,8],[32,1,32,8],[28,9,28,13],[3,26,4,26],[25,9,25,11],[24,9,24,11],[26,9,26,11],[20,9,20,11],[3,1,3,2],[17,9,17,11],[16,9,16,13],[11,9,11,11],[11,12,11,13],[19,9,19,11],[12,9,12,11],[1,5,1,6],[25,1,25,8],[10,1,10,8],[3,5,3,6],[11,1,11,8],[16,1,16,8],[26,1,26,8],[22,1,22,8],[23,1,23,8],[24,1,24,8],[6,1,6,8],[7,1,7,8],[20,12,20,13],[24,12,24,13],[22,9,22,13],[23,9,23,11],[26,12,26,13],[7,9,7,11],[8,9,8,11],[18,9,18,11],[18,12,18,13],[13,12,13,13],[14,9,14,11],[14,12,14,13],[8,1,8,8],[25,12,25,13],[13,9,13,11],[10,9,10,13],[39,9,39,11],[106,33,106,36],[106,38,106,41],[56,33,56,36],[56,38,56,41],[81,33,81,36],[40,9,40,11],[32,12,32,13],[6,26,8,26],[17,12,17,13],[19,12,19,13],[29,9,29,13],[30,9,30,11],[30,12,30,13],[12,12,12,13],[7,12,7,13],[8,12,8,13],[10,26,14,26],[16,26,20,26],[22,26,26,26],[23,12,23,13],[35,12,35,13],[35,8,35,11],[32,9,32,11],[29,1,29,8],[12,1,12,8],[13,1,13,8],[31,9,31,11],[31,12,31,13],[38,9,38,11],[20,1,20,8],[17,1,17,8],[18,1,18,8],[14,1,14,8],[19,1,19,8],[31,43,31,46],[31,48,31,51],[5,33,5,36],[5,38,5,41],[5,43,5,46],[3,28,4,31],[106,48,106,51],[81,38,81,41],[81,43,81,46],[81,48,81,51],[5,28,6,29],[5,31,6,31],[5,30,6,30],[56,43,56,46],[106,43,106,46],[56,48,56,51],[5,48,5,51],[1,33,3,36],[31,33,31,36],[31,38,31,41]]}
[null,null,null,null,null,null,null,null,null,null,null,null,null,null,null,null,null,null,null,null,null,null,"Save Cycle Data"]
[null,"Enter Cycle Data",null,null,null,"Start Date:",null,null,"End Date:",null,null,null,null,null,null,null,null,null,null,null,null,null,null,null,null,null,"Cycles",null,null,null,null,null,null,"Paste table from each School Counselor \nBELOW the gray title bar in each chart"]
[]
[null,"Select a Cycle",null,null,null,{"$f":"IFERROR(IF(VLOOKUP(D4,W8:Y19,2,FALSE)=\"\",\"\",VLOOKUP(D4,W8:Y19,2,FALSE)),\"\")","v":""},null,null,{"$f":"IFERROR(IF(VLOOKUP(D4,W8:Y19,3,FALSE)=\"\",\"\",VLOOKUP(D4,W8:Y19,3,FALSE)),\"\")","v":""},null,null,null,null,null,null,null,null,null,"StartDate","EndDate",null,null,null,null,null,null,{"$f":"IFERROR(VALUE(RIGHT(D4,2)),1)","v":1},null,"This is a read-only summary table. Do not edit."]
[null,"Note: To see the next cycle in the drop-down selection cell in D4, first save data for the current cycle."]
[null,null,null,null,null,null,null,null,null,null,null,null,null,null,null,null,null,null,null,null,null,"#FBFEFF",null,null,null,null,null,null,"SUM OF ALL SCHOOL COUNSELORS",null,"This Cycle","Year To Date",null,"SCHOOL COUNSELOR 1",null,null,null,null,"SCHOOL COUNSELOR 2",null,null,null,null,"SCHOOL COUNSELOR 3",null,null,null,null,"SCHOOL COUNSELOR 4"]
[null,"School Enrollment",null,null,null,null,null,null,null,"Number of students",null,null,null,null,null,null,null,null,null,null,null,"#E7FBFF","Cycles","Start Date","End Date",null,"(Student Outcomes Data Dashboard)",null,null,null,null,null,null,null,null,"This Cycle","Year To Date",null,null,null,"This Cycle","Year To Date",null,null,null,"This Cycle","Year To Date",null,null,null,"This Cycle","Year To Date"]
[null,"What is the current total number of students in…",null,null,null,null,null,null,null,"This Cycle",null,null,"Year to Date",null,null,null,null,null,null,null,null,"#CDF7FF","Summer",null,null,null,null,null,"Cycle 1","School Counselor",{"$f":"AJ8+IF($AE$32>=2,AO8,0)+IF($AE$32>=3,AT8,0)+IF($AE$32>=4,AY8,0)+IF($AE$32>=5,AJ34,0)+IF($AE$32>=6,AO34,0)+IF($AE$32>=7,AT34,0)+IF($AE$32>=8,AY34,0)+IF($AE$32>=9,AJ59,0)+IF($AE$32>=10,AO59,0)+IF($AE$32>=11,AT59,0)+IF($AE$32>=12,AY59,0)+IF($AE$32>=13,AJ84,0)+IF($AE$32>=14,AO84,0)+IF($AE$32>=15,AT84,0)+IF($AE$32>=16,AY84,0)+IF($AE$32>=17,AJ109,0)+IF($AE$32>=18,AO109,0)+IF($AE$32>=19,AT109,0)+IF($AE$32>=20,AY109,0)","v":1},{"$f":"AK8+IF($AE$32>=2,AP8,0)+IF($AE$32>=3,AU8,0)+IF($AE$32>=4,AZ8,0)+IF($AE$32>=5,AK34,0)+IF($AE$32>=6,AP34,0)+IF($AE$32>=7,AU34,0)+IF($AE$32>=8,AZ34,0)+IF($AE$32>=9,AK59,0)+IF($AE$32>=10,AP59,0)+IF($AE$32>=11,AU59,0)+IF($AE$32>=12,AZ59,0)+IF($AE$32>=13,AK84,0)+IF($AE$32>=14,AP84,0)+IF($AE$32>=15,AU84,0)+IF($AE$32>=16,AZ84,0)+IF($AE$32>=17,AK109,0)+IF($AE$32>=18,AP109,0)+IF($AE$32>=19,AU109,0)+IF($AE$32>=20,AZ109,0)","v":2},null,"Cycle 1","School Counselor",1,2,null,"Cycle 1","School Counselor",5,6,null,"Cycle 1","School Counselor",10,30,null,"Cycle 1","School Counselor"]
[null,"The whole school? (Schoolwide Group)",null,null,null,null,null,null,null,null,null,null,null,null,null,null,null,null,"SchEnrl_Schoolwide_Cycle","SchEnrl_Schoolwide_YTD",null,"#B3F2FF","Cycle 1",null,null,null,null,null,null,"Mental Health Provider",3,4,null,null,"Mental Health Provider",3,4,null,null,"Mental Health Provider",7,8,null,null,"Mental Health Provider",20,40,null,null,"Mental Health Provider"]
[null,null,null,null,null,null,null,null,null,null,null,null,null,null,null,null,null,null,null,null,null,"#8FECFF","Cycle 2",null,null,null,null,null,"Cycle 2","School Counselor",5,4,null,"Cycle 2","School Counselor",5,4,null,"Cycle 2","School Counselor",3,5,null,"Cycle 2","School Counselor",null,null,null,"Cycle 2","School Counselor"]
[null,"Behavior Incidents",null,null,null,null,null,null,null,"Number of behavior incidents",null,null,null,null,null,null,null,null,null,null,null,"#65E5FF","Cycle 3",null,null,null,"(Student Outcomes Data Dashboard)",null,null,"Mental Health Provider",4,5,null,null,"Mental Health Provider",4,5,null,null,"Mental Health Provider",4,6,null,null,"Mental Health Provider",null,null,null,null,"Mental Health Provider"]
[null,"How many behavior incidents were reported for…",null,null,null,null,null,null,null,"This Cycle",null,null,"Year to Date",null,null,null,null,null,null,null,null,"#2FDCFF","Cycle 4",null,null,null,null,null,"Cycle 3","School Counselor",9,10,null,"Cycle 3","School Counselor",9,10,null,"Cycle 3","School Counselor",5,7,null,"Cycle 3","School Counselor",null,null,null,"Cycle 3","School Counselor"]
[null,"Students identified for HWC support in this cycle? (Cycle HWC Group)",null,null,null,null,null,null,null,null,null,null,null,null,null,null,null,null,"Behav_CycleHWC_Cycle","Behav_CycleHWC_YTD",null,"#00CDF6","Cycle 5",null,null,null,null,null,null,"Mental Health Provider",11,12,null,null,"Mental Health Provider",11,12,null,null,"Mental Health Provider",6,8,null,null,"Mental Health Provider",null,null,null,null,"Mental Health Provider"]
[null,"All students identified for HWC support so far this school year? (Cumulative HWC Group)",null,null,null,null,null,null,null,null,null,null,null,null,null,null,null,null,"Behav_CumulHWC_Cycle","Behav_CumulHWC_YTD",null,"#00B6DA","Cycle 6",null,null,null,null,null,"Cycle 4","School Counselor",0,0,null,"Cycle 4","School Counselor",null,null,null,"Cycle 4","School Counselor",7,9,null,"Cycle 4","School Counselor",null,null,null,"Cycle 4","School Counselor"]
[null,"The whole school? (Schoolwide Group)",null,null,null,null,null,null,null,null,null,null,null,null,null,null,null,null,"Behav_Schoolwide_Cycle","Behav_Schoolwide_YTD",null,"#00A3C4","Cycle 7",null,null,null,null,null,null,"Mental Health Provider",0,0,null,null,"Mental Health Provider",null,null,null,null,"Mental Health Provider",8,10,null,null,"Mental Health Provider",null,null,null,null,"Mental Health Provider"]
[null,null,null,null,null,null,null,null,null,null,null,null,null,null,null,null,null,null,null,null,null,"#008CA8","Cycle 8",null,null,null,null,null,"Cycle 5","School Counselor",0,0,null,"Cycle 5","School Counselor",null,null,null,"Cycle 5","School Counselor",9,11,null,"Cycle 5","School Counselor",null,null,null,"Cycle 5","School Counselor"]
[null,"Attendance",null,null,null,null,null,null,null,"Attendance",null,null,null,null,null,null,null,null,null,null,null,"#005A6C","Cycle 9",null,null,null,"(Student Outcomes Data Dashboard)",null,null,"Mental Health Provider",0,0,null,null,"Mental Health Provider",null,null,null,null,"Mental Health Provider",10,12,null,null,"Mental Health Provider",null,null,null,null,"Mental Health Provider"]
[null,"What was the attendance for…",null,null,null,null,null,null,null,"This Cycle",null,null,"Year to Date",null,null,null,null,null,null,null,null,null,"Cycle 10",null,null,null,null,null,"Cycle 6","School Counselor",0,0,null,"Cycle 6","School Counselor",null,null,null,"Cycle 6","School Counselor",null,null,null,"Cycle 6","School Counselor",null,null,null,"Cycle 6","School Counselor"]
[null,"Students identified for HWC support in this cycle? (Cycle HWC Group)",null,null,null,null,null,null,null,null,null,null,null,null,null,null,null,null,"Attend_CycleHWC_Cycle","Attend_CycleHWC_YTD",null,null,"Cycle 11",null,null,null,null,null,null,"Mental Health Provider",0,0,null,null,"Mental Health Provider",null,null,null,null,"Mental Health Provider",null,null,null,null,"Mental Health Provider",null,null,null,null,"Mental Health Provider"]
[null,"All students identified for HWC support so far this school year? (Cumulative HWC Group)",null,null,null,null,null,null,null,null,null,null,null,null,null,null,null,null,"Attend_CumulHWC_Cycle","Attend_CumulHWC_YTD",null,null,null,null,null,null,null,null,"Cycle 7","School Counselor",0,0,null,"Cycle 7","School Counselor",null,null,null,"Cycle 7","School Counselor",null,null,null,"Cycle 7","School Counselor",null,null,null,"Cycle 7","School Counselor"]
[null,"The whole school? (Schoolwide Group)",null,null,null,null,null,null,null,null,null,null,null,null,null,null,null,null,"Attend_Schoolwide_Cycle","Attend_Schoolwide_YTD",null,null,null,null,null,null,null,null,null,"Mental Health Provider",0,0,null,null,"Mental Health Provider",null,null,null,null,"Mental Health Provider",null,null,null,null,"Mental Health Provider",null,null,null,null,"Mental Health Provider"]
[null,null,null,null,null,null,null,null,null,null,null,null,null,null,null,null,null,null,null,null,null,null,null,null,null,null,null,null,"Cycle 8","School Counselor",0,0,null,"Cycle 8","School Counselor",null,null,null,"Cycle 8","School Counselor",null,null,null,"Cycle 8","School Counselor",null,null,null,"Cycle 8","School Counselor"]
[null,"Achievement",null,null,null,null,null,null,null,"Achievement",null,null,null,null,null,null,null,null,null,null,null,null,null,null,null,null,"(Student Outcomes Data Dashboard)",null,null,"Mental Health Provider",0,0,null,null,"Mental Health Provider",null,null,null,null,"Mental Health Provider",null,null,null,null,"Mental Health Provider",null,null,null,null,"Mental Health Provider"]
[null,"What was the average achievement for…",null,null,null,null,null,null,null,"This Cycle",null,null,"Year to Date",null,null,null,null,null,null,null,null,null,null,null,null,null,null,null,"Cycle 9","School Counselor",0,0,null,"Cycle 9","School Counselor",null,null,null,"Cycle 9","School Counselor",null,null,null,"Cycle 9","School Counselor",null,null,null,"Cycle 9","School Counselor"]
[null,"Students identified for HWC support in this cycle? (Cycle HWC Group)",null,null,null,null,null,null,null,null,null,null,null,null,null,null,null,null,"Achvmt_CycleHWC_Cycle","Achvmt_CycleHWC_YTD",null,null,null,null,null,null,null,null,null,"Mental Health Provider",0,0,null,null,"Mental Health Provider",null,null,null,null,"Mental Health Provider",null,null,null,null,"Mental Health Provider",null,null,null,null,"Mental Health Provider"]
[null,"All students identified for HWC support so far this school year? (Cumulative HWC Group)",null,null,null,null,null,null,null,null,null,null,null,null,null,null,null,null,"Achvmt_CumulHWC_Cycle","Achvmt_CumulHWC_YTD",null,null,null,null,null,null,null,null,"Cycle 10","School Counselor",0,0,null,"Cycle 10","School Counselor",null,null,null,"Cycle 10","School Counselor",null,null,null,"Cycle 10","School Counselor",null,null,null,"Cycle 10","School Counselor"]
[null,"The whole school? (Schoolwide Group)",null,null,null,null,null,null,null,null,null,null,null,null,null,null,null,null,"Achvmt_Schoolwide_Cycle","Achvmt_Schoolwide_YTD",null,null,null,null,null,null,null,null,null,"Mental Health Provider",0,0,null,null,"Mental Health Provider",null,null,null,null,"Mental Health Provider",null,null,null,null,"Mental Health Provider",null,null,null,null,"Mental Health Provider"]
[null,null,null,null,null,null,null,null,null,null,null,null,null,null,null,null,null,null,null,null,null,null,null,null,null,null,null,null,"Cycle 11","School Counselor",0,0,null,"Cycle 11","School Counselor",null,null,null,"Cycle 11","School Counselor",null,null,null,"Cycle 11","School Counselor",null,null,null,"Cycle 11","School Counselor"]
[null,"Counseling Referrals",null,null,null,null,null,null,null,"Number of Referrals",null,null,null,null,null,null,null,null,null,null,null,null,null,null,null,null," (Implementation Data Dashboard)",null,null,"Mental Health Provider",0,0,null,null,"Mental Health Provider",null,null,null,null,"Mental Health Provider",null,null,null,null,"Mental Health Provider",null,null,null,null,"Mental Health Provider"]
[null,"Counseling Referrals",null,null,null,null,null,null,null,"Number of Referrals"]
[null,"Total number of students identified for HWC support referred to…",null,null,null,null,null,null,null,"This Cycle",null,null,"Year to Date"]
[null,"School counselor",null,null,null,null,null,null,null,null,null,null,null,null,null,null,null,null,"GuideRef_CumulHWC_Cycle","GuideRef_CumulHWC_YTD",null,null,{"$f":"IF(AND(M32<>\"\",_xlfn.MAXIFS(CycleDB!$Y$2:$Y$12,CycleDB!$B$2:$B$12,\"<\"&$F$4)>M32),\"!   Must be at least previous cycle's value of \"&_xlfn.MAXIFS(CycleDB!$Y$2:$Y$12,CycleDB!$B$2:$B$12,\"<\"&$F$4),\"\")","v":""},null,null,null,null,null,null,"How many school counselors?",null,null,null,"SCHOOL COUNSELOR 5",null,null,null,null,"SCHOOL COUNSELOR 6",null,null,null,null,"SCHOOL COUNSELOR 7",null,null,null,null,"SCHOOL COUNSELOR 8"]
[null,"External mental health provider",null,null,null,null,null,null,null,null,null,null,null,null,null,null,null,null,"MntlHlthRef_CumulHWC_Cycle","MntlHlthRef_CumulHWC_YTD",null,null,{"$f":"IF(AND(M33<>\"\",_xlfn.MAXIFS(CycleDB!$AA$2:$AA$12,CycleDB!$B$2:$B$12,\"<\"&$F$4)>M33),\"!   Must be at least previous cycle's value of \"&_xlfn.MAXIFS(CycleDB!$AA$2:$AA$12,CycleDB!$B$2:$B$12,\"<\"&$F$4),\"\")","v":""},null,null,null,null,null,null,null,null,null,null,null,null,"This Cycle","Year To Date",null,null,null,"This Cycle","Year To Date",null,null,null,"This Cycle","Year To Date",null,null,null,"This Cycle","Year To Date"]
[null,null,null,null,null,null,null,null,null,null,null,null,null,null,null,null,null,null,null,null,null,null,null,null,null,null,null,null,null,null,null,null,null,"Cycle 1","School Counselor",null,null,null,"Cycle 1","School Counselor",null,null,null,"Cycle 1","School Counselor",null,null,null,"Cycle 1","School Counselor"]
[null,null,null,null,null,null,null,null,null,null,null,null,null,null,null,2,null,null,null,null,null,null,2,null,null,null,null,null,null,null,null,null,null,null,"Mental Health Provider",null,null,null,null,"Mental Health Provider",null,null,null,null,"Mental Health Provider",null,null,null,null,"Mental Health Provider"]
[null,null,null,null,null,null,null,null,"Last Updated: ",null,null,null,null,null,null,null,null,null,null,{"$f":"IF(D4&F4&I4&J9&M9&J13&J14&M14&J15&M15&J19&J20&M20&J21&M21&J25&J26&M26&J27&M27&J32&M32&J33&M33=S36,\"\",\"Something on this worksheet changed. Trigger color change for SAVE button!\")","v":""},null,null,null,null,"Flag Sheet Change",null,null,null,null,null,null,null,null,"Cycle 2","School Counselor",null,null,null,"Cycle 2","School Counselor",null,null,null,"Cycle 2","School Counselor",null,null,null,"Cycle 2","School Counselor"]
[null,null,null,null,null,null,null,null,null,null,null,null,null,null,null,null,null,null,"Is form data for referrals different from data to import?",{"$f":"IF(AND(J32=INDEX(AE8:AE29,MATCH(D4,AC8:AC29,0),1),M32=INDEX(AF8:AF29,MATCH(D4,AC8:AC29,0),1),J33=INDEX(AE8:AE29,MATCH(D4,AC8:AC29,0)+1,1),M33=INDEX(AF8:AF29,MATCH(D4,AC8:AC29,0)+1,1)),FALSE,TRUE)","v":{"$error":"#N/A"}},null,null,null,null,null,null,null,null,null,null,null,null,null,null,"Mental Health Provider",null,null,null,null,"Mental Health Provider",null,null,null,null,"Mental Health Provider",null,null,null,null,"Mental Health Provider"]
[null,null,null,null,null,null,null,null,null,null,null,null,null,null,null,null,null,null,"All destination cells blank?",{"$f":"IF(AND(J33=\"\",M33=\"\",J34=\"\",M34=\"\"),TRUE, FALSE)","v":true},null,null,null,null,null,null,null,null,null,null,null,null,null,"Cycle 3","School Counselor",null,null,null,"Cycle 3","School Counselor",null,null,null,"Cycle 3","School Counselor",null,null,null,"Cycle 3","School Counselor"]
[null,null,null,null,null,null,null,null,null,null,null,null,null,null,null,null,null,null,null,null,null,null,null,null,null,null,null,null,null,null,null,null,null,null,"Mental Health Provider",null,null,null,null,"Mental Health Provider",null,null,null,null,"Mental Health Provider",null,null,null,null,"Mental Health Provider"]
[null,null,null,null,null,null,null,null,null,null,null,null,null,null,null,null,null,null,null,null,null,null,null,null,null,null,null,null,null,null,null,null,null,"Cycle 4","School Counselor",null,null,null,"Cycle 4","School Counselor",null,null,null,"Cycle 4","School Counselor",null,null,null,"Cycle 4","School Counselor"]
[null,null,null,null,null,null,null,null,null,null,null,null,null,null,null,null,null,null,null,null,null,null,null,null,null,null,null,null,null,null,null,null,null,null,"Mental Health Provider",null,null,null,null,"Mental Health Provider",null,null,null,null,"Mental Health Provider",null,null,null,null,"Mental Health Provider"]
[null,null,null,null,null,null,null,null,null,null,null,null,null,null,null,null,null,null,null,null,null,null,null,null,null,null,null,null,null,null,null,null,null,"Cycle 5","School Counselor",null,null,null,"Cycle 5","School Counselor",null,null,null,"Cycle 5","School Counselor",null,null,null,"Cycle 5","School Counselor"]
[null,null,null,null,null,null,null,null,null,null,null,null,null,null,null,null,null,null,null,null,null,null,null,null,null,null,null,null,null,null,null,null,null,null,"Mental Health Provider",null,null,null,null,"Mental Health Provider",null,null,null,null,"Mental Health Provider",null,null,null,null,"Mental Health Provider"]
[null,null,null,null,null,null,null,null,null,null,null,null,null,null,null,null,null,null,null,null,null,null,null,null,null,null,null,null,null,null,null,null,null,"Cycle 6","School Counselor",null,null,null,"Cycle 6","School Counselor",null,null,null,"Cycle 6","School Counselor",null,null,null,"Cycle 6","School Counselor"]
[null,null,null,null,null,null,null,null,null,null,null,null,null,null,null,null,null,null,null,null,null,null,null,null,null,null,null,null,null,null,null,null,null,null,"Mental Health Provider",null,null,null,null,"Mental Health Provider",null,null,null,null,"Mental Health Provider",null,null,null,null,"Mental Health Provider"]
[null,null,null,null,null,null,null,null,null,null,null,null,null,null,null,null,null,null,null,null,null,null,null,null,null,null,null,null,null,null,null,null,null,"Cycle 7","School Counselor",null,null,null,"Cycle 7","School Counselor",null,null,null,"Cycle 7","School Counselor",null,null,null,"Cycle 7","School Counselor"]
[null,null,null,null,null,null,null,null,null,null,null,null,null,null,null,null,null,null,null,null,null,null,null,null,null,null,null,null,null,null,null,null,null,null,"Mental Health Provider",null,null,null,null,"Mental Health Provider",null,null,null,null,"Mental Health Provider",null,null,null,null,"Mental Health Provider"]
[null,null,null,null,null,null,null,null,null,null,null,null,null,null,null,null,null,null,null,null,null,null,null,null,null,null,null,null,null,null,null,null,null,"Cycle 8","School Counselor",null,null,null,"Cycle 8","School Counselor",null,null,null,"Cycle 8","School Counselor",null,null,null,"Cycle 8","School Counselor"]
[null,null,null,null,null,null,null,null,null,null,null,null,null,null,null,null,null,null,null,null,null,null,null,null,null,null,null,null,null,null,null,null,null,null,"Mental Health Provider",null,null,null,null,"Mental Health Provider",null,null,null,null,"Mental Health Provider",null,null,null,null,"Mental Health Provider"]
[null,null,null,null,null,null,null,null,null,null,null,null,null,null,null,null,null,null,null,null,null,null,null,null,null,null,null,null,null,null,null,null,null,"Cycle 9","School Counselor",null,null,null,"Cycle 9","School Counselor",null,null,null,"Cycle 9","School Counselor",null,null,null,"Cycle 9","School Counselor"]
[null,null,null,null,null,null,null,null,null,null,null,null,null,null,null,null,null,null,null,null,null,null,null,null,null,null,null,null,null,null,null,null,null,null,"Mental Health Provider",null,null,null,null,"Mental Health Provider",null,null,null,null,"Mental Health Provider",null,null,null,null,"Mental Health Provider"]
[null,null,null,null,null,null,null,null,null,null,null,null,null,null,null,null,null,null,null,null,null,null,null,null,null,null,null,null,null,null,null,null,null,"Cycle 10","School Counselor",null,null,null,"Cycle 10","School Counselor",null,null,null,"Cycle 10","School Counselor",null,null,null,"Cycle 10","School Counselor"]
[null,null,null,null,null,null,null,null,null,null,null,null,null,null,null,null,null,null,null,null,null,null,null,null,null,null,null,null,null,null,null,null,null,null,"Mental Health Provider",null,null,null,null,"Mental Health Provider",null,null,null,null,"Mental Health Provider",null,null,null,null,"Mental Health Provider"]
[null,null,null,null,null,null,null,null,null,null,null,null,null,null,null,null,null,null,null,null,null,null,null,null,null,null,null,null,null,null,null,null,null,"Cycle 11","School Counselor",null,null,null,"Cycle 11","School Counselor",null,null,null,"Cycle 11","School Counselor",null,null,null,"Cycle 11","School Counselor"]
[null,null,null,null,null,null,null,null,null,null,null,null,null,null,null,null,null,null,null,null,null,null,null,null,null,null,null,null,null,null,null,null,null,null,"Mental Health Provider",null,null,null,null,"Mental Health Provider",null,null,null,null,"Mental Health Provider",null,null,null,null,"Mental Health Provider"]
[]
[null,null,null,null,null,null,null,null,null,null,null,null,null,null,null,null,null,null,null,null,null,null,null,null,null,null,null,null,null,null,null,null,null,"SCHOOL COUNSELOR 9",null,null,null,null,"SCHOOL COUNSELOR 10",null,null,null,null,"SCHOOL COUNSELOR 11",null,null,null,null,"SCHOOL COUNSELOR 12"]
[null,null,null,null,null,null,null,null,null,null,null,null,null,null,null,null,null,null,null,null,null,null,null,null,null,null,null,null,null,null,null,null,null,null,null,"This Cycle","Year To Date",null,null,null,"This Cycle","Year To Date",null,null,null,"This Cycle","Year To Date",null,null,null,"This Cycle","Year To Date"]
[null,null,null,null,null,null,null,null,null,null,null,null,null,null,null,null,null,null,null,null,null,null,null,null,null,null,null,null,null,null,null,null,null,"Cycle 1","School Counselor",null,null,null,"Cycle 1","School Counselor",null,null,null,"Cycle 1","School Counselor",null,null,null,"Cycle 1","School Counselor"]
[null,null,null,null,null,null,null,null,null,null,null,null,null,null,null,null,null,null,null,null,null,null,null,null,null,null,null,null,null,null,null,null,null,null,"Mental Health Provider",null,null,null,null,"Mental Health Provider",null,null,null,null,"Mental Health Provider",null,null,null,null,"Mental Health Provider"]
[null,null,null,null,null,null,null,null,null,null,null,null,null,null,null,null,null,null,null,null,null,null,null,null,null,null,null,null,null,null,null,null,null,"Cycle 2","School Counselor",null,null,null,"Cycle 2","School Counselor",null,null,null,"Cycle 2","School Counselor",null,null,null,"Cycle 2","School Counselor"]
[null,null,null,null,null,null,null,null,null,null,null,null,null,null,null,null,null,null,null,null,null,null,null,null,null,null,null,null,null,null,null,null,null,null,"Mental Health Provider",null,null,null,null,"Mental Health Provider",null,null,null,null,"Mental Health Provider",null,null,null,null,"Mental Health Provider"]
[null,null,null,null,null,null,null,null,null,null,null,null,null,null,null,null,null,null,null,null,null,null,null,null,null,null,null,null,null,null,null,null,null,"Cycle 3","School Counselor",null,null,null,"Cycle 3","School Counselor",null,null,null,"Cycle 3","School Counselor",null,null,null,"Cycle 3","School Counselor"]
[null,null,null,null,null,null,null,null,null,null,null,null,null,null,null,null,null,null,null,null,null,null,null,null,null,null,null,null,null,null,null,null,null,null,"Mental Health Provider",null,null,null,null,"Mental Health Provider",null,null,null,null,"Mental Health Provider",null,null,null,null,"Mental Health Provider"]
[null,null,null,null,null,null,null,null,null,null,null,null,null,null,null,null,null,null,null,null,null,null,null,null,null,null,null,null,null,null,null,null,null,"Cycle 4","School Counselor",null,null,null,"Cycle 4","School Counselor",null,null,null,"Cycle 4","School Counselor",null,null,null,"Cycle 4","School Counselor"]
[null,null,null,null,null,null,null,null,null,null,null,null,null,null,null,null,null,null,null,null,null,null,null,null,null,null,null,null,null,null,null,null,null,null,"Mental Health Provider",null,null,null,null,"Mental Health Provider",null,null,null,null,"Mental Health Provider",null,null,null,null,"Mental Health Provider"]
[null,null,null,null,null,null,null,null,null,null,null,null,null,null,null,null,null,null,null,null,null,null,null,null,null,null,null,null,null,null,null,null,null,"Cycle 5","School Counselor",null,null,null,"Cycle 5","School Counselor",null,null,null,"Cycle 5","School Counselor",null,null,null,"Cycle 5","School Counselor"]
[null,null,null,null,null,null,null,null,null,null,null,null,null,null,null,null,null,null,null,null,null,null,null,null,null,null,null,null,null,null,null,null,null,null,"Mental Health Provider",null,null,null,null,"Mental Health Provider",null,null,null,null,"Mental Health Provider",null,null,null,null,"Mental Health Provider"]
[null,null,null,null,null,null,null,null,null,null,null,null,null,null,null,null,null,null,null,null,null,null,null,null,null,null,null,null,null,null,null,null,null,"Cycle 6","School Counselor",null,null,null,"Cycle 6","School Counselor",null,null,null,"Cycle 6","School Counselor",null,null,null,"Cycle 6","School Counselor"]
[null,null,null,null,null,null,null,null,null,null,null,null,null,null,null,null,null,null,null,null,null,null,null,null,null,null,null,null,null,null,null,null,null,null,"Mental Health Provider",null,null,null,null,"Mental Health Provider",null,null,null,null,"Mental Health Provider",null,null,null,null,"Mental Health Provider"]
[null,null,null,null,null,null,null,null,null,null,null,null,null,null,null,null,null,null,null,null,null,null,null,null,null,null,null,null,null,null,null,null,null,"Cycle 7","School Counselor",null,null,null,"Cycle 7","School Counselor",null,null,null,"Cycle 7","School Counselor",null,null,null,"Cycle 7","School Counselor"]
[null,null,null,null,null,null,null,null,null,null,null,null,null,null,null,null,null,null,null,null,null,null,null,null,null,null,null,null,null,null,null,null,null,null,"Mental Health Provider",null,null,null,null,"Mental Health Provider",null,null,null,null,"Mental Health Provider",null,null,null,null,"Mental Health Provider"]
[null,null,null,null,null,null,null,null,null,null,null,null,null,null,null,null,null,null,null,null,null,null,null,null,null,null,null,null,null,null,null,null,null,"Cycle 8","School Counselor",null,null,null,"Cycle 8","School Counselor",null,null,null,"Cycle 8","School Counselor",null,null,null,"Cycle 8","School Counselor"]
[null,null,null,null,null,null,null,null,null,null,null,null,null,null,null,null,null,null,null,null,null,null,null,null,null,null,null,null,null,null,null,null,null,null,"Mental Health Provider",null,null,null,null,"Mental Health Provider",null,null,null,null,"Mental Health Provider",null,null,null,null,"Mental Health Provider"]
[null,null,null,null,null,null,null,null,null,null,null,null,null,null,null,null,null,null,null,null,null,null,null,null,null,null,null,null,null,null,null,null,null,"Cycle 9","School Counselor",null,null,null,"Cycle 9","School Counselor",null,null,null,"Cycle 9","School Counselor",null,null,null,"Cycle 9","School Counselor"]
[null,null,null,null,null,null,null,null,null,null,null,null,null,null,null,null,null,null,null,null,null,null,null,null,null,null,null,null,null,null,null,null,null,null,"Mental Health Provider",null,null,null,null,"Mental Health Provider",null,null,null,null,"Mental Health Provider",null,null,null,null,"Mental Health Provider"]
[null,null,null,null,null,null,null,null,null,null,null,null,null,null,null,null,null,null,null,null,null,null,null,null,null,null,null,null,null,null,null,null,null,"Cycle 10","School Counselor",null,null,null,"Cycle 10","School Counselor",null,null,null,"Cycle 10","School Counselor",null,null,null,"Cycle 10","School Counselor"]
[null,null,null,null,null,null,null,null,null,null,null,null,null,null,null,null,null,null,null,null,null,null,null,null,null,null,null,null,null,null,null,null,null,null,"Mental Health Provider",null,null,null,null,"Mental Health Provider",null,null,null,null,"Mental Health Provider",null,null,null,null,"Mental Health Provider"]
[null,null,null,null,null,null,null,null,null,null,null,null,null,null,null,null,null,null,null,null,null,null,null,null,null,null,null,null,null,null,null,null,null,"Cycle 11","School Counselor",null,null,null,"Cycle 11","School Counselor",null,null,null,"Cycle 11","School Counselor",null,null,null,"Cycle 11","School Counselor"]
[null,null,null,null,null,null,null,null,null,null,null,null,null,null,null,null,null,null,null,null,null,null,null,null,null,null,null,null,null,null,null,null,null,null,"Mental Health Provider",null,null,null,null,"Mental Health Provider",null,null,null,null,"Mental Health Provider",null,null,null,null,"Mental Health Provider"]
[]
[null,null,null,null,null,null,null,null,null,null,null,null,null,null,null,null,null,null,null,null,null,null,null,null,null,null,null,null,null,null,null,null,null,"SCHOOL COUNSELOR 13",null,null,null,null,"SCHOOL COUNSELOR 14",null,null,null,null,"SCHOOL COUNSELOR 15",null,null,null,null,"SCHOOL COUNSELOR 16"]
[null,null,null,null,null,null,null,null,null,null,null,null,null,null,null,null,null,null,null,null,null,null,null,null,null,null,null,null,null,null,null,null,null,null,null,"This Cycle","Year To Date",null,null,null,"This Cycle","Year To Date",null,null,null,"This Cycle","Year To Date",null,null,null,"This Cycle","Year To Date"]
[null,null,null,null,null,null,null,null,null,null,null,null,null,null,null,null,null,null,null,null,null,null,null,null,null,null,null,null,null,null,null,null,null,"Cycle 1","School Counselor",null,null,null,"Cycle 1","School Counselor",null,null,null,"Cycle 1","School Counselor",null,null,null,"Cycle 1","School Counselor"]
[null,null,null,null,null,null,null,null,null,null,null,null,null,null,null,null,null,null,null,null,null,null,null,null,null,null,null,null,null,null,null,null,null,null,"Mental Health Provider",null,null,null,null,"Mental Health Provider",null,null,null,null,"Mental Health Provider",null,null,null,null,"Mental Health Provider"]
[null,null,null,null,null,null,null,null,null,null,null,null,null,null,null,null,null,null,null,null,null,null,null,null,null,null,null,null,null,null,null,null,null,"Cycle 2","School Counselor",null,null,null,"Cycle 2","School Counselor",null,null,null,"Cycle 2","School Counselor",null,null,null,"Cycle 2","School Counselor"]
[null,null,null,null,null,null,null,null,null,null,null,null,null,null,null,null,null,null,null,null,null,null,null,null,null,null,null,null,null,null,null,null,null,null,"Mental Health Provider",null,null,null,null,"Mental Health Provider",null,null,null,null,"Mental Health Provider",null,null,null,null,"Mental Health Provider"]
[null,null,null,null,null,null,null,null,null,null,null,null,null,null,null,null,null,null,null,null,null,null,null,null,null,null,null,null,null,null,null,null,null,"Cycle 3","School Counselor",null,null,null,"Cycle 3","School Counselor",null,null,null,"Cycle 3","School Counselor",null,null,null,"Cycle 3","School Counselor"]
[null,null,null,null,null,null,null,null,null,null,null,null,null,null,null,null,null,null,null,null,null,null,null,null,null,null,null,null,null,null,null,null,null,null,"Mental Health Provider",null,null,null,null,"Mental Health Provider",null,null,null,null,"Mental Health Provider",null,null,null,null,"Mental Health Provider"]
[null,null,null,null,null,null,null,null,null,null,null,null,null,null,null,null,null,null,null,null,null,null,null,null,null,null,null,null,null,null,null,null,null,"Cycle 4","School Counselor",null,null,null,"Cycle 4","School Counselor",null,null,null,"Cycle 4","School Counselor",null,null,null,"Cycle 4","School Counselor"]
[null,null,null,null,null,null,null,null,null,null,null,null,null,null,null,null,null,null,null,null,null,null,null,null,null,null,null,null,null,null,null,null,null,null,"Mental Health Provider",null,null,null,null,"Mental Health Provider",null,null,null,null,"Mental Health Provider",null,null,null,null,"Mental Health Provider"]
[null,null,null,null,null,null,null,null,null,null,null,null,null,null,null,null,null,null,null,null,null,null,null,null,null,null,null,null,null,null,null,null,null,"Cycle 5","School Counselor",null,null,null,"Cycle 5","School Counselor",null,null,null,"Cycle 5","School Counselor",null,null,null,"Cycle 5","School Counselor"]
[null,null,null,null,null,null,null,null,null,null,null,null,null,null,null,null,null,null,null,null,null,null,null,null,null,null,null,null,null,null,null,null,null,null,"Mental Health Provider",null,null,null,null,"Mental Health Provider",null,null,null,null,"Mental Health Provider",null,null,null,null,"Mental Health Provider"]
[null,null,null,null,null,null,null,null,null,null,null,null,null,null,null,null,null,null,null,null,null,null,null,null,null,null,null,null,null,null,null,null,null,"Cycle 6","School Counselor",null,null,null,"Cycle 6","School Counselor",null,null,null,"Cycle 6","School Counselor",null,null,null,"Cycle 6","School Counselor"]
[null,null,null,null,null,null,null,null,null,null,null,null,null,null,null,null,null,null,null,null,null,null,null,null,null,null,null,null,null,null,null,null,null,null,"Mental Health Provider",null,null,null,null,"Mental Health Provider",null,null,null,null,"Mental Health Provider",null,null,null,null,"Mental Health Provider"]
[null,null,null,null,null,null,null,null,null,null,null,null,null,null,null,null,null,null,null,null,null,null,null,null,null,null,null,null,null,null,null,null,null,"Cycle 7","School Counselor",null,null,null,"Cycle 7","School Counselor",null,null,null,"Cycle 7","School Counselor",null,null,null,"Cycle 7","School Counselor"]
[null,null,null,null,null,null,null,null,null,null,null,null,null,null,null,null,null,null,null,null,null,null,null,null,null,null,null,null,null,null,null,null,null,null,"Mental Health Provider",null,null,null,null,"Mental Health Provider",null,null,null,null,"Mental Health Provider",null,null,null,null,"Mental Health Provider"]
[null,null,null,null,null,null,null,null,null,null,null,null,null,null,null,null,null,null,null,null,null,null,null,null,null,null,null,null,null,null,null,null,null,"Cycle 8","School Counselor",null,null,null,"Cycle 8","School Counselor",null,null,null,"Cycle 8","School Counselor",null,null,null,"Cycle 8","School Counselor"]
[null,null,null,null,null,null,null,null,null,null,null,null,null,null,null,null,null,null,null,null,null,null,null,null,null,null,null,null,null,null,null,null,null,null,"Mental Health Provider",null,null,null,null,"Mental Health Provider",null,null,null,null,"Mental Health Provider",null,null,null,null,"Mental Health Provider"]
[null,null,null,null,null,null,null,null,null,null,null,null,null,null,null,null,null,null,null,null,null,null,null,null,null,null,null,null,null,null,null,null,null,"Cycle 9","School Counselor",null,null,null,"Cycle 9","School Counselor",null,null,null,"Cycle 9","School Counselor",null,null,null,"Cycle 9","School Counselor"]
[null,null,null,null,null,null,null,null,null,null,null,null,null,null,null,null,null,null,null,null,null,null,null,null,null,null,null,null,null,null,null,null,null,null,"Mental Health Provider",null,null,null,null,"Mental Health Provider",null,null,null,null,"Mental Health Provider",null,null,null,null,"Mental Health Provider"]
[null,null,null,null,null,null,null,null,null,null,null,null,null,null,null,null,null,null,null,null,null,null,null,null,null,null,null,null,null,null,null,null,null,"Cycle 10","School Counselor",null,null,null,"Cycle 10","School Counselor",null,null,null,"Cycle 10","School Counselor",null,null,null,"Cycle 10","School Counselor"]
[null,null,null,null,null,null,null,null,null,null,null,null,null,null,null,null,null,null,null,null,null,null,null,null,null,null,null,null,null,null,null,null,null,null,"Mental Health Provider",null,null,null,null,"Mental Health Provider",null,null,null,null,"Mental Health Provider",null,null,null,null,"Mental Health Provider"]
[null,null,null,null,null,null,null,null,null,null,null,null,null,null,null,null,null,null,null,null,null,null,null,null,null,null,null,null,null,null,null,null,null,"Cycle 11","School Counselor",null,null,null,"Cycle 11","School Counselor",null,null,null,"Cycle 11","School Counselor",null,null,null,"Cycle 11","School Counselor"]
[null,null,null,null,null,null,null,null,null,null,null,null,null,null,null,null,null,null,null,null,null,null,null,null,null,null,null,null,null,null,null,null,null,null,"Mental Health Provider",null,null,null,null,"Mental Health Provider",null,null,null,null,"Mental Health Provider",null,null,null,null,"Mental Health Provider"]
[]
[null,null,null,null,null,null,null,null,null,null,null,null,null,null,null,null,null,null,null,null,null,null,null,null,null,null,null,null,null,null,null,null,null,"SCHOOL COUNSELOR 17",null,null,null,null,"SCHOOL COUNSELOR 18",null,null,null,null,"SCHOOL COUNSELOR 19",null,null,null,null,"SCHOOL COUNSELOR 20"]
[null,null,null,null,null,null,null,null,null,null,null,null,null,null,null,null,null,null,null,null,null,null,null,null,null,null,null,null,null,null,null,null,null,null,null,"This Cycle","Year To Date",null,null,null,"This Cycle","Year To Date",null,null,null,"This Cycle","Year To Date",null,null,null,"This Cycle","Year To Date"]
[null,null,null,null,null,null,null,null,null,null,null,null,null,null,null,null,null,null,null,null,null,null,null,null,null,null,null,null,null,null,null,null,null,"Cycle 1","School Counselor",null,null,null,"Cycle 1","School Counselor",null,null,null,"Cycle 1","School Counselor",null,null,null,"Cycle 1","School Counselor"]
[null,null,null,null,null,null,null,null,null,null,null,null,null,null,null,null,null,null,null,null,null,null,null,null,null,null,null,null,null,null,null,null,null,null,"Mental Health Provider",null,null,null,null,"Mental Health Provider",null,null,null,null,"Mental Health Provider",null,null,null,null,"Mental Health Provider"]
[null,null,null,null,null,null,null,null,null,null,null,null,null,null,null,null,null,null,null,null,null,null,null,null,null,null,null,null,null,null,null,null,null,"Cycle 2","School Counselor",null,null,null,"Cycle 2","School Counselor",null,null,null,"Cycle 2","School Counselor",null,null,null,"Cycle 2","School Counselor"]
[null,null,null,null,null,null,null,null,null,null,null,null,null,null,null,null,null,null,null,null,null,null,null,null,null,null,null,null,null,null,null,null,null,null,"Mental Health Provider",null,null,null,null,"Mental Health Provider",null,null,null,null,"Mental Health Provider",null,null,null,null,"Mental Health Provider"]
[null,null,null,null,null,null,null,null,null,null,null,null,null,null,null,null,null,null,null,null,null,null,null,null,null,null,null,null,null,null,null,null,null,"Cycle 3","School Counselor",null,null,null,"Cycle 3","School Counselor",null,null,null,"Cycle 3","School Counselor",null,null,null,"Cycle 3","School Counselor"]
[null,null,null,null,null,null,null,null,null,null,null,null,null,null,null,null,null,null,null,null,null,null,null,null,null,null,null,null,null,null,null,null,null,null,"Mental Health Provider",null,null,null,null,"Mental Health Provider",null,null,null,null,"Mental Health Provider",null,null,null,null,"Mental Health Provider"]
[null,null,null,null,null,null,null,null,null,null,null,null,null,null,null,null,null,null,null,null,null,null,null,null,null,null,null,null,null,null,null,null,null,"Cycle 4","School Counselor",null,null,null,"Cycle 4","School Counselor",null,null,null,"Cycle 4","School Counselor",null,null,null,"Cycle 4","School Counselor"]
[null,null,null,null,null,null,null,null,null,null,null,null,null,null,null,null,null,null,null,null,null,null,null,null,null,null,null,null,null,null,null,null,null,null,"Mental Health Provider",null,null,null,null,"Mental Health Provider",null,null,null,null,"Mental Health Provider",null,null,null,null,"Mental Health Provider"]
[null,null,null,null,null,null,null,null,null,null,null,null,null,null,null,null,null,null,null,null,null,null,null,null,null,null,null,null,null,null,null,null,null,"Cycle 5","School Counselor",null,null,null,"Cycle 5","School Counselor",null,null,null,"Cycle 5","School Counselor",null,null,null,"Cycle 5","School Counselor"]
[null,null,null,null,null,null,null,null,null,null,null,null,null,null,null,null,null,null,null,null,null,null,null,null,null,null,null,null,null,null,null,null,null,null,"Mental Health Provider",null,null,null,null,"Mental Health Provider",null,null,null,null,"Mental Health Provider",null,null,null,null,"Mental Health Provider"]
[null,null,null,null,null,null,null,null,null,null,null,null,null,null,null,null,null,null,null,null,null,null,null,null,null,null,null,null,null,null,null,null,null,"Cycle 6","School Counselor",null,null,null,"Cycle 6","School Counselor",null,null,null,"Cycle 6","School Counselor",null,null,null,"Cycle 6","School Counselor"]
[null,null,null,null,null,null,null,null,null,null,null,null,null,null,null,null,null,null,null,null,null,null,null,null,null,null,null,null,null,null,null,null,null,null,"Mental Health Provider",null,null,null,null,"Mental Health Provider",null,null,null,null,"Mental Health Provider",null,null,null,null,"Mental Health Provider"]
[null,null,null,null,null,null,null,null,null,null,null,null,null,null,null,null,null,null,null,null,null,null,null,null,null,null,null,null,null,null,null,null,null,"Cycle 7","School Counselor",null,null,null,"Cycle 7","School Counselor",null,null,null,"Cycle 7","School Counselor",null,null,null,"Cycle 7","School Counselor"]
[null,null,null,null,null,null,null,null,null,null,null,null,null,null,null,null,null,null,null,null,null,null,null,null,null,null,null,null,null,null,null,null,null,null,"Mental Health Provider",null,null,null,null,"Mental Health Provider",null,null,null,null,"Mental Health Provider",null,null,null,null,"Mental Health Provider"]
[null,null,null,null,null,null,null,null,null,null,null,null,null,null,null,null,null,null,null,null,null,null,null,null,null,null,null,null,null,null,null,null,null,"Cycle 8","School Counselor",null,null,null,"Cycle 8","School Counselor",null,null,null,"Cycle 8","School Counselor",null,null,null,"Cycle 8","School Counselor"]
[null,null,null,null,null,null,null,null,null,null,null,null,null,null,null,null,null,null,null,null,null,null,null,null,null,null,null,null,null,null,null,null,null,null,"Mental Health Provider",null,null,null,null,"Mental Health Provider",null,null,null,null,"Mental Health Provider",null,null,null,null,"Mental Health Provider"]
[null,null,null,null,null,null,null,null,null,null,null,null,null,null,null,null,null,null,null,null,null,null,null,null,null,null,null,null,null,null,null,null,null,"Cycle 9","School Counselor",null,null,null,"Cycle 9","School Counselor",null,null,null,"Cycle 9","School Counselor",null,null,null,"Cycle 9","School Counselor"]
[null,null,null,null,null,null,null,null,null,null,null,null,null,null,null,null,null,null,null,null,null,null,null,null,null,null,null,null,null,null,null,null,null,null,"Mental Health Provider",null,null,null,null,"Mental Health Provider",null,null,null,null,"Mental Health Provider",null,null,null,null,"Mental Health Provider"]
[null,null,null,null,null,null,null,null,null,null,null,null,null,null,null,null,null,null,null,null,null,null,null,null,null,null,null,null,null,null,null,null,null,"Cycle 10","School Counselor",null,null,null,"Cycle 10","School Counselor",null,null,null,"Cycle 10","School Counselor",null,null,null,"Cycle 10","School Counselor"]
[null,null,null,null,null,null,null,null,null,null,null,null,null,null,null,null,null,null,null,null,null,null,null,null,null,null,null,null,null,null,null,null,null,null,"Mental Health Provider",null,null,null,null,"Mental Health Provider",null,null,null,null,"Mental Health Provider",null,null,null,null,"Mental Health Provider"]
[null,null,null,null,null,null,null,null,null,null,null,null,null,null,null,null,null,null,null,null,null,null,null,null,null,null,null,null,null,null,null,null,null,"Cycle 11","School Counselor",null,null,null,"Cycle 11","School Counselor",null,null,null,"Cycle 11","School Counselor",null,null,null,"Cycle 11","School Counselor"]
[null,null,null,null,null,null,null,null,null,null,null,null,null,null,null,null,null,null,null,null,null,null,null,null,null,null,null,null,null,null,null,null,null,null,"Mental Health Provider",null,null,null,null,"Mental Health Provider",null,null,null,null,"Mental Health Provider",null,null,null,null,"Mental Health Provider"]

{"sheet":"TempStuDB","index":8,"n_rows":1,"n_cols":78,"rows_kept":1,"cut":false,"hidden":true,"merged":[]}
["IncidentID","IncidentNumberThisStudent","StudentIncidentID","StudentID","ReferralDate","Tchr1_Name","Tchr1_Info","Tchr1_DateNotified","Tchr2_Name","Tchr2_Info","Tchr2_DateNotified","Tchr3_Name","Tchr3_Info","Tchr3_DateNotified","Tchr4_Name","Tchr4_Info","Tchr4_DateNotified","Tchr5_Name","Tchr5_Info","Tchr5_DateNotified","Tchr6_Name","Tchr6_Info","Tchr6_DateNotified","Tchr7_Name","Tchr7_Info","Tchr7_DateNotified","Tchr8_Name","Tchr8_Info","Tchr8_DateNotified","Tchr9_Name","Tchr9_Info","Tchr9_DateNotified","Tchr10_Name","Tchr10_Info","Tchr10_DateNotified","Staff1_Name","Staff1_Info","Staff_1_DateNotified","Staff2_Name","Staff2_Info","Staff_2_DateNotified","Staff3_Name","Staff3_Info","Staff_3_DateNotified","Staff4_Name","Staff4_Info","Staff_4_DateNotified","Staff5_Name","Staff5_Info","Staff_5_DateNotified","Staff6_Name","Staff6_Info","Staff_6_DateNotified","Staff7_Name","Staff7_Info","Staff_7_DateNotified","Staff8_Name","Staff8_Info","Staff_8_DateNotified","Staff9_Name","Staff9_Info","Staff_9_DateNotified","Staff10_Name","Staff10_Info","Staff_10_DateNotified","NumberTeachers","NumberTeachersNotified","TchrNotifiedOverride","TchNotifStatus","AvgTchNotifDays","NumberOtherStaff","NumberOtherStaffNotified","StaffNotifiedOverride","StaffNotifStatus","AvgStaffNotifDays","LastUpdated","Grade","DateOfIncident"]

{"sheet":"Lookups","index":9,"n_rows":41,"n_cols":78,"rows_kept":41,"cut":false,"hidden":true,"merged":[[38,16,39,17],[0,28,1,28],[0,64,1,64]]}
[null,null,null,null,null,null,"ENTER STUDENT DATA",null,null,null,null,"ENTER STUDENT DATA",null,null,null,null,"ENTER STUDENT DATA",null,null,"ENTER CYCLE DATA",null,"Dashboard",null,null,null,"ENTER CYCLE DATA",null,null,"# HWC Notices per cycle","Dashboard",{"$f":"IF(VLOOKUP(AE5,CycleDB!$A:$C,2,FALSE)=\"\",\"\",VLOOKUP(AE5,CycleDB!$A:$C,2,FALSE))","v":""},{"$f":"IF(VLOOKUP(AF5,CycleDB!$A:$C,2,FALSE)=\"\",\"\",VLOOKUP(AF5,CycleDB!$A:$C,2,FALSE))","v":""},{"$f":"IF(VLOOKUP(AG5,CycleDB!$A:$C,2,FALSE)=\"\",\"\",VLOOKUP(AG5,CycleDB!$A:$C,2,FALSE))","v":""},{"$f":"IF(VLOOKUP(AH5,CycleDB!$A:$C,2,FALSE)=\"\",\"\",VLOOKUP(AH5,CycleDB!$A:$C,2,FALSE))","v":""},{"$f":"IF(VLOOKUP(AI5,CycleDB!$A:$C,2,FALSE)=\"\",\"\",VLOOKUP(AI5,CycleDB!$A:$C,2,FALSE))","v":""},{"$f":"IF(VLOOKUP(AJ5,CycleDB!$A:$C,2,FALSE)=\"\",\"\",VLOOKUP(AJ5,CycleDB!$A:$C,2,FALSE))","v":""},{"$f":"IF(VLOOKUP(AK5,CycleDB!$A:$C,2,FALSE)=\"\",\"\",VLOOKUP(AK5,CycleDB!$A:$C,2,FALSE))","v":""},{"$f":"IF(VLOOKUP(AL5,CycleDB!$A:$C,2,FALSE)=\"\",\"\",VLOOKUP(AL5,CycleDB!$A:$C,2,FALSE))","v":""},{"$f":"IF(VLOOKUP(AM5,CycleDB!$A:$C,2,FALSE)=\"\",\"\",VLOOKUP(AM5,CycleDB!$A:$C,2,FALSE))","v":""},{"$f":"IF(VLOOKUP(AN5,CycleDB!$A:$C,2,FALSE)=\"\",\"\",VLOOKUP(AN5,CycleDB!$A:$C,2,FALSE))","v":""},{"$f":"IF(VLOOKUP(AO5,CycleDB!$A:$C,2,FALSE)=\"\",\"\",VLOOKUP(AO5,CycleDB!$A:$C,2,FALSE))","v":""},{"$f":"IF(VLOOKUP(AP5,CycleDB!$A:$C,2,FALSE)=\"\",\"\",VLOOKUP(AP5,CycleDB!$A:$C,2,FALSE))","v":""},null,null,null,null,null,null,null,null,null,null,null,null,null,null,null,null,null,null,null,null,null,null,"cumulative # HWC Notices","Dashboard",{"$f":"IF(VLOOKUP(BO5,CycleDB!$A:$C,2,FALSE)=\"\",\"\",VLOOKUP(BO5,CycleDB!$A:$C,2,FALSE))","v":""},{"$f":"IF(VLOOKUP(BP5,CycleDB!$A:$C,2,FALSE)=\"\",\"\",VLOOKUP(BP5,CycleDB!$A:$C,2,FALSE))","v":""},{"$f":"IF(VLOOKUP(BQ5,CycleDB!$A:$C,2,FALSE)=\"\",\"\",VLOOKUP(BQ5,CycleDB!$A:$C,2,FALSE))","v":""},{"$f":"IF(VLOOKUP(BR5,CycleDB!$A:$C,2,FALSE)=\"\",\"\",VLOOKUP(BR5,CycleDB!$A:$C,2,FALSE))","v":""},{"$f":"IF(VLOOKUP(BS5,CycleDB!$A:$C,2,FALSE)=\"\",\"\",VLOOKUP(BS5,CycleDB!$A:$C,2,FALSE))","v":""},{"$f":"IF(VLOOKUP(BT5,CycleDB!$A:$C,2,FALSE)=\"\",\"\",VLOOKUP(BT5,CycleDB!$A:$C,2,FALSE))","v":""},{"$f":"IF(VLOOKUP(BU5,CycleDB!$A:$C,2,FALSE)=\"\",\"\",VLOOKUP(BU5,CycleDB!$A:$C,2,FALSE))","v":""},{"$f":"IF(VLOOKUP(BV5,CycleDB!$A:$C,2,FALSE)=\"\",\"\",VLOOKUP(BV5,CycleDB!$A:$C,2,FALSE))","v":""},{"$f":"IF(VLOOKUP(BW5,CycleDB!$A:$C,2,FALSE)=\"\",\"\",VLOOKUP(BW5,CycleDB!$A:$C,2,FALSE))","v":""},{"$f":"IF(VLOOKUP(BX5,CycleDB!$A:$C,2,FALSE)=\"\",\"\",VLOOKUP(BX5,CycleDB!$A:$C,2,FALSE))","v":""},{"$f":"IF(VLOOKUP(BY5,CycleDB!$A:$C,2,FALSE)=\"\",\"\",VLOOKUP(BY5,CycleDB!$A:$C,2,FALSE))","v":""},{"$f":"IF(VLOOKUP(BZ5,CycleDB!$A:$C,2,FALSE)=\"\",\"\",VLOOKUP(BZ5,CycleDB!$A:$C,2,FALSE))","v":""}]
[null,null,null,null,null,null,null,{"$f":"COUNTA(G:G)-COUNTA(G1:G5)","v":0},null,null,null,"returns unique HWC_Notice_IDs for student ID chosen in \"Enter Student Data\" tab",null,"Index in StuDB",null,null,null,null,null,null,null,null,null,null,null,null,null,null,null,null,{"$f":"IF(VLOOKUP(AE5,CycleDB!$A:$C,3,FALSE)=\"\",\"\",VLOOKUP(AE5,CycleDB!$A:$C,3,FALSE))","v":""},{"$f":"IF(VLOOKUP(AF5,CycleDB!$A:$C,3,FALSE)=\"\",\"\",VLOOKUP(AF5,CycleDB!$A:$C,3,FALSE))","v":""},{"$f":"IF(VLOOKUP(AG5,CycleDB!$A:$C,3,FALSE)=\"\",\"\",VLOOKUP(AG5,CycleDB!$A:$C,3,FALSE))","v":""},{"$f":"IF(VLOOKUP(AH5,CycleDB!$A:$C,3,FALSE)=\"\",\"\",VLOOKUP(AH5,CycleDB!$A:$C,3,FALSE))","v":""},{"$f":"IF(VLOOKUP(AI5,CycleDB!$A:$C,3,FALSE)=\"\",\"\",VLOOKUP(AI5,CycleDB!$A:$C,3,FALSE))","v":""},{"$f":"IF(VLOOKUP(AJ5,CycleDB!$A:$C,3,FALSE)=\"\",\"\",VLOOKUP(AJ5,CycleDB!$A:$C,3,FALSE))","v":""},{"$f":"IF(VLOOKUP(AK5,CycleDB!$A:$C,3,FALSE)=\"\",\"\",VLOOKUP(AK5,CycleDB!$A:$C,3,FALSE))","v":""},{"$f":"IF(VLOOKUP(AL5,CycleDB!$A:$C,3,FALSE)=\"\",\"\",VLOOKUP(AL5,CycleDB!$A:$C,3,FALSE))","v":""},{"$f":"IF(VLOOKUP(AM5,CycleDB!$A:$C,3,FALSE)=\"\",\"\",VLOOKUP(AM5,CycleDB!$A:$C,3,FALSE))","v":""},{"$f":"IF(VLOOKUP(AN5,CycleDB!$A:$C,3,FALSE)=\"\",\"\",VLOOKUP(AN5,CycleDB!$A:$C,3,FALSE))","v":""},{"$f":"IF(VLOOKUP(AO5,CycleDB!$A:$C,3,FALSE)=\"\",\"\",VLOOKUP(AO5,CycleDB!$A:$C,3,FALSE))","v":""},{"$f":"IF(VLOOKUP(AP5,CycleDB!$A:$C,3,FALSE)=\"\",\"\",VLOOKUP(AP5,CycleDB!$A:$C,3,FALSE))","v":""},null,null,null,null,null,null,null,null,null,null,null,null,null,null,null,null,null,null,null,null,null,null,null,null,{"$f":"IF(VLOOKUP(BO5,CycleDB!$A:$C,3,FALSE)=\"\",\"\",VLOOKUP(BO5,CycleDB!$A:$C,3,FALSE))","v":""},{"$f":"IF(VLOOKUP(BP5,CycleDB!$A:$C,3,FALSE)=\"\",\"\",VLOOKUP(BP5,CycleDB!$A:$C,3,FALSE))","v":""},{"$f":"IF(VLOOKUP(BQ5,CycleDB!$A:$C,3,FALSE)=\"\",\"\",VLOOKUP(BQ5,CycleDB!$A:$C,3,FALSE))","v":""},{"$f":"IF(VLOOKUP(BR5,CycleDB!$A:$C,3,FALSE)=\"\",\"\",VLOOKUP(BR5,CycleDB!$A:$C,3,FALSE))","v":""},{"$f":"IF(VLOOKUP(BS5,CycleDB!$A:$C,3,FALSE)=\"\",\"\",VLOOKUP(BS5,CycleDB!$A:$C,3,FALSE))","v":""},{"$f":"IF(VLOOKUP(BT5,CycleDB!$A:$C,3,FALSE)=\"\",\"\",VLOOKUP(BT5,CycleDB!$A:$C,3,FALSE))","v":""},{"$f":"IF(VLOOKUP(BU5,CycleDB!$A:$C,3,FALSE)=\"\",\"\",VLOOKUP(BU5,CycleDB!$A:$C,3,FALSE))","v":""},{"$f":"IF(VLOOKUP(BV5,CycleDB!$A:$C,3,FALSE)=\"\",\"\",VLOOKUP(BV5,CycleDB!$A:$C,3,FALSE))","v":""},{"$f":"IF(VLOOKUP(BW5,CycleDB!$A:$C,3,FALSE)=\"\",\"\",VLOOKUP(BW5,CycleDB!$A:$C,3,FALSE))","v":""},{"$f":"IF(VLOOKUP(BX5,CycleDB!$A:$C,3,FALSE)=\"\",\"\",VLOOKUP(BX5,CycleDB!$A:$C,3,FALSE))","v":""},{"$f":"IF(VLOOKUP(BY5,CycleDB!$A:$C,3,FALSE)=\"\",\"\",VLOOKUP(BY5,CycleDB!$A:$C,3,FALSE))","v":""},{"$f":"IF(VLOOKUP(BZ5,CycleDB!$A:$C,3,FALSE)=\"\",\"\",VLOOKUP(BZ5,CycleDB!$A:$C,3,FALSE))","v":""}]
[null,null,null,null,null,null,"Do not write in column F",null,null,null,null,{"$f":"'Enter Student Data'!G2","v":0},{"$f":"'Enter Student Data'!G4","v":"New HWC Notice"},{"$f":"MATCH(M3,StuDB!C:C,0)","v":{"$error":"#N/A"}},null,null,null,null,null,null,null,{"$f":"MAX(1,V4-1)","v":1},null,null,null,null,null,null,"cumulative # HWC Notices through","MAX",{"$f":"MAX(AE6:AE200)","v":0},0,0,0,0,0,0,0,0,0,0,0]
[null,null,null,null,null,null,"It is used to GenerateStuIDs",null,null,null,null,null,{"$f":"COUNT(L7:L36)","v":0},null,null,null,null,null,null,null,null,{"$f":"COUNTA(V6:V17)-COUNTIFS(V6:V17,\"\")","v":1},null,null,null,null,null,null,{"$f":"'Implementation Data Dashboard'!I4","v":"Cycle 1"},{"$f":"SUM(AE4:BH4)","v":2},{"$f":"IF(ISERROR(HLOOKUP($AC$4,AE$5:$BH$5,1,FALSE)),0,1)","v":1},{"$f":"IF(ISERROR(HLOOKUP($AC$4,AF$5:$BH$5,1,FALSE)),0,1)","v":1},{"$f":"IF(ISERROR(HLOOKUP($AC$4,AG$5:$BH$5,1,FALSE)),0,1)","v":0},{"$f":"IF(ISERROR(HLOOKUP($AC$4,AH$5:$BH$5,1,FALSE)),0,1)","v":0},{"$f":"IF(ISERROR(HLOOKUP($AC$4,AI$5:$BH$5,1,FALSE)),0,1)","v":0},{"$f":"IF(ISERROR(HLOOKUP($AC$4,AJ$5:$BH$5,1,FALSE)),0,1)","v":0},{"$f":"IF(ISERROR(HLOOKUP($AC$4,AK$5:$BH$5,1,FALSE)),0,1)","v":0},{"$f":"IF(ISERROR(HLOOKUP($AC$4,AL$5:$BH$5,1,FALSE)),0,1)","v":0},{"$f":"IF(ISERROR(HLOOKUP($AC$4,AM$5:$BH$5,1,FALSE)),0,1)","v":0},{"$f":"IF(ISERROR(HLOOKUP($AC$4,AN$5:$BH$5,1,FALSE)),0,1)","v":0},{"$f":"IF(ISERROR(HLOOKUP($AC$4,AO$5:$BH$5,1,FALSE)),0,1)","v":0},{"$f":"IF(ISERROR(HLOOKUP($AC$4,AP$5:$BH$5,1,FALSE)),0,1)","v":0}]
[null,"Tab","Contents",null,null,null,"Student IDs (unique)",null,null,null,null,"HWCNotice_Selector","StudentID_HWCNoticeNumberThisStudent",null,null,null,"Student HWCNotice",null,null,"Cycle","default","Cycle",null,null,null,"Cycle",null,null,null,"StuID","Summer","Cycle 1","Cycle 2","Cycle 3","Cycle 4","Cycle 5","Cycle 6","Cycle 7","Cycle 8","Cycle 9","Cycle 10","Cycle 11",null,null,null,null,null,null,null,null,null,null,null,null,null,null,null,null,null,null,null,null,null,null,null,"StuID","Summer","Cycle 1","Cycle 2","Cycle 3","Cycle 4","Cycle 5","Cycle 6","Cycle 7","Cycle 8","Cycle 9","Cycle 10","Cycle 11"]
[null,{"$f":"MID(CELL(\"Filename\",'Enter Student Data'!A1),FIND(\"]\",CELL(\"Filename\",'Enter Student Data'!A1))+1,255)","v":"Enter Student Data"},"Student HWC Notice Data Entry Form",".",null,null,null,null,null,null,null,null,"New HWC Notice",null,null,null,"Row in StuDB tab where selected record should be pasted",{"$f":"IFERROR(MATCH('Enter Student Data'!$G$4,StuDB!$C:$C,0),MATCH(TRUE,INDEX(ISBLANK(StuDB!C:C),0,0),0))","v":2},{"$f":"IF(ISERROR(VLOOKUP($AC$4,T6:T$17,1,FALSE)),0,1)","v":1},"Summer",{"$f":"CycleDB!B2&CycleDB!C2&CycleDB!D2&CycleDB!E2&CycleDB!F2&CycleDB!G2&CycleDB!H2&CycleDB!I2&CycleDB!J2&CycleDB!K2&CycleDB!L2&CycleDB!M2&CycleDB!N2&CycleDB!O2&CycleDB!P2&CycleDB!Q2&CycleDB!R2&CycleDB!S2&CycleDB!T2&CycleDB!U2&CycleDB!V2&CycleDB!W2&CycleDB!X2&CycleDB!Y2&CycleDB!Z2&CycleDB!AA2&CycleDB!AB2","v":""},{"$f":"IF(OR(V5=\"\",U5=\"\"),\"\",\"Summer\")","v":"Summer"},null,null,null,"Row in CycleImplementationInfo tab where selected record should be pasted",{"$f":"IFERROR(MATCH('Enter Cycle Data'!D4,CycleDB!A:A,0),MATCH(TRUE,INDEX(ISBLANK(CycleDB!A:A),0,0),0))","v":14},null,{"$f":"SUMPRODUCT(AE6:AP6,$AE$4:$AP$4)","v":0},{"$f":"IF(G6=\"\",\"\",G6)","v":""},{"$f":"COUNTIFS(StuDB!$D:$D,$AD6,StuDB!$E:$E,\">=\"&AE$1,StuDB!$E:$E,\"<=\"&AE$2)","v":0},{"$f":"COUNTIFS(StuDB!$D:$D,$AD6,StuDB!$E:$E,\">=\"&AF$1,StuDB!$E:$E,\"<=\"&AF$2)","v":0},{"$f":"COUNTIFS(StuDB!$D:$D,$AD6,StuDB!$E:$E,\">=\"&AG$1,StuDB!$E:$E,\"<=\"&AG$2)","v":0},{"$f":"COUNTIFS(StuDB!$D:$D,$AD6,StuDB!$E:$E,\">=\"&AH$1,StuDB!$E:$E,\"<=\"&AH$2)","v":0},{"$f":"COUNTIFS(StuDB!$D:$D,$AD6,StuDB!$E:$E,\">=\"&AI$1,StuDB!$E:$E,\"<=\"&AI$2)","v":0},{"$f":"COUNTIFS(StuDB!$D:$D,$AD6,StuDB!$E:$E,\">=\"&AJ$1,StuDB!$E:$E,\"<=\"&AJ$2)","v":0},{"$f":"COUNTIFS(StuDB!$D:$D,$AD6,StuDB!$E:$E,\">=\"&AK$1,StuDB!$E:$E,\"<=\"&AK$2)","v":0},{"$f":"COUNTIFS(StuDB!$D:$D,$AD6,StuDB!$E:$E,\">=\"&AL$1,StuDB!$E:$E,\"<=\"&AL$2)","v":0},{"$f":"COUNTIFS(StuDB!$D:$D,$AD6,StuDB!$E:$E,\">=\"&AM$1,StuDB!$E:$E,\"<=\"&AM$2)","v":0},{"$f":"COUNTIFS(StuDB!$D:$D,$AD6,StuDB!$E:$E,\">=\"&AN$1,StuDB!$E:$E,\"<=\"&AN$2)","v":0},{"$f":"COUNTIFS(StuDB!$D:$D,$AD6,StuDB!$E:$E,\">=\"&AO$1,StuDB!$E:$E,\"<=\"&AO$2)","v":0},{"$f":"COUNTIFS(StuDB!$D:$D,$AD6,StuDB!$E:$E,\">=\"&AP$1,StuDB!$E:$E,\"<=\"&AP$2)","v":0},null,null,null,null,null,null,null,null,null,null,null,null,null,null,null,null,null,null,null,null,null,null,null,null,0,0,0,0,0,0,0,0,0,0,0,0]
[null,{"$f":"MID(CELL(\"Filename\",'Enter Cycle Data'!A2),FIND(\"]\",CELL(\"Filename\",'Enter Cycle Data'!A2))+1,255)","v":"Enter Cycle Data"},"Worksheet where user enters data for cycle outcomes/referrals as gleaned from state databases or other sources",".",null,null,null,null,null,null,null,{"$f":"IFERROR(INDEX(StuDB!$A:$A,MATCH('Enter Student Data'!$G$2&\"_\"&ROWS(K$7:K7),StuDB!$C:$C,0),1),\"\")","v":""},{"$f":"IFERROR(VLOOKUP(L7,StuDB!$A:$C,MATCH(StuDB!$C$1,StuDB!$A$1:$C$1,0),FALSE),\"\")","v":""},null,null,null,"Action needed",{"$f":"IF(ISERROR(MATCH('Enter Student Data'!$G$4,StuDB!$C:$C,0)),\"Create new record\",\"Overwrite existing\")","v":"Create new record"},{"$f":"IF(ISERROR(VLOOKUP($AC$4,T7:T$17,1,FALSE)),0,1)","v":1},"Cycle 1",{"$f":"CycleDB!B3&CycleDB!C3&CycleDB!D3&CycleDB!E3&CycleDB!F3&CycleDB!G3&CycleDB!H3&CycleDB!I3&CycleDB!J3&CycleDB!K3&CycleDB!L3&CycleDB!M3&CycleDB!N3&CycleDB!O3&CycleDB!P3&CycleDB!Q3&CycleDB!R3&CycleDB!S3&CycleDB!T3&CycleDB!U3&CycleDB!V3&CycleDB!W3&CycleDB!X3&CycleDB!Y3&CycleDB!Z3&CycleDB!AA3&CycleDB!AB3","v":""},{"$f":"IF(OR(V6=\"\",U6=\"\"),\"\",\"Cycle \"&ROWS(U$7:U7))","v":""}]
[null,{"$f":"MID(CELL(\"Filename\",'Training and Documentation'!A1),FIND(\"]\",CELL(\"Filename\",'Training and Documentation'!A1))+1,255)","v":"Training and Documentation"},"Overview of the requirements expected to be in place prior to launching HWC program",".",null,null,null,null,null,null,null,{"$f":"IFERROR(INDEX(StuDB!$A:$A,MATCH('Enter Student Data'!$G$2&\"_\"&ROWS(K$7:K8),StuDB!$C:$C,0),1),\"\")","v":""},{"$f":"IFERROR(VLOOKUP(L8,StuDB!$A:$C,MATCH(StuDB!$C$1,StuDB!$A$1:$C$1,0),FALSE),\"\")","v":""},null,null,null,null,null,{"$f":"IF(ISERROR(VLOOKUP($AC$4,T8:T$17,1,FALSE)),0,1)","v":0},"Cycle 2",{"$f":"CycleDB!B4&CycleDB!C4&CycleDB!D4&CycleDB!E4&CycleDB!F4&CycleDB!G4&CycleDB!H4&CycleDB!I4&CycleDB!J4&CycleDB!K4&CycleDB!L4&CycleDB!M4&CycleDB!N4&CycleDB!O4&CycleDB!P4&CycleDB!Q4&CycleDB!R4&CycleDB!S4&CycleDB!T4&CycleDB!U4&CycleDB!V4&CycleDB!W4&CycleDB!X4&CycleDB!Y4&CycleDB!Z4&CycleDB!AA4&CycleDB!AB4","v":""},{"$f":"IF(OR(V7=\"\",U7=\"\"),\"\",\"Cycle \"&ROWS(U$7:U8))","v":""}]
[null,{"$f":"MID(CELL(\"Filename\",StuDB!A1),FIND(\"]\",CELL(\"Filename\",StuDB!A1))+1,255)","v":"StuDB"},"Database of all student HWC Notices entered",".",null,null,null,null,null,null,null,{"$f":"IFERROR(INDEX(StuDB!$A:$A,MATCH('Enter Student Data'!$G$2&\"_\"&ROWS(K$7:K9),StuDB!$C:$C,0),1),\"\")","v":""},{"$f":"IFERROR(VLOOKUP(L9,StuDB!$A:$C,MATCH(StuDB!$C$1,StuDB!$A$1:$C$1,0),FALSE),\"\")","v":""},null,null,null,"Next blank row",{"$f":"MATCH(TRUE,INDEX(ISBLANK(StuDB!$C:$C),0,0),0)","v":2},{"$f":"IF(ISERROR(VLOOKUP($AC$4,T9:T$17,1,FALSE)),0,1)","v":0},"Cycle 3",{"$f":"CycleDB!B5&CycleDB!C5&CycleDB!D5&CycleDB!E5&CycleDB!F5&CycleDB!G5&CycleDB!H5&CycleDB!I5&CycleDB!J5&CycleDB!K5&CycleDB!L5&CycleDB!M5&CycleDB!N5&CycleDB!O5&CycleDB!P5&CycleDB!Q5&CycleDB!R5&CycleDB!S5&CycleDB!T5&CycleDB!U5&CycleDB!V5&CycleDB!W5&CycleDB!X5&CycleDB!Y5&CycleDB!Z5&CycleDB!AA5&CycleDB!AB5","v":""},{"$f":"IF(OR(V8=\"\",U8=\"\"),\"\",\"Cycle \"&ROWS(U$7:U9))","v":""}]
[null,{"$f":"MID(CELL(\"Filename\",CycleDB!A5),FIND(\"]\",CELL(\"Filename\",CycleDB!A5))+1,255)","v":"CycleDB"},"Database of all cycle information entered",".",null,null,null,null,null,null,null,{"$f":"IFERROR(INDEX(StuDB!$A:$A,MATCH('Enter Student Data'!$G$2&\"_\"&ROWS(K$7:K10),StuDB!$C:$C,0),1),\"\")","v":""},{"$f":"IFERROR(VLOOKUP(L10,StuDB!$A:$C,MATCH(StuDB!$C$1,StuDB!$A$1:$C$1,0),FALSE),\"\")","v":""},null,null,null,"Current record row",{"$f":"MATCH('Enter Student Data'!$G$4,StuDB!$C:$C,0)","v":{"$error":"#N/A"}},{"$f":"IF(ISERROR(VLOOKUP($AC$4,T10:T$17,1,FALSE)),0,1)","v":0},"Cycle 4",{"$f":"CycleDB!B6&CycleDB!C6&CycleDB!D6&CycleDB!E6&CycleDB!F6&CycleDB!G6&CycleDB!H6&CycleDB!I6&CycleDB!J6&CycleDB!K6&CycleDB!L6&CycleDB!M6&CycleDB!N6&CycleDB!O6&CycleDB!P6&CycleDB!Q6&CycleDB!R6&CycleDB!S6&CycleDB!T6&CycleDB!U6&CycleDB!V6&CycleDB!W6&CycleDB!X6&CycleDB!Y6&CycleDB!Z6&CycleDB!AA6&CycleDB!AB6","v":""},{"$f":"IF(OR(V9=\"\",U9=\"\"),\"\",\"Cycle \"&ROWS(U$7:U10))","v":""}]
[null,{"$f":"MID(CELL(\"Filename\",Lookups!A6),FIND(\"]\",CELL(\"Filename\",Lookups!A6))+1,255)","v":"Lookups"},"Reference information used by macros/formulas/data validations",".",null,null,null,null,null,null,null,{"$f":"IFERROR(INDEX(StuDB!$A:$A,MATCH('Enter Student Data'!$G$2&\"_\"&ROWS(K$7:K11),StuDB!$C:$C,0),1),\"\")","v":""},{"$f":"IFERROR(VLOOKUP(L11,StuDB!$A:$C,MATCH(StuDB!$C$1,StuDB!$A$1:$C$1,0),FALSE),\"\")","v":""},null,null,null,null,null,{"$f":"IF(ISERROR(VLOOKUP($AC$4,T11:T$17,1,FALSE)),0,1)","v":0},"Cycle 5",{"$f":"CycleDB!B7&CycleDB!C7&CycleDB!D7&CycleDB!E7&CycleDB!F7&CycleDB!G7&CycleDB!H7&CycleDB!I7&CycleDB!J7&CycleDB!K7&CycleDB!L7&CycleDB!M7&CycleDB!N7&CycleDB!O7&CycleDB!P7&CycleDB!Q7&CycleDB!R7&CycleDB!S7&CycleDB!T7&CycleDB!U7&CycleDB!V7&CycleDB!W7&CycleDB!X7&CycleDB!Y7&CycleDB!Z7&CycleDB!AA7&CycleDB!AB7","v":""},{"$f":"IF(OR(V10=\"\",U10=\"\"),\"\",\"Cycle \"&ROWS(U$7:U11))","v":""}]
[null,null,null,".",null,null,null,null,null,null,null,{"$f":"IFERROR(INDEX(StuDB!$A:$A,MATCH('Enter Student Data'!$G$2&\"_\"&ROWS(K$7:K12),StuDB!$C:$C,0),1),\"\")","v":""},{"$f":"IFERROR(VLOOKUP(L12,StuDB!$A:$C,MATCH(StuDB!$C$1,StuDB!$A$1:$C$1,0),FALSE),\"\")","v":""},null,null,null,null,null,{"$f":"IF(ISERROR(VLOOKUP($AC$4,T12:T$17,1,FALSE)),0,1)","v":0},"Cycle 6",{"$f":"CycleDB!B8&CycleDB!C8&CycleDB!D8&CycleDB!E8&CycleDB!F8&CycleDB!G8&CycleDB!H8&CycleDB!I8&CycleDB!J8&CycleDB!K8&CycleDB!L8&CycleDB!M8&CycleDB!N8&CycleDB!O8&CycleDB!P8&CycleDB!Q8&CycleDB!R8&CycleDB!S8&CycleDB!T8&CycleDB!U8&CycleDB!V8&CycleDB!W8&CycleDB!X8&CycleDB!Y8&CycleDB!Z8&CycleDB!AA8&CycleDB!AB8","v":""},{"$f":"IF(OR(V11=\"\",U11=\"\"),\"\",\"Cycle \"&ROWS(U$7:U12))","v":""}]
[null,null,null,".",null,null,null,null,null,null,null,{"$f":"IFERROR(INDEX(StuDB!$A:$A,MATCH('Enter Student Data'!$G$2&\"_\"&ROWS(K$7:K13),StuDB!$C:$C,0),1),\"\")","v":""},{"$f":"IFERROR(VLOOKUP(L13,StuDB!$A:$C,MATCH(StuDB!$C$1,StuDB!$A$1:$C$1,0),FALSE),\"\")","v":""},null,null,"Need to ADD?","Teacher","Add to Teacher List?",{"$f":"IF(ISERROR(VLOOKUP($AC$4,T13:T$17,1,FALSE)),0,1)","v":0},"Cycle 7",{"$f":"CycleDB!B9&CycleDB!C9&CycleDB!D9&CycleDB!E9&CycleDB!F9&CycleDB!G9&CycleDB!H9&CycleDB!I9&CycleDB!J9&CycleDB!K9&CycleDB!L9&CycleDB!M9&CycleDB!N9&CycleDB!O9&CycleDB!P9&CycleDB!Q9&CycleDB!R9&CycleDB!S9&CycleDB!T9&CycleDB!U9&CycleDB!V9&CycleDB!W9&CycleDB!X9&CycleDB!Y9&CycleDB!Z9&CycleDB!AA9&CycleDB!AB9","v":""},{"$f":"IF(OR(V12=\"\",U12=\"\"),\"\",\"Cycle \"&ROWS(U$7:U13))","v":""}]
[null,null,null,".",null,null,null,null,null,null,null,{"$f":"IFERROR(INDEX(StuDB!$A:$A,MATCH('Enter Student Data'!$G$2&\"_\"&ROWS(K$7:K14),StuDB!$C:$C,0),1),\"\")","v":""},{"$f":"IFERROR(VLOOKUP(L14,StuDB!$A:$C,MATCH(StuDB!$C$1,StuDB!$A$1:$C$1,0),FALSE),\"\")","v":""},null,null,{"$f":"IF(SUM(R15:R24)>0,\"Yes\",\"No\")","v":"No"},"Next blank row",{"$f":"MATCH(TRUE,INDEX(ISBLANK('Teacher Roster (optional)'!$B:$B),0,0),0)","v":2},{"$f":"IF(ISERROR(VLOOKUP($AC$4,T14:T$17,1,FALSE)),0,1)","v":0},"Cycle 8",{"$f":"CycleDB!B10&CycleDB!C10&CycleDB!D10&CycleDB!E10&CycleDB!F10&CycleDB!G10&CycleDB!H10&CycleDB!I10&CycleDB!J10&CycleDB!K10&CycleDB!L10&CycleDB!M10&CycleDB!N10&CycleDB!O10&CycleDB!P10&CycleDB!Q10&CycleDB!R10&CycleDB!S10&CycleDB!T10&CycleDB!U10&CycleDB!V10&CycleDB!W10&CycleDB!X10&CycleDB!Y10&CycleDB!Z10&CycleDB!AA10&CycleDB!AB10","v":""},{"$f":"IF(OR(V13=\"\",U13=\"\"),\"\",\"Cycle \"&ROWS(U$7:U14))","v":""}]
[null,null,null,".",null,null,null,null,null,null,null,{"$f":"IFERROR(INDEX(StuDB!$A:$A,MATCH('Enter Student Data'!$G$2&\"_\"&ROWS(K$7:K15),StuDB!$C:$C,0),1),\"\")","v":""},{"$f":"IFERROR(VLOOKUP(L15,StuDB!$A:$C,MATCH(StuDB!$C$1,StuDB!$A$1:$C$1,0),FALSE),\"\")","v":""},null,{"$f":"IF(INDEX('Enter Student Data'!$B$9:$D$18,ROWS(O$15:O15),1)=\"\",\"\",INDEX('Enter Student Data'!$B$9:$D$18,ROWS(O$15:O15),1))","v":""},{"$f":"IFERROR(IF(O15=\"\",\"\",VLOOKUP(O15,'Teacher Roster (optional)'!B:D,2,FALSE)),\"\")","v":""},{"$f":"IFERROR(IF(O15=\"\",\"\",VLOOKUP(O15,'Teacher Roster (optional)'!B:D,3,FALSE)),\"\")","v":""},{"$f":"IF(O15=\"\",\"\",IF(ISERROR(VLOOKUP(O15,'Teacher Roster (optional)'!B:B,1,FALSE)),1,0))","v":""},{"$f":"IF(ISERROR(VLOOKUP($AC$4,T15:T$17,1,FALSE)),0,1)","v":0},"Cycle 9",{"$f":"CycleDB!B11&CycleDB!C11&CycleDB!D11&CycleDB!E11&CycleDB!F11&CycleDB!G11&CycleDB!H11&CycleDB!I11&CycleDB!J11&CycleDB!K11&CycleDB!L11&CycleDB!M11&CycleDB!N11&CycleDB!O11&CycleDB!P11&CycleDB!Q11&CycleDB!R11&CycleDB!S11&CycleDB!T11&CycleDB!U11&CycleDB!V11&CycleDB!W11&CycleDB!X11&CycleDB!Y11&CycleDB!Z11&CycleDB!AA11&CycleDB!AB11","v":""},{"$f":"IF(OR(V14=\"\",U14=\"\"),\"\",\"Cycle \"&ROWS(U$7:U15))","v":""}]
[null,null,null,".",null,null,null,null,null,null,null,{"$f":"IFERROR(INDEX(StuDB!$A:$A,MATCH('Enter Student Data'!$G$2&\"_\"&ROWS(K$7:K16),StuDB!$C:$C,0),1),\"\")","v":""},{"$f":"IFERROR(VLOOKUP(L16,StuDB!$A:$C,MATCH(StuDB!$C$1,StuDB!$A$1:$C$1,0),FALSE),\"\")","v":""},null,{"$f":"IF(INDEX('Enter Student Data'!$B$9:$D$18,ROWS(O$15:O16),1)=\"\",\"\",INDEX('Enter Student Data'!$B$9:$D$18,ROWS(O$15:O16),1))","v":""},{"$f":"IFERROR(IF(O16=\"\",\"\",VLOOKUP(O16,'Teacher Roster (optional)'!B:D,2,FALSE)),\"\")","v":""},{"$f":"IFERROR(IF(O16=\"\",\"\",VLOOKUP(O16,'Teacher Roster (optional)'!B:D,3,FALSE)),\"\")","v":""},{"$f":"IF(O16=\"\",\"\",IF(ISERROR(VLOOKUP(O16,'Teacher Roster (optional)'!B:B,1,FALSE)),1,0))","v":""},{"$f":"IF(ISERROR(VLOOKUP($AC$4,T16:T$17,1,FALSE)),0,1)","v":0},"Cycle 10",{"$f":"CycleDB!B12&CycleDB!C12&CycleDB!D12&CycleDB!E12&CycleDB!F12&CycleDB!G12&CycleDB!H12&CycleDB!I12&CycleDB!J12&CycleDB!K12&CycleDB!L12&CycleDB!M12&CycleDB!N12&CycleDB!O12&CycleDB!P12&CycleDB!Q12&CycleDB!R12&CycleDB!S12&CycleDB!T12&CycleDB!U12&CycleDB!V12&CycleDB!W12&CycleDB!X12&CycleDB!Y12&CycleDB!Z12&CycleDB!AA12&CycleDB!AB12","v":""},{"$f":"IF(OR(V15=\"\",U15=\"\"),\"\",\"Cycle \"&ROWS(U$7:U16))","v":""}]
[null,null,null,".",null,null,null,null,null,null,null,{"$f":"IFERROR(INDEX(StuDB!$A:$A,MATCH('Enter Student Data'!$G$2&\"_\"&ROWS(K$7:K17),StuDB!$C:$C,0),1),\"\")","v":""},{"$f":"IFERROR(VLOOKUP(L17,StuDB!$A:$C,MATCH(StuDB!$C$1,StuDB!$A$1:$C$1,0),FALSE),\"\")","v":""},null,{"$f":"IF(INDEX('Enter Student Data'!$B$9:$D$18,ROWS(O$15:O17),1)=\"\",\"\",INDEX('Enter Student Data'!$B$9:$D$18,ROWS(O$15:O17),1))","v":""},{"$f":"IFERROR(IF(O17=\"\",\"\",VLOOKUP(O17,'Teacher Roster (optional)'!B:D,2,FALSE)),\"\")","v":""},{"$f":"IFERROR(IF(O17=\"\",\"\",VLOOKUP(O17,'Teacher Roster (optional)'!B:D,3,FALSE)),\"\")","v":""},{"$f":"IF(O17=\"\",\"\",IF(ISERROR(VLOOKUP(O17,'Teacher Roster (optional)'!B:B,1,FALSE)),1,0))","v":""},{"$f":"IF(ISERROR(VLOOKUP($AC$4,T17:T$17,1,FALSE)),0,1)","v":0},"Cycle 11",{"$f":"CycleDB!B13&CycleDB!C13&CycleDB!D13&CycleDB!E13&CycleDB!F13&CycleDB!G13&CycleDB!H13&CycleDB!I13&CycleDB!J13&CycleDB!K13&CycleDB!L13&CycleDB!M13&CycleDB!N13&CycleDB!O13&CycleDB!P13&CycleDB!Q13&CycleDB!R13&CycleDB!S13&CycleDB!T13&CycleDB!U13&CycleDB!V13&CycleDB!W13&CycleDB!X13&CycleDB!Y13&CycleDB!Z13&CycleDB!AA13&CycleDB!AB13","v":""},{"$f":"IF(OR(V16=\"\",U16=\"\"),\"\",\"Cycle \"&ROWS(U$7:U17))","v":""}]
[null,null,null,".",null,null,null,null,null,null,null,{"$f":"IFERROR(INDEX(StuDB!$A:$A,MATCH('Enter Student Data'!$G$2&\"_\"&ROWS(K$7:K18),StuDB!$C:$C,0),1),\"\")","v":""},{"$f":"IFERROR(VLOOKUP(L18,StuDB!$A:$C,MATCH(StuDB!$C$1,StuDB!$A$1:$C$1,0),FALSE),\"\")","v":""},null,{"$f":"IF(INDEX('Enter Student Data'!$B$9:$D$18,ROWS(O$15:O18),1)=\"\",\"\",INDEX('Enter Student Data'!$B$9:$D$18,ROWS(O$15:O18),1))","v":""},{"$f":"IFERROR(IF(O18=\"\",\"\",VLOOKUP(O18,'Teacher Roster (optional)'!B:D,2,FALSE)),\"\")","v":""},{"$f":"IFERROR(IF(O18=\"\",\"\",VLOOKUP(O18,'Teacher Roster (optional)'!B:D,3,FALSE)),\"\")","v":""},{"$f":"IF(O18=\"\",\"\",IF(ISERROR(VLOOKUP(O18,'Teacher Roster (optional)'!B:B,1,FALSE)),1,0))","v":""}]
[null,null,null,null,null,null,null,null,null,null,null,{"$f":"IFERROR(INDEX(StuDB!$A:$A,MATCH('Enter Student Data'!$G$2&\"_\"&ROWS(K$7:K19),StuDB!$C:$C,0),1),\"\")","v":""},{"$f":"IFERROR(VLOOKUP(L19,StuDB!$A:$C,MATCH(StuDB!$C$1,StuDB!$A$1:$C$1,0),FALSE),\"\")","v":""},null,{"$f":"IF(INDEX('Enter Student Data'!$B$9:$D$18,ROWS(O$15:O19),1)=\"\",\"\",INDEX('Enter Student Data'!$B$9:$D$18,ROWS(O$15:O19),1))","v":""},{"$f":"IFERROR(IF(O19=\"\",\"\",VLOOKUP(O19,'Teacher Roster (optional)'!B:D,2,FALSE)),\"\")","v":""},{"$f":"IFERROR(IF(O19=\"\",\"\",VLOOKUP(O19,'Teacher Roster (optional)'!B:D,3,FALSE)),\"\")","v":""},{"$f":"IF(O19=\"\",\"\",IF(ISERROR(VLOOKUP(O19,'Teacher Roster (optional)'!B:B,1,FALSE)),1,0))","v":""}]
[null,null,null,null,null,null,null,null,null,null,null,{"$f":"IFERROR(INDEX(StuDB!$A:$A,MATCH('Enter Student Data'!$G$2&\"_\"&ROWS(K$7:K20),StuDB!$C:$C,0),1),\"\")","v":""},{"$f":"IFERROR(VLOOKUP(L20,StuDB!$A:$C,MATCH(StuDB!$C$1,StuDB!$A$1:$C$1,0),FALSE),\"\")","v":""},null,{"$f":"IF(INDEX('Enter Student Data'!$B$9:$D$18,ROWS(O$15:O20),1)=\"\",\"\",INDEX('Enter Student Data'!$B$9:$D$18,ROWS(O$15:O20),1))","v":""},{"$f":"IFERROR(IF(O20=\"\",\"\",VLOOKUP(O20,'Teacher Roster (optional)'!B:D,2,FALSE)),\"\")","v":""},{"$f":"IFERROR(IF(O20=\"\",\"\",VLOOKUP(O20,'Teacher Roster (optional)'!B:D,3,FALSE)),\"\")","v":""},{"$f":"IF(O20=\"\",\"\",IF(ISERROR(VLOOKUP(O20,'Teacher Roster (optional)'!B:B,1,FALSE)),1,0))","v":""}]
[null,null,null,null,null,null,null,null,null,null,null,{"$f":"IFERROR(INDEX(StuDB!$A:$A,MATCH('Enter Student Data'!$G$2&\"_\"&ROWS(K$7:K21),StuDB!$C:$C,0),1),\"\")","v":""},{"$f":"IFERROR(VLOOKUP(L21,StuDB!$A:$C,MATCH(StuDB!$C$1,StuDB!$A$1:$C$1,0),FALSE),\"\")","v":""},null,{"$f":"IF(INDEX('Enter Student Data'!$B$9:$D$18,ROWS(O$15:O21),1)=\"\",\"\",INDEX('Enter Student Data'!$B$9:$D$18,ROWS(O$15:O21),1))","v":""},{"$f":"IFERROR(IF(O21=\"\",\"\",VLOOKUP(O21,'Teacher Roster (optional)'!B:D,2,FALSE)),\"\")","v":""},{"$f":"IFERROR(IF(O21=\"\",\"\",VLOOKUP(O21,'Teacher Roster (optional)'!B:D,3,FALSE)),\"\")","v":""},{"$f":"IF(O21=\"\",\"\",IF(ISERROR(VLOOKUP(O21,'Teacher Roster (optional)'!B:B,1,FALSE)),1,0))","v":""}]
[null,null,null,null,null,null,null,null,null,null,null,{"$f":"IFERROR(INDEX(StuDB!$A:$A,MATCH('Enter Student Data'!$G$2&\"_\"&ROWS(K$7:K22),StuDB!$C:$C,0),1),\"\")","v":""},{"$f":"IFERROR(VLOOKUP(L22,StuDB!$A:$C,MATCH(StuDB!$C$1,StuDB!$A$1:$C$1,0),FALSE),\"\")","v":""},null,{"$f":"IF(INDEX('Enter Student Data'!$B$9:$D$18,ROWS(O$15:O22),1)=\"\",\"\",INDEX('Enter Student Data'!$B$9:$D$18,ROWS(O$15:O22),1))","v":""},{"$f":"IFERROR(IF(O22=\"\",\"\",VLOOKUP(O22,'Teacher Roster (optional)'!B:D,2,FALSE)),\"\")","v":""},{"$f":"IFERROR(IF(O22=\"\",\"\",VLOOKUP(O22,'Teacher Roster (optional)'!B:D,3,FALSE)),\"\")","v":""},{"$f":"IF(O22=\"\",\"\",IF(ISERROR(VLOOKUP(O22,'Teacher Roster (optional)'!B:B,1,FALSE)),1,0))","v":""}]
[null,null,null,null,null,null,null,null,null,null,null,{"$f":"IFERROR(INDEX(StuDB!$A:$A,MATCH('Enter Student Data'!$G$2&\"_\"&ROWS(K$7:K23),StuDB!$C:$C,0),1),\"\")","v":""},{"$f":"IFERROR(VLOOKUP(L23,StuDB!$A:$C,MATCH(StuDB!$C$1,StuDB!$A$1:$C$1,0),FALSE),\"\")","v":""},null,{"$f":"IF(INDEX('Enter Student Data'!$B$9:$D$18,ROWS(O$15:O23),1)=\"\",\"\",INDEX('Enter Student Data'!$B$9:$D$18,ROWS(O$15:O23),1))","v":""},{"$f":"IFERROR(IF(O23=\"\",\"\",VLOOKUP(O23,'Teacher Roster (optional)'!B:D,2,FALSE)),\"\")","v":""},{"$f":"IFERROR(IF(O23=\"\",\"\",VLOOKUP(O23,'Teacher Roster (optional)'!B:D,3,FALSE)),\"\")","v":""},{"$f":"IF(O23=\"\",\"\",IF(ISERROR(VLOOKUP(O23,'Teacher Roster (optional)'!B:B,1,FALSE)),1,0))","v":""}]
[null,null,null,null,null,null,null,null,null,null,null,{"$f":"IFERROR(INDEX(StuDB!$A:$A,MATCH('Enter Student Data'!$G$2&\"_\"&ROWS(K$7:K24),StuDB!$C:$C,0),1),\"\")","v":""},{"$f":"IFERROR(VLOOKUP(L24,StuDB!$A:$C,MATCH(StuDB!$C$1,StuDB!$A$1:$C$1,0),FALSE),\"\")","v":""},null,{"$f":"IF(INDEX('Enter Student Data'!$B$9:$D$18,ROWS(O$15:O24),1)=\"\",\"\",INDEX('Enter Student Data'!$B$9:$D$18,ROWS(O$15:O24),1))","v":""},{"$f":"IFERROR(IF(O24=\"\",\"\",VLOOKUP(O24,'Teacher Roster (optional)'!B:D,2,FALSE)),\"\")","v":""},{"$f":"IFERROR(IF(O24=\"\",\"\",VLOOKUP(O24,'Teacher Roster (optional)'!B:D,3,FALSE)),\"\")","v":""},{"$f":"IF(O24=\"\",\"\",IF(ISERROR(VLOOKUP(O24,'Teacher Roster (optional)'!B:B,1,FALSE)),1,0))","v":""}]
[null,null,null,null,null,null,null,null,null,null,null,{"$f":"IFERROR(INDEX(StuDB!$A:$A,MATCH('Enter Student Data'!$G$2&\"_\"&ROWS(K$7:K25),StuDB!$C:$C,0),1),\"\")","v":""},{"$f":"IFERROR(VLOOKUP(L25,StuDB!$A:$C,MATCH(StuDB!$C$1,StuDB!$A$1:$C$1,0),FALSE),\"\")","v":""}]
[null,null,null,null,null,null,null,null,null,null,null,{"$f":"IFERROR(INDEX(StuDB!$A:$A,MATCH('Enter Student Data'!$G$2&\"_\"&ROWS(K$7:K26),StuDB!$C:$C,0),1),\"\")","v":""},{"$f":"IFERROR(VLOOKUP(L26,StuDB!$A:$C,MATCH(StuDB!$C$1,StuDB!$A$1:$C$1,0),FALSE),\"\")","v":""},null,null,"Need to ADD?","Other Staff","Add to Teacher List?"]
[null,null,null,null,null,null,null,null,null,null,null,{"$f":"IFERROR(INDEX(StuDB!$A:$A,MATCH('Enter Student Data'!$G$2&\"_\"&ROWS(K$7:K27),StuDB!$C:$C,0),1),\"\")","v":""},{"$f":"IFERROR(VLOOKUP(L27,StuDB!$A:$C,MATCH(StuDB!$C$1,StuDB!$A$1:$C$1,0),FALSE),\"\")","v":""},null,null,{"$f":"IF(SUM(R28:R37)>0,\"Yes\",\"No\")","v":"No"},"Next blank row",{"$f":"MATCH(TRUE,INDEX(ISBLANK('Other Staff Roster (optional)'!$B:$B),0,0),0)","v":2}]
[null,null,null,null,null,null,null,null,null,null,null,{"$f":"IFERROR(INDEX(StuDB!$A:$A,MATCH('Enter Student Data'!$G$2&\"_\"&ROWS(K$7:K28),StuDB!$C:$C,0),1),\"\")","v":""},{"$f":"IFERROR(VLOOKUP(L28,StuDB!$A:$C,MATCH(StuDB!$C$1,StuDB!$A$1:$C$1,0),FALSE),\"\")","v":""},null,{"$f":"IF(INDEX('Enter Student Data'!$B$23:$D$32,ROWS(O$28:O28),1)=\"\",\"\",INDEX('Enter Student Data'!$B$23:$D$32,ROWS(O$28:O28),1))","v":""},{"$f":"IFERROR(IF(O28=\"\",\"\",VLOOKUP(O28,'Other Staff Roster (optional)'!B:D,2,FALSE)),\"\")","v":""},{"$f":"IFERROR(IF(O28=\"\",\"\",VLOOKUP(O28,'Other Staff Roster (optional)'!B:D,3,FALSE)),\"\")","v":""},{"$f":"IF(O28=\"\",\"\",IF(ISERROR(VLOOKUP(O28,'Other Staff Roster (optional)'!B:B,1,FALSE)),1,0))","v":""}]
[null,null,null,null,null,null,null,null,null,null,null,{"$f":"IFERROR(INDEX(StuDB!$A:$A,MATCH('Enter Student Data'!$G$2&\"_\"&ROWS(K$7:K29),StuDB!$C:$C,0),1),\"\")","v":""},{"$f":"IFERROR(VLOOKUP(L29,StuDB!$A:$C,MATCH(StuDB!$C$1,StuDB!$A$1:$C$1,0),FALSE),\"\")","v":""},null,{"$f":"IF(INDEX('Enter Student Data'!$B$23:$D$32,ROWS(O$28:O29),1)=\"\",\"\",INDEX('Enter Student Data'!$B$23:$D$32,ROWS(O$28:O29),1))","v":""},{"$f":"IFERROR(IF(O29=\"\",\"\",VLOOKUP(O29,'Other Staff Roster (optional)'!B:D,2,FALSE)),\"\")","v":""},{"$f":"IFERROR(IF(O29=\"\",\"\",VLOOKUP(O29,'Other Staff Roster (optional)'!B:D,3,FALSE)),\"\")","v":""},{"$f":"IF(O29=\"\",\"\",IF(ISERROR(VLOOKUP(O29,'Other Staff Roster (optional)'!B:B,1,FALSE)),1,0))","v":""}]
[null,null,null,null,null,null,null,null,null,null,null,{"$f":"IFERROR(INDEX(StuDB!$A:$A,MATCH('Enter Student Data'!$G$2&\"_\"&ROWS(K$7:K30),StuDB!$C:$C,0),1),\"\")","v":""},{"$f":"IFERROR(VLOOKUP(L30,StuDB!$A:$C,MATCH(StuDB!$C$1,StuDB!$A$1:$C$1,0),FALSE),\"\")","v":""},null,{"$f":"IF(INDEX('Enter Student Data'!$B$23:$D$32,ROWS(O$28:O30),1)=\"\",\"\",INDEX('Enter Student Data'!$B$23:$D$32,ROWS(O$28:O30),1))","v":""},{"$f":"IFERROR(IF(O30=\"\",\"\",VLOOKUP(O30,'Other Staff Roster (optional)'!B:D,2,FALSE)),\"\")","v":""},{"$f":"IFERROR(IF(O30=\"\",\"\",VLOOKUP(O30,'Other Staff Roster (optional)'!B:D,3,FALSE)),\"\")","v":""},{"$f":"IF(O30=\"\",\"\",IF(ISERROR(VLOOKUP(O30,'Other Staff Roster (optional)'!B:B,1,FALSE)),1,0))","v":""}]
[null,null,null,null,null,null,null,null,null,null,null,{"$f":"IFERROR(INDEX(StuDB!$A:$A,MATCH('Enter Student Data'!$G$2&\"_\"&ROWS(K$7:K31),StuDB!$C:$C,0),1),\"\")","v":""},{"$f":"IFERROR(VLOOKUP(L31,StuDB!$A:$C,MATCH(StuDB!$C$1,StuDB!$A$1:$C$1,0),FALSE),\"\")","v":""},null,{"$f":"IF(INDEX('Enter Student Data'!$B$23:$D$32,ROWS(O$28:O31),1)=\"\",\"\",INDEX('Enter Student Data'!$B$23:$D$32,ROWS(O$28:O31),1))","v":""},{"$f":"IFERROR(IF(O31=\"\",\"\",VLOOKUP(O31,'Other Staff Roster (optional)'!B:D,2,FALSE)),\"\")","v":""},{"$f":"IFERROR(IF(O31=\"\",\"\",VLOOKUP(O31,'Other Staff Roster (optional)'!B:D,3,FALSE)),\"\")","v":""},{"$f":"IF(O31=\"\",\"\",IF(ISERROR(VLOOKUP(O31,'Other Staff Roster (optional)'!B:B,1,FALSE)),1,0))","v":""}]
[null,null,null,null,null,null,null,null,null,null,null,{"$f":"IFERROR(INDEX(StuDB!$A:$A,MATCH('Enter Student Data'!$G$2&\"_\"&ROWS(K$7:K32),StuDB!$C:$C,0),1),\"\")","v":""},{"$f":"IFERROR(VLOOKUP(L32,StuDB!$A:$C,MATCH(StuDB!$C$1,StuDB!$A$1:$C$1,0),FALSE),\"\")","v":""},null,{"$f":"IF(INDEX('Enter Student Data'!$B$23:$D$32,ROWS(O$28:O32),1)=\"\",\"\",INDEX('Enter Student Data'!$B$23:$D$32,ROWS(O$28:O32),1))","v":""},{"$f":"IFERROR(IF(O32=\"\",\"\",VLOOKUP(O32,'Other Staff Roster (optional)'!B:D,2,FALSE)),\"\")","v":""},{"$f":"IFERROR(IF(O32=\"\",\"\",VLOOKUP(O32,'Other Staff Roster (optional)'!B:D,3,FALSE)),\"\")","v":""},{"$f":"IF(O32=\"\",\"\",IF(ISERROR(VLOOKUP(O32,'Other Staff Roster (optional)'!B:B,1,FALSE)),1,0))","v":""}]
[null,null,null,null,null,null,null,null,null,null,null,{"$f":"IFERROR(INDEX(StuDB!$A:$A,MATCH('Enter Student Data'!$G$2&\"_\"&ROWS(K$7:K33),StuDB!$C:$C,0),1),\"\")","v":""},{"$f":"IFERROR(VLOOKUP(L33,StuDB!$A:$C,MATCH(StuDB!$C$1,StuDB!$A$1:$C$1,0),FALSE),\"\")","v":""},null,{"$f":"IF(INDEX('Enter Student Data'!$B$23:$D$32,ROWS(O$28:O33),1)=\"\",\"\",INDEX('Enter Student Data'!$B$23:$D$32,ROWS(O$28:O33),1))","v":""},{"$f":"IFERROR(IF(O33=\"\",\"\",VLOOKUP(O33,'Other Staff Roster (optional)'!B:D,2,FALSE)),\"\")","v":""},{"$f":"IFERROR(IF(O33=\"\",\"\",VLOOKUP(O33,'Other Staff Roster (optional)'!B:D,3,FALSE)),\"\")","v":""},{"$f":"IF(O33=\"\",\"\",IF(ISERROR(VLOOKUP(O33,'Other Staff Roster (optional)'!B:B,1,FALSE)),1,0))","v":""}]
[null,null,null,null,null,null,null,null,null,null,null,{"$f":"IFERROR(INDEX(StuDB!$A:$A,MATCH('Enter Student Data'!$G$2&\"_\"&ROWS(K$7:K34),StuDB!$C:$C,0),1),\"\")","v":""},{"$f":"IFERROR(VLOOKUP(L34,StuDB!$A:$C,MATCH(StuDB!$C$1,StuDB!$A$1:$C$1,0),FALSE),\"\")","v":""},null,{"$f":"IF(INDEX('Enter Student Data'!$B$23:$D$32,ROWS(O$28:O34),1)=\"\",\"\",INDEX('Enter Student Data'!$B$23:$D$32,ROWS(O$28:O34),1))","v":""},{"$f":"IFERROR(IF(O34=\"\",\"\",VLOOKUP(O34,'Other Staff Roster (optional)'!B:D,2,FALSE)),\"\")","v":""},{"$f":"IFERROR(IF(O34=\"\",\"\",VLOOKUP(O34,'Other Staff Roster (optional)'!B:D,3,FALSE)),\"\")","v":""},{"$f":"IF(O34=\"\",\"\",IF(ISERROR(VLOOKUP(O34,'Other Staff Roster (optional)'!B:B,1,FALSE)),1,0))","v":""}]
[null,null,null,null,null,null,null,null,null,null,null,{"$f":"IFERROR(INDEX(StuDB!$A:$A,MATCH('Enter Student Data'!$G$2&\"_\"&ROWS(K$7:K35),StuDB!$C:$C,0),1),\"\")","v":""},{"$f":"IFERROR(VLOOKUP(L35,StuDB!$A:$C,MATCH(StuDB!$C$1,StuDB!$A$1:$C$1,0),FALSE),\"\")","v":""},null,{"$f":"IF(INDEX('Enter Student Data'!$B$23:$D$32,ROWS(O$28:O35),1)=\"\",\"\",INDEX('Enter Student Data'!$B$23:$D$32,ROWS(O$28:O35),1))","v":""},{"$f":"IFERROR(IF(O35=\"\",\"\",VLOOKUP(O35,'Other Staff Roster (optional)'!B:D,2,FALSE)),\"\")","v":""},{"$f":"IFERROR(IF(O35=\"\",\"\",VLOOKUP(O35,'Other Staff Roster (optional)'!B:D,3,FALSE)),\"\")","v":""},{"$f":"IF(O35=\"\",\"\",IF(ISERROR(VLOOKUP(O35,'Other Staff Roster (optional)'!B:B,1,FALSE)),1,0))","v":""}]
[null,null,null,null,null,null,null,null,null,null,null,{"$f":"IFERROR(INDEX(StuDB!$A:$A,MATCH('Enter Student Data'!$G$2&\"_\"&ROWS(K$7:K36),StuDB!$C:$C,0),1),\"\")","v":""},{"$f":"IFERROR(VLOOKUP(L36,StuDB!$A:$C,MATCH(StuDB!$C$1,StuDB!$A$1:$C$1,0),FALSE),\"\")","v":""},null,{"$f":"IF(INDEX('Enter Student Data'!$B$23:$D$32,ROWS(O$28:O36),1)=\"\",\"\",INDEX('Enter Student Data'!$B$23:$D$32,ROWS(O$28:O36),1))","v":""},{"$f":"IFERROR(IF(O36=\"\",\"\",VLOOKUP(O36,'Other Staff Roster (optional)'!B:D,2,FALSE)),\"\")","v":""},{"$f":"IFERROR(IF(O36=\"\",\"\",VLOOKUP(O36,'Other Staff Roster (optional)'!B:D,3,FALSE)),\"\")","v":""},{"$f":"IF(O36=\"\",\"\",IF(ISERROR(VLOOKUP(O36,'Other Staff Roster (optional)'!B:B,1,FALSE)),1,0))","v":""}]
[null,null,null,null,null,null,null,null,null,null,null,null,null,null,{"$f":"IF(INDEX('Enter Student Data'!$B$23:$D$32,ROWS(O$28:O37),1)=\"\",\"\",INDEX('Enter Student Data'!$B$23:$D$32,ROWS(O$28:O37),1))","v":""},{"$f":"IFERROR(IF(O37=\"\",\"\",VLOOKUP(O37,'Other Staff Roster (optional)'!B:D,2,FALSE)),\"\")","v":""},{"$f":"IFERROR(IF(O37=\"\",\"\",VLOOKUP(O37,'Other Staff Roster (optional)'!B:D,3,FALSE)),\"\")","v":""},{"$f":"IF(O37=\"\",\"\",IF(ISERROR(VLOOKUP(O37,'Other Staff Roster (optional)'!B:B,1,FALSE)),1,0))","v":""}]
[]
[null,null,null,null,null,null,null,null,null,null,null,null,null,null,null,null,"AUTOMATICALLY UPDATE TEACHER AND OTHER STAFF LISTS?",null,null,null,null,null,null,null,null,null,null,null,{"$f":"SUMPRODUCT(AE39:AP39,$AE$4:$AP$4)","v":0},{"$f":"IF(G39=\"\",\"\",G39)","v":""},{"$f":"COUNTIFS(StuDB!$D:$D,$AD39,StuDB!$E:$E,\">=\"&AE$1,StuDB!$E:$E,\"<=\"&AE$2)","v":0},{"$f":"COUNTIFS(StuDB!$D:$D,$AD39,StuDB!$E:$E,\">=\"&AF$1,StuDB!$E:$E,\"<=\"&AF$2)","v":0},{"$f":"COUNTIFS(StuDB!$D:$D,$AD39,StuDB!$E:$E,\">=\"&AG$1,StuDB!$E:$E,\"<=\"&AG$2)","v":0},{"$f":"COUNTIFS(StuDB!$D:$D,$AD39,StuDB!$E:$E,\">=\"&AH$1,StuDB!$E:$E,\"<=\"&AH$2)","v":0},{"$f":"COUNTIFS(StuDB!$D:$D,$AD39,StuDB!$E:$E,\">=\"&AI$1,StuDB!$E:$E,\"<=\"&AI$2)","v":0},{"$f":"COUNTIFS(StuDB!$D:$D,$AD39,StuDB!$E:$E,\">=\"&AJ$1,StuDB!$E:$E,\"<=\"&AJ$2)","v":0},{"$f":"COUNTIFS(StuDB!$D:$D,$AD39,StuDB!$E:$E,\">=\"&AK$1,StuDB!$E:$E,\"<=\"&AK$2)","v":0},{"$f":"COUNTIFS(StuDB!$D:$D,$AD39,StuDB!$E:$E,\">=\"&AL$1,StuDB!$E:$E,\"<=\"&AL$2)","v":0},{"$f":"COUNTIFS(StuDB!$D:$D,$AD39,StuDB!$E:$E,\">=\"&AM$1,StuDB!$E:$E,\"<=\"&AM$2)","v":0},{"$f":"COUNTIFS(StuDB!$D:$D,$AD39,StuDB!$E:$E,\">=\"&AN$1,StuDB!$E:$E,\"<=\"&AN$2)","v":0},{"$f":"COUNTIFS(StuDB!$D:$D,$AD39,StuDB!$E:$E,\">=\"&AO$1,StuDB!$E:$E,\"<=\"&AO$2)","v":0},{"$f":"COUNTIFS(StuDB!$D:$D,$AD39,StuDB!$E:$E,\">=\"&AP$1,StuDB!$E:$E,\"<=\"&AP$2)","v":0}]
[null,null,null,null,null,null,null,null,null,null,null,null,null,null,null,null,null,null,null,null,null,null,null,null,null,null,null,null,0,"",{"$f":"COUNTIFS(StuDB!$D:$D,$AD40,StuDB!$E:$E,\">=\"&AE$1,StuDB!$E:$E,\"<=\"&AE$2)","v":0},{"$f":"COUNTIFS(StuDB!$D:$D,$AD40,StuDB!$E:$E,\">=\"&AF$1,StuDB!$E:$E,\"<=\"&AF$2)","v":0},{"$f":"COUNTIFS(StuDB!$D:$D,$AD40,StuDB!$E:$E,\">=\"&AG$1,StuDB!$E:$E,\"<=\"&AG$2)","v":0},{"$f":"COUNTIFS(StuDB!$D:$D,$AD40,StuDB!$E:$E,\">=\"&AH$1,StuDB!$E:$E,\"<=\"&AH$2)","v":0},{"$f":"COUNTIFS(StuDB!$D:$D,$AD40,StuDB!$E:$E,\">=\"&AI$1,StuDB!$E:$E,\"<=\"&AI$2)","v":0},{"$f":"COUNTIFS(StuDB!$D:$D,$AD40,StuDB!$E:$E,\">=\"&AJ$1,StuDB!$E:$E,\"<=\"&AJ$2)","v":0},{"$f":"COUNTIFS(StuDB!$D:$D,$AD40,StuDB!$E:$E,\">=\"&AK$1,StuDB!$E:$E,\"<=\"&AK$2)","v":0},{"$f":"COUNTIFS(StuDB!$D:$D,$AD40,StuDB!$E:$E,\">=\"&AL$1,StuDB!$E:$E,\"<=\"&AL$2)","v":0},{"$f":"COUNTIFS(StuDB!$D:$D,$AD40,StuDB!$E:$E,\">=\"&AM$1,StuDB!$E:$E,\"<=\"&AM$2)","v":0},{"$f":"COUNTIFS(StuDB!$D:$D,$AD40,StuDB!$E:$E,\">=\"&AN$1,StuDB!$E:$E,\"<=\"&AN$2)","v":0},{"$f":"COUNTIFS(StuDB!$D:$D,$AD40,StuDB!$E:$E,\">=\"&AO$1,StuDB!$E:$E,\"<=\"&AO$2)","v":0},{"$f":"COUNTIFS(StuDB!$D:$D,$AD40,StuDB!$E:$E,\">=\"&AP$1,StuDB!$E:$E,\"<=\"&AP$2)","v":0}]
[null,null,null,null,null,null,null,null,null,null,null,null,null,null,null,null,"Yes = 1",true]

{"sheet":"StuDB","index":10,"n_rows":48,"n_cols":79,"rows_kept":48,"cut":false,"hidden":true,"merged":[]}
["IncidentID","IncidentNumberThisStudent","StudentIncidentID","StudentID","ReferralDate","Tchr1_Name","Tchr1_Info","Tchr1_DateNotified","Tchr2_Name","Tchr2_Info","Tchr2_DateNotified","Tchr3_Name","Tchr3_Info","Tchr3_DateNotified","Tchr4_Name","Tchr4_Info","Tchr4_DateNotified","Tchr5_Name","Tchr5_Info","Tchr5_DateNotified","Tchr6_Name","Tchr6_Info","Tchr6_DateNotified","Tchr7_Name","Tchr7_Info","Tchr7_DateNotified","Tchr8_Name","Tchr8_Info","Tchr8_DateNotified","Tchr9_Name","Tchr9_Info","Tchr9_DateNotified","Tchr10_Name","Tchr10_Info","Tchr10_DateNotified","Staff1_Name","Staff1_Info","Staff1_DateNotified","Staff2_Name","Staff2_Info","Staff2_DateNotified","Staff3_Name","Staff3_Info","Staff3_DateNotified","Staff4_Name","Staff4_Info","Staff4_DateNotified","Staff5_Name","Staff5_Info","Staff5_DateNotified","Staff6_Name","Staff6_Info","Staff6_DateNotified","Staff7_Name","Staff7_Info","Staff7_DateNotified","Staff8_Name","Staff8_Info","Staff8_DateNotified","Staff9_Name","Staff9_Info","Staff9_DateNotified","Staff10_Name","Staff10_Info","Staff10_DateNotified","NumberTeachers","NumberTeachersNotified","TchrNotifiedOverride","TchNotifStatus","AvgTchNotifDays","NumberOtherStaff","NumberOtherStaffNotified","StaffNotifiedOverride","StaffNotifStatus","AvgStaffNotifDays","LastUpdated","Grade","DateOfIncident","Cycle"]
[null,null,null,null,null,null,null,null,null,null,null,null,null,null,null,null,null,null,null,null,null,null,null,null,null,null,null,null,null,null,null,null,null,null,null,null,null,null,null,null,null,null,null,null,null,null,null,null,null,null,null,null,null,null,null,null,null,null,null,null,null,null,null,null,null,null,null,null,null,null,null,null,null,null,null,null,null,"2019-09-04",{"$f":"IFERROR(INDEX(CycleDB!$A$2:$A$13,MATCH(E2,CycleDB!$B$2:$B$13,1),1),\"\")","v":""}]
[null,null,null,null,null,null,null,null,null,null,null,null,null,null,null,null,null,null,null,null,null,null,null,null,null,null,null,null,null,null,null,null,null,null,null,null,null,null,null,null,null,null,null,null,null,null,null,null,null,null,null,null,null,null,null,null,null,null,null,null,null,null,null,null,null,null,null,null,null,null,null,null,null,null,null,null,null,"2019-09-09",{"$f":"IFERROR(INDEX(CycleDB!$A$2:$A$13,MATCH(E3,CycleDB!$B$2:$B$13,1),1),\"\")","v":""}]
[null,null,null,null,null,null,null,null,null,null,null,null,null,null,null,null,null,null,null,null,null,null,null,null,null,null,null,null,null,null,null,null,null,null,null,null,null,null,null,null,null,null,null,null,null,null,null,null,null,null,null,null,null,null,null,null,null,null,null,null,null,null,null,null,null,null,null,null,null,null,null,null,null,null,null,null,null,"2019-09-19",{"$f":"IFERROR(INDEX(CycleDB!$A$2:$A$13,MATCH(E4,CycleDB!$B$2:$B$13,1),1),\"\")","v":""}]
[null,null,null,null,null,null,null,null,null,null,null,null,null,null,null,null,null,null,null,null,null,null,null,null,null,null,null,null,null,null,null,null,null,null,null,null,null,null,null,null,null,null,null,null,null,null,null,null,null,null,null,null,null,null,null,null,null,null,null,null,null,null,null,null,null,null,null,null,null,null,null,null,null,null,null,null,null,"2019-09-24",{"$f":"IFERROR(INDEX(CycleDB!$A$2:$A$13,MATCH(E5,CycleDB!$B$2:$B$13,1),1),\"\")","v":""}]
[null,null,null,null,null,null,null,null,null,null,null,null,null,null,null,null,null,null,null,null,null,null,null,null,null,null,null,null,null,null,null,null,null,null,null,null,null,null,null,null,null,null,null,null,null,null,null,null,null,null,null,null,null,null,null,null,null,null,null,null,null,null,null,null,null,null,null,null,null,null,null,null,null,null,null,null,null,"2019-09-29",{"$f":"IFERROR(INDEX(CycleDB!$A$2:$A$13,MATCH(E6,CycleDB!$B$2:$B$13,1),1),\"\")","v":""}]
[null,null,null,null,null,null,null,null,null,null,null,null,null,null,null,null,null,null,null,null,null,null,null,null,null,null,null,null,null,null,null,null,null,null,null,null,null,null,null,null,null,null,null,null,null,null,null,null,null,null,null,null,null,null,null,null,null,null,null,null,null,null,null,null,null,null,null,null,null,null,null,null,null,null,null,null,null,"2019-09-29",{"$f":"IFERROR(INDEX(CycleDB!$A$2:$A$13,MATCH(E7,CycleDB!$B$2:$B$13,1),1),\"\")","v":""}]
[null,null,null,null,null,null,null,null,null,null,null,null,null,null,null,null,null,null,null,null,null,null,null,null,null,null,null,null,null,null,null,null,null,null,null,null,null,null,null,null,null,null,null,null,null,null,null,null,null,null,null,null,null,null,null,null,null,null,null,null,null,null,null,null,null,null,null,null,null,null,null,null,null,null,null,null,null,"2019-10-09",{"$f":"IFERROR(INDEX(CycleDB!$A$2:$A$13,MATCH(E8,CycleDB!$B$2:$B$13,1),1),\"\")","v":""}]
[null,null,null,null,null,null,null,null,null,null,null,null,null,null,null,null,null,null,null,null,null,null,null,null,null,null,null,null,null,null,null,null,null,null,null,null,null,null,null,null,null,null,null,null,null,null,null,null,null,null,null,null,null,null,null,null,null,null,null,null,null,null,null,null,null,null,null,null,null,null,null,null,null,null,null,null,null,"2019-10-14",{"$f":"IFERROR(INDEX(CycleDB!$A$2:$A$13,MATCH(E9,CycleDB!$B$2:$B$13,1),1),\"\")","v":""}]
[null,null,null,null,null,null,null,null,null,null,null,null,null,null,null,null,null,null,null,null,null,null,null,null,null,null,null,null,null,null,null,null,null,null,null,null,null,null,null,null,null,null,null,null,null,null,null,null,null,null,null,null,null,null,null,null,null,null,null,null,null,null,null,null,null,null,null,null,null,null,null,null,null,null,null,null,null,"2019-10-19",{"$f":"IFERROR(INDEX(CycleDB!$A$2:$A$13,MATCH(E10,CycleDB!$B$2:$B$13,1),1),\"\")","v":""}]
[null,null,null,null,null,null,null,null,null,null,null,null,null,null,null,null,null,null,null,null,null,null,null,null,null,null,null,null,null,null,null,null,null,null,null,null,null,null,null,null,null,null,null,null,null,null,null,null,null,null,null,null,null,null,null,null,null,null,null,null,null,null,null,null,null,null,null,null,null,null,null,null,null,null,null,null,null,"2019-10-24",{"$f":"IFERROR(INDEX(CycleDB!$A$2:$A$13,MATCH(E11,CycleDB!$B$2:$B$13,1),1),\"\")","v":""}]
[null,null,null,null,null,null,null,null,null,null,null,null,null,null,null,null,null,null,null,null,null,null,null,null,null,null,null,null,null,null,null,null,null,null,null,null,null,null,null,null,null,null,null,null,null,null,null,null,null,null,null,null,null,null,null,null,null,null,null,null,null,null,null,null,null,null,null,null,null,null,null,null,null,null,null,null,null,"2019-10-31",{"$f":"IFERROR(INDEX(CycleDB!$A$2:$A$13,MATCH(E12,CycleDB!$B$2:$B$13,1),1),\"\")","v":""}]
[null,null,null,null,null,null,null,null,null,null,null,null,null,null,null,null,null,null,null,null,null,null,null,null,null,null,null,null,null,null,null,null,null,null,null,null,null,null,null,null,null,null,null,null,null,null,null,null,null,null,null,null,null,null,null,null,null,null,null,null,null,null,null,null,null,null,null,null,null,null,null,null,null,null,null,null,null,"2019-11-03",{"$f":"IFERROR(INDEX(CycleDB!$A$2:$A$13,MATCH(E13,CycleDB!$B$2:$B$13,1),1),\"\")","v":""}]
[null,null,null,null,null,null,null,null,null,null,null,null,null,null,null,null,null,null,null,null,null,null,null,null,null,null,null,null,null,null,null,null,null,null,null,null,null,null,null,null,null,null,null,null,null,null,null,null,null,null,null,null,null,null,null,null,null,null,null,null,null,null,null,null,null,null,null,null,null,null,null,null,null,null,null,null,null,"2019-11-08",{"$f":"IFERROR(INDEX(CycleDB!$A$2:$A$13,MATCH(E14,CycleDB!$B$2:$B$13,1),1),\"\")","v":""}]
[null,null,null,null,null,null,null,null,null,null,null,null,null,null,null,null,null,null,null,null,null,null,null,null,null,null,null,null,null,null,null,null,null,null,null,null,null,null,null,null,null,null,null,null,null,null,null,null,null,null,null,null,null,null,null,null,null,null,null,null,null,null,null,null,null,null,null,null,null,null,null,null,null,null,null,null,null,"2019-11-13",{"$f":"IFERROR(INDEX(CycleDB!$A$2:$A$13,MATCH(E15,CycleDB!$B$2:$B$13,1),1),\"\")","v":""}]
[null,null,null,null,null,null,null,null,null,null,null,null,null,null,null,null,null,null,null,null,null,null,null,null,null,null,null,null,null,null,null,null,null,null,null,null,null,null,null,null,null,null,null,null,null,null,null,null,null,null,null,null,null,null,null,null,null,null,null,null,null,null,null,null,null,null,null,null,null,null,null,null,null,null,null,null,null,"2019-11-18",{"$f":"IFERROR(INDEX(CycleDB!$A$2:$A$13,MATCH(E16,CycleDB!$B$2:$B$13,1),1),\"\")","v":""}]
[null,null,null,null,null,null,null,null,null,null,null,null,null,null,null,null,null,null,null,null,null,null,null,null,null,null,null,null,null,null,null,null,null,null,null,null,null,null,null,null,null,null,null,null,null,null,null,null,null,null,null,null,null,null,null,null,null,null,null,null,null,null,null,null,null,null,null,null,null,null,null,null,null,null,null,null,null,"2019-11-23",{"$f":"IFERROR(INDEX(CycleDB!$A$2:$A$13,MATCH(E17,CycleDB!$B$2:$B$13,1),1),\"\")","v":""}]
[null,null,null,null,null,null,null,null,null,null,null,null,null,null,null,null,null,null,null,null,null,null,null,null,null,null,null,null,null,null,null,null,null,null,null,null,null,null,null,null,null,null,null,null,null,null,null,null,null,null,null,null,null,null,null,null,null,null,null,null,null,null,null,null,null,null,null,null,null,null,null,null,null,null,null,null,null,"2019-11-28",{"$f":"IFERROR(INDEX(CycleDB!$A$2:$A$13,MATCH(E18,CycleDB!$B$2:$B$13,1),1),\"\")","v":""}]
[null,null,null,null,null,null,null,null,null,null,null,null,null,null,null,null,null,null,null,null,null,null,null,null,null,null,null,null,null,null,null,null,null,null,null,null,null,null,null,null,null,null,null,null,null,null,null,null,null,null,null,null,null,null,null,null,null,null,null,null,null,null,null,null,null,null,null,null,null,null,null,null,null,null,null,null,null,"2019-12-03",{"$f":"IFERROR(INDEX(CycleDB!$A$2:$A$13,MATCH(E19,CycleDB!$B$2:$B$13,1),1),\"\")","v":""}]
[null,null,null,null,null,null,null,null,null,null,null,null,null,null,null,null,null,null,null,null,null,null,null,null,null,null,null,null,null,null,null,null,null,null,null,null,null,null,null,null,null,null,null,null,null,null,null,null,null,null,null,null,null,null,null,null,null,null,null,null,null,null,null,null,null,null,null,null,null,null,null,null,null,null,null,null,null,"2019-12-08",{"$f":"IFERROR(INDEX(CycleDB!$A$2:$A$13,MATCH(E20,CycleDB!$B$2:$B$13,1),1),\"\")","v":""}]
[null,null,null,null,null,null,null,null,null,null,null,null,null,null,null,null,null,null,null,null,null,null,null,null,null,null,null,null,null,null,null,null,null,null,null,null,null,null,null,null,null,null,null,null,null,null,null,null,null,null,null,null,null,null,null,null,null,null,null,null,null,null,null,null,null,null,null,null,null,null,null,null,null,null,null,null,null,"2019-12-13",{"$f":"IFERROR(INDEX(CycleDB!$A$2:$A$13,MATCH(E21,CycleDB!$B$2:$B$13,1),1),\"\")","v":""}]
[null,null,null,null,null,null,null,null,null,null,null,null,null,null,null,null,null,null,null,null,null,null,null,null,null,null,null,null,null,null,null,null,null,null,null,null,null,null,null,null,null,null,null,null,null,null,null,null,null,null,null,null,null,null,null,null,null,null,null,null,null,null,null,null,null,null,null,null,null,null,null,null,null,null,null,null,null,"2019-12-18",{"$f":"IFERROR(INDEX(CycleDB!$A$2:$A$13,MATCH(E22,CycleDB!$B$2:$B$13,1),1),\"\")","v":""}]
[null,null,null,null,null,null,null,null,null,null,null,null,null,null,null,null,null,null,null,null,null,null,null,null,null,null,null,null,null,null,null,null,null,null,null,null,null,null,null,null,null,null,null,null,null,null,null,null,null,null,null,null,null,null,null,null,null,null,null,null,null,null,null,null,null,null,null,null,null,null,null,null,null,null,null,null,null,"2019-12-23",{"$f":"IFERROR(INDEX(CycleDB!$A$2:$A$13,MATCH(E23,CycleDB!$B$2:$B$13,1),1),\"\")","v":""}]
[null,null,null,null,null,null,null,null,null,null,null,null,null,null,null,null,null,null,null,null,null,null,null,null,null,null,null,null,null,null,null,null,null,null,null,null,null,null,null,null,null,null,null,null,null,null,null,null,null,null,null,null,null,null,null,null,null,null,null,null,null,null,null,null,null,null,null,null,null,null,null,null,null,null,null,null,null,"2019-12-28",{"$f":"IFERROR(INDEX(CycleDB!$A$2:$A$13,MATCH(E24,CycleDB!$B$2:$B$13,1),1),\"\")","v":""}]
[null,null,null,null,null,null,null,null,null,null,null,null,null,null,null,null,null,null,null,null,null,null,null,null,null,null,null,null,null,null,null,null,null,null,null,null,null,null,null,null,null,null,null,null,null,null,null,null,null,null,null,null,null,null,null,null,null,null,null,null,null,null,null,null,null,null,null,null,null,null,null,null,null,null,null,null,null,"2020-01-02",{"$f":"IFERROR(INDEX(CycleDB!$A$2:$A$13,MATCH(E25,CycleDB!$B$2:$B$13,1),1),\"\")","v":""}]
[null,null,null,null,null,null,null,null,null,null,null,null,null,null,null,null,null,null,null,null,null,null,null,null,null,null,null,null,null,null,null,null,null,null,null,null,null,null,null,null,null,null,null,null,null,null,null,null,null,null,null,null,null,null,null,null,null,null,null,null,null,null,null,null,null,null,null,null,null,null,null,null,null,null,null,null,null,"2020-01-07",{"$f":"IFERROR(INDEX(CycleDB!$A$2:$A$13,MATCH(E26,CycleDB!$B$2:$B$13,1),1),\"\")","v":""}]
[null,null,null,null,null,null,null,null,null,null,null,null,null,null,null,null,null,null,null,null,null,null,null,null,null,null,null,null,null,null,null,null,null,null,null,null,null,null,null,null,null,null,null,null,null,null,null,null,null,null,null,null,null,null,null,null,null,null,null,null,null,null,null,null,null,null,null,null,null,null,null,null,null,null,null,null,null,"2020-01-17",{"$f":"IFERROR(INDEX(CycleDB!$A$2:$A$13,MATCH(E27,CycleDB!$B$2:$B$13,1),1),\"\")","v":""}]
[null,null,null,null,null,null,null,null,null,null,null,null,null,null,null,null,null,null,null,null,null,null,null,null,null,null,null,null,null,null,null,null,null,null,null,null,null,null,null,null,null,null,null,null,null,null,null,null,null,null,null,null,null,null,null,null,null,null,null,null,null,null,null,null,null,null,null,null,null,null,null,null,null,null,null,null,null,"2020-01-22",{"$f":"IFERROR(INDEX(CycleDB!$A$2:$A$13,MATCH(E28,CycleDB!$B$2:$B$13,1),1),\"\")","v":""}]
[null,null,null,null,null,null,null,null,null,null,null,null,null,null,null,null,null,null,null,null,null,null,null,null,null,null,null,null,null,null,null,null,null,null,null,null,null,null,null,null,null,null,null,null,null,null,null,null,null,null,null,null,null,null,null,null,null,null,null,null,null,null,null,null,null,null,null,null,null,null,null,null,null,null,null,null,null,"2020-01-27",{"$f":"IFERROR(INDEX(CycleDB!$A$2:$A$13,MATCH(E29,CycleDB!$B$2:$B$13,1),1),\"\")","v":""}]
[null,null,null,null,null,null,null,null,null,null,null,null,null,null,null,null,null,null,null,null,null,null,null,null,null,null,null,null,null,null,null,null,null,null,null,null,null,null,null,null,null,null,null,null,null,null,null,null,null,null,null,null,null,null,null,null,null,null,null,null,null,null,null,null,null,null,null,null,null,null,null,null,null,null,null,null,null,"2020-02-01",{"$f":"IFERROR(INDEX(CycleDB!$A$2:$A$13,MATCH(E30,CycleDB!$B$2:$B$13,1),1),\"\")","v":""}]
[null,null,null,null,null,null,null,null,null,null,null,null,null,null,null,null,null,null,null,null,null,null,null,null,null,null,null,null,null,null,null,null,null,null,null,null,null,null,null,null,null,null,null,null,null,null,null,null,null,null,null,null,null,null,null,null,null,null,null,null,null,null,null,null,null,null,null,null,null,null,null,null,null,null,null,null,null,"2020-02-06",{"$f":"IFERROR(INDEX(CycleDB!$A$2:$A$13,MATCH(E31,CycleDB!$B$2:$B$13,1),1),\"\")","v":""}]
[null,null,null,null,null,null,null,null,null,null,null,null,null,null,null,null,null,null,null,null,null,null,null,null,null,null,null,null,null,null,null,null,null,null,null,null,null,null,null,null,null,null,null,null,null,null,null,null,null,null,null,null,null,null,null,null,null,null,null,null,null,null,null,null,null,null,null,null,null,null,null,null,null,null,null,null,null,"2020-02-11",{"$f":"IFERROR(INDEX(CycleDB!$A$2:$A$13,MATCH(E32,CycleDB!$B$2:$B$13,1),1),\"\")","v":""}]
[null,null,null,null,null,null,null,null,null,null,null,null,null,null,null,null,null,null,null,null,null,null,null,null,null,null,null,null,null,null,null,null,null,null,null,null,null,null,null,null,null,null,null,null,null,null,null,null,null,null,null,null,null,null,null,null,null,null,null,null,null,null,null,null,null,null,null,null,null,null,null,null,null,null,null,null,null,"2020-02-16",{"$f":"IFERROR(INDEX(CycleDB!$A$2:$A$13,MATCH(E33,CycleDB!$B$2:$B$13,1),1),\"\")","v":""}]
[null,null,null,null,null,null,null,null,null,null,null,null,null,null,null,null,null,null,null,null,null,null,null,null,null,null,null,null,null,null,null,null,null,null,null,null,null,null,null,null,null,null,null,null,null,null,null,null,null,null,null,null,null,null,null,null,null,null,null,null,null,null,null,null,null,null,null,null,null,null,null,null,null,null,null,null,null,"2020-02-21",{"$f":"IFERROR(INDEX(CycleDB!$A$2:$A$13,MATCH(E34,CycleDB!$B$2:$B$13,1),1),\"\")","v":""}]
[null,null,null,null,null,null,null,null,null,null,null,null,null,null,null,null,null,null,null,null,null,null,null,null,null,null,null,null,null,null,null,null,null,null,null,null,null,null,null,null,null,null,null,null,null,null,null,null,null,null,null,null,null,null,null,null,null,null,null,null,null,null,null,null,null,null,null,null,null,null,null,null,null,null,null,null,null,"2020-02-26",{"$f":"IFERROR(INDEX(CycleDB!$A$2:$A$13,MATCH(E35,CycleDB!$B$2:$B$13,1),1),\"\")","v":""}]
[null,null,null,null,null,null,null,null,null,null,null,null,null,null,null,null,null,null,null,null,null,null,null,null,null,null,null,null,null,null,null,null,null,null,null,null,null,null,null,null,null,null,null,null,null,null,null,null,null,null,null,null,null,null,null,null,null,null,null,null,null,null,null,null,null,null,null,null,null,null,null,null,null,null,null,null,null,"2020-03-02",{"$f":"IFERROR(INDEX(CycleDB!$A$2:$A$13,MATCH(E36,CycleDB!$B$2:$B$13,1),1),\"\")","v":""}]
[null,null,null,null,null,null,null,null,null,null,null,null,null,null,null,null,null,null,null,null,null,null,null,null,null,null,null,null,null,null,null,null,null,null,null,null,null,null,null,null,null,null,null,null,null,null,null,null,null,null,null,null,null,null,null,null,null,null,null,null,null,null,null,null,null,null,null,null,null,null,null,null,null,null,null,null,null,"2020-03-07",{"$f":"IFERROR(INDEX(CycleDB!$A$2:$A$13,MATCH(E37,CycleDB!$B$2:$B$13,1),1),\"\")","v":""}]
[null,null,null,null,null,null,null,null,null,null,null,null,null,null,null,null,null,null,null,null,null,null,null,null,null,null,null,null,null,null,null,null,null,null,null,null,null,null,null,null,null,null,null,null,null,null,null,null,null,null,null,null,null,null,null,null,null,null,null,null,null,null,null,null,null,null,null,null,null,null,null,null,null,null,null,null,null,"2020-03-17",{"$f":"IFERROR(INDEX(CycleDB!$A$2:$A$13,MATCH(E38,CycleDB!$B$2:$B$13,1),1),\"\")","v":""}]
[null,null,null,null,null,null,null,null,null,null,null,null,null,null,null,null,null,null,null,null,null,null,null,null,null,null,null,null,null,null,null,null,null,null,null,null,null,null,null,null,null,null,null,null,null,null,null,null,null,null,null,null,null,null,null,null,null,null,null,null,null,null,null,null,null,null,null,null,null,null,null,null,null,null,null,null,null,"2020-03-27",{"$f":"IFERROR(INDEX(CycleDB!$A$2:$A$13,MATCH(E39,CycleDB!$B$2:$B$13,1),1),\"\")","v":""}]
[null,null,null,null,null,null,null,null,null,null,null,null,null,null,null,null,null,null,null,null,null,null,null,null,null,null,null,null,null,null,null,null,null,null,null,null,null,null,null,null,null,null,null,null,null,null,null,null,null,null,null,null,null,null,null,null,null,null,null,null,null,null,null,null,null,null,null,null,null,null,null,null,null,null,null,null,null,"2020-04-01",{"$f":"IFERROR(INDEX(CycleDB!$A$2:$A$13,MATCH(E40,CycleDB!$B$2:$B$13,1),1),\"\")","v":""}]
[null,null,null,null,null,null,null,null,null,null,null,null,null,null,null,null,null,null,null,null,null,null,null,null,null,null,null,null,null,null,null,null,null,null,null,null,null,null,null,null,null,null,null,null,null,null,null,null,null,null,null,null,null,null,null,null,null,null,null,null,null,null,null,null,null,null,null,null,null,null,null,null,null,null,null,null,null,"2020-04-06",{"$f":"IFERROR(INDEX(CycleDB!$A$2:$A$13,MATCH(E41,CycleDB!$B$2:$B$13,1),1),\"\")","v":""}]
[null,null,null,null,null,null,null,null,null,null,null,null,null,null,null,null,null,null,null,null,null,null,null,null,null,null,null,null,null,null,null,null,null,null,null,null,null,null,null,null,null,null,null,null,null,null,null,null,null,null,null,null,null,null,null,null,null,null,null,null,null,null,null,null,null,null,null,null,null,null,null,null,null,null,null,null,null,"2020-04-16",{"$f":"IFERROR(INDEX(CycleDB!$A$2:$A$13,MATCH(E42,CycleDB!$B$2:$B$13,1),1),\"\")","v":""}]
[null,null,null,null,null,null,null,null,null,null,null,null,null,null,null,null,null,null,null,null,null,null,null,null,null,null,null,null,null,null,null,null,null,null,null,null,null,null,null,null,null,null,null,null,null,null,null,null,null,null,null,null,null,null,null,null,null,null,null,null,null,null,null,null,null,null,null,null,null,null,null,null,null,null,null,null,null,"2020-04-21",{"$f":"IFERROR(INDEX(CycleDB!$A$2:$A$13,MATCH(E43,CycleDB!$B$2:$B$13,1),1),\"\")","v":""}]
[null,null,null,null,null,null,null,null,null,null,null,null,null,null,null,null,null,null,null,null,null,null,null,null,null,null,null,null,null,null,null,null,null,null,null,null,null,null,null,null,null,null,null,null,null,null,null,null,null,null,null,null,null,null,null,null,null,null,null,null,null,null,null,null,null,null,null,null,null,null,null,null,null,null,null,null,null,"2020-04-26",{"$f":"IFERROR(INDEX(CycleDB!$A$2:$A$13,MATCH(E44,CycleDB!$B$2:$B$13,1),1),\"\")","v":""}]
[null,null,null,null,null,null,null,null,null,null,null,null,null,null,null,null,null,null,null,null,null,null,null,null,null,null,null,null,null,null,null,null,null,null,null,null,null,null,null,null,null,null,null,null,null,null,null,null,null,null,null,null,null,null,null,null,null,null,null,null,null,null,null,null,null,null,null,null,null,null,null,null,null,null,null,null,null,"2020-05-01",{"$f":"IFERROR(INDEX(CycleDB!$A$2:$A$13,MATCH(E45,CycleDB!$B$2:$B$13,1),1),\"\")","v":""}]
[null,null,null,null,null,null,null,null,null,null,null,null,null,null,null,null,null,null,null,null,null,null,null,null,null,null,null,null,null,null,null,null,null,null,null,null,null,null,null,null,null,null,null,null,null,null,null,null,null,null,null,null,null,null,null,null,null,null,null,null,null,null,null,null,null,null,null,null,null,null,null,null,null,null,null,null,null,"2020-05-06",{"$f":"IFERROR(INDEX(CycleDB!$A$2:$A$13,MATCH(E46,CycleDB!$B$2:$B$13,1),1),\"\")","v":""}]
[null,null,null,null,null,null,null,null,null,null,null,null,null,null,null,null,null,null,null,null,null,null,null,null,null,null,null,null,null,null,null,null,null,null,null,null,null,null,null,null,null,null,null,null,null,null,null,null,null,null,null,null,null,null,null,null,null,null,null,null,null,null,null,null,null,null,null,null,null,null,null,null,null,null,null,null,null,"2020-04-26",{"$f":"IFERROR(INDEX(CycleDB!$A$2:$A$13,MATCH(E47,CycleDB!$B$2:$B$13,1),1),\"\")","v":""}]
[null,null,null,null,null,null,null,null,null,null,null,null,null,null,null,null,null,null,null,null,null,null,null,null,null,null,null,null,null,null,null,null,null,null,null,null,null,null,null,null,null,null,null,null,null,null,null,null,null,null,null,null,null,null,null,null,null,null,null,null,null,null,null,null,null,null,null,null,null,null,null,null,null,null,null,null,null,null,{"$f":"IFERROR(INDEX(CycleDB!$A$2:$A$13,MATCH(E48,CycleDB!$B$2:$B$13,1),1),\"\")","v":""}]

{"sheet":"TempCycleDB","index":11,"n_rows":1,"n_cols":28,"rows_kept":1,"cut":false,"hidden":true,"merged":[]}
["Cycle","StartDate","EndDate","SchEnrl_Schoolwide_Cycle","SchEnrl_Schoolwide_YTD","Behav_CycleHWC_Cycle","Behav_CycleHWC_YTD","Behav_CumulHWC_Cycle","Behav_CumulHWC_YTD","Behav_Schoolwide_Cycle","Behav_Schoolwide_YTD","Attend_CycleHWC_Cycle","Attend_CycleHWC_YTD","Attend_CumulHWC_Cycle","Attend_CumulHWC_YTD","Attend_Schoolwide_Cycle","Attend_Schoolwide_YTD","Achvmt_CycleHWC_Cycle","Achvmt_CycleHWC_YTD","Achvmt_CumulHWC_Cycle","Achvmt_CumulHWC_YTD","Achvmt_Schoolwide_Cycle","Achvmt_Schoolwide_YTD","GuideRef_Schoolwide_Cycle","GuideRef_Schoolwide_YTD","MntlHlthRef_Schoolwide_Cycle","MntlHlthRef_Schoolwide_YTD","LastUpdated"]

{"sheet":"CycleDB","index":12,"n_rows":13,"n_cols":28,"rows_kept":13,"cut":false,"hidden":true,"merged":[]}
["Cycle","StartDate","EndDate","SchEnrl_Schoolwide_Cycle","SchEnrl_Schoolwide_YTD","Behav_CycleHWC_Cycle","Behav_CycleHWC_YTD","Behav_CumulHWC_Cycle","Behav_CumulHWC_YTD","Behav_Schoolwide_Cycle","Behav_Schoolwide_YTD","Attend_CycleHWC_Cycle","Attend_CycleHWC_YTD","Attend_CumulHWC_Cycle","Attend_CumulHWC_YTD","Attend_Schoolwide_Cycle","Attend_Schoolwide_YTD","Achvmt_CycleHWC_Cycle","Achvmt_CycleHWC_YTD","Achvmt_CumulHWC_Cycle","Achvmt_CumulHWC_YTD","Achvmt_Schoolwide_Cycle","Achvmt_Schoolwide_YTD","GuideRef_CumulHWC_Cycle","GuideRef_CumulHWC_YTD","MntlHlthRef_CumulHWC_Cycle","MntlHlthRef_CumulHWC_YTD","LastUpdated"]
["Summer"]
["Cycle 1"]
["Cycle 2"]
["Cycle 3"]
["Cycle 4"]
["Cycle 5"]
["Cycle 6"]
["Cycle 7"]
["Cycle 8"]
["Cycle 9"]
["Cycle 10"]
["Cycle 11"]

{"sheet":"output_calc","index":13,"n_rows":125,"n_cols":40,"rows_kept":125,"cut":false,"hidden":true,"merged":[[0,34,1,34],[100,0,111,0],[2,0,11,0],[16,0,25,0],[31,0,40,0],[43,0,52,0],[71,0,82,0],[84,0,95,0],[55,0,59,0],[62,0,68,0],[2,37,5,37],[7,37,10,37],[16,37,19,37],[21,37,24,37],[114,0,125,0],[77,37,80,37],[100,37,103,37],[106,37,109,37],[31,37,34,37],[36,37,39,37],[43,37,46,37],[48,37,51,37],[71,37,74,37],[2,39,5,39],[7,39,10,39],[16,39,19,39],[21,39,24,39],[31,39,34,39],[119,39,122,39],[84,39,87,39],[89,39,92,39],[114,39,117,39],[36,39,39,39],[43,39,46,39],[48,39,51,39]]}
[{"$f":"'Implementation Data Dashboard'!I4","v":"Cycle 1"},null,1,2,3,4,5,6,7,8,9,10,11,12,null,null,null,null,null,null,null,null,null,null,null,null,null,null,null,null,null,null,null,null,"THIS CYCLE"]
[]
["Notices","Number of HWC Notices: Year to Current Cycle","Summer","Cycle 1","Cycle 2","Cycle 3","Cycle 4","Cycle 5","Cycle 6","Cycle 7","Cycle 8","Cycle 9","Cycle 10","Cycle 11",null,null,null,null,null,null,null,null,null,null,null,null,null,null,null,null,null,null,null,{"$f":"SUBSTITUTE(B3,\"Cumulative\",\"Year to This Cycle\")","v":"Number of HWC Notices: Year to Current Cycle"},{"$f":"$A$1","v":"Cycle 1"},null,null,"Implementation Data Dashboard\nM9:M11\n# HWC Notices Year to Cycle [Cumul]",null,"A\n\nYtD"]
[null,"For students with only one (1) HWC notice so far this school year",{"$f":"IF(ISERROR(HLOOKUP($A$1,C3:$N3,1,FALSE)),#N/A,SUM(Lookups!BO$6:BO$9999)-C5)","v":0},{"$f":"IF(ISERROR(HLOOKUP($A$1,D3:$N3,1,FALSE)),#N/A,SUM(Lookups!BP$6:BP$9999)-D5)","v":0},{"$f":"IF(ISERROR(HLOOKUP($A$1,E3:$N3,1,FALSE)),#N/A,SUM(Lookups!BQ$6:BQ$9999)-E5)","v":{"$error":"#N/A"}},{"$f":"IF(ISERROR(HLOOKUP($A$1,F3:$N3,1,FALSE)),#N/A,SUM(Lookups!BR$6:BR$9999)-F5)","v":{"$error":"#N/A"}},{"$f":"IF(ISERROR(HLOOKUP($A$1,G3:$N3,1,FALSE)),#N/A,SUM(Lookups!BS$6:BS$9999)-G5)","v":{"$error":"#N/A"}},{"$f":"IF(ISERROR(HLOOKUP($A$1,H3:$N3,1,FALSE)),#N/A,SUM(Lookups!BT$6:BT$9999)-H5)","v":{"$error":"#N/A"}},{"$f":"IF(ISERROR(HLOOKUP($A$1,I3:$N3,1,FALSE)),#N/A,SUM(Lookups!BU$6:BU$9999)-I5)","v":{"$error":"#N/A"}},{"$f":"IF(ISERROR(HLOOKUP($A$1,J3:$N3,1,FALSE)),#N/A,SUM(Lookups!BV$6:BV$9999)-J5)","v":{"$error":"#N/A"}},{"$f":"IF(ISERROR(HLOOKUP($A$1,K3:$N3,1,FALSE)),#N/A,SUM(Lookups!BW$6:BW$9999)-K5)","v":{"$error":"#N/A"}},{"$f":"IF(ISERROR(HLOOKUP($A$1,L3:$N3,1,FALSE)),#N/A,SUM(Lookups!BX$6:BX$9999)-L5)","v":{"$error":"#N/A"}},{"$f":"IF(ISERROR(HLOOKUP($A$1,M3:$N3,1,FALSE)),#N/A,SUM(Lookups!BY$6:BY$9999)-M5)","v":{"$error":"#N/A"}},{"$f":"IF(ISERROR(HLOOKUP($A$1,N3:$N3,1,FALSE)),#N/A,SUM(Lookups!BZ$6:BZ$9999)-N5)","v":{"$error":"#N/A"}},null,null,null,null,null,null,null,null,null,null,null,null,null,null,null,null,null,null,null,{"$f":"B4","v":"For students with only one (1) HWC notice so far this school year"},{"$f":"HLOOKUP(AI3,C3:AF4,2,FALSE)","v":0},null,"7/1/21 CH fixed"]
[null,"For students with two (2) or more HWC notices so far this school year",{"$f":"IF(ISERROR(HLOOKUP($A$1,C3:$N3,1,FALSE)),#N/A,SUMIFS(Lookups!BO$6:BO$9999,Lookups!BO$6:BO$9999,\">\"&1))","v":0},{"$f":"IF(ISERROR(HLOOKUP($A$1,D3:$N3,1,FALSE)),#N/A,SUMIFS(Lookups!BP$6:BP$9999,Lookups!BP$6:BP$9999,\">\"&1))","v":0},{"$f":"IF(ISERROR(HLOOKUP($A$1,E3:$N3,1,FALSE)),#N/A,SUMIFS(Lookups!BQ$6:BQ$9999,Lookups!BQ$6:BQ$9999,\">\"&1))","v":{"$error":"#N/A"}},{"$f":"IF(ISERROR(HLOOKUP($A$1,F3:$N3,1,FALSE)),#N/A,SUMIFS(Lookups!BR$6:BR$9999,Lookups!BR$6:BR$9999,\">\"&1))","v":{"$error":"#N/A"}},{"$f":"IF(ISERROR(HLOOKUP($A$1,G3:$N3,1,FALSE)),#N/A,SUMIFS(Lookups!BS$6:BS$9999,Lookups!BS$6:BS$9999,\">\"&1))","v":{"$error":"#N/A"}},{"$f":"IF(ISERROR(HLOOKUP($A$1,H3:$N3,1,FALSE)),#N/A,SUMIFS(Lookups!BT$6:BT$9999,Lookups!BT$6:BT$9999,\">\"&1))","v":{"$error":"#N/A"}},{"$f":"IF(ISERROR(HLOOKUP($A$1,I3:$N3,1,FALSE)),#N/A,SUMIFS(Lookups!BU$6:BU$9999,Lookups!BU$6:BU$9999,\">\"&1))","v":{"$error":"#N/A"}},{"$f":"IF(ISERROR(HLOOKUP($A$1,J3:$N3,1,FALSE)),#N/A,SUMIFS(Lookups!BV$6:BV$9999,Lookups!BV$6:BV$9999,\">\"&1))","v":{"$error":"#N/A"}},{"$f":"IF(ISERROR(HLOOKUP($A$1,K3:$N3,1,FALSE)),#N/A,SUMIFS(Lookups!BW$6:BW$9999,Lookups!BW$6:BW$9999,\">\"&1))","v":{"$error":"#N/A"}},{"$f":"IF(ISERROR(HLOOKUP($A$1,L3:$N3,1,FALSE)),#N/A,SUMIFS(Lookups!BX$6:BX$9999,Lookups!BX$6:BX$9999,\">\"&1))","v":{"$error":"#N/A"}},{"$f":"IF(ISERROR(HLOOKUP($A$1,M3:$N3,1,FALSE)),#N/A,SUMIFS(Lookups!BY$6:BY$9999,Lookups!BY$6:BY$9999,\">\"&1))","v":{"$error":"#N/A"}},{"$f":"IF(ISERROR(HLOOKUP($A$1,N3:$N3,1,FALSE)),#N/A,SUMIFS(Lookups!BZ$6:BZ$9999,Lookups!BZ$6:BZ$9999,\">\"&1))","v":{"$error":"#N/A"}},null,null,null,null,null,null,null,null,null,null,null,null,null,null,null,null,null,null,null,{"$f":"B5","v":"For students with two (2) or more HWC notices so far this school year"},{"$f":"HLOOKUP(AI3,C3:AF5,3,FALSE)","v":0},null,"7/1/21 CH fixed"]
[null,"Total",{"$f":"IF(ISERROR(HLOOKUP($A$1,C3:$AF3,1,FALSE)),#N/A,C4+C5)","v":0},{"$f":"IF(ISERROR(HLOOKUP($A$1,D3:$AF3,1,FALSE)),#N/A,D4+D5)","v":0},{"$f":"IF(ISERROR(HLOOKUP($A$1,E3:$AF3,1,FALSE)),#N/A,E4+E5)","v":{"$error":"#N/A"}},{"$f":"IF(ISERROR(HLOOKUP($A$1,F3:$AF3,1,FALSE)),#N/A,F4+F5)","v":{"$error":"#N/A"}},{"$f":"IF(ISERROR(HLOOKUP($A$1,G3:$AF3,1,FALSE)),#N/A,G4+G5)","v":{"$error":"#N/A"}},{"$f":"IF(ISERROR(HLOOKUP($A$1,H3:$AF3,1,FALSE)),#N/A,H4+H5)","v":{"$error":"#N/A"}},{"$f":"IF(ISERROR(HLOOKUP($A$1,I3:$AF3,1,FALSE)),#N/A,I4+I5)","v":{"$error":"#N/A"}},{"$f":"IF(ISERROR(HLOOKUP($A$1,J3:$AF3,1,FALSE)),#N/A,J4+J5)","v":{"$error":"#N/A"}},{"$f":"IF(ISERROR(HLOOKUP($A$1,K3:$AF3,1,FALSE)),#N/A,K4+K5)","v":{"$error":"#N/A"}},{"$f":"IF(ISERROR(HLOOKUP($A$1,L3:$AF3,1,FALSE)),#N/A,L4+L5)","v":{"$error":"#N/A"}},{"$f":"IF(ISERROR(HLOOKUP($A$1,M3:$AF3,1,FALSE)),#N/A,M4+M5)","v":{"$error":"#N/A"}},{"$f":"IF(ISERROR(HLOOKUP($A$1,N3:$AF3,1,FALSE)),#N/A,N4+N5)","v":{"$error":"#N/A"}}]
[null,"FOR GRAPH README: Involving students with 1 HWC Notice",{"$f":"IF(ISERROR(C4),\"\",C4)","v":0},{"$f":"IF(ISERROR(D4),\"\",D4)","v":0},"","","","","","","","","",""]
[null,"Number of HWC Notices: All Cycles (to Current)","Summer","Cycle 1","Cycle 2","Cycle 3","Cycle 4","Cycle 5","Cycle 6","Cycle 7","Cycle 8","Cycle 9","Cycle 10","Cycle 11",null,null,null,null,null,null,null,null,null,null,null,null,null,null,null,null,null,null,null,{"$f":"SUBSTITUTE(B8,\"All Cycles (to Current)\",\"This Cycle\")","v":"Number of HWC Notices: This Cycle"},{"$f":"$A$1","v":"Cycle 1"},null,null,"Implementation Data Dashboard\nJ9:J11\n# HWC Notices This Cycle [This]",null,"A\n\nThis\nEach"]
[null,"For students with only one (1) HWC notice this cycle",{"$f":"IF(ISERROR(HLOOKUP($A$1,C8:$N8,1,FALSE)),#N/A,SUMIFS(Lookups!AE$6:AE$9999,Lookups!AE$6:AE$9999,1))","v":0},{"$f":"IF(ISERROR(HLOOKUP($A$1,D8:$N8,1,FALSE)),#N/A,SUMIFS(Lookups!AF$6:AF$9999,Lookups!AF$6:AF$9999,1))","v":0},{"$f":"IF(ISERROR(HLOOKUP($A$1,E8:$N8,1,FALSE)),#N/A,SUMIFS(Lookups!AG$6:AG$9999,Lookups!AG$6:AG$9999,1))","v":{"$error":"#N/A"}},{"$f":"IF(ISERROR(HLOOKUP($A$1,F8:$N8,1,FALSE)),#N/A,SUMIFS(Lookups!AH$6:AH$9999,Lookups!AH$6:AH$9999,1))","v":{"$error":"#N/A"}},{"$f":"IF(ISERROR(HLOOKUP($A$1,G8:$N8,1,FALSE)),#N/A,SUMIFS(Lookups!AI$6:AI$9999,Lookups!AI$6:AI$9999,1))","v":{"$error":"#N/A"}},{"$f":"IF(ISERROR(HLOOKUP($A$1,H8:$N8,1,FALSE)),#N/A,SUMIFS(Lookups!AJ$6:AJ$9999,Lookups!AJ$6:AJ$9999,1))","v":{"$error":"#N/A"}},{"$f":"IF(ISERROR(HLOOKUP($A$1,I8:$N8,1,FALSE)),#N/A,SUMIFS(Lookups!AK$6:AK$9999,Lookups!AK$6:AK$9999,1))","v":{"$error":"#N/A"}},{"$f":"IF(ISERROR(HLOOKUP($A$1,J8:$N8,1,FALSE)),#N/A,SUMIFS(Lookups!AL$6:AL$9999,Lookups!AL$6:AL$9999,1))","v":{"$error":"#N/A"}},{"$f":"IF(ISERROR(HLOOKUP($A$1,K8:$N8,1,FALSE)),#N/A,SUMIFS(Lookups!AM$6:AM$9999,Lookups!AM$6:AM$9999,1))","v":{"$error":"#N/A"}},{"$f":"IF(ISERROR(HLOOKUP($A$1,L8:$N8,1,FALSE)),#N/A,SUMIFS(Lookups!AN$6:AN$9999,Lookups!AN$6:AN$9999,1))","v":{"$error":"#N/A"}},{"$f":"IF(ISERROR(HLOOKUP($A$1,M8:$N8,1,FALSE)),#N/A,SUMIFS(Lookups!AO$6:AO$9999,Lookups!AO$6:AO$9999,1))","v":{"$error":"#N/A"}},{"$f":"IF(ISERROR(HLOOKUP($A$1,N8:$N8,1,FALSE)),#N/A,SUMIFS(Lookups!AP$6:AP$9999,Lookups!AP$6:AP$9999,1))","v":{"$error":"#N/A"}},null,null,null,null,null,null,null,null,null,null,null,null,null,null,null,null,null,null,null,{"$f":"B9","v":"For students with only one (1) HWC notice this cycle"},{"$f":"HLOOKUP(AI8,C8:AF9,2,FALSE)","v":0},null,"7/1/21 CH fixed"]
[null,"For students with two (2) or more HWC notices this cycle",{"$f":"IF(ISERROR(HLOOKUP($A$1,C8:$N8,1,FALSE)),#N/A,SUMIFS(Lookups!AE$6:AE$9999,Lookups!AE$6:AE$9999,\">\"&1))","v":0},{"$f":"IF(ISERROR(HLOOKUP($A$1,D8:$N8,1,FALSE)),#N/A,SUMIFS(Lookups!AF$6:AF$9999,Lookups!AF$6:AF$9999,\">\"&1))","v":0},{"$f":"IF(ISERROR(HLOOKUP($A$1,E8:$N8,1,FALSE)),#N/A,SUMIFS(Lookups!AG$6:AG$9999,Lookups!AG$6:AG$9999,\">\"&1))","v":{"$error":"#N/A"}},{"$f":"IF(ISERROR(HLOOKUP($A$1,F8:$N8,1,FALSE)),#N/A,SUMIFS(Lookups!AH$6:AH$9999,Lookups!AH$6:AH$9999,\">\"&1))","v":{"$error":"#N/A"}},{"$f":"IF(ISERROR(HLOOKUP($A$1,G8:$N8,1,FALSE)),#N/A,SUMIFS(Lookups!AI$6:AI$9999,Lookups!AI$6:AI$9999,\">\"&1))","v":{"$error":"#N/A"}},{"$f":"IF(ISERROR(HLOOKUP($A$1,H8:$N8,1,FALSE)),#N/A,SUMIFS(Lookups!AJ$6:AJ$9999,Lookups!AJ$6:AJ$9999,\">\"&1))","v":{"$error":"#N/A"}},{"$f":"IF(ISERROR(HLOOKUP($A$1,I8:$N8,1,FALSE)),#N/A,SUMIFS(Lookups!AK$6:AK$9999,Lookups!AK$6:AK$9999,\">\"&1))","v":{"$error":"#N/A"}},{"$f":"IF(ISERROR(HLOOKUP($A$1,J8:$N8,1,FALSE)),#N/A,SUMIFS(Lookups!AL$6:AL$9999,Lookups!AL$6:AL$9999,\">\"&1))","v":{"$error":"#N/A"}},{"$f":"IF(ISERROR(HLOOKUP($A$1,K8:$N8,1,FALSE)),#N/A,SUMIFS(Lookups!AM$6:AM$9999,Lookups!AM$6:AM$9999,\">\"&1))","v":{"$error":"#N/A"}},{"$f":"IF(ISERROR(HLOOKUP($A$1,L8:$N8,1,FALSE)),#N/A,SUMIFS(Lookups!AN$6:AN$9999,Lookups!AN$6:AN$9999,\">\"&1))","v":{"$error":"#N/A"}},{"$f":"IF(ISERROR(HLOOKUP($A$1,M8:$N8,1,FALSE)),#N/A,SUMIFS(Lookups!AO$6:AO$9999,Lookups!AO$6:AO$9999,\">\"&1))","v":{"$error":"#N/A"}},{"$f":"IF(ISERROR(HLOOKUP($A$1,N8:$N8,1,FALSE)),#N/A,SUMIFS(Lookups!AP$6:AP$9999,Lookups!AP$6:AP$9999,\">\"&1))","v":{"$error":"#N/A"}},null,null,null,null,null,null,null,null,null,null,null,null,null,null,null,null,null,null,null,"For students with two (2) or more HWC notices this cycle",{"$f":"HLOOKUP(AI8,C8:AF10,3,FALSE)","v":0},null,"7/1/21 CH fixed"]
[null,"Total",{"$f":"IF(ISERROR(HLOOKUP($A$1,C8:$AF8,1,FALSE)),#N/A,C9+C10)","v":0},{"$f":"IF(ISERROR(HLOOKUP($A$1,D8:$AF8,1,FALSE)),#N/A,D9+D10)","v":0},{"$f":"IF(ISERROR(HLOOKUP($A$1,E8:$AF8,1,FALSE)),#N/A,E9+E10)","v":{"$error":"#N/A"}},{"$f":"IF(ISERROR(HLOOKUP($A$1,F8:$AF8,1,FALSE)),#N/A,F9+F10)","v":{"$error":"#N/A"}},{"$f":"IF(ISERROR(HLOOKUP($A$1,G8:$AF8,1,FALSE)),#N/A,G9+G10)","v":{"$error":"#N/A"}},{"$f":"IF(ISERROR(HLOOKUP($A$1,H8:$AF8,1,FALSE)),#N/A,H9+H10)","v":{"$error":"#N/A"}},{"$f":"IF(ISERROR(HLOOKUP($A$1,I8:$AF8,1,FALSE)),#N/A,I9+I10)","v":{"$error":"#N/A"}},{"$f":"IF(ISERROR(HLOOKUP($A$1,J8:$AF8,1,FALSE)),#N/A,J9+J10)","v":{"$error":"#N/A"}},{"$f":"IF(ISERROR(HLOOKUP($A$1,K8:$AF8,1,FALSE)),#N/A,K9+K10)","v":{"$error":"#N/A"}},{"$f":"IF(ISERROR(HLOOKUP($A$1,L8:$AF8,1,FALSE)),#N/A,L9+L10)","v":{"$error":"#N/A"}},{"$f":"IF(ISERROR(HLOOKUP($A$1,M8:$AF8,1,FALSE)),#N/A,M9+M10)","v":{"$error":"#N/A"}},{"$f":"IF(ISERROR(HLOOKUP($A$1,N8:$AF8,1,FALSE)),#N/A,N9+N10)","v":{"$error":"#N/A"}}]
[]
[]
[]
[]
[]
["Students","Number of Students Identified for HWC Support: Year to Current Cycle","Summer","Cycle 1","Cycle 2","Cycle 3","Cycle 4","Cycle 5","Cycle 6","Cycle 7","Cycle 8","Cycle 9","Cycle 10","Cycle 11",null,null,null,null,null,null,null,null,null,null,null,null,null,null,null,null,null,null,null,{"$f":"SUBSTITUTE(B17,\"Cumulative\",\"Year to This Cycle\")","v":"Number of Students Identified for HWC Support: Year to Current Cycle"},{"$f":"$A$1","v":"Cycle 1"},null,null,"Implementation Data Dashboard\nM27:M29\n# HWC Students Year to Cycle [Cumul]",null,"B\n\nYtD"]
[null,"With only one (1) HWC notice so far this school year",{"$f":"COUNT(Lookups!BO$6:BO$9999)-COUNTIFS(Lookups!BO$6:BO$9999,0)-C19","v":0},{"$f":"COUNT(Lookups!BP$6:BP$9999)-COUNTIFS(Lookups!BP$6:BP$9999,0)-D19","v":0},{"$f":"COUNT(Lookups!BQ$6:BQ$9999)-COUNTIFS(Lookups!BQ$6:BQ$9999,0)-E19","v":{"$error":"#N/A"}},{"$f":"COUNT(Lookups!BR$6:BR$9999)-COUNTIFS(Lookups!BR$6:BR$9999,0)-F19","v":{"$error":"#N/A"}},{"$f":"COUNT(Lookups!BS$6:BS$9999)-COUNTIFS(Lookups!BS$6:BS$9999,0)-G19","v":{"$error":"#N/A"}},{"$f":"COUNT(Lookups!BT$6:BT$9999)-COUNTIFS(Lookups!BT$6:BT$9999,0)-H19","v":{"$error":"#N/A"}},{"$f":"COUNT(Lookups!BU$6:BU$9999)-COUNTIFS(Lookups!BU$6:BU$9999,0)-I19","v":{"$error":"#N/A"}},{"$f":"COUNT(Lookups!BV$6:BV$9999)-COUNTIFS(Lookups!BV$6:BV$9999,0)-J19","v":{"$error":"#N/A"}},{"$f":"COUNT(Lookups!BW$6:BW$9999)-COUNTIFS(Lookups!BW$6:BW$9999,0)-K19","v":{"$error":"#N/A"}},{"$f":"COUNT(Lookups!BX$6:BX$9999)-COUNTIFS(Lookups!BX$6:BX$9999,0)-L19","v":{"$error":"#N/A"}},{"$f":"COUNT(Lookups!BY$6:BY$9999)-COUNTIFS(Lookups!BY$6:BY$9999,0)-M19","v":{"$error":"#N/A"}},{"$f":"COUNT(Lookups!BZ$6:BZ$9999)-COUNTIFS(Lookups!BZ$6:BZ$9999,0)-N19","v":{"$error":"#N/A"}},null,null,null,null,null,null,null,null,null,null,null,null,null,null,null,null,null,null,null,{"$f":"B18","v":"With only one (1) HWC notice so far this school year"},{"$f":"HLOOKUP(AI17,C17:AF18,2,FALSE)","v":0},null,"7/1/21 CH fixed"]
[null,"With two (2) or more HWC notices so far this school year",{"$f":"IF(ISERROR(HLOOKUP($A$1,C17:$AF17,1,FALSE)),#N/A,COUNTIFS(Lookups!BO$6:BO$9999,\">\"&1))","v":0},{"$f":"IF(ISERROR(HLOOKUP($A$1,D17:$AF17,1,FALSE)),#N/A,COUNTIFS(Lookups!BP$6:BP$9999,\">\"&1))","v":0},{"$f":"IF(ISERROR(HLOOKUP($A$1,E17:$AF17,1,FALSE)),#N/A,COUNTIFS(Lookups!BQ$6:BQ$9999,\">\"&1))","v":{"$error":"#N/A"}},{"$f":"IF(ISERROR(HLOOKUP($A$1,F17:$AF17,1,FALSE)),#N/A,COUNTIFS(Lookups!BR$6:BR$9999,\">\"&1))","v":{"$error":"#N/A"}},{"$f":"IF(ISERROR(HLOOKUP($A$1,G17:$AF17,1,FALSE)),#N/A,COUNTIFS(Lookups!BS$6:BS$9999,\">\"&1))","v":{"$error":"#N/A"}},{"$f":"IF(ISERROR(HLOOKUP($A$1,H17:$AF17,1,FALSE)),#N/A,COUNTIFS(Lookups!BT$6:BT$9999,\">\"&1))","v":{"$error":"#N/A"}},{"$f":"IF(ISERROR(HLOOKUP($A$1,I17:$AF17,1,FALSE)),#N/A,COUNTIFS(Lookups!BU$6:BU$9999,\">\"&1))","v":{"$error":"#N/A"}},{"$f":"IF(ISERROR(HLOOKUP($A$1,J17:$AF17,1,FALSE)),#N/A,COUNTIFS(Lookups!BV$6:BV$9999,\">\"&1))","v":{"$error":"#N/A"}},{"$f":"IF(ISERROR(HLOOKUP($A$1,K17:$AF17,1,FALSE)),#N/A,COUNTIFS(Lookups!BW$6:BW$9999,\">\"&1))","v":{"$error":"#N/A"}},{"$f":"IF(ISERROR(HLOOKUP($A$1,L17:$AF17,1,FALSE)),#N/A,COUNTIFS(Lookups!BX$6:BX$9999,\">\"&1))","v":{"$error":"#N/A"}},{"$f":"IF(ISERROR(HLOOKUP($A$1,M17:$AF17,1,FALSE)),#N/A,COUNTIFS(Lookups!BY$6:BY$9999,\">\"&1))","v":{"$error":"#N/A"}},{"$f":"IF(ISERROR(HLOOKUP($A$1,N17:$AF17,1,FALSE)),#N/A,COUNTIFS(Lookups!BZ$6:BZ$9999,\">\"&1))","v":{"$error":"#N/A"}},null,null,null,null,null,null,null,null,null,null,null,null,null,null,null,null,null,null,null,"With two (2) or more HWC notices so far this school year",{"$f":"HLOOKUP(AI17,C17:AF19,3,FALSE)","v":0},null,"7/1/21 CH fixed"]
[null,"Total",{"$f":"IF(ISERROR(HLOOKUP($A$1,C17:$AF17,1,FALSE)),#N/A,C18+C19)","v":0},{"$f":"IF(ISERROR(HLOOKUP($A$1,D17:$AF17,1,FALSE)),#N/A,D18+D19)","v":0},{"$f":"IF(ISERROR(HLOOKUP($A$1,E17:$AF17,1,FALSE)),#N/A,E18+E19)","v":{"$error":"#N/A"}},{"$f":"IF(ISERROR(HLOOKUP($A$1,F17:$AF17,1,FALSE)),#N/A,F18+F19)","v":{"$error":"#N/A"}},{"$f":"IF(ISERROR(HLOOKUP($A$1,G17:$AF17,1,FALSE)),#N/A,G18+G19)","v":{"$error":"#N/A"}},{"$f":"IF(ISERROR(HLOOKUP($A$1,H17:$AF17,1,FALSE)),#N/A,H18+H19)","v":{"$error":"#N/A"}},{"$f":"IF(ISERROR(HLOOKUP($A$1,I17:$AF17,1,FALSE)),#N/A,I18+I19)","v":{"$error":"#N/A"}},{"$f":"IF(ISERROR(HLOOKUP($A$1,J17:$AF17,1,FALSE)),#N/A,J18+J19)","v":{"$error":"#N/A"}},{"$f":"IF(ISERROR(HLOOKUP($A$1,K17:$AF17,1,FALSE)),#N/A,K18+K19)","v":{"$error":"#N/A"}},{"$f":"IF(ISERROR(HLOOKUP($A$1,L17:$AF17,1,FALSE)),#N/A,L18+L19)","v":{"$error":"#N/A"}},{"$f":"IF(ISERROR(HLOOKUP($A$1,M17:$AF17,1,FALSE)),#N/A,M18+M19)","v":{"$error":"#N/A"}},{"$f":"IF(ISERROR(HLOOKUP($A$1,N17:$AF17,1,FALSE)),#N/A,N18+N19)","v":{"$error":"#N/A"}}]
[null,"FOR GRAPH README: With only 1 HWC Notice",{"$f":"IF(ISERROR(C18),\"\",C18)","v":0},{"$f":"IF(ISERROR(D18),\"\",D18)","v":0},"","","","","","","","","",""]
[null,"Number of Students Identified for HWC Support: All Cycles (to Current)","Summer","Cycle 1","Cycle 2","Cycle 3","Cycle 4","Cycle 5","Cycle 6","Cycle 7","Cycle 8","Cycle 9","Cycle 10","Cycle 11",null,null,null,null,null,null,null,null,null,null,null,null,null,null,null,null,null,null,null,{"$f":"SUBSTITUTE(B22,\"All Cycles (to Current)\",\"This Cycle\")","v":"Number of Students Identified for HWC Support: This Cycle"},{"$f":"$A$1","v":"Cycle 1"},null,null,"Implementation Data Dashboard\nJ27:J29\n# HWC Students This Cycle [This]",null,"B\n\nThis\nEach"]
[null,"With only one (1) HWC notice this cycle",{"$f":"IF(ISERROR(HLOOKUP($A$1,C22:$AF22,1,FALSE)),#N/A,COUNTIFS(Lookups!AE$6:AE$9999,1))","v":0},{"$f":"IF(ISERROR(HLOOKUP($A$1,D22:$AF22,1,FALSE)),#N/A,COUNTIFS(Lookups!AF$6:AF$9999,1))","v":0},{"$f":"IF(ISERROR(HLOOKUP($A$1,E22:$AF22,1,FALSE)),#N/A,COUNTIFS(Lookups!AG$6:AG$9999,1))","v":{"$error":"#N/A"}},{"$f":"IF(ISERROR(HLOOKUP($A$1,F22:$AF22,1,FALSE)),#N/A,COUNTIFS(Lookups!AH$6:AH$9999,1))","v":{"$error":"#N/A"}},{"$f":"IF(ISERROR(HLOOKUP($A$1,G22:$AF22,1,FALSE)),#N/A,COUNTIFS(Lookups!AI$6:AI$9999,1))","v":{"$error":"#N/A"}},{"$f":"IF(ISERROR(HLOOKUP($A$1,H22:$AF22,1,FALSE)),#N/A,COUNTIFS(Lookups!AJ$6:AJ$9999,1))","v":{"$error":"#N/A"}},{"$f":"IF(ISERROR(HLOOKUP($A$1,I22:$AF22,1,FALSE)),#N/A,COUNTIFS(Lookups!AK$6:AK$9999,1))","v":{"$error":"#N/A"}},{"$f":"IF(ISERROR(HLOOKUP($A$1,J22:$AF22,1,FALSE)),#N/A,COUNTIFS(Lookups!AL$6:AL$9999,1))","v":{"$error":"#N/A"}},{"$f":"IF(ISERROR(HLOOKUP($A$1,K22:$AF22,1,FALSE)),#N/A,COUNTIFS(Lookups!AM$6:AM$9999,1))","v":{"$error":"#N/A"}},{"$f":"IF(ISERROR(HLOOKUP($A$1,L22:$AF22,1,FALSE)),#N/A,COUNTIFS(Lookups!AN$6:AN$9999,1))","v":{"$error":"#N/A"}},{"$f":"IF(ISERROR(HLOOKUP($A$1,M22:$AF22,1,FALSE)),#N/A,COUNTIFS(Lookups!AO$6:AO$9999,1))","v":{"$error":"#N/A"}},{"$f":"IF(ISERROR(HLOOKUP($A$1,N22:$AF22,1,FALSE)),#N/A,COUNTIFS(Lookups!AP$6:AP$9999,1))","v":{"$error":"#N/A"}},null,null,null,null,null,null,null,null,null,null,null,null,null,null,null,null,null,null,null,{"$f":"B23","v":"With only one (1) HWC notice this cycle"},{"$f":"HLOOKUP(AI22,C22:AF23,2,FALSE)","v":0},null,"7/1/21 CH fixed"]
[null,"With two (2) or more HWC notices this cycle",{"$f":"IF(ISERROR(HLOOKUP($A$1,C22:$AF22,1,FALSE)),#N/A,COUNTIFS(Lookups!AE$6:AE$9999,\">\"&1))","v":0},{"$f":"IF(ISERROR(HLOOKUP($A$1,D22:$AF22,1,FALSE)),#N/A,COUNTIFS(Lookups!AF$6:AF$9999,\">\"&1))","v":0},{"$f":"IF(ISERROR(HLOOKUP($A$1,E22:$AF22,1,FALSE)),#N/A,COUNTIFS(Lookups!AG$6:AG$9999,\">\"&1))","v":{"$error":"#N/A"}},{"$f":"IF(ISERROR(HLOOKUP($A$1,F22:$AF22,1,FALSE)),#N/A,COUNTIFS(Lookups!AH$6:AH$9999,\">\"&1))","v":{"$error":"#N/A"}},{"$f":"IF(ISERROR(HLOOKUP($A$1,G22:$AF22,1,FALSE)),#N/A,COUNTIFS(Lookups!AI$6:AI$9999,\">\"&1))","v":{"$error":"#N/A"}},{"$f":"IF(ISERROR(HLOOKUP($A$1,H22:$AF22,1,FALSE)),#N/A,COUNTIFS(Lookups!AJ$6:AJ$9999,\">\"&1))","v":{"$error":"#N/A"}},{"$f":"IF(ISERROR(HLOOKUP($A$1,I22:$AF22,1,FALSE)),#N/A,COUNTIFS(Lookups!AK$6:AK$9999,\">\"&1))","v":{"$error":"#N/A"}},{"$f":"IF(ISERROR(HLOOKUP($A$1,J22:$AF22,1,FALSE)),#N/A,COUNTIFS(Lookups!AL$6:AL$9999,\">\"&1))","v":{"$error":"#N/A"}},{"$f":"IF(ISERROR(HLOOKUP($A$1,K22:$AF22,1,FALSE)),#N/A,COUNTIFS(Lookups!AM$6:AM$9999,\">\"&1))","v":{"$error":"#N/A"}},{"$f":"IF(ISERROR(HLOOKUP($A$1,L22:$AF22,1,FALSE)),#N/A,COUNTIFS(Lookups!AN$6:AN$9999,\">\"&1))","v":{"$error":"#N/A"}},{"$f":"IF(ISERROR(HLOOKUP($A$1,M22:$AF22,1,FALSE)),#N/A,COUNTIFS(Lookups!AO$6:AO$9999,\">\"&1))","v":{"$error":"#N/A"}},{"$f":"IF(ISERROR(HLOOKUP($A$1,N22:$AF22,1,FALSE)),#N/A,COUNTIFS(Lookups!AP$6:AP$9999,\">\"&1))","v":{"$error":"#N/A"}},null,null,null,null,null,null,null,null,null,null,null,null,null,null,null,null,null,null,null,"With two (2) or more HWC notices this cycle",{"$f":"HLOOKUP(AI22,C22:AF24,3,FALSE)","v":0},null,"7/1/21 CH fixed"]
[null,"Total",{"$f":"IF(ISERROR(HLOOKUP($A$1,C22:$AF22,1,FALSE)),#N/A,C23+C24)","v":0},{"$f":"IF(ISERROR(HLOOKUP($A$1,D22:$AF22,1,FALSE)),#N/A,D23+D24)","v":0},{"$f":"IF(ISERROR(HLOOKUP($A$1,E22:$AF22,1,FALSE)),#N/A,E23+E24)","v":{"$error":"#N/A"}},{"$f":"IF(ISERROR(HLOOKUP($A$1,F22:$AF22,1,FALSE)),#N/A,F23+F24)","v":{"$error":"#N/A"}},{"$f":"IF(ISERROR(HLOOKUP($A$1,G22:$AF22,1,FALSE)),#N/A,G23+G24)","v":{"$error":"#N/A"}},{"$f":"IF(ISERROR(HLOOKUP($A$1,H22:$AF22,1,FALSE)),#N/A,H23+H24)","v":{"$error":"#N/A"}},{"$f":"IF(ISERROR(HLOOKUP($A$1,I22:$AF22,1,FALSE)),#N/A,I23+I24)","v":{"$error":"#N/A"}},{"$f":"IF(ISERROR(HLOOKUP($A$1,J22:$AF22,1,FALSE)),#N/A,J23+J24)","v":{"$error":"#N/A"}},{"$f":"IF(ISERROR(HLOOKUP($A$1,K22:$AF22,1,FALSE)),#N/A,K23+K24)","v":{"$error":"#N/A"}},{"$f":"IF(ISERROR(HLOOKUP($A$1,L22:$AF22,1,FALSE)),#N/A,L23+L24)","v":{"$error":"#N/A"}},{"$f":"IF(ISERROR(HLOOKUP($A$1,M22:$AF22,1,FALSE)),#N/A,M23+M24)","v":{"$error":"#N/A"}},{"$f":"IF(ISERROR(HLOOKUP($A$1,N22:$AF22,1,FALSE)),#N/A,N23+N24)","v":{"$error":"#N/A"}}]
[]
[]
[]
[]
[]
[]
["Students","Number of Students Identified for HWC Support Referred to School Counselor: Cumulative","Summer","Cycle 1","Cycle 2","Cycle 3","Cycle 4","Cycle 5","Cycle 6","Cycle 7","Cycle 8","Cycle 9","Cycle 10","Cycle 11",null,null,null,null,null,null,null,null,null,null,null,null,null,null,null,null,null,null,null,{"$f":"SUBSTITUTE(B32,\"Cumulative\",\"Year to This Cycle\")","v":"Number of Students Identified for HWC Support Referred to School Counselor: Year to This Cycle"},{"$f":"$A$1","v":"Cycle 1"},null,null,"Implementation Data Dashboard\nM32:M32\n# HWC Students Ref to G.C. [Cumul]",null,"D\n\nYtD (1)"]
[null,"Students identified for HWC support",{"$f":"C$20","v":0},{"$f":"D$20","v":0},{"$error":"#N/A"},{"$error":"#N/A"},{"$error":"#N/A"},{"$error":"#N/A"},{"$error":"#N/A"},{"$error":"#N/A"},{"$error":"#N/A"},{"$error":"#N/A"},{"$error":"#N/A"},{"$error":"#N/A"},null,null,null,null,null,null,null,null,null,null,null,null,null,null,null,null,null,null,null,{"$f":"B33","v":"Students identified for HWC support"},{"$f":"HLOOKUP(AI32,C32:AF33,2,FALSE)","v":0}]
[null,"Students referred to school counselor",{"$f":"IF(ISERROR(HLOOKUP($A$1,C32:$AF32,1,FALSE)),#N/A,VLOOKUP(C$37,CycleDB!$A:$AB,MATCH($AK34,CycleDB!$A$1:$AB$1,0),FALSE))","v":0},{"$f":"IF(ISERROR(HLOOKUP($A$1,D32:$AF32,1,FALSE)),#N/A,VLOOKUP(D$37,CycleDB!$A:$AB,MATCH($AK34,CycleDB!$A$1:$AB$1,0),FALSE))","v":0},{"$f":"IF(ISERROR(HLOOKUP($A$1,E32:$AF32,1,FALSE)),#N/A,VLOOKUP(E$37,CycleDB!$A:$AB,MATCH($AK34,CycleDB!$A$1:$AB$1,0),FALSE))","v":{"$error":"#N/A"}},{"$f":"IF(ISERROR(HLOOKUP($A$1,F32:$AF32,1,FALSE)),#N/A,VLOOKUP(F$37,CycleDB!$A:$AB,MATCH($AK34,CycleDB!$A$1:$AB$1,0),FALSE))","v":{"$error":"#N/A"}},{"$f":"IF(ISERROR(HLOOKUP($A$1,G32:$AF32,1,FALSE)),#N/A,VLOOKUP(G$37,CycleDB!$A:$AB,MATCH($AK34,CycleDB!$A$1:$AB$1,0),FALSE))","v":{"$error":"#N/A"}},{"$f":"IF(ISERROR(HLOOKUP($A$1,H32:$AF32,1,FALSE)),#N/A,VLOOKUP(H$37,CycleDB!$A:$AB,MATCH($AK34,CycleDB!$A$1:$AB$1,0),FALSE))","v":{"$error":"#N/A"}},{"$f":"IF(ISERROR(HLOOKUP($A$1,I32:$AF32,1,FALSE)),#N/A,VLOOKUP(I$37,CycleDB!$A:$AB,MATCH($AK34,CycleDB!$A$1:$AB$1,0),FALSE))","v":{"$error":"#N/A"}},{"$f":"IF(ISERROR(HLOOKUP($A$1,J32:$AF32,1,FALSE)),#N/A,VLOOKUP(J$37,CycleDB!$A:$AB,MATCH($AK34,CycleDB!$A$1:$AB$1,0),FALSE))","v":{"$error":"#N/A"}},{"$f":"IF(ISERROR(HLOOKUP($A$1,K32:$AF32,1,FALSE)),#N/A,VLOOKUP(K$37,CycleDB!$A:$AB,MATCH($AK34,CycleDB!$A$1:$AB$1,0),FALSE))","v":{"$error":"#N/A"}},{"$f":"IF(ISERROR(HLOOKUP($A$1,L32:$AF32,1,FALSE)),#N/A,VLOOKUP(L$37,CycleDB!$A:$AB,MATCH($AK34,CycleDB!$A$1:$AB$1,0),FALSE))","v":{"$error":"#N/A"}},{"$f":"IF(ISERROR(HLOOKUP($A$1,M32:$AF32,1,FALSE)),#N/A,VLOOKUP(M$37,CycleDB!$A:$AB,MATCH($AK34,CycleDB!$A$1:$AB$1,0),FALSE))","v":{"$error":"#N/A"}},{"$f":"IF(ISERROR(HLOOKUP($A$1,N32:$AF32,1,FALSE)),#N/A,VLOOKUP(N$37,CycleDB!$A:$AB,MATCH($AK34,CycleDB!$A$1:$AB$1,0),FALSE))","v":{"$error":"#N/A"}},null,null,null,null,null,null,null,null,null,null,null,null,null,null,null,null,null,null,null,"Students referred to school counselor",{"$f":"HLOOKUP(AI32,C32:AF34,3,FALSE)","v":0},null,"GuideRef_CumulHWC_YTD"]
[null,"flag if more referred than exist",{"$f":"IF(OR(ISERROR(C33),ISERROR(C34)),0,IF(C34>C33,1,0))","v":0},{"$f":"IF(OR(ISERROR(D33),ISERROR(D34)),0,IF(D34>D33,1,0))","v":0},0,0,0,0,0,0,0,0,0,0]
[]
[null,"Number of Students Identified for HWC Support Referred to School Counselor: All Cycles (to Current)","Summer","Cycle 1","Cycle 2","Cycle 3","Cycle 4","Cycle 5","Cycle 6","Cycle 7","Cycle 8","Cycle 9","Cycle 10","Cycle 11",null,null,null,null,null,null,null,null,null,null,null,null,null,null,null,null,null,null,null,{"$f":"SUBSTITUTE(B37,\"All Cycles (to Current)\",\"This Cycle\")","v":"Number of Students Identified for HWC Support Referred to School Counselor: This Cycle"},{"$f":"$A$1","v":"Cycle 1"},"Number of Students Identified for HWC Support, Referred to School Counselor/External Mental Health Provider: This Cycle",null,"Implementation Data Dashboard\nJ32:J32\n# HWC Students Ref to G.C.  [This]",null,"D\n\nThis (1)\nEach (1)"]
[null,"Total Students Identified for HWC",{"$f":"IF(ISERROR(HLOOKUP($A$1,C37:$AF37,1,FALSE)),#N/A,C25)","v":0},{"$f":"IF(ISERROR(HLOOKUP($A$1,D37:$AF37,1,FALSE)),#N/A,D25)","v":0},{"$f":"IF(ISERROR(HLOOKUP($A$1,E37:$AF37,1,FALSE)),#N/A,E25)","v":{"$error":"#N/A"}},{"$f":"IF(ISERROR(HLOOKUP($A$1,F37:$AF37,1,FALSE)),#N/A,F25)","v":{"$error":"#N/A"}},{"$f":"IF(ISERROR(HLOOKUP($A$1,G37:$AF37,1,FALSE)),#N/A,G25)","v":{"$error":"#N/A"}},{"$f":"IF(ISERROR(HLOOKUP($A$1,H37:$AF37,1,FALSE)),#N/A,H25)","v":{"$error":"#N/A"}},{"$f":"IF(ISERROR(HLOOKUP($A$1,I37:$AF37,1,FALSE)),#N/A,I25)","v":{"$error":"#N/A"}},{"$f":"IF(ISERROR(HLOOKUP($A$1,J37:$AF37,1,FALSE)),#N/A,J25)","v":{"$error":"#N/A"}},{"$f":"IF(ISERROR(HLOOKUP($A$1,K37:$AF37,1,FALSE)),#N/A,K25)","v":{"$error":"#N/A"}},{"$f":"IF(ISERROR(HLOOKUP($A$1,L37:$AF37,1,FALSE)),#N/A,L25)","v":{"$error":"#N/A"}},{"$f":"IF(ISERROR(HLOOKUP($A$1,M37:$AF37,1,FALSE)),#N/A,M25)","v":{"$error":"#N/A"}},{"$f":"IF(ISERROR(HLOOKUP($A$1,N37:$AF37,1,FALSE)),#N/A,N25)","v":{"$error":"#N/A"}},null,null,null,null,null,null,null,null,null,null,null,null,null,null,null,null,null,null,null,{"$f":"B38","v":"Total Students Identified for HWC"},{"$f":"HLOOKUP(AI37,C37:AF38,2,FALSE)","v":0}]
[null,"School counselor",{"$f":"IF(ISERROR(HLOOKUP($A$1,C37:$AF37,1,FALSE)),#N/A,VLOOKUP(C$37,CycleDB!$A:$AB,MATCH($AK39,CycleDB!$A$1:$AB$1,0),FALSE))","v":0},{"$f":"IF(ISERROR(HLOOKUP($A$1,D37:$AF37,1,FALSE)),#N/A,VLOOKUP(D$37,CycleDB!$A:$AB,MATCH($AK39,CycleDB!$A$1:$AB$1,0),FALSE))","v":0},{"$f":"IF(ISERROR(HLOOKUP($A$1,E37:$AF37,1,FALSE)),#N/A,VLOOKUP(E$37,CycleDB!$A:$AB,MATCH($AK39,CycleDB!$A$1:$AB$1,0),FALSE))","v":{"$error":"#N/A"}},{"$f":"IF(ISERROR(HLOOKUP($A$1,F37:$AF37,1,FALSE)),#N/A,VLOOKUP(F$37,CycleDB!$A:$AB,MATCH($AK39,CycleDB!$A$1:$AB$1,0),FALSE))","v":{"$error":"#N/A"}},{"$f":"IF(ISERROR(HLOOKUP($A$1,G37:$AF37,1,FALSE)),#N/A,VLOOKUP(G$37,CycleDB!$A:$AB,MATCH($AK39,CycleDB!$A$1:$AB$1,0),FALSE))","v":{"$error":"#N/A"}},{"$f":"IF(ISERROR(HLOOKUP($A$1,H37:$AF37,1,FALSE)),#N/A,VLOOKUP(H$37,CycleDB!$A:$AB,MATCH($AK39,CycleDB!$A$1:$AB$1,0),FALSE))","v":{"$error":"#N/A"}},{"$f":"IF(ISERROR(HLOOKUP($A$1,I37:$AF37,1,FALSE)),#N/A,VLOOKUP(I$37,CycleDB!$A:$AB,MATCH($AK39,CycleDB!$A$1:$AB$1,0),FALSE))","v":{"$error":"#N/A"}},{"$f":"IF(ISERROR(HLOOKUP($A$1,J37:$AF37,1,FALSE)),#N/A,VLOOKUP(J$37,CycleDB!$A:$AB,MATCH($AK39,CycleDB!$A$1:$AB$1,0),FALSE))","v":{"$error":"#N/A"}},{"$f":"IF(ISERROR(HLOOKUP($A$1,K37:$AF37,1,FALSE)),#N/A,VLOOKUP(K$37,CycleDB!$A:$AB,MATCH($AK39,CycleDB!$A$1:$AB$1,0),FALSE))","v":{"$error":"#N/A"}},{"$f":"IF(ISERROR(HLOOKUP($A$1,L37:$AF37,1,FALSE)),#N/A,VLOOKUP(L$37,CycleDB!$A:$AB,MATCH($AK39,CycleDB!$A$1:$AB$1,0),FALSE))","v":{"$error":"#N/A"}},{"$f":"IF(ISERROR(HLOOKUP($A$1,M37:$AF37,1,FALSE)),#N/A,VLOOKUP(M$37,CycleDB!$A:$AB,MATCH($AK39,CycleDB!$A$1:$AB$1,0),FALSE))","v":{"$error":"#N/A"}},{"$f":"IF(ISERROR(HLOOKUP($A$1,N37:$AF37,1,FALSE)),#N/A,VLOOKUP(N$37,CycleDB!$A:$AB,MATCH($AK39,CycleDB!$A$1:$AB$1,0),FALSE))","v":{"$error":"#N/A"}},null,null,null,null,null,null,null,null,null,null,null,null,null,null,null,null,null,null,null,"School counselor",{"$f":"HLOOKUP(AI37,C37:AF39,3,FALSE)","v":0},null,"GuideRef_CumulHWC_Cycle"]
[]
[]
[]
[null,"Number of Students Identified for HWC Support, Referred to School Counselor / External Mental Health Provider: Year to Current Cycle"]
["Students","Number of Students Identified for HWC Support Referred to External Mental Health Provider: Cumulative","Summer","Cycle 1","Cycle 2","Cycle 3","Cycle 4","Cycle 5","Cycle 6","Cycle 7","Cycle 8","Cycle 9","Cycle 10","Cycle 11",null,null,null,null,null,null,null,null,null,null,null,null,null,null,null,null,null,null,null,{"$f":"SUBSTITUTE(B44,\"Cumulative\",\"Year to This Cycle\")","v":"Number of Students Identified for HWC Support Referred to External Mental Health Provider: Year to This Cycle"},{"$f":"$A$1","v":"Cycle 1"},null,null,"Implementation Data Dashboard\nM33:M33\n# HWC Students Ref to M.H. [Cumul]",null,"D\n\nYtD (2)"]
[null,"Total Students Identified for HWC Support",{"$f":"C$20","v":0},{"$f":"D$20","v":0},{"$error":"#N/A"},{"$error":"#N/A"},{"$error":"#N/A"},{"$error":"#N/A"},{"$error":"#N/A"},{"$error":"#N/A"},{"$error":"#N/A"},{"$error":"#N/A"},{"$error":"#N/A"},{"$error":"#N/A"},null,null,null,null,null,null,null,null,null,null,null,null,null,null,null,null,null,null,null,{"$f":"B45","v":"Total Students Identified for HWC Support"},{"$f":"HLOOKUP(AI44,C44:AF45,2,FALSE)","v":0}]
[null,"Students referred to external mental health provider",{"$f":"IF(ISERROR(HLOOKUP($A$1,C44:$AF44,1,FALSE)),#N/A,VLOOKUP(C$49,CycleDB!$A:$AB,MATCH($AK46,CycleDB!$A$1:$AB$1,0),FALSE))","v":0},{"$f":"IF(ISERROR(HLOOKUP($A$1,D44:$AF44,1,FALSE)),#N/A,VLOOKUP(D$49,CycleDB!$A:$AB,MATCH($AK46,CycleDB!$A$1:$AB$1,0),FALSE))","v":0},{"$f":"IF(ISERROR(HLOOKUP($A$1,E44:$AF44,1,FALSE)),#N/A,VLOOKUP(E$49,CycleDB!$A:$AB,MATCH($AK46,CycleDB!$A$1:$AB$1,0),FALSE))","v":{"$error":"#N/A"}},{"$f":"IF(ISERROR(HLOOKUP($A$1,F44:$AF44,1,FALSE)),#N/A,VLOOKUP(F$49,CycleDB!$A:$AB,MATCH($AK46,CycleDB!$A$1:$AB$1,0),FALSE))","v":{"$error":"#N/A"}},{"$f":"IF(ISERROR(HLOOKUP($A$1,G44:$AF44,1,FALSE)),#N/A,VLOOKUP(G$49,CycleDB!$A:$AB,MATCH($AK46,CycleDB!$A$1:$AB$1,0),FALSE))","v":{"$error":"#N/A"}},{"$f":"IF(ISERROR(HLOOKUP($A$1,H44:$AF44,1,FALSE)),#N/A,VLOOKUP(H$49,CycleDB!$A:$AB,MATCH($AK46,CycleDB!$A$1:$AB$1,0),FALSE))","v":{"$error":"#N/A"}},{"$f":"IF(ISERROR(HLOOKUP($A$1,I44:$AF44,1,FALSE)),#N/A,VLOOKUP(I$49,CycleDB!$A:$AB,MATCH($AK46,CycleDB!$A$1:$AB$1,0),FALSE))","v":{"$error":"#N/A"}},{"$f":"IF(ISERROR(HLOOKUP($A$1,J44:$AF44,1,FALSE)),#N/A,VLOOKUP(J$49,CycleDB!$A:$AB,MATCH($AK46,CycleDB!$A$1:$AB$1,0),FALSE))","v":{"$error":"#N/A"}},{"$f":"IF(ISERROR(HLOOKUP($A$1,K44:$AF44,1,FALSE)),#N/A,VLOOKUP(K$49,CycleDB!$A:$AB,MATCH($AK46,CycleDB!$A$1:$AB$1,0),FALSE))","v":{"$error":"#N/A"}},{"$f":"IF(ISERROR(HLOOKUP($A$1,L44:$AF44,1,FALSE)),#N/A,VLOOKUP(L$49,CycleDB!$A:$AB,MATCH($AK46,CycleDB!$A$1:$AB$1,0),FALSE))","v":{"$error":"#N/A"}},{"$f":"IF(ISERROR(HLOOKUP($A$1,M44:$AF44,1,FALSE)),#N/A,VLOOKUP(M$49,CycleDB!$A:$AB,MATCH($AK46,CycleDB!$A$1:$AB$1,0),FALSE))","v":{"$error":"#N/A"}},{"$f":"IF(ISERROR(HLOOKUP($A$1,N44:$AF44,1,FALSE)),#N/A,VLOOKUP(N$49,CycleDB!$A:$AB,MATCH($AK46,CycleDB!$A$1:$AB$1,0),FALSE))","v":{"$error":"#N/A"}},null,null,null,null,null,null,null,null,null,null,null,null,null,null,null,null,null,null,null,{"$f":"B46","v":"Students referred to external mental health provider"},{"$f":"HLOOKUP(AI44,C44:AF46,3,FALSE)","v":0},null,"MntlHlthRef_CumulHWC_YTD"]
[null,"flag if more referred than exist",{"$f":"IF(OR(ISERROR(C45),ISERROR(C46)),0,IF(C46>C45,1,0))","v":0},{"$f":"IF(OR(ISERROR(D45),ISERROR(D46)),0,IF(D46>D45,1,0))","v":0},{"$f":"IF(OR(ISERROR(E45),ISERROR(E46)),0,IF(E46>E45,1,0))","v":0},{"$f":"IF(OR(ISERROR(F45),ISERROR(F46)),0,IF(F46>F45,1,0))","v":0},{"$f":"IF(OR(ISERROR(G45),ISERROR(G46)),0,IF(G46>G45,1,0))","v":0},{"$f":"IF(OR(ISERROR(H45),ISERROR(H46)),0,IF(H46>H45,1,0))","v":0},{"$f":"IF(OR(ISERROR(I45),ISERROR(I46)),0,IF(I46>I45,1,0))","v":0},{"$f":"IF(OR(ISERROR(J45),ISERROR(J46)),0,IF(J46>J45,1,0))","v":0},{"$f":"IF(OR(ISERROR(K45),ISERROR(K46)),0,IF(K46>K45,1,0))","v":0},{"$f":"IF(OR(ISERROR(L45),ISERROR(L46)),0,IF(L46>L45,1,0))","v":0},{"$f":"IF(OR(ISERROR(M45),ISERROR(M46)),0,IF(M46>M45,1,0))","v":0},{"$f":"IF(OR(ISERROR(N45),ISERROR(N46)),0,IF(N46>N45,1,0))","v":0}]
[null,"Number of Students Identified for HWC Support, Referred to School Counselor / External Mental Health Provider: All Cycles (to Current)"]
[null,"Number of Students Identified for HWC Support Referred to External Mental Health Provider: All Cycles (to Current)","Summer","Cycle 1","Cycle 2","Cycle 3","Cycle 4","Cycle 5","Cycle 6","Cycle 7","Cycle 8","Cycle 9","Cycle 10","Cycle 11",null,null,null,null,null,null,null,null,null,null,null,null,null,null,null,null,null,null,null,{"$f":"SUBSTITUTE(B49,\"All Cycles (to Current)\",\"This Cycle\")","v":"Number of Students Identified for HWC Support Referred to External Mental Health Provider: This Cycle"},{"$f":"$A$1","v":"Cycle 1"},null,null,"Implementation Data Dashboard\nJ33:J33\n# HWC Students Ref to M.H.  [This]",null,"D\n\nThis (2)\nEach (2)"]
[null,"Total Students Identified for HWC Support",{"$f":"IF(ISERROR(HLOOKUP($A$1,C49:$AF49,1,FALSE)),#N/A,C25)","v":0},{"$f":"IF(ISERROR(HLOOKUP($A$1,D49:$AF49,1,FALSE)),#N/A,D25)","v":0},{"$f":"IF(ISERROR(HLOOKUP($A$1,E49:$AF49,1,FALSE)),#N/A,E25)","v":{"$error":"#N/A"}},{"$f":"IF(ISERROR(HLOOKUP($A$1,F49:$AF49,1,FALSE)),#N/A,F25)","v":{"$error":"#N/A"}},{"$f":"IF(ISERROR(HLOOKUP($A$1,G49:$AF49,1,FALSE)),#N/A,G25)","v":{"$error":"#N/A"}},{"$f":"IF(ISERROR(HLOOKUP($A$1,H49:$AF49,1,FALSE)),#N/A,H25)","v":{"$error":"#N/A"}},{"$f":"IF(ISERROR(HLOOKUP($A$1,I49:$AF49,1,FALSE)),#N/A,I25)","v":{"$error":"#N/A"}},{"$f":"IF(ISERROR(HLOOKUP($A$1,J49:$AF49,1,FALSE)),#N/A,J25)","v":{"$error":"#N/A"}},{"$f":"IF(ISERROR(HLOOKUP($A$1,K49:$AF49,1,FALSE)),#N/A,K25)","v":{"$error":"#N/A"}},{"$f":"IF(ISERROR(HLOOKUP($A$1,L49:$AF49,1,FALSE)),#N/A,L25)","v":{"$error":"#N/A"}},{"$f":"IF(ISERROR(HLOOKUP($A$1,M49:$AF49,1,FALSE)),#N/A,M25)","v":{"$error":"#N/A"}},{"$f":"IF(ISERROR(HLOOKUP($A$1,N49:$AF49,1,FALSE)),#N/A,N25)","v":{"$error":"#N/A"}},null,null,null,null,null,null,null,null,null,null,null,null,null,null,null,null,null,null,null,{"$f":"B50","v":"Total Students Identified for HWC Support"},{"$f":"HLOOKUP(AI49,C49:AF50,2,FALSE)","v":0}]
[null,"External mental health provider",{"$f":"IF(ISERROR(HLOOKUP($A$1,C49:$AF49,1,FALSE)),#N/A,VLOOKUP(C$49,CycleDB!$A:$AB,MATCH($AK51,CycleDB!$A$1:$AB$1,0),FALSE))","v":0},{"$f":"IF(ISERROR(HLOOKUP($A$1,D49:$AF49,1,FALSE)),#N/A,VLOOKUP(D$49,CycleDB!$A:$AB,MATCH($AK51,CycleDB!$A$1:$AB$1,0),FALSE))","v":0},{"$f":"IF(ISERROR(HLOOKUP($A$1,E49:$AF49,1,FALSE)),#N/A,VLOOKUP(E$49,CycleDB!$A:$AB,MATCH($AK51,CycleDB!$A$1:$AB$1,0),FALSE))","v":{"$error":"#N/A"}},{"$f":"IF(ISERROR(HLOOKUP($A$1,F49:$AF49,1,FALSE)),#N/A,VLOOKUP(F$49,CycleDB!$A:$AB,MATCH($AK51,CycleDB!$A$1:$AB$1,0),FALSE))","v":{"$error":"#N/A"}},{"$f":"IF(ISERROR(HLOOKUP($A$1,G49:$AF49,1,FALSE)),#N/A,VLOOKUP(G$49,CycleDB!$A:$AB,MATCH($AK51,CycleDB!$A$1:$AB$1,0),FALSE))","v":{"$error":"#N/A"}},{"$f":"IF(ISERROR(HLOOKUP($A$1,H49:$AF49,1,FALSE)),#N/A,VLOOKUP(H$49,CycleDB!$A:$AB,MATCH($AK51,CycleDB!$A$1:$AB$1,0),FALSE))","v":{"$error":"#N/A"}},{"$f":"IF(ISERROR(HLOOKUP($A$1,I49:$AF49,1,FALSE)),#N/A,VLOOKUP(I$49,CycleDB!$A:$AB,MATCH($AK51,CycleDB!$A$1:$AB$1,0),FALSE))","v":{"$error":"#N/A"}},{"$f":"IF(ISERROR(HLOOKUP($A$1,J49:$AF49,1,FALSE)),#N/A,VLOOKUP(J$49,CycleDB!$A:$AB,MATCH($AK51,CycleDB!$A$1:$AB$1,0),FALSE))","v":{"$error":"#N/A"}},{"$f":"IF(ISERROR(HLOOKUP($A$1,K49:$AF49,1,FALSE)),#N/A,VLOOKUP(K$49,CycleDB!$A:$AB,MATCH($AK51,CycleDB!$A$1:$AB$1,0),FALSE))","v":{"$error":"#N/A"}},{"$f":"IF(ISERROR(HLOOKUP($A$1,L49:$AF49,1,FALSE)),#N/A,VLOOKUP(L$49,CycleDB!$A:$AB,MATCH($AK51,CycleDB!$A$1:$AB$1,0),FALSE))","v":{"$error":"#N/A"}},{"$f":"IF(ISERROR(HLOOKUP($A$1,M49:$AF49,1,FALSE)),#N/A,VLOOKUP(M$49,CycleDB!$A:$AB,MATCH($AK51,CycleDB!$A$1:$AB$1,0),FALSE))","v":{"$error":"#N/A"}},{"$f":"IF(ISERROR(HLOOKUP($A$1,N49:$AF49,1,FALSE)),#N/A,VLOOKUP(N$49,CycleDB!$A:$AB,MATCH($AK51,CycleDB!$A$1:$AB$1,0),FALSE))","v":{"$error":"#N/A"}},null,null,null,null,null,null,null,null,null,null,null,null,null,null,null,null,null,null,null,"External mental health provider",{"$f":"HLOOKUP(AI49,C49:AF51,3,FALSE)","v":0},null,"MntlHlthRef_CumulHWC_Cycle"]
[]
[]
[]
[]
["Students","Percentage of Students Identified for HWC Support Referred to School Counselor: Cumulative","Summer","Cycle 1","Cycle 2","Cycle 3","Cycle 4","Cycle 5","Cycle 6","Cycle 7","Cycle 8","Cycle 9","Cycle 10","Cycle 11",null,null,null,null,null,null,null,null,null,null,null,null,null,null,null,null,null,null,null,{"$f":"SUBSTITUTE(B56,\"Cumulative\",\"Year to This Cycle\")","v":"Percentage of Students Identified for HWC Support Referred to School Counselor: Year to This Cycle"},{"$f":"$A$1","v":"Cycle 1"}]
[null,"Referred to School Counselor",{"$f":"IFERROR(C34/C33,#N/A)","v":{"$error":"#N/A"}},{"$error":"#N/A"},{"$error":"#N/A"},{"$error":"#N/A"},{"$error":"#N/A"},{"$error":"#N/A"},{"$error":"#N/A"},{"$error":"#N/A"},{"$error":"#N/A"},{"$error":"#N/A"},{"$error":"#N/A"},{"$error":"#N/A"},null,null,null,null,null,null,null,null,null,null,null,null,null,null,null,null,null,null,null,{"$f":"B57","v":"Referred to School Counselor"},{"$f":"HLOOKUP(AI56,C56:AF57,2,FALSE)","v":{"$error":"#N/A"}}]
[]
[null,"Percentage of Students Identified for HWC Support Referred to School Counselor: All Cycles (to Current)","Summer","Cycle 1","Cycle 2","Cycle 3","Cycle 4","Cycle 5","Cycle 6","Cycle 7","Cycle 8","Cycle 9","Cycle 10","Cycle 11",null,null,null,null,null,null,null,null,null,null,null,null,null,null,null,null,null,null,null,{"$f":"SUBSTITUTE(B59,\"All Cycles (to Current)\",\"This Cycle\")","v":"Percentage of Students Identified for HWC Support Referred to School Counselor: This Cycle"},{"$f":"$A$1","v":"Cycle 1"}]
[null,"Referred to School Counselor",{"$f":"IFERROR(C39/C38,#N/A)","v":{"$error":"#N/A"}},{"$f":"IFERROR(D39/D38,#N/A)","v":{"$error":"#N/A"}},{"$error":"#N/A"},{"$error":"#N/A"},{"$error":"#N/A"},{"$error":"#N/A"},{"$error":"#N/A"},{"$error":"#N/A"},{"$error":"#N/A"},{"$error":"#N/A"},{"$error":"#N/A"},{"$error":"#N/A"},null,null,null,null,null,null,null,null,null,null,null,null,null,null,null,null,null,null,null,{"$f":"B60","v":"Referred to School Counselor"},{"$f":"HLOOKUP(AI59,C59:AF60,2,FALSE)","v":{"$error":"#N/A"}},null,"GuideRef_CumulHWC_Cycle"]
[]
[]
["Students","Percentage of Students Identified for HWC Support Referred to External Mental Health Provider: Cumulative","Summer","Cycle 1","Cycle 2","Cycle 3","Cycle 4","Cycle 5","Cycle 6","Cycle 7","Cycle 8","Cycle 9","Cycle 10","Cycle 11",null,null,null,null,null,null,null,null,null,null,null,null,null,null,null,null,null,null,null,{"$f":"SUBSTITUTE(B63,\"Cumulative\",\"Year to This Cycle\")","v":"Percentage of Students Identified for HWC Support Referred to External Mental Health Provider: Year to This Cycle"},{"$f":"$A$1","v":"Cycle 1"}]
[null,"Referred to External Mental Health Provider",{"$f":"IFERROR(C46/C45,#N/A)","v":{"$error":"#N/A"}},{"$f":"IFERROR(D46/D45,#N/A)","v":{"$error":"#N/A"}},{"$error":"#N/A"},{"$error":"#N/A"},{"$error":"#N/A"},{"$error":"#N/A"},{"$error":"#N/A"},{"$error":"#N/A"},{"$error":"#N/A"},{"$error":"#N/A"},{"$error":"#N/A"},{"$error":"#N/A"},null,null,null,null,null,null,null,null,null,null,null,null,null,null,null,null,null,null,null,{"$f":"B64","v":"Referred to External Mental Health Provider"},{"$f":"HLOOKUP(AI63,C63:AF64,2,FALSE)","v":{"$error":"#N/A"}}]
[]
[null,"Percentage of Students Identified for HWC Support Referred to External Mental Health Provider: All Cycles (to Current)","Summer","Cycle 1","Cycle 2","Cycle 3","Cycle 4","Cycle 5","Cycle 6","Cycle 7","Cycle 8","Cycle 9","Cycle 10","Cycle 11",null,null,null,null,null,null,null,null,null,null,null,null,null,null,null,null,null,null,null,{"$f":"SUBSTITUTE(B66,\"All Cycles (to Current)\",\"This Cycle\")","v":"Percentage of Students Identified for HWC Support Referred to External Mental Health Provider: This Cycle"},{"$f":"$A$1","v":"Cycle 1"}]
[null,"Referred to External Mental Health Provider",{"$f":"IFERROR(C51/C50,#N/A)","v":{"$error":"#N/A"}},{"$f":"IFERROR(D51/D50,#N/A)","v":{"$error":"#N/A"}},{"$error":"#N/A"},{"$error":"#N/A"},{"$error":"#N/A"},{"$error":"#N/A"},{"$error":"#N/A"},{"$error":"#N/A"},{"$error":"#N/A"},{"$error":"#N/A"},{"$error":"#N/A"},{"$error":"#N/A"},null,null,null,null,null,null,null,null,null,null,null,null,null,null,null,null,null,null,null,{"$f":"B67","v":"Referred to External Mental Health Provider"},{"$f":"HLOOKUP(AI66,C66:AF67,2,FALSE)","v":{"$error":"#N/A"}},null,"MntlHlthRef_CumulHWC_Cycle"]
[]
[]
[]
[]
["Notices","Number of HWC Notices for Which All Teachers Were Informed: Cumulative","Summer","Cycle 1","Cycle 2","Cycle 3","Cycle 4","Cycle 5","Cycle 6","Cycle 7","Cycle 8","Cycle 9","Cycle 10","Cycle 11",null,null,null,null,null,null,null,null,null,null,null,null,null,null,null,null,null,null,null,{"$f":"SUBSTITUTE(B72,\"Cumulative\",\"Year to This Cycle\")","v":"Number of HWC Notices for Which All Teachers Were Informed: Year to This Cycle"},{"$f":"$A$1","v":"Cycle 1"},null,null,"Implementation Data Dashboard\nM16:M16\n# HWC Refs All Tch Informed [Cumul]"]
[null,"All Teachers Informed",{"$f":"IF(ISERROR(HLOOKUP($A$1,C72:$AF72,1,FALSE)),#N/A,SUM($C79:C79))","v":0},{"$f":"IF(ISERROR(HLOOKUP($A$1,D72:$AF72,1,FALSE)),#N/A,SUM($C79:D79))","v":0},{"$f":"IF(ISERROR(HLOOKUP($A$1,E72:$AF72,1,FALSE)),#N/A,SUM($C79:E79))","v":{"$error":"#N/A"}},{"$f":"IF(ISERROR(HLOOKUP($A$1,F72:$AF72,1,FALSE)),#N/A,SUM($C79:F79))","v":{"$error":"#N/A"}},{"$f":"IF(ISERROR(HLOOKUP($A$1,G72:$AF72,1,FALSE)),#N/A,SUM($C79:G79))","v":{"$error":"#N/A"}},{"$f":"IF(ISERROR(HLOOKUP($A$1,H72:$AF72,1,FALSE)),#N/A,SUM($C79:H79))","v":{"$error":"#N/A"}},{"$f":"IF(ISERROR(HLOOKUP($A$1,I72:$AF72,1,FALSE)),#N/A,SUM($C79:I79))","v":{"$error":"#N/A"}},{"$f":"IF(ISERROR(HLOOKUP($A$1,J72:$AF72,1,FALSE)),#N/A,SUM($C79:J79))","v":{"$error":"#N/A"}},{"$f":"IF(ISERROR(HLOOKUP($A$1,K72:$AF72,1,FALSE)),#N/A,SUM($C79:K79))","v":{"$error":"#N/A"}},{"$f":"IF(ISERROR(HLOOKUP($A$1,L72:$AF72,1,FALSE)),#N/A,SUM($C79:L79))","v":{"$error":"#N/A"}},{"$f":"IF(ISERROR(HLOOKUP($A$1,M72:$AF72,1,FALSE)),#N/A,SUM($C79:M79))","v":{"$error":"#N/A"}},{"$f":"IF(ISERROR(HLOOKUP($A$1,N72:$AF72,1,FALSE)),#N/A,SUM($C79:N79))","v":{"$error":"#N/A"}},null,null,null,null,null,null,null,null,null,null,null,null,null,null,null,null,null,null,null,{"$f":"B73","v":"All Teachers Informed"},{"$f":"HLOOKUP(AI72,C72:AF73,2,FALSE)","v":0}]
[]
[null,"Not all teachers Informed",{"$f":"IF(ISERROR(HLOOKUP($A$1,C72:$AF72,1,FALSE)),#N/A,SUM($C81:C81))","v":0},{"$f":"IF(ISERROR(HLOOKUP($A$1,D72:$AF72,1,FALSE)),#N/A,SUM($C81:D81))","v":0},{"$f":"IF(ISERROR(HLOOKUP($A$1,E72:$AF72,1,FALSE)),#N/A,SUM($C81:E81))","v":{"$error":"#N/A"}},{"$f":"IF(ISERROR(HLOOKUP($A$1,F72:$AF72,1,FALSE)),#N/A,SUM($C81:F81))","v":{"$error":"#N/A"}},{"$f":"IF(ISERROR(HLOOKUP($A$1,G72:$AF72,1,FALSE)),#N/A,SUM($C81:G81))","v":{"$error":"#N/A"}},{"$f":"IF(ISERROR(HLOOKUP($A$1,H72:$AF72,1,FALSE)),#N/A,SUM($C81:H81))","v":{"$error":"#N/A"}},{"$f":"IF(ISERROR(HLOOKUP($A$1,I72:$AF72,1,FALSE)),#N/A,SUM($C81:I81))","v":{"$error":"#N/A"}},{"$f":"IF(ISERROR(HLOOKUP($A$1,J72:$AF72,1,FALSE)),#N/A,SUM($C81:J81))","v":{"$error":"#N/A"}},{"$f":"IF(ISERROR(HLOOKUP($A$1,K72:$AF72,1,FALSE)),#N/A,SUM($C81:K81))","v":{"$error":"#N/A"}},{"$f":"IF(ISERROR(HLOOKUP($A$1,L72:$AF72,1,FALSE)),#N/A,SUM($C81:L81))","v":{"$error":"#N/A"}},{"$f":"IF(ISERROR(HLOOKUP($A$1,M72:$AF72,1,FALSE)),#N/A,SUM($C81:M81))","v":{"$error":"#N/A"}},{"$f":"IF(ISERROR(HLOOKUP($A$1,N72:$AF72,1,FALSE)),#N/A,SUM($C81:N81))","v":{"$error":"#N/A"}},null,null,null,null,null,null,null,null,null,null,null,null,null,null,null,null,null,null,null,"Not all teachers Informed",{"$f":"HLOOKUP(AI72,C72:AF75,4,FALSE)","v":0}]
[null,"Total",{"$f":"IF(ISERROR(HLOOKUP($A$1,C72:$AF72,1,FALSE)),#N/A,SUM(C73:C75))","v":0},{"$f":"IF(ISERROR(HLOOKUP($A$1,D72:$AF72,1,FALSE)),#N/A,SUM(D73:D75))","v":0},{"$f":"IF(ISERROR(HLOOKUP($A$1,E72:$AF72,1,FALSE)),#N/A,SUM(E73:E75))","v":{"$error":"#N/A"}},{"$f":"IF(ISERROR(HLOOKUP($A$1,F72:$AF72,1,FALSE)),#N/A,SUM(F73:F75))","v":{"$error":"#N/A"}},{"$f":"IF(ISERROR(HLOOKUP($A$1,G72:$AF72,1,FALSE)),#N/A,SUM(G73:G75))","v":{"$error":"#N/A"}},{"$f":"IF(ISERROR(HLOOKUP($A$1,H72:$AF72,1,FALSE)),#N/A,SUM(H73:H75))","v":{"$error":"#N/A"}},{"$f":"IF(ISERROR(HLOOKUP($A$1,I72:$AF72,1,FALSE)),#N/A,SUM(I73:I75))","v":{"$error":"#N/A"}},{"$f":"IF(ISERROR(HLOOKUP($A$1,J72:$AF72,1,FALSE)),#N/A,SUM(J73:J75))","v":{"$error":"#N/A"}},{"$f":"IF(ISERROR(HLOOKUP($A$1,K72:$AF72,1,FALSE)),#N/A,SUM(K73:K75))","v":{"$error":"#N/A"}},{"$f":"IF(ISERROR(HLOOKUP($A$1,L72:$AF72,1,FALSE)),#N/A,SUM(L73:L75))","v":{"$error":"#N/A"}},{"$f":"IF(ISERROR(HLOOKUP($A$1,M72:$AF72,1,FALSE)),#N/A,SUM(M73:M75))","v":{"$error":"#N/A"}},{"$f":"IF(ISERROR(HLOOKUP($A$1,N72:$AF72,1,FALSE)),#N/A,SUM(N73:N75))","v":{"$error":"#N/A"}}]
[]
[null,"Number of HWC Notices for Which All Teachers Were Informed: All Cycles (to Current)","Summer","Cycle 1","Cycle 2","Cycle 3","Cycle 4","Cycle 5","Cycle 6","Cycle 7","Cycle 8","Cycle 9","Cycle 10","Cycle 11",null,null,null,null,null,null,null,null,null,null,null,null,null,null,null,null,null,null,null,{"$f":"SUBSTITUTE(B78,\"All Cycles (to Current)\",\"This Cycle\")","v":"Number of HWC Notices for Which All Teachers Were Informed: This Cycle"},{"$f":"$A$1","v":"Cycle 1"},null,null,"Implementation Data Dashboard\nJ16:J16\n# HWC Refs All Tch Informed  [This]"]
[null,"All Teachers Informed",{"$f":"IF(ISERROR(HLOOKUP($A$1,C78:$AF78,1,FALSE)),#N/A,COUNTIFS(StuDB!$E:$E,\">=\"&Lookups!AE$1,StuDB!$E:$E,\"<=\"&Lookups!AE$2,StuDB!$BQ:$BQ,$AK79))","v":0},{"$f":"IF(ISERROR(HLOOKUP($A$1,D78:$AF78,1,FALSE)),#N/A,COUNTIFS(StuDB!$E:$E,\">=\"&Lookups!AF$1,StuDB!$E:$E,\"<=\"&Lookups!AF$2,StuDB!$BQ:$BQ,$AK79))","v":0},{"$f":"IF(ISERROR(HLOOKUP($A$1,E78:$AF78,1,FALSE)),#N/A,COUNTIFS(StuDB!$E:$E,\">=\"&Lookups!AG$1,StuDB!$E:$E,\"<=\"&Lookups!AG$2,StuDB!$BQ:$BQ,$AK79))","v":{"$error":"#N/A"}},{"$f":"IF(ISERROR(HLOOKUP($A$1,F78:$AF78,1,FALSE)),#N/A,COUNTIFS(StuDB!$E:$E,\">=\"&Lookups!AH$1,StuDB!$E:$E,\"<=\"&Lookups!AH$2,StuDB!$BQ:$BQ,$AK79))","v":{"$error":"#N/A"}},{"$f":"IF(ISERROR(HLOOKUP($A$1,G78:$AF78,1,FALSE)),#N/A,COUNTIFS(StuDB!$E:$E,\">=\"&Lookups!AI$1,StuDB!$E:$E,\"<=\"&Lookups!AI$2,StuDB!$BQ:$BQ,$AK79))","v":{"$error":"#N/A"}},{"$f":"IF(ISERROR(HLOOKUP($A$1,H78:$AF78,1,FALSE)),#N/A,COUNTIFS(StuDB!$E:$E,\">=\"&Lookups!AJ$1,StuDB!$E:$E,\"<=\"&Lookups!AJ$2,StuDB!$BQ:$BQ,$AK79))","v":{"$error":"#N/A"}},{"$f":"IF(ISERROR(HLOOKUP($A$1,I78:$AF78,1,FALSE)),#N/A,COUNTIFS(StuDB!$E:$E,\">=\"&Lookups!AK$1,StuDB!$E:$E,\"<=\"&Lookups!AK$2,StuDB!$BQ:$BQ,$AK79))","v":{"$error":"#N/A"}},{"$f":"IF(ISERROR(HLOOKUP($A$1,J78:$AF78,1,FALSE)),#N/A,COUNTIFS(StuDB!$E:$E,\">=\"&Lookups!AL$1,StuDB!$E:$E,\"<=\"&Lookups!AL$2,StuDB!$BQ:$BQ,$AK79))","v":{"$error":"#N/A"}},{"$f":"IF(ISERROR(HLOOKUP($A$1,K78:$AF78,1,FALSE)),#N/A,COUNTIFS(StuDB!$E:$E,\">=\"&Lookups!AM$1,StuDB!$E:$E,\"<=\"&Lookups!AM$2,StuDB!$BQ:$BQ,$AK79))","v":{"$error":"#N/A"}},{"$f":"IF(ISERROR(HLOOKUP($A$1,L78:$AF78,1,FALSE)),#N/A,COUNTIFS(StuDB!$E:$E,\">=\"&Lookups!AN$1,StuDB!$E:$E,\"<=\"&Lookups!AN$2,StuDB!$BQ:$BQ,$AK79))","v":{"$error":"#N/A"}},{"$f":"IF(ISERROR(HLOOKUP($A$1,M78:$AF78,1,FALSE)),#N/A,COUNTIFS(StuDB!$E:$E,\">=\"&Lookups!AO$1,StuDB!$E:$E,\"<=\"&Lookups!AO$2,StuDB!$BQ:$BQ,$AK79))","v":{"$error":"#N/A"}},{"$f":"IF(ISERROR(HLOOKUP($A$1,N78:$AF78,1,FALSE)),#N/A,COUNTIFS(StuDB!$E:$E,\">=\"&Lookups!AP$1,StuDB!$E:$E,\"<=\"&Lookups!AP$2,StuDB!$BQ:$BQ,$AK79))","v":{"$error":"#N/A"}},null,null,null,null,null,null,null,null,null,null,null,null,null,null,null,null,null,null,null,{"$f":"B79","v":"All Teachers Informed"},{"$f":"HLOOKUP(AI78,C78:AF79,2,FALSE)","v":0},null,"All teachers have been Informed"]
[]
[null,"Not all teachers Informed",{"$f":"IF(ISERROR(HLOOKUP($A$1,C78:$AF78,1,FALSE)),#N/A,COUNTIFS(StuDB!$E:$E,\">=\"&Lookups!AE$1,StuDB!$E:$E,\"<=\"&Lookups!AE$2,StuDB!$BQ:$BQ,$AK81))","v":0},{"$f":"IF(ISERROR(HLOOKUP($A$1,D78:$AF78,1,FALSE)),#N/A,COUNTIFS(StuDB!$E:$E,\">=\"&Lookups!AF$1,StuDB!$E:$E,\"<=\"&Lookups!AF$2,StuDB!$BQ:$BQ,$AK81))","v":0},{"$f":"IF(ISERROR(HLOOKUP($A$1,E78:$AF78,1,FALSE)),#N/A,COUNTIFS(StuDB!$E:$E,\">=\"&Lookups!AG$1,StuDB!$E:$E,\"<=\"&Lookups!AG$2,StuDB!$BQ:$BQ,$AK81))","v":{"$error":"#N/A"}},{"$f":"IF(ISERROR(HLOOKUP($A$1,F78:$AF78,1,FALSE)),#N/A,COUNTIFS(StuDB!$E:$E,\">=\"&Lookups!AH$1,StuDB!$E:$E,\"<=\"&Lookups!AH$2,StuDB!$BQ:$BQ,$AK81))","v":{"$error":"#N/A"}},{"$f":"IF(ISERROR(HLOOKUP($A$1,G78:$AF78,1,FALSE)),#N/A,COUNTIFS(StuDB!$E:$E,\">=\"&Lookups!AI$1,StuDB!$E:$E,\"<=\"&Lookups!AI$2,StuDB!$BQ:$BQ,$AK81))","v":{"$error":"#N/A"}},{"$f":"IF(ISERROR(HLOOKUP($A$1,H78:$AF78,1,FALSE)),#N/A,COUNTIFS(StuDB!$E:$E,\">=\"&Lookups!AJ$1,StuDB!$E:$E,\"<=\"&Lookups!AJ$2,StuDB!$BQ:$BQ,$AK81))","v":{"$error":"#N/A"}},{"$f":"IF(ISERROR(HLOOKUP($A$1,I78:$AF78,1,FALSE)),#N/A,COUNTIFS(StuDB!$E:$E,\">=\"&Lookups!AK$1,StuDB!$E:$E,\"<=\"&Lookups!AK$2,StuDB!$BQ:$BQ,$AK81))","v":{"$error":"#N/A"}},{"$f":"IF(ISERROR(HLOOKUP($A$1,J78:$AF78,1,FALSE)),#N/A,COUNTIFS(StuDB!$E:$E,\">=\"&Lookups!AL$1,StuDB!$E:$E,\"<=\"&Lookups!AL$2,StuDB!$BQ:$BQ,$AK81))","v":{"$error":"#N/A"}},{"$f":"IF(ISERROR(HLOOKUP($A$1,K78:$AF78,1,FALSE)),#N/A,COUNTIFS(StuDB!$E:$E,\">=\"&Lookups!AM$1,StuDB!$E:$E,\"<=\"&Lookups!AM$2,StuDB!$BQ:$BQ,$AK81))","v":{"$error":"#N/A"}},{"$f":"IF(ISERROR(HLOOKUP($A$1,L78:$AF78,1,FALSE)),#N/A,COUNTIFS(StuDB!$E:$E,\">=\"&Lookups!AN$1,StuDB!$E:$E,\"<=\"&Lookups!AN$2,StuDB!$BQ:$BQ,$AK81))","v":{"$error":"#N/A"}},{"$f":"IF(ISERROR(HLOOKUP($A$1,M78:$AF78,1,FALSE)),#N/A,COUNTIFS(StuDB!$E:$E,\">=\"&Lookups!AO$1,StuDB!$E:$E,\"<=\"&Lookups!AO$2,StuDB!$BQ:$BQ,$AK81))","v":{"$error":"#N/A"}},{"$f":"IF(ISERROR(HLOOKUP($A$1,N78:$AF78,1,FALSE)),#N/A,COUNTIFS(StuDB!$E:$E,\">=\"&Lookups!AP$1,StuDB!$E:$E,\"<=\"&Lookups!AP$2,StuDB!$BQ:$BQ,$AK81))","v":{"$error":"#N/A"}},null,null,null,null,null,null,null,null,null,null,null,null,null,null,null,null,null,null,null,"Not all teachers Informed",{"$f":"HLOOKUP(AI78,C78:AF81,4,FALSE)","v":0},null,"Not all teachers have been Informed"]
[null,"Total",{"$f":"IF(ISERROR(HLOOKUP($A$1,C78:$AF78,1,FALSE)),#N/A,SUM(C79:C81))","v":0},{"$f":"IF(ISERROR(HLOOKUP($A$1,D78:$AF78,1,FALSE)),#N/A,SUM(D79:D81))","v":0},{"$f":"IF(ISERROR(HLOOKUP($A$1,E78:$AF78,1,FALSE)),#N/A,SUM(E79:E81))","v":{"$error":"#N/A"}},{"$f":"IF(ISERROR(HLOOKUP($A$1,F78:$AF78,1,FALSE)),#N/A,SUM(F79:F81))","v":{"$error":"#N/A"}},{"$f":"IF(ISERROR(HLOOKUP($A$1,G78:$AF78,1,FALSE)),#N/A,SUM(G79:G81))","v":{"$error":"#N/A"}},{"$f":"IF(ISERROR(HLOOKUP($A$1,H78:$AF78,1,FALSE)),#N/A,SUM(H79:H81))","v":{"$error":"#N/A"}},{"$f":"IF(ISERROR(HLOOKUP($A$1,I78:$AF78,1,FALSE)),#N/A,SUM(I79:I81))","v":{"$error":"#N/A"}},{"$f":"IF(ISERROR(HLOOKUP($A$1,J78:$AF78,1,FALSE)),#N/A,SUM(J79:J81))","v":{"$error":"#N/A"}},{"$f":"IF(ISERROR(HLOOKUP($A$1,K78:$AF78,1,FALSE)),#N/A,SUM(K79:K81))","v":{"$error":"#N/A"}},{"$f":"IF(ISERROR(HLOOKUP($A$1,L78:$AF78,1,FALSE)),#N/A,SUM(L79:L81))","v":{"$error":"#N/A"}},{"$f":"IF(ISERROR(HLOOKUP($A$1,M78:$AF78,1,FALSE)),#N/A,SUM(M79:M81))","v":{"$error":"#N/A"}},{"$f":"IF(ISERROR(HLOOKUP($A$1,N78:$AF78,1,FALSE)),#N/A,SUM(N79:N81))","v":{"$error":"#N/A"}}]
[]
[null,"Percentage of HWC Notices for Which All Teachers/Other Staff Were Informed: Year to Current Cycle"]
["Notices","Percentage of HWC Notices for Which All Teachers Were Informed: Cumulative","Summer","Cycle 1","Cycle 2","Cycle 3","Cycle 4","Cycle 5","Cycle 6","Cycle 7","Cycle 8","Cycle 9","Cycle 10","Cycle 11",null,null,null,null,null,null,null,null,null,null,null,null,null,null,null,null,null,null,null,{"$f":"SUBSTITUTE(B85,\"Cumulative\",\"Year to This Cycle\")","v":"Percentage of HWC Notices for Which All Teachers Were Informed: Year to This Cycle"},{"$f":"$A$1","v":"Cycle 1"},null,null,null,null,"C\n\nYtD (1)"]
[null,"Teachers",{"$f":"IFERROR(C73/C$76,#N/A)","v":{"$error":"#N/A"}},{"$f":"IFERROR(D73/D$76,#N/A)","v":{"$error":"#N/A"}},{"$error":"#N/A"},{"$error":"#N/A"},{"$error":"#N/A"},{"$error":"#N/A"},{"$f":"IFERROR(I73/I$76,#N/A)","v":{"$error":"#N/A"}},{"$error":"#N/A"},{"$error":"#N/A"},{"$error":"#N/A"},{"$error":"#N/A"},{"$error":"#N/A"},null,null,null,null,null,null,null,null,null,null,null,null,null,null,null,null,null,null,null,{"$f":"B86","v":"Teachers"},{"$f":"HLOOKUP(AI85,C85:AF86,2,FALSE)","v":{"$error":"#N/A"}}]
[]
[null,"Not all teachers Informed",{"$f":"IFERROR(C75/C$76,#N/A)","v":{"$error":"#N/A"}},{"$f":"IFERROR(D75/D$76,#N/A)","v":{"$error":"#N/A"}},{"$error":"#N/A"},{"$error":"#N/A"},{"$error":"#N/A"},{"$error":"#N/A"},{"$error":"#N/A"},{"$error":"#N/A"},{"$error":"#N/A"},{"$error":"#N/A"},{"$error":"#N/A"},{"$error":"#N/A"},null,null,null,null,null,null,null,null,null,null,null,null,null,null,null,null,null,null,null,"Not all teachers Informed",{"$f":"HLOOKUP(AI85,C85:AF88,4,FALSE)","v":{"$error":"#N/A"}}]
[null,"Total",{"$f":"IF(ISERROR(HLOOKUP($A$1,C85:$AF85,1,FALSE)),#N/A,SUM(C86:C88))","v":{"$error":"#N/A"}},{"$f":"IF(ISERROR(HLOOKUP($A$1,D85:$AF85,1,FALSE)),#N/A,SUM(D86:D88))","v":{"$error":"#N/A"}},{"$f":"IF(ISERROR(HLOOKUP($A$1,E85:$AF85,1,FALSE)),#N/A,SUM(E86:E88))","v":{"$error":"#N/A"}},{"$f":"IF(ISERROR(HLOOKUP($A$1,F85:$AF85,1,FALSE)),#N/A,SUM(F86:F88))","v":{"$error":"#N/A"}},{"$f":"IF(ISERROR(HLOOKUP($A$1,G85:$AF85,1,FALSE)),#N/A,SUM(G86:G88))","v":{"$error":"#N/A"}},{"$f":"IF(ISERROR(HLOOKUP($A$1,H85:$AF85,1,FALSE)),#N/A,SUM(H86:H88))","v":{"$error":"#N/A"}},{"$f":"IF(ISERROR(HLOOKUP($A$1,I85:$AF85,1,FALSE)),#N/A,SUM(I86:I88))","v":{"$error":"#N/A"}},{"$f":"IF(ISERROR(HLOOKUP($A$1,J85:$AF85,1,FALSE)),#N/A,SUM(J86:J88))","v":{"$error":"#N/A"}},{"$f":"IF(ISERROR(HLOOKUP($A$1,K85:$AF85,1,FALSE)),#N/A,SUM(K86:K88))","v":{"$error":"#N/A"}},{"$f":"IF(ISERROR(HLOOKUP($A$1,L85:$AF85,1,FALSE)),#N/A,SUM(L86:L88))","v":{"$error":"#N/A"}},{"$f":"IF(ISERROR(HLOOKUP($A$1,M85:$AF85,1,FALSE)),#N/A,SUM(M86:M88))","v":{"$error":"#N/A"}},{"$f":"IF(ISERROR(HLOOKUP($A$1,N85:$AF85,1,FALSE)),#N/A,SUM(N86:N88))","v":{"$error":"#N/A"}}]
[null,"Percentage of HWC Notices for Which All Teachers/Other Staff Were Informed: All Cycles (to Current)",null,null,null,null,null,null,null,null,null,null,null,null,null,null,null,null,null,null,null,null,null,null,null,null,null,null,null,null,null,null,null,{"$f":"SUBSTITUTE(B90,\"All Cycles (to Current)\",\"This Cycle\")","v":"Percentage of HWC Notices for Which All Teachers/Other Staff Were Informed: This Cycle"},null,null,null,null,null,"C\n\nThis (1)\nEach (1)"]
[null,"Percentage of HWC Notices for Which All Teachers Were Informed: All Cycles (to Current)","Summer","Cycle 1","Cycle 2","Cycle 3","Cycle 4","Cycle 5","Cycle 6","Cycle 7","Cycle 8","Cycle 9","Cycle 10","Cycle 11",null,null,null,null,null,null,null,null,null,null,null,null,null,null,null,null,null,null,null,{"$f":"SUBSTITUTE(B91,\"All Cycles (to Current)\",\"This Cycle\")","v":"Percentage of HWC Notices for Which All Teachers Were Informed: This Cycle"},{"$f":"$A$1","v":"Cycle 1"}]
[null,"Teachers",{"$f":"IFERROR(C79/C$82,#N/A)","v":{"$error":"#N/A"}},{"$f":"IFERROR(D79/D$82,#N/A)","v":{"$error":"#N/A"}},{"$error":"#N/A"},{"$error":"#N/A"},{"$error":"#N/A"},{"$error":"#N/A"},{"$error":"#N/A"},{"$error":"#N/A"},{"$error":"#N/A"},{"$error":"#N/A"},{"$error":"#N/A"},{"$error":"#N/A"},null,null,null,null,null,null,null,null,null,null,null,null,null,null,null,null,null,null,null,{"$f":"B92","v":"Teachers"},{"$f":"HLOOKUP(AI91,C91:AF92,2,FALSE)","v":{"$error":"#N/A"}},null,"All teachers have been Informed"]
[]
[null,"Not all teachers Informed",{"$f":"IFERROR(C81/C$82,#N/A)","v":{"$error":"#N/A"}},{"$f":"IFERROR(D81/D$82,#N/A)","v":{"$error":"#N/A"}},{"$error":"#N/A"},{"$error":"#N/A"},{"$error":"#N/A"},{"$error":"#N/A"},{"$error":"#N/A"},{"$error":"#N/A"},{"$error":"#N/A"},{"$error":"#N/A"},{"$error":"#N/A"},{"$error":"#N/A"},null,null,null,null,null,null,null,null,null,null,null,null,null,null,null,null,null,null,null,{"$f":"B94","v":"Not all teachers Informed"},{"$f":"HLOOKUP(AI91,C91:AF94,4,FALSE)","v":{"$error":"#N/A"}},null,"Not all teachers have been Informed"]
[null,"Total",{"$f":"IF(ISERROR(HLOOKUP($A$1,C91:$AF91,1,FALSE)),#N/A,SUM(C92:C94))","v":{"$error":"#N/A"}},{"$f":"IF(ISERROR(HLOOKUP($A$1,D91:$AF91,1,FALSE)),#N/A,SUM(D92:D94))","v":{"$error":"#N/A"}},{"$f":"IF(ISERROR(HLOOKUP($A$1,E91:$AF91,1,FALSE)),#N/A,SUM(E92:E94))","v":{"$error":"#N/A"}},{"$f":"IF(ISERROR(HLOOKUP($A$1,F91:$AF91,1,FALSE)),#N/A,SUM(F92:F94))","v":{"$error":"#N/A"}},{"$f":"IF(ISERROR(HLOOKUP($A$1,G91:$AF91,1,FALSE)),#N/A,SUM(G92:G94))","v":{"$error":"#N/A"}},{"$f":"IF(ISERROR(HLOOKUP($A$1,H91:$AF91,1,FALSE)),#N/A,SUM(H92:H94))","v":{"$error":"#N/A"}},{"$f":"IF(ISERROR(HLOOKUP($A$1,I91:$AF91,1,FALSE)),#N/A,SUM(I92:I94))","v":{"$error":"#N/A"}},{"$f":"IF(ISERROR(HLOOKUP($A$1,J91:$AF91,1,FALSE)),#N/A,SUM(J92:J94))","v":{"$error":"#N/A"}},{"$f":"IF(ISERROR(HLOOKUP($A$1,K91:$AF91,1,FALSE)),#N/A,SUM(K92:K94))","v":{"$error":"#N/A"}},{"$f":"IF(ISERROR(HLOOKUP($A$1,L91:$AF91,1,FALSE)),#N/A,SUM(L92:L94))","v":{"$error":"#N/A"}},{"$f":"IF(ISERROR(HLOOKUP($A$1,M91:$AF91,1,FALSE)),#N/A,SUM(M92:M94))","v":{"$error":"#N/A"}},{"$f":"IF(ISERROR(HLOOKUP($A$1,N91:$AF91,1,FALSE)),#N/A,SUM(N92:N94))","v":{"$error":"#N/A"}}]
[]
[]
[]
[]
[]
["Notices","Number of HWC Notices for Which All Other Staff Were Informed: Cumulative","Summer","Cycle 1","Cycle 2","Cycle 3","Cycle 4","Cycle 5","Cycle 6","Cycle 7","Cycle 8","Cycle 9","Cycle 10","Cycle 11",null,null,null,null,null,null,null,null,null,null,null,null,null,null,null,null,null,null,null,{"$f":"SUBSTITUTE(B101,\"Cumulative\",\"Year to This Cycle\")","v":"Number of HWC Notices for Which All Other Staff Were Informed: Year to This Cycle"},{"$f":"$A$1","v":"Cycle 1"},null,null,"Implementation Data Dashboard\nM17:M17\n# HWC Refs All Oth Staff Informed [Cumul]"]
[null,"All Other Staff Informed",{"$f":"IF(ISERROR(HLOOKUP($A$1,C101:$AF101,1,FALSE)),#N/A,SUM($C108:C108))","v":0},{"$f":"IF(ISERROR(HLOOKUP($A$1,D101:$AF101,1,FALSE)),#N/A,SUM($C108:D108))","v":0},{"$f":"IF(ISERROR(HLOOKUP($A$1,E101:$AF101,1,FALSE)),#N/A,SUM($C108:E108))","v":{"$error":"#N/A"}},{"$f":"IF(ISERROR(HLOOKUP($A$1,F101:$AF101,1,FALSE)),#N/A,SUM($C108:F108))","v":{"$error":"#N/A"}},{"$f":"IF(ISERROR(HLOOKUP($A$1,G101:$AF101,1,FALSE)),#N/A,SUM($C108:G108))","v":{"$error":"#N/A"}},{"$f":"IF(ISERROR(HLOOKUP($A$1,H101:$AF101,1,FALSE)),#N/A,SUM($C108:H108))","v":{"$error":"#N/A"}},{"$f":"IF(ISERROR(HLOOKUP($A$1,I101:$AF101,1,FALSE)),#N/A,SUM($C108:I108))","v":{"$error":"#N/A"}},{"$f":"IF(ISERROR(HLOOKUP($A$1,J101:$AF101,1,FALSE)),#N/A,SUM($C108:J108))","v":{"$error":"#N/A"}},{"$f":"IF(ISERROR(HLOOKUP($A$1,K101:$AF101,1,FALSE)),#N/A,SUM($C108:K108))","v":{"$error":"#N/A"}},{"$f":"IF(ISERROR(HLOOKUP($A$1,L101:$AF101,1,FALSE)),#N/A,SUM($C108:L108))","v":{"$error":"#N/A"}},{"$f":"IF(ISERROR(HLOOKUP($A$1,M101:$AF101,1,FALSE)),#N/A,SUM($C108:M108))","v":{"$error":"#N/A"}},{"$f":"IF(ISERROR(HLOOKUP($A$1,N101:$AF101,1,FALSE)),#N/A,SUM($C108:N108))","v":{"$error":"#N/A"}},null,null,null,null,null,null,null,null,null,null,null,null,null,null,null,null,null,null,null,{"$f":"B102","v":"All Other Staff Informed"},{"$f":"HLOOKUP(AI101,C101:AF102,2,FALSE)","v":0}]
[]
[null,"Not all Other Staff Informed",{"$f":"IF(ISERROR(HLOOKUP($A$1,C101:$AF101,1,FALSE)),#N/A,SUM($C110:C110))","v":0},{"$f":"IF(ISERROR(HLOOKUP($A$1,D101:$AF101,1,FALSE)),#N/A,SUM($C110:D110))","v":0},{"$f":"IF(ISERROR(HLOOKUP($A$1,E101:$AF101,1,FALSE)),#N/A,SUM($C110:E110))","v":{"$error":"#N/A"}},{"$f":"IF(ISERROR(HLOOKUP($A$1,F101:$AF101,1,FALSE)),#N/A,SUM($C110:F110))","v":{"$error":"#N/A"}},{"$f":"IF(ISERROR(HLOOKUP($A$1,G101:$AF101,1,FALSE)),#N/A,SUM($C110:G110))","v":{"$error":"#N/A"}},{"$f":"IF(ISERROR(HLOOKUP($A$1,H101:$AF101,1,FALSE)),#N/A,SUM($C110:H110))","v":{"$error":"#N/A"}},{"$f":"IF(ISERROR(HLOOKUP($A$1,I101:$AF101,1,FALSE)),#N/A,SUM($C110:I110))","v":{"$error":"#N/A"}},{"$f":"IF(ISERROR(HLOOKUP($A$1,J101:$AF101,1,FALSE)),#N/A,SUM($C110:J110))","v":{"$error":"#N/A"}},{"$f":"IF(ISERROR(HLOOKUP($A$1,K101:$AF101,1,FALSE)),#N/A,SUM($C110:K110))","v":{"$error":"#N/A"}},{"$f":"IF(ISERROR(HLOOKUP($A$1,L101:$AF101,1,FALSE)),#N/A,SUM($C110:L110))","v":{"$error":"#N/A"}},{"$f":"IF(ISERROR(HLOOKUP($A$1,M101:$AF101,1,FALSE)),#N/A,SUM($C110:M110))","v":{"$error":"#N/A"}},{"$f":"IF(ISERROR(HLOOKUP($A$1,N101:$AF101,1,FALSE)),#N/A,SUM($C110:N110))","v":{"$error":"#N/A"}},null,null,null,null,null,null,null,null,null,null,null,null,null,null,null,null,null,null,null,"Not all Other Staff Informed",{"$f":"HLOOKUP(AI101,C101:AF104,4,FALSE)","v":0}]
[null,"Total",{"$f":"IF(ISERROR(HLOOKUP($A$1,C101:$AF101,1,FALSE)),#N/A,SUM(C102:C104))","v":0},{"$f":"IF(ISERROR(HLOOKUP($A$1,D101:$AF101,1,FALSE)),#N/A,SUM(D102:D104))","v":0},{"$f":"IF(ISERROR(HLOOKUP($A$1,E101:$AF101,1,FALSE)),#N/A,SUM(E102:E104))","v":{"$error":"#N/A"}},{"$f":"IF(ISERROR(HLOOKUP($A$1,F101:$AF101,1,FALSE)),#N/A,SUM(F102:F104))","v":{"$error":"#N/A"}},{"$f":"IF(ISERROR(HLOOKUP($A$1,G101:$AF101,1,FALSE)),#N/A,SUM(G102:G104))","v":{"$error":"#N/A"}},{"$f":"IF(ISERROR(HLOOKUP($A$1,H101:$AF101,1,FALSE)),#N/A,SUM(H102:H104))","v":{"$error":"#N/A"}},{"$f":"IF(ISERROR(HLOOKUP($A$1,I101:$AF101,1,FALSE)),#N/A,SUM(I102:I104))","v":{"$error":"#N/A"}},{"$f":"IF(ISERROR(HLOOKUP($A$1,J101:$AF101,1,FALSE)),#N/A,SUM(J102:J104))","v":{"$error":"#N/A"}},{"$f":"IF(ISERROR(HLOOKUP($A$1,K101:$AF101,1,FALSE)),#N/A,SUM(K102:K104))","v":{"$error":"#N/A"}},{"$f":"IF(ISERROR(HLOOKUP($A$1,L101:$AF101,1,FALSE)),#N/A,SUM(L102:L104))","v":{"$error":"#N/A"}},{"$f":"IF(ISERROR(HLOOKUP($A$1,M101:$AF101,1,FALSE)),#N/A,SUM(M102:M104))","v":{"$error":"#N/A"}},{"$f":"IF(ISERROR(HLOOKUP($A$1,N101:$AF101,1,FALSE)),#N/A,SUM(N102:N104))","v":{"$error":"#N/A"}}]
[]
[null,"Number of HWC Notices for Which All Other Staff Were Informed: All Cycles (to Current)","Summer","Cycle 1","Cycle 2","Cycle 3","Cycle 4","Cycle 5","Cycle 6","Cycle 7","Cycle 8","Cycle 9","Cycle 10","Cycle 11",null,null,null,null,null,null,null,null,null,null,null,null,null,null,null,null,null,null,null,{"$f":"SUBSTITUTE(B107,\"All Cycles (to Current)\",\"This Cycle\")","v":"Number of HWC Notices for Which All Other Staff Were Informed: This Cycle"},{"$f":"$A$1","v":"Cycle 1"},null,null,"Implementation Data Dashboard\nJ17:J17\n# HWC Refs All Oth Staff Informed  [This]"]
[null,"All Other Staff Informed",{"$f":"IF(ISERROR(HLOOKUP($A$1,C107:$AF107,1,FALSE)),#N/A,COUNTIFS(StuDB!$E:$E,\">=\"&Lookups!AE$1,StuDB!$E:$E,\"<=\"&Lookups!AE$2,StuDB!$BV:$BV,$AK108))","v":0},{"$f":"IF(ISERROR(HLOOKUP($A$1,D107:$AF107,1,FALSE)),#N/A,COUNTIFS(StuDB!$E:$E,\">=\"&Lookups!AF$1,StuDB!$E:$E,\"<=\"&Lookups!AF$2,StuDB!$BV:$BV,$AK108))","v":0},{"$f":"IF(ISERROR(HLOOKUP($A$1,E107:$AF107,1,FALSE)),#N/A,COUNTIFS(StuDB!$E:$E,\">=\"&Lookups!AG$1,StuDB!$E:$E,\"<=\"&Lookups!AG$2,StuDB!$BV:$BV,$AK108))","v":{"$error":"#N/A"}},{"$f":"IF(ISERROR(HLOOKUP($A$1,F107:$AF107,1,FALSE)),#N/A,COUNTIFS(StuDB!$E:$E,\">=\"&Lookups!AH$1,StuDB!$E:$E,\"<=\"&Lookups!AH$2,StuDB!$BV:$BV,$AK108))","v":{"$error":"#N/A"}},{"$f":"IF(ISERROR(HLOOKUP($A$1,G107:$AF107,1,FALSE)),#N/A,COUNTIFS(StuDB!$E:$E,\">=\"&Lookups!AI$1,StuDB!$E:$E,\"<=\"&Lookups!AI$2,StuDB!$BV:$BV,$AK108))","v":{"$error":"#N/A"}},{"$f":"IF(ISERROR(HLOOKUP($A$1,H107:$AF107,1,FALSE)),#N/A,COUNTIFS(StuDB!$E:$E,\">=\"&Lookups!AJ$1,StuDB!$E:$E,\"<=\"&Lookups!AJ$2,StuDB!$BV:$BV,$AK108))","v":{"$error":"#N/A"}},{"$f":"IF(ISERROR(HLOOKUP($A$1,I107:$AF107,1,FALSE)),#N/A,COUNTIFS(StuDB!$E:$E,\">=\"&Lookups!AK$1,StuDB!$E:$E,\"<=\"&Lookups!AK$2,StuDB!$BV:$BV,$AK108))","v":{"$error":"#N/A"}},{"$f":"IF(ISERROR(HLOOKUP($A$1,J107:$AF107,1,FALSE)),#N/A,COUNTIFS(StuDB!$E:$E,\">=\"&Lookups!AL$1,StuDB!$E:$E,\"<=\"&Lookups!AL$2,StuDB!$BV:$BV,$AK108))","v":{"$error":"#N/A"}},{"$f":"IF(ISERROR(HLOOKUP($A$1,K107:$AF107,1,FALSE)),#N/A,COUNTIFS(StuDB!$E:$E,\">=\"&Lookups!AM$1,StuDB!$E:$E,\"<=\"&Lookups!AM$2,StuDB!$BV:$BV,$AK108))","v":{"$error":"#N/A"}},{"$f":"IF(ISERROR(HLOOKUP($A$1,L107:$AF107,1,FALSE)),#N/A,COUNTIFS(StuDB!$E:$E,\">=\"&Lookups!AN$1,StuDB!$E:$E,\"<=\"&Lookups!AN$2,StuDB!$BV:$BV,$AK108))","v":{"$error":"#N/A"}},{"$f":"IF(ISERROR(HLOOKUP($A$1,M107:$AF107,1,FALSE)),#N/A,COUNTIFS(StuDB!$E:$E,\">=\"&Lookups!AO$1,StuDB!$E:$E,\"<=\"&Lookups!AO$2,StuDB!$BV:$BV,$AK108))","v":{"$error":"#N/A"}},{"$f":"IF(ISERROR(HLOOKUP($A$1,N107:$AF107,1,FALSE)),#N/A,COUNTIFS(StuDB!$E:$E,\">=\"&Lookups!AP$1,StuDB!$E:$E,\"<=\"&Lookups!AP$2,StuDB!$BV:$BV,$AK108))","v":{"$error":"#N/A"}},null,null,null,null,null,null,null,null,null,null,null,null,null,null,null,null,null,null,null,{"$f":"B108","v":"All Other Staff Informed"},{"$f":"HLOOKUP(AI107,C107:AF108,2,FALSE)","v":0},null,"All other staff have been Informed"]
[]
[null,"Not all Other Staff Informed",{"$f":"IF(ISERROR(HLOOKUP($A$1,C107:$AF107,1,FALSE)),#N/A,COUNTIFS(StuDB!$E:$E,\">=\"&Lookups!AE$1,StuDB!$E:$E,\"<=\"&Lookups!AE$2,StuDB!$BV:$BV,$AK110))","v":0},{"$f":"IF(ISERROR(HLOOKUP($A$1,D107:$AF107,1,FALSE)),#N/A,COUNTIFS(StuDB!$E:$E,\">=\"&Lookups!AF$1,StuDB!$E:$E,\"<=\"&Lookups!AF$2,StuDB!$BV:$BV,$AK110))","v":0},{"$f":"IF(ISERROR(HLOOKUP($A$1,E107:$AF107,1,FALSE)),#N/A,COUNTIFS(StuDB!$E:$E,\">=\"&Lookups!AG$1,StuDB!$E:$E,\"<=\"&Lookups!AG$2,StuDB!$BV:$BV,$AK110))","v":{"$error":"#N/A"}},{"$f":"IF(ISERROR(HLOOKUP($A$1,F107:$AF107,1,FALSE)),#N/A,COUNTIFS(StuDB!$E:$E,\">=\"&Lookups!AH$1,StuDB!$E:$E,\"<=\"&Lookups!AH$2,StuDB!$BV:$BV,$AK110))","v":{"$error":"#N/A"}},{"$f":"IF(ISERROR(HLOOKUP($A$1,G107:$AF107,1,FALSE)),#N/A,COUNTIFS(StuDB!$E:$E,\">=\"&Lookups!AI$1,StuDB!$E:$E,\"<=\"&Lookups!AI$2,StuDB!$BV:$BV,$AK110))","v":{"$error":"#N/A"}},{"$f":"IF(ISERROR(HLOOKUP($A$1,H107:$AF107,1,FALSE)),#N/A,COUNTIFS(StuDB!$E:$E,\">=\"&Lookups!AJ$1,StuDB!$E:$E,\"<=\"&Lookups!AJ$2,StuDB!$BV:$BV,$AK110))","v":{"$error":"#N/A"}},{"$f":"IF(ISERROR(HLOOKUP($A$1,I107:$AF107,1,FALSE)),#N/A,COUNTIFS(StuDB!$E:$E,\">=\"&Lookups!AK$1,StuDB!$E:$E,\"<=\"&Lookups!AK$2,StuDB!$BV:$BV,$AK110))","v":{"$error":"#N/A"}},{"$f":"IF(ISERROR(HLOOKUP($A$1,J107:$AF107,1,FALSE)),#N/A,COUNTIFS(StuDB!$E:$E,\">=\"&Lookups!AL$1,StuDB!$E:$E,\"<=\"&Lookups!AL$2,StuDB!$BV:$BV,$AK110))","v":{"$error":"#N/A"}},{"$f":"IF(ISERROR(HLOOKUP($A$1,K107:$AF107,1,FALSE)),#N/A,COUNTIFS(StuDB!$E:$E,\">=\"&Lookups!AM$1,StuDB!$E:$E,\"<=\"&Lookups!AM$2,StuDB!$BV:$BV,$AK110))","v":{"$error":"#N/A"}},{"$f":"IF(ISERROR(HLOOKUP($A$1,L107:$AF107,1,FALSE)),#N/A,COUNTIFS(StuDB!$E:$E,\">=\"&Lookups!AN$1,StuDB!$E:$E,\"<=\"&Lookups!AN$2,StuDB!$BV:$BV,$AK110))","v":{"$error":"#N/A"}},{"$f":"IF(ISERROR(HLOOKUP($A$1,M107:$AF107,1,FALSE)),#N/A,COUNTIFS(StuDB!$E:$E,\">=\"&Lookups!AO$1,StuDB!$E:$E,\"<=\"&Lookups!AO$2,StuDB!$BV:$BV,$AK110))","v":{"$error":"#N/A"}},{"$f":"IF(ISERROR(HLOOKUP($A$1,N107:$AF107,1,FALSE)),#N/A,COUNTIFS(StuDB!$E:$E,\">=\"&Lookups!AP$1,StuDB!$E:$E,\"<=\"&Lookups!AP$2,StuDB!$BV:$BV,$AK110))","v":{"$error":"#N/A"}},null,null,null,null,null,null,null,null,null,null,null,null,null,null,null,null,null,null,null,"Not all Other Staff Informed",{"$f":"HLOOKUP(AI107,C107:AF110,4,FALSE)","v":0},null,"Not all other staff have been Informed"]
[null,"Total",{"$f":"IF(ISERROR(HLOOKUP($A$1,C107:$AF107,1,FALSE)),#N/A,SUM(C108:C110))","v":0},{"$f":"IF(ISERROR(HLOOKUP($A$1,D107:$AF107,1,FALSE)),#N/A,SUM(D108:D110))","v":0},{"$f":"IF(ISERROR(HLOOKUP($A$1,E107:$AF107,1,FALSE)),#N/A,SUM(E108:E110))","v":{"$error":"#N/A"}},{"$f":"IF(ISERROR(HLOOKUP($A$1,F107:$AF107,1,FALSE)),#N/A,SUM(F108:F110))","v":{"$error":"#N/A"}},{"$f":"IF(ISERROR(HLOOKUP($A$1,G107:$AF107,1,FALSE)),#N/A,SUM(G108:G110))","v":{"$error":"#N/A"}},{"$f":"IF(ISERROR(HLOOKUP($A$1,H107:$AF107,1,FALSE)),#N/A,SUM(H108:H110))","v":{"$error":"#N/A"}},{"$f":"IF(ISERROR(HLOOKUP($A$1,I107:$AF107,1,FALSE)),#N/A,SUM(I108:I110))","v":{"$error":"#N/A"}},{"$f":"IF(ISERROR(HLOOKUP($A$1,J107:$AF107,1,FALSE)),#N/A,SUM(J108:J110))","v":{"$error":"#N/A"}},{"$f":"IF(ISERROR(HLOOKUP($A$1,K107:$AF107,1,FALSE)),#N/A,SUM(K108:K110))","v":{"$error":"#N/A"}},{"$f":"IF(ISERROR(HLOOKUP($A$1,L107:$AF107,1,FALSE)),#N/A,SUM(L108:L110))","v":{"$error":"#N/A"}},{"$f":"IF(ISERROR(HLOOKUP($A$1,M107:$AF107,1,FALSE)),#N/A,SUM(M108:M110))","v":{"$error":"#N/A"}},{"$f":"IF(ISERROR(HLOOKUP($A$1,N107:$AF107,1,FALSE)),#N/A,SUM(N108:N110))","v":{"$error":"#N/A"}}]
[]
[]
[]
["Notices","Percentage of HWC Notices for Which All Other Staff Were Informed: Cumulative","Summer","Cycle 1","Cycle 2","Cycle 3","Cycle 4","Cycle 5","Cycle 6","Cycle 7","Cycle 8","Cycle 9","Cycle 10","Cycle 11",null,null,null,null,null,null,null,null,null,null,null,null,null,null,null,null,null,null,null,{"$f":"SUBSTITUTE(B115,\"Cumulative\",\"Year to This Cycle\")","v":"Percentage of HWC Notices for Which All Other Staff Were Informed: Year to This Cycle"},{"$f":"$A$1","v":"Cycle 1"},null,null,null,null,"C\n\nYtD (2)"]
[null,"Other staff",{"$f":"IFERROR(C102/C$105,#N/A)","v":{"$error":"#N/A"}},{"$f":"IFERROR(D102/D$105,#N/A)","v":{"$error":"#N/A"}},{"$error":"#N/A"},{"$error":"#N/A"},{"$error":"#N/A"},{"$f":"IFERROR(H102/H$105,#N/A)","v":{"$error":"#N/A"}},{"$error":"#N/A"},{"$error":"#N/A"},{"$error":"#N/A"},{"$error":"#N/A"},{"$error":"#N/A"},{"$error":"#N/A"},null,null,null,null,null,null,null,null,null,null,null,null,null,null,null,null,null,null,null,{"$f":"B116","v":"Other staff"},{"$f":"HLOOKUP(AI115,C115:AF116,2,FALSE)","v":{"$error":"#N/A"}}]
[]
[null,"Not all Other Staff Informed",{"$f":"IFERROR(C104/C$105,#N/A)","v":{"$error":"#N/A"}},{"$f":"IFERROR(D104/D$105,#N/A)","v":{"$error":"#N/A"}},{"$error":"#N/A"},{"$error":"#N/A"},{"$error":"#N/A"},{"$error":"#N/A"},{"$error":"#N/A"},{"$error":"#N/A"},{"$error":"#N/A"},{"$error":"#N/A"},{"$error":"#N/A"},{"$error":"#N/A"},null,null,null,null,null,null,null,null,null,null,null,null,null,null,null,null,null,null,null,"Not all Other Staff Informed",{"$f":"HLOOKUP(AI115,C115:AF118,4,FALSE)","v":{"$error":"#N/A"}}]
[null,"Total",{"$f":"IF(ISERROR(HLOOKUP($A$1,C115:$AF115,1,FALSE)),#N/A,SUM(C116:C118))","v":{"$error":"#N/A"}},{"$f":"IF(ISERROR(HLOOKUP($A$1,D115:$AF115,1,FALSE)),#N/A,SUM(D116:D118))","v":{"$error":"#N/A"}},{"$f":"IF(ISERROR(HLOOKUP($A$1,E115:$AF115,1,FALSE)),#N/A,SUM(E116:E118))","v":{"$error":"#N/A"}},{"$f":"IF(ISERROR(HLOOKUP($A$1,F115:$AF115,1,FALSE)),#N/A,SUM(F116:F118))","v":{"$error":"#N/A"}},{"$f":"IF(ISERROR(HLOOKUP($A$1,G115:$AF115,1,FALSE)),#N/A,SUM(G116:G118))","v":{"$error":"#N/A"}},{"$f":"IF(ISERROR(HLOOKUP($A$1,H115:$AF115,1,FALSE)),#N/A,SUM(H116:H118))","v":{"$error":"#N/A"}},{"$f":"IF(ISERROR(HLOOKUP($A$1,I115:$AF115,1,FALSE)),#N/A,SUM(I116:I118))","v":{"$error":"#N/A"}},{"$f":"IF(ISERROR(HLOOKUP($A$1,J115:$AF115,1,FALSE)),#N/A,SUM(J116:J118))","v":{"$error":"#N/A"}},{"$f":"IF(ISERROR(HLOOKUP($A$1,K115:$AF115,1,FALSE)),#N/A,SUM(K116:K118))","v":{"$error":"#N/A"}},{"$f":"IF(ISERROR(HLOOKUP($A$1,L115:$AF115,1,FALSE)),#N/A,SUM(L116:L118))","v":{"$error":"#N/A"}},{"$f":"IF(ISERROR(HLOOKUP($A$1,M115:$AF115,1,FALSE)),#N/A,SUM(M116:M118))","v":{"$error":"#N/A"}},{"$f":"IF(ISERROR(HLOOKUP($A$1,N115:$AF115,1,FALSE)),#N/A,SUM(N116:N118))","v":{"$error":"#N/A"}}]
[null,null,null,null,null,null,null,null,null,null,null,null,null,null,null,null,null,null,null,null,null,null,null,null,null,null,null,null,null,null,null,null,null,null,null,null,null,null,null,"C\n\nThis (2)\nEach (2)"]
[null,"Percentage of HWC Notices for Which All Other Staff Were Informed: All Cycles (to Current)","Summer","Cycle 1","Cycle 2","Cycle 3","Cycle 4","Cycle 5","Cycle 6","Cycle 7","Cycle 8","Cycle 9","Cycle 10","Cycle 11",null,null,null,null,null,null,null,null,null,null,null,null,null,null,null,null,null,null,null,{"$f":"SUBSTITUTE(B121,\"All Cycles (to Current)\",\"This Cycle\")","v":"Percentage of HWC Notices for Which All Other Staff Were Informed: This Cycle"},{"$f":"$A$1","v":"Cycle 1"}]
[null,"Other staff",{"$f":"IFERROR(C108/C$111,#N/A)","v":{"$error":"#N/A"}},{"$f":"IFERROR(D108/D$111,#N/A)","v":{"$error":"#N/A"}},{"$error":"#N/A"},{"$error":"#N/A"},{"$error":"#N/A"},{"$error":"#N/A"},{"$error":"#N/A"},{"$error":"#N/A"},{"$error":"#N/A"},{"$error":"#N/A"},{"$error":"#N/A"},{"$error":"#N/A"},null,null,null,null,null,null,null,null,null,null,null,null,null,null,null,null,null,null,null,{"$f":"B122","v":"Other staff"},{"$f":"HLOOKUP(AI121,C121:AF122,2,FALSE)","v":{"$error":"#N/A"}},null,"All other staff have been Informed"]
[]
[null,"Not all Other Staff Informed",{"$f":"IFERROR(C110/C$111,#N/A)","v":{"$error":"#N/A"}},{"$f":"IFERROR(D110/D$111,#N/A)","v":{"$error":"#N/A"}},{"$error":"#N/A"},{"$error":"#N/A"},{"$error":"#N/A"},{"$error":"#N/A"},{"$error":"#N/A"},{"$error":"#N/A"},{"$error":"#N/A"},{"$error":"#N/A"},{"$error":"#N/A"},{"$error":"#N/A"},null,null,null,null,null,null,null,null,null,null,null,null,null,null,null,null,null,null,null,"Not all Other Staff Informed",{"$f":"HLOOKUP(AI121,C121:AF124,4,FALSE)","v":{"$error":"#N/A"}},null,"Not all other staff have been Informed"]
[null,"Total",{"$f":"IF(ISERROR(HLOOKUP($A$1,C121:$AF121,1,FALSE)),#N/A,SUM(C122:C124))","v":{"$error":"#N/A"}},{"$f":"IF(ISERROR(HLOOKUP($A$1,D121:$AF121,1,FALSE)),#N/A,SUM(D122:D124))","v":{"$error":"#N/A"}},{"$f":"IF(ISERROR(HLOOKUP($A$1,E121:$AF121,1,FALSE)),#N/A,SUM(E122:E124))","v":{"$error":"#N/A"}},{"$f":"IF(ISERROR(HLOOKUP($A$1,F121:$AF121,1,FALSE)),#N/A,SUM(F122:F124))","v":{"$error":"#N/A"}},{"$f":"IF(ISERROR(HLOOKUP($A$1,G121:$AF121,1,FALSE)),#N/A,SUM(G122:G124))","v":{"$error":"#N/A"}},{"$f":"IF(ISERROR(HLOOKUP($A$1,H121:$AF121,1,FALSE)),#N/A,SUM(H122:H124))","v":{"$error":"#N/A"}},{"$f":"IF(ISERROR(HLOOKUP($A$1,I121:$AF121,1,FALSE)),#N/A,SUM(I122:I124))","v":{"$error":"#N/A"}},{"$f":"IF(ISERROR(HLOOKUP($A$1,J121:$AF121,1,FALSE)),#N/A,SUM(J122:J124))","v":{"$error":"#N/A"}},{"$f":"IF(ISERROR(HLOOKUP($A$1,K121:$AF121,1,FALSE)),#N/A,SUM(K122:K124))","v":{"$error":"#N/A"}},{"$f":"IF(ISERROR(HLOOKUP($A$1,L121:$AF121,1,FALSE)),#N/A,SUM(L122:L124))","v":{"$error":"#N/A"}},{"$f":"IF(ISERROR(HLOOKUP($A$1,M121:$AF121,1,FALSE)),#N/A,SUM(M122:M124))","v":{"$error":"#N/A"}},{"$f":"IF(ISERROR(HLOOKUP($A$1,N121:$AF121,1,FALSE)),#N/A,SUM(N122:N124))","v":{"$error":"#N/A"}}]

{"sheet":"output_calc2","index":14,"n_rows":86,"n_cols":38,"rows_kept":86,"cut":false,"hidden":true,"merged":[[16,37,19,37],[22,37,25,37],[0,34,1,34],[2,0,11,0],[76,0,85,0],[40,0,49,0],[16,0,25,0],[28,0,37,0],[64,0,73,0],[52,0,61,0]]}
[{"$f":"'Student Outcome Data Dashboard'!I4","v":"Cycle 1"},null,1,2,3,4,5,6,7,8,9,10,11,12,null,null,null,null,null,null,null,null,null,null,null,null,null,null,null,null,null,null,null,null,"THIS CYCLE"]
[]
["Students","Number of Students Identified HWC: Cumulative","Summer","Cycle 1","Cycle 2","Cycle 3","Cycle 4","Cycle 5","Cycle 6","Cycle 7","Cycle 8","Cycle 9","Cycle 10","Cycle 11",null,null,null,null,null,null,null,null,null,null,null,null,null,null,null,null,null,null,null,{"$f":"SUBSTITUTE(B3,\"Cumulative\",\"Year to This Cycle\")","v":"Number of Students Identified HWC: Year to This Cycle"},{"$f":"$A$1","v":"Cycle 1"}]
[null,"With only 1 HWC Notification",{"$f":"IF(ISERROR(HLOOKUP($A$1,C3:$AF3,1,FALSE)),#N/A,COUNTIFS(Lookups!BO:BO,1)-COUNTIFS(Lookups!BO$1:BO$4,1))","v":0},{"$f":"IF(ISERROR(HLOOKUP($A$1,D3:$AF3,1,FALSE)),#N/A,COUNTIFS(Lookups!BP:BP,1)-COUNTIFS(Lookups!BP$1:BP$4,1))","v":0},{"$f":"IF(ISERROR(HLOOKUP($A$1,E3:$AF3,1,FALSE)),#N/A,COUNTIFS(Lookups!BQ:BQ,1)-COUNTIFS(Lookups!BQ$1:BQ$4,1))","v":{"$error":"#N/A"}},{"$f":"IF(ISERROR(HLOOKUP($A$1,F3:$AF3,1,FALSE)),#N/A,COUNTIFS(Lookups!BR:BR,1)-COUNTIFS(Lookups!BR$1:BR$4,1))","v":{"$error":"#N/A"}},{"$f":"IF(ISERROR(HLOOKUP($A$1,G3:$AF3,1,FALSE)),#N/A,COUNTIFS(Lookups!BS:BS,1)-COUNTIFS(Lookups!BS$1:BS$4,1))","v":{"$error":"#N/A"}},{"$f":"IF(ISERROR(HLOOKUP($A$1,H3:$AF3,1,FALSE)),#N/A,COUNTIFS(Lookups!BT:BT,1)-COUNTIFS(Lookups!BT$1:BT$4,1))","v":{"$error":"#N/A"}},{"$f":"IF(ISERROR(HLOOKUP($A$1,I3:$AF3,1,FALSE)),#N/A,COUNTIFS(Lookups!BU:BU,1)-COUNTIFS(Lookups!BU$1:BU$4,1))","v":{"$error":"#N/A"}},{"$f":"IF(ISERROR(HLOOKUP($A$1,J3:$AF3,1,FALSE)),#N/A,COUNTIFS(Lookups!BV:BV,1)-COUNTIFS(Lookups!BV$1:BV$4,1))","v":{"$error":"#N/A"}},{"$f":"IF(ISERROR(HLOOKUP($A$1,K3:$AF3,1,FALSE)),#N/A,COUNTIFS(Lookups!BW:BW,1)-COUNTIFS(Lookups!BW$1:BW$4,1))","v":{"$error":"#N/A"}},{"$f":"IF(ISERROR(HLOOKUP($A$1,L3:$AF3,1,FALSE)),#N/A,COUNTIFS(Lookups!BX:BX,1)-COUNTIFS(Lookups!BX$1:BX$4,1))","v":{"$error":"#N/A"}},{"$f":"IF(ISERROR(HLOOKUP($A$1,M3:$AF3,1,FALSE)),#N/A,COUNTIFS(Lookups!BY:BY,1)-COUNTIFS(Lookups!BY$1:BY$4,1))","v":{"$error":"#N/A"}},{"$f":"IF(ISERROR(HLOOKUP($A$1,N3:$AF3,1,FALSE)),#N/A,COUNTIFS(Lookups!BZ:BZ,1)-COUNTIFS(Lookups!BZ$1:BZ$4,1))","v":{"$error":"#N/A"}},null,null,null,null,null,null,null,null,null,null,null,null,null,null,null,null,null,null,null,{"$f":"B4","v":"With only 1 HWC Notification"},{"$f":"HLOOKUP(AI3,C3:AF4,2,FALSE)","v":0}]
[null,"With more than 1 HWC Notification",{"$f":"IF(ISERROR(HLOOKUP($A$1,C3:$AF3,1,FALSE)),#N/A,COUNTIFS(Lookups!BO:BO,\">\"&1)-COUNTIFS(Lookups!BO$1:BO$4,\">\"&1))","v":0},{"$f":"IF(ISERROR(HLOOKUP($A$1,D3:$AF3,1,FALSE)),#N/A,COUNTIFS(Lookups!BP:BP,\">\"&1)-COUNTIFS(Lookups!BP$1:BP$4,\">\"&1))","v":0},{"$f":"IF(ISERROR(HLOOKUP($A$1,E3:$AF3,1,FALSE)),#N/A,COUNTIFS(Lookups!BQ:BQ,\">\"&1)-COUNTIFS(Lookups!BQ$1:BQ$4,\">\"&1))","v":{"$error":"#N/A"}},{"$f":"IF(ISERROR(HLOOKUP($A$1,F3:$AF3,1,FALSE)),#N/A,COUNTIFS(Lookups!BR:BR,\">\"&1)-COUNTIFS(Lookups!BR$1:BR$4,\">\"&1))","v":{"$error":"#N/A"}},{"$f":"IF(ISERROR(HLOOKUP($A$1,G3:$AF3,1,FALSE)),#N/A,COUNTIFS(Lookups!BS:BS,\">\"&1)-COUNTIFS(Lookups!BS$1:BS$4,\">\"&1))","v":{"$error":"#N/A"}},{"$f":"IF(ISERROR(HLOOKUP($A$1,H3:$AF3,1,FALSE)),#N/A,COUNTIFS(Lookups!BT:BT,\">\"&1)-COUNTIFS(Lookups!BT$1:BT$4,\">\"&1))","v":{"$error":"#N/A"}},{"$f":"IF(ISERROR(HLOOKUP($A$1,I3:$AF3,1,FALSE)),#N/A,COUNTIFS(Lookups!BU:BU,\">\"&1)-COUNTIFS(Lookups!BU$1:BU$4,\">\"&1))","v":{"$error":"#N/A"}},{"$f":"IF(ISERROR(HLOOKUP($A$1,J3:$AF3,1,FALSE)),#N/A,COUNTIFS(Lookups!BV:BV,\">\"&1)-COUNTIFS(Lookups!BV$1:BV$4,\">\"&1))","v":{"$error":"#N/A"}},{"$f":"IF(ISERROR(HLOOKUP($A$1,K3:$AF3,1,FALSE)),#N/A,COUNTIFS(Lookups!BW:BW,\">\"&1)-COUNTIFS(Lookups!BW$1:BW$4,\">\"&1))","v":{"$error":"#N/A"}},{"$f":"IF(ISERROR(HLOOKUP($A$1,L3:$AF3,1,FALSE)),#N/A,COUNTIFS(Lookups!BX:BX,\">\"&1)-COUNTIFS(Lookups!BX$1:BX$4,\">\"&1))","v":{"$error":"#N/A"}},{"$f":"IF(ISERROR(HLOOKUP($A$1,M3:$AF3,1,FALSE)),#N/A,COUNTIFS(Lookups!BY:BY,\">\"&1)-COUNTIFS(Lookups!BY$1:BY$4,\">\"&1))","v":{"$error":"#N/A"}},{"$f":"IF(ISERROR(HLOOKUP($A$1,N3:$AF3,1,FALSE)),#N/A,COUNTIFS(Lookups!BZ:BZ,\">\"&1)-COUNTIFS(Lookups!BZ$1:BZ$4,\">\"&1))","v":{"$error":"#N/A"}},null,null,null,null,null,null,null,null,null,null,null,null,null,null,null,null,null,null,null,"With more than 1 HWC Notification",{"$f":"HLOOKUP(AI3,C3:AF5,3,FALSE)","v":0}]
[null,"Total",{"$f":"IF(ISERROR(HLOOKUP($A$1,C3:$AF3,1,FALSE)),#N/A,C4+C5)","v":0},{"$f":"IF(ISERROR(HLOOKUP($A$1,D3:$AF3,1,FALSE)),#N/A,D4+D5)","v":0},{"$f":"IF(ISERROR(HLOOKUP($A$1,E3:$AF3,1,FALSE)),#N/A,E4+E5)","v":{"$error":"#N/A"}},{"$f":"IF(ISERROR(HLOOKUP($A$1,F3:$AF3,1,FALSE)),#N/A,F4+F5)","v":{"$error":"#N/A"}},{"$f":"IF(ISERROR(HLOOKUP($A$1,G3:$AF3,1,FALSE)),#N/A,G4+G5)","v":{"$error":"#N/A"}},{"$f":"IF(ISERROR(HLOOKUP($A$1,H3:$AF3,1,FALSE)),#N/A,H4+H5)","v":{"$error":"#N/A"}},{"$f":"IF(ISERROR(HLOOKUP($A$1,I3:$AF3,1,FALSE)),#N/A,I4+I5)","v":{"$error":"#N/A"}},{"$f":"IF(ISERROR(HLOOKUP($A$1,J3:$AF3,1,FALSE)),#N/A,J4+J5)","v":{"$error":"#N/A"}},{"$f":"IF(ISERROR(HLOOKUP($A$1,K3:$AF3,1,FALSE)),#N/A,K4+K5)","v":{"$error":"#N/A"}},{"$f":"IF(ISERROR(HLOOKUP($A$1,L3:$AF3,1,FALSE)),#N/A,L4+L5)","v":{"$error":"#N/A"}},{"$f":"IF(ISERROR(HLOOKUP($A$1,M3:$AF3,1,FALSE)),#N/A,M4+M5)","v":{"$error":"#N/A"}},{"$f":"IF(ISERROR(HLOOKUP($A$1,N3:$AF3,1,FALSE)),#N/A,N4+N5)","v":{"$error":"#N/A"}},null,null,null,null,null,null,null,null,null,null,null,null,null,null,null,null,null,null,null,{"$f":"B6","v":"Total"},{"$f":"HLOOKUP(AI3,C3:AF6,4,FALSE)","v":0}]
[]
[null,"Number of Students Identified HWC: All Cycles (to Current)","Summer","Cycle 1","Cycle 2","Cycle 3","Cycle 4","Cycle 5","Cycle 6","Cycle 7","Cycle 8","Cycle 9","Cycle 10","Cycle 11",null,null,null,null,null,null,null,null,null,null,null,null,null,null,null,null,null,null,null,{"$f":"SUBSTITUTE(B8,\"All Cycles (to Current)\",\"This Cycle\")","v":"Number of Students Identified HWC: This Cycle"},{"$f":"$A$1","v":"Cycle 1"}]
[null,"With only 1 HWC Notification in this cycle",{"$f":"IF(ISERROR(HLOOKUP($A$1,C8:$AF8,1,FALSE)),#N/A,COUNTIFS(Lookups!AE:AE,1)-COUNTIFS(Lookups!AE$1:AE$4,1))","v":0},{"$f":"IF(ISERROR(HLOOKUP($A$1,D8:$AF8,1,FALSE)),#N/A,COUNTIFS(Lookups!AF:AF,1)-COUNTIFS(Lookups!AF$1:AF$4,1))","v":0},{"$f":"IF(ISERROR(HLOOKUP($A$1,E8:$AF8,1,FALSE)),#N/A,COUNTIFS(Lookups!AG:AG,1)-COUNTIFS(Lookups!AG$1:AG$4,1))","v":{"$error":"#N/A"}},{"$f":"IF(ISERROR(HLOOKUP($A$1,F8:$AF8,1,FALSE)),#N/A,COUNTIFS(Lookups!AH:AH,1)-COUNTIFS(Lookups!AH$1:AH$4,1))","v":{"$error":"#N/A"}},{"$f":"IF(ISERROR(HLOOKUP($A$1,G8:$AF8,1,FALSE)),#N/A,COUNTIFS(Lookups!AI:AI,1)-COUNTIFS(Lookups!AI$1:AI$4,1))","v":{"$error":"#N/A"}},{"$f":"IF(ISERROR(HLOOKUP($A$1,H8:$AF8,1,FALSE)),#N/A,COUNTIFS(Lookups!AJ:AJ,1)-COUNTIFS(Lookups!AJ$1:AJ$4,1))","v":{"$error":"#N/A"}},{"$f":"IF(ISERROR(HLOOKUP($A$1,I8:$AF8,1,FALSE)),#N/A,COUNTIFS(Lookups!AK:AK,1)-COUNTIFS(Lookups!AK$1:AK$4,1))","v":{"$error":"#N/A"}},{"$f":"IF(ISERROR(HLOOKUP($A$1,J8:$AF8,1,FALSE)),#N/A,COUNTIFS(Lookups!AL:AL,1)-COUNTIFS(Lookups!AL$1:AL$4,1))","v":{"$error":"#N/A"}},{"$f":"IF(ISERROR(HLOOKUP($A$1,K8:$AF8,1,FALSE)),#N/A,COUNTIFS(Lookups!AM:AM,1)-COUNTIFS(Lookups!AM$1:AM$4,1))","v":{"$error":"#N/A"}},{"$f":"IF(ISERROR(HLOOKUP($A$1,L8:$AF8,1,FALSE)),#N/A,COUNTIFS(Lookups!AN:AN,1)-COUNTIFS(Lookups!AN$1:AN$4,1))","v":{"$error":"#N/A"}},{"$f":"IF(ISERROR(HLOOKUP($A$1,M8:$AF8,1,FALSE)),#N/A,COUNTIFS(Lookups!AO:AO,1)-COUNTIFS(Lookups!AO$1:AO$4,1))","v":{"$error":"#N/A"}},{"$f":"IF(ISERROR(HLOOKUP($A$1,N8:$AF8,1,FALSE)),#N/A,COUNTIFS(Lookups!AP:AP,1)-COUNTIFS(Lookups!AP$1:AP$4,1))","v":{"$error":"#N/A"}},null,null,null,null,null,null,null,null,null,null,null,null,null,null,null,null,null,null,null,{"$f":"B9","v":"With only 1 HWC Notification in this cycle"},{"$f":"HLOOKUP(AI8,C8:AF9,2,FALSE)","v":0}]
[null,"With more than 1 HWC Notification in this cycle",{"$f":"IF(ISERROR(HLOOKUP($A$1,C8:$AF8,1,FALSE)),#N/A,COUNTIFS(Lookups!AE:AE,\">\"&1)-COUNTIFS(Lookups!AE$1:AE$4,\">\"&1))","v":0},{"$f":"IF(ISERROR(HLOOKUP($A$1,D8:$AF8,1,FALSE)),#N/A,COUNTIFS(Lookups!AF:AF,\">\"&1)-COUNTIFS(Lookups!AF$1:AF$4,\">\"&1))","v":0},{"$f":"IF(ISERROR(HLOOKUP($A$1,E8:$AF8,1,FALSE)),#N/A,COUNTIFS(Lookups!AG:AG,\">\"&1)-COUNTIFS(Lookups!AG$1:AG$4,\">\"&1))","v":{"$error":"#N/A"}},{"$f":"IF(ISERROR(HLOOKUP($A$1,F8:$AF8,1,FALSE)),#N/A,COUNTIFS(Lookups!AH:AH,\">\"&1)-COUNTIFS(Lookups!AH$1:AH$4,\">\"&1))","v":{"$error":"#N/A"}},{"$f":"IF(ISERROR(HLOOKUP($A$1,G8:$AF8,1,FALSE)),#N/A,COUNTIFS(Lookups!AI:AI,\">\"&1)-COUNTIFS(Lookups!AI$1:AI$4,\">\"&1))","v":{"$error":"#N/A"}},{"$f":"IF(ISERROR(HLOOKUP($A$1,H8:$AF8,1,FALSE)),#N/A,COUNTIFS(Lookups!AJ:AJ,\">\"&1)-COUNTIFS(Lookups!AJ$1:AJ$4,\">\"&1))","v":{"$error":"#N/A"}},{"$f":"IF(ISERROR(HLOOKUP($A$1,I8:$AF8,1,FALSE)),#N/A,COUNTIFS(Lookups!AK:AK,\">\"&1)-COUNTIFS(Lookups!AK$1:AK$4,\">\"&1))","v":{"$error":"#N/A"}},{"$f":"IF(ISERROR(HLOOKUP($A$1,J8:$AF8,1,FALSE)),#N/A,COUNTIFS(Lookups!AL:AL,\">\"&1)-COUNTIFS(Lookups!AL$1:AL$4,\">\"&1))","v":{"$error":"#N/A"}},{"$f":"IF(ISERROR(HLOOKUP($A$1,K8:$AF8,1,FALSE)),#N/A,COUNTIFS(Lookups!AM:AM,\">\"&1)-COUNTIFS(Lookups!AM$1:AM$4,\">\"&1))","v":{"$error":"#N/A"}},{"$f":"IF(ISERROR(HLOOKUP($A$1,L8:$AF8,1,FALSE)),#N/A,COUNTIFS(Lookups!AN:AN,\">\"&1)-COUNTIFS(Lookups!AN$1:AN$4,\">\"&1))","v":{"$error":"#N/A"}},{"$f":"IF(ISERROR(HLOOKUP($A$1,M8:$AF8,1,FALSE)),#N/A,COUNTIFS(Lookups!AO:AO,\">\"&1)-COUNTIFS(Lookups!AO$1:AO$4,\">\"&1))","v":{"$error":"#N/A"}},{"$f":"IF(ISERROR(HLOOKUP($A$1,N8:$AF8,1,FALSE)),#N/A,COUNTIFS(Lookups!AP:AP,\">\"&1)-COUNTIFS(Lookups!AP$1:AP$4,\">\"&1))","v":{"$error":"#N/A"}},null,null,null,null,null,null,null,null,null,null,null,null,null,null,null,null,null,null,null,"With more than 1 HWC Notification in this cycle",{"$f":"HLOOKUP(AI8,C8:AF10,3,FALSE)","v":0}]
[null,"Total",{"$f":"IF(ISERROR(HLOOKUP($A$1,C8:$AF8,1,FALSE)),#N/A,C9+C10)","v":0},{"$f":"IF(ISERROR(HLOOKUP($A$1,D8:$AF8,1,FALSE)),#N/A,D9+D10)","v":0},{"$f":"IF(ISERROR(HLOOKUP($A$1,E8:$AF8,1,FALSE)),#N/A,E9+E10)","v":{"$error":"#N/A"}},{"$f":"IF(ISERROR(HLOOKUP($A$1,F8:$AF8,1,FALSE)),#N/A,F9+F10)","v":{"$error":"#N/A"}},{"$f":"IF(ISERROR(HLOOKUP($A$1,G8:$AF8,1,FALSE)),#N/A,G9+G10)","v":{"$error":"#N/A"}},{"$f":"IF(ISERROR(HLOOKUP($A$1,H8:$AF8,1,FALSE)),#N/A,H9+H10)","v":{"$error":"#N/A"}},{"$f":"IF(ISERROR(HLOOKUP($A$1,I8:$AF8,1,FALSE)),#N/A,I9+I10)","v":{"$error":"#N/A"}},{"$f":"IF(ISERROR(HLOOKUP($A$1,J8:$AF8,1,FALSE)),#N/A,J9+J10)","v":{"$error":"#N/A"}},{"$f":"IF(ISERROR(HLOOKUP($A$1,K8:$AF8,1,FALSE)),#N/A,K9+K10)","v":{"$error":"#N/A"}},{"$f":"IF(ISERROR(HLOOKUP($A$1,L8:$AF8,1,FALSE)),#N/A,L9+L10)","v":{"$error":"#N/A"}},{"$f":"IF(ISERROR(HLOOKUP($A$1,M8:$AF8,1,FALSE)),#N/A,M9+M10)","v":{"$error":"#N/A"}},{"$f":"IF(ISERROR(HLOOKUP($A$1,N8:$AF8,1,FALSE)),#N/A,N9+N10)","v":{"$error":"#N/A"}},null,null,null,null,null,null,null,null,null,null,null,null,null,null,null,null,null,null,null,{"$f":"B11","v":"Total"},{"$f":"HLOOKUP(AI8,C8:AF11,4,FALSE)","v":0}]
[]
[]
[]
[]
[null,null,null,null,null,null,null,null,null,null,null,null,null,null,null,null,null,null,null,null,null,null,null,null,null,null,null,null,null,null,null,null,null,null,"THIS CYCLE"]
["Students","Number of Students: Cumulative","Summer","Cycle 1","Cycle 2","Cycle 3","Cycle 4","Cycle 5","Cycle 6","Cycle 7","Cycle 8","Cycle 9","Cycle 10","Cycle 11",null,null,null,null,null,null,null,null,null,null,null,null,null,null,null,null,null,null,null,{"$f":"SUBSTITUTE(B17,\"Cumulative\",\"Year to This Cycle\")","v":"Number of Students: Year to This Cycle"},{"$f":"$A$1","v":"Cycle 1"},null,null,"Student Outcomes Data Dashboard\nN10\n# HWC Cumul Students [HWC Cumulative]"]
[null,"Identified for HWC support in this cycle","x","x","x","x","x","x","x","x","x","x","x","x",null,null,null,null,null,null,null,null,null,null,null,null,null,null,null,null,null,null,null,{"$f":"B18","v":"Identified for HWC support in this cycle"},{"$f":"HLOOKUP(AI17,C17:AF18,2,FALSE)","v":"x"}]
[null,"Identified for HWC support so far this school year",{"$f":"C6","v":0},{"$f":"D6","v":0},{"$error":"#N/A"},{"$f":"F6","v":{"$error":"#N/A"}},{"$error":"#N/A"},{"$error":"#N/A"},{"$error":"#N/A"},{"$error":"#N/A"},{"$error":"#N/A"},{"$error":"#N/A"},{"$error":"#N/A"},{"$error":"#N/A"},null,null,null,null,null,null,null,null,null,null,null,null,null,null,null,null,null,null,null,"Identified for HWC support so far this school year",{"$f":"HLOOKUP(AI17,C17:AF19,3,FALSE)","v":0}]
[null,"In the whole school",{"$f":"IF(ISERROR(HLOOKUP($A$1,C3:$AF3,1,FALSE)),#N/A,VLOOKUP(C$17,CycleDB!$A$1:$AB$31,MATCH(output_calc2!$AK20,CycleDB!$A$1:$AB$1,0),FALSE))","v":0},{"$f":"IF(ISERROR(HLOOKUP($A$1,D3:$AF3,1,FALSE)),#N/A,VLOOKUP(D$17,CycleDB!$A$1:$AB$31,MATCH(output_calc2!$AK20,CycleDB!$A$1:$AB$1,0),FALSE))","v":0},{"$f":"IF(ISERROR(HLOOKUP($A$1,E3:$AF3,1,FALSE)),#N/A,VLOOKUP(E$17,CycleDB!$A$1:$AB$31,MATCH(output_calc2!$AK20,CycleDB!$A$1:$AB$1,0),FALSE))","v":{"$error":"#N/A"}},{"$f":"IF(ISERROR(HLOOKUP($A$1,F3:$AF3,1,FALSE)),#N/A,VLOOKUP(F$17,CycleDB!$A$1:$AB$31,MATCH(output_calc2!$AK20,CycleDB!$A$1:$AB$1,0),FALSE))","v":{"$error":"#N/A"}},{"$f":"IF(ISERROR(HLOOKUP($A$1,G3:$AF3,1,FALSE)),#N/A,VLOOKUP(G$17,CycleDB!$A$1:$AB$31,MATCH(output_calc2!$AK20,CycleDB!$A$1:$AB$1,0),FALSE))","v":{"$error":"#N/A"}},{"$f":"IF(ISERROR(HLOOKUP($A$1,H3:$AF3,1,FALSE)),#N/A,VLOOKUP(H$17,CycleDB!$A$1:$AB$31,MATCH(output_calc2!$AK20,CycleDB!$A$1:$AB$1,0),FALSE))","v":{"$error":"#N/A"}},{"$f":"IF(ISERROR(HLOOKUP($A$1,I3:$AF3,1,FALSE)),#N/A,VLOOKUP(I$17,CycleDB!$A$1:$AB$31,MATCH(output_calc2!$AK20,CycleDB!$A$1:$AB$1,0),FALSE))","v":{"$error":"#N/A"}},{"$f":"IF(ISERROR(HLOOKUP($A$1,J3:$AF3,1,FALSE)),#N/A,VLOOKUP(J$17,CycleDB!$A$1:$AB$31,MATCH(output_calc2!$AK20,CycleDB!$A$1:$AB$1,0),FALSE))","v":{"$error":"#N/A"}},{"$f":"IF(ISERROR(HLOOKUP($A$1,K3:$AF3,1,FALSE)),#N/A,VLOOKUP(K$17,CycleDB!$A$1:$AB$31,MATCH(output_calc2!$AK20,CycleDB!$A$1:$AB$1,0),FALSE))","v":{"$error":"#N/A"}},{"$f":"IF(ISERROR(HLOOKUP($A$1,L3:$AF3,1,FALSE)),#N/A,VLOOKUP(L$17,CycleDB!$A$1:$AB$31,MATCH(output_calc2!$AK20,CycleDB!$A$1:$AB$1,0),FALSE))","v":{"$error":"#N/A"}},{"$f":"IF(ISERROR(HLOOKUP($A$1,M3:$AF3,1,FALSE)),#N/A,VLOOKUP(M$17,CycleDB!$A$1:$AB$31,MATCH(output_calc2!$AK20,CycleDB!$A$1:$AB$1,0),FALSE))","v":{"$error":"#N/A"}},{"$f":"IF(ISERROR(HLOOKUP($A$1,N3:$AF3,1,FALSE)),#N/A,VLOOKUP(N$17,CycleDB!$A$1:$AB$31,MATCH(output_calc2!$AK20,CycleDB!$A$1:$AB$1,0),FALSE))","v":{"$error":"#N/A"}},null,null,null,null,null,null,null,null,null,null,null,null,null,null,null,null,null,null,null,{"$f":"B20","v":"In the whole school"},{"$f":"HLOOKUP(AI17,C17:AF20,4,FALSE)","v":0},null,"SchEnrl_Schoolwide_Cycle"]
[null,null,null,null,null,null,null,null,null,null,null,null,null,null,null,null,null,null,null,null,null,null,null,null,null,null,null,null,null,null,null,null,null,null,null,null,"as of 6/3/20 no longer using YTD, instead using CYCLE"]
[null,null,null,null,null,null,null,null,null,null,null,null,null,null,null,null,null,null,null,null,null,null,null,null,null,null,null,null,null,null,null,null,null,null,"THIS CYCLE"]
[null,"Number of Students: All Cycles (to Current)","Summer","Cycle 1","Cycle 2","Cycle 3","Cycle 4","Cycle 5","Cycle 6","Cycle 7","Cycle 8","Cycle 9","Cycle 10","Cycle 11",null,null,null,null,null,null,null,null,null,null,null,null,null,null,null,null,null,null,null,{"$f":"SUBSTITUTE(B23,\"All Cycles (to Current)\",\"This Cycle\")","v":"Number of Students: This Cycle"},{"$f":"$A$1","v":"Cycle 1"},null,null,"Student Outcomes Data Dashboard\nN9, N11\n# HWC Cycle Students [HWC Cycle]\n# Students in school [Schoolwide]"]
[null,"Identified for HWC support in this cycle",{"$f":"C11","v":0},{"$f":"D11","v":0},{"$error":"#N/A"},{"$f":"F11","v":{"$error":"#N/A"}},{"$error":"#N/A"},{"$error":"#N/A"},{"$error":"#N/A"},{"$error":"#N/A"},{"$error":"#N/A"},{"$error":"#N/A"},{"$error":"#N/A"},{"$error":"#N/A"},null,null,null,null,null,null,null,null,null,null,null,null,null,null,null,null,null,null,null,{"$f":"B24","v":"Identified for HWC support in this cycle"},{"$f":"HLOOKUP(AI23,C23:AF24,2,FALSE)","v":0}]
[null,"Identified for HWC support so far this school year","x","x","x","x","x","x","x","x","x","x","x","x",null,null,null,null,null,null,null,null,null,null,null,null,null,null,null,null,null,null,null,"Identified for HWC support so far this school year",{"$f":"HLOOKUP(AI23,C23:AF25,3,FALSE)","v":"x"}]
[null,"In the whole school",{"$f":"IF(ISERROR(HLOOKUP($A$1,C3:$AF3,1,FALSE)),#N/A,VLOOKUP(C$23,CycleDB!$A$1:$AB$31,MATCH(output_calc2!$AK26,CycleDB!$A$1:$AB$1,0),FALSE))","v":0},{"$f":"IF(ISERROR(HLOOKUP($A$1,D3:$AF3,1,FALSE)),#N/A,VLOOKUP(D$23,CycleDB!$A$1:$AB$31,MATCH(output_calc2!$AK26,CycleDB!$A$1:$AB$1,0),FALSE))","v":0},{"$f":"IF(ISERROR(HLOOKUP($A$1,E3:$AF3,1,FALSE)),#N/A,VLOOKUP(E$23,CycleDB!$A$1:$AB$31,MATCH(output_calc2!$AK26,CycleDB!$A$1:$AB$1,0),FALSE))","v":{"$error":"#N/A"}},{"$f":"IF(ISERROR(HLOOKUP($A$1,F3:$AF3,1,FALSE)),#N/A,VLOOKUP(F$23,CycleDB!$A$1:$AB$31,MATCH(output_calc2!$AK26,CycleDB!$A$1:$AB$1,0),FALSE))","v":{"$error":"#N/A"}},{"$f":"IF(ISERROR(HLOOKUP($A$1,G3:$AF3,1,FALSE)),#N/A,VLOOKUP(G$23,CycleDB!$A$1:$AB$31,MATCH(output_calc2!$AK26,CycleDB!$A$1:$AB$1,0),FALSE))","v":{"$error":"#N/A"}},{"$f":"IF(ISERROR(HLOOKUP($A$1,H3:$AF3,1,FALSE)),#N/A,VLOOKUP(H$23,CycleDB!$A$1:$AB$31,MATCH(output_calc2!$AK26,CycleDB!$A$1:$AB$1,0),FALSE))","v":{"$error":"#N/A"}},{"$f":"IF(ISERROR(HLOOKUP($A$1,I3:$AF3,1,FALSE)),#N/A,VLOOKUP(I$23,CycleDB!$A$1:$AB$31,MATCH(output_calc2!$AK26,CycleDB!$A$1:$AB$1,0),FALSE))","v":{"$error":"#N/A"}},{"$f":"IF(ISERROR(HLOOKUP($A$1,J3:$AF3,1,FALSE)),#N/A,VLOOKUP(J$23,CycleDB!$A$1:$AB$31,MATCH(output_calc2!$AK26,CycleDB!$A$1:$AB$1,0),FALSE))","v":{"$error":"#N/A"}},{"$f":"IF(ISERROR(HLOOKUP($A$1,K3:$AF3,1,FALSE)),#N/A,VLOOKUP(K$23,CycleDB!$A$1:$AB$31,MATCH(output_calc2!$AK26,CycleDB!$A$1:$AB$1,0),FALSE))","v":{"$error":"#N/A"}},{"$f":"IF(ISERROR(HLOOKUP($A$1,L3:$AF3,1,FALSE)),#N/A,VLOOKUP(L$23,CycleDB!$A$1:$AB$31,MATCH(output_calc2!$AK26,CycleDB!$A$1:$AB$1,0),FALSE))","v":{"$error":"#N/A"}},{"$f":"IF(ISERROR(HLOOKUP($A$1,M3:$AF3,1,FALSE)),#N/A,VLOOKUP(M$23,CycleDB!$A$1:$AB$31,MATCH(output_calc2!$AK26,CycleDB!$A$1:$AB$1,0),FALSE))","v":{"$error":"#N/A"}},{"$f":"IF(ISERROR(HLOOKUP($A$1,N3:$AF3,1,FALSE)),#N/A,VLOOKUP(N$23,CycleDB!$A$1:$AB$31,MATCH(output_calc2!$AK26,CycleDB!$A$1:$AB$1,0),FALSE))","v":{"$error":"#N/A"}},null,null,null,null,null,null,null,null,null,null,null,null,null,null,null,null,null,null,null,{"$f":"B26","v":"In the whole school"},{"$f":"HLOOKUP(AI23,C23:AF26,4,FALSE)","v":0},null,"SchEnrl_Schoolwide_Cycle"]
[]
[null,null,null,null,null,null,null,null,null,null,null,null,null,null,null,null,null,null,null,null,null,null,null,null,null,null,null,null,null,null,null,null,null,null,"THIS CYCLE"]
["Behavior","Number of Behavior Incidents for Students…: Year to Current Cycle","Summer","Cycle 1","Cycle 2","Cycle 3","Cycle 4","Cycle 5","Cycle 6","Cycle 7","Cycle 8","Cycle 9","Cycle 10","Cycle 11",null,null,null,null,null,null,null,null,null,null,null,null,null,null,null,null,null,null,null,{"$f":"SUBSTITUTE(B29,\"Cumulative\",\"Year to This Cycle\")","v":"Number of Behavior Incidents for Students…: Year to Current Cycle"},{"$f":"$A$1","v":"Cycle 1"}]
[null,"Identified for HWC support in this cycle",null,null,null,null,null,null,null,null,null,null,null,null,null,null,null,null,null,null,null,null,null,null,null,null,null,null,null,null,null,null,null,{"$f":"B30","v":"Identified for HWC support in this cycle"},{"$f":"HLOOKUP(AI29,C29:AF30,2,FALSE)","v":0},null,"Behav_CycleHWC_YTD"]
[null,"Identified for HWC support so far this school year",{"$f":"SUM($C37:C37)","v":0},{"$f":"SUM($C37:D37)","v":0},{"$f":"SUM($C37:E37)","v":{"$error":"#N/A"}},{"$f":"SUM($C37:F37)","v":{"$error":"#N/A"}},{"$f":"SUM($C37:G37)","v":{"$error":"#N/A"}},{"$f":"SUM($C37:H37)","v":{"$error":"#N/A"}},{"$f":"SUM($C37:I37)","v":{"$error":"#N/A"}},{"$f":"SUM($C37:J37)","v":{"$error":"#N/A"}},{"$f":"SUM($C37:K37)","v":{"$error":"#N/A"}},{"$f":"SUM($C37:L37)","v":{"$error":"#N/A"}},{"$f":"SUM($C37:M37)","v":{"$error":"#N/A"}},{"$f":"SUM($C37:N37)","v":{"$error":"#N/A"}},null,null,null,null,null,null,null,null,null,null,null,null,null,null,null,null,null,null,null,"Identified for HWC support so far this school year",{"$f":"HLOOKUP(AI29,C29:AF31,3,FALSE)","v":0},null,"Behav_CumulHWC_YTD"]
[null,"In the whole school",{"$f":"SUM($C38:C38)","v":0},{"$f":"SUM($C38:D38)","v":0},{"$f":"SUM($C38:E38)","v":{"$error":"#N/A"}},{"$f":"SUM($C38:F38)","v":{"$error":"#N/A"}},{"$f":"SUM($C38:G38)","v":{"$error":"#N/A"}},{"$f":"SUM($C38:H38)","v":{"$error":"#N/A"}},{"$f":"SUM($C38:I38)","v":{"$error":"#N/A"}},{"$f":"SUM($C38:J38)","v":{"$error":"#N/A"}},{"$f":"SUM($C38:K38)","v":{"$error":"#N/A"}},{"$f":"SUM($C38:L38)","v":{"$error":"#N/A"}},{"$f":"SUM($C38:M38)","v":{"$error":"#N/A"}},{"$f":"SUM($C38:N38)","v":{"$error":"#N/A"}},null,null,null,null,null,null,null,null,null,null,null,null,null,null,null,null,null,null,null,{"$f":"B32","v":"In the whole school"},{"$f":"HLOOKUP(AI29,C29:AF32,4,FALSE)","v":0},null,"Behav_Schoolwide_YTD"]
[]
[null,null,null,null,null,null,null,null,null,null,null,null,null,null,null,null,null,null,null,null,null,null,null,null,null,null,null,null,null,null,null,null,null,null,"THIS CYCLE"]
[null,"Number of Behavior Incidents for Students…: All Cycles (to Current)","Summer","Cycle 1","Cycle 2","Cycle 3","Cycle 4","Cycle 5","Cycle 6","Cycle 7","Cycle 8","Cycle 9","Cycle 10","Cycle 11",null,null,null,null,null,null,null,null,null,null,null,null,null,null,null,null,null,null,null,{"$f":"SUBSTITUTE(B35,\"All Cycles (to Current)\",\"This Cycle\")","v":"Number of Behavior Incidents for Students…: This Cycle"},{"$f":"$A$1","v":"Cycle 1"}]
[null,"Identified for HWC support in this cycle",{"$f":"IF(ISERROR(HLOOKUP($A$1,C3:$AF3,1,FALSE)),#N/A,VLOOKUP(C$35,CycleDB!$A$1:$AB$31,MATCH($AK36,CycleDB!$A$1:$AB$1,0),FALSE))","v":0},{"$f":"IF(ISERROR(HLOOKUP($A$1,D3:$AF3,1,FALSE)),#N/A,VLOOKUP(D$35,CycleDB!$A$1:$AB$31,MATCH($AK36,CycleDB!$A$1:$AB$1,0),FALSE))","v":0},{"$f":"IF(ISERROR(HLOOKUP($A$1,E3:$AF3,1,FALSE)),#N/A,VLOOKUP(E$35,CycleDB!$A$1:$AB$31,MATCH($AK36,CycleDB!$A$1:$AB$1,0),FALSE))","v":{"$error":"#N/A"}},{"$f":"IF(ISERROR(HLOOKUP($A$1,F3:$AF3,1,FALSE)),#N/A,VLOOKUP(F$35,CycleDB!$A$1:$AB$31,MATCH($AK36,CycleDB!$A$1:$AB$1,0),FALSE))","v":{"$error":"#N/A"}},{"$f":"IF(ISERROR(HLOOKUP($A$1,G3:$AF3,1,FALSE)),#N/A,VLOOKUP(G$35,CycleDB!$A$1:$AB$31,MATCH($AK36,CycleDB!$A$1:$AB$1,0),FALSE))","v":{"$error":"#N/A"}},{"$f":"IF(ISERROR(HLOOKUP($A$1,H3:$AF3,1,FALSE)),#N/A,VLOOKUP(H$35,CycleDB!$A$1:$AB$31,MATCH($AK36,CycleDB!$A$1:$AB$1,0),FALSE))","v":{"$error":"#N/A"}},{"$f":"IF(ISERROR(HLOOKUP($A$1,I3:$AF3,1,FALSE)),#N/A,VLOOKUP(I$35,CycleDB!$A$1:$AB$31,MATCH($AK36,CycleDB!$A$1:$AB$1,0),FALSE))","v":{"$error":"#N/A"}},{"$f":"IF(ISERROR(HLOOKUP($A$1,J3:$AF3,1,FALSE)),#N/A,VLOOKUP(J$35,CycleDB!$A$1:$AB$31,MATCH($AK36,CycleDB!$A$1:$AB$1,0),FALSE))","v":{"$error":"#N/A"}},{"$f":"IF(ISERROR(HLOOKUP($A$1,K3:$AF3,1,FALSE)),#N/A,VLOOKUP(K$35,CycleDB!$A$1:$AB$31,MATCH($AK36,CycleDB!$A$1:$AB$1,0),FALSE))","v":{"$error":"#N/A"}},{"$f":"IF(ISERROR(HLOOKUP($A$1,L3:$AF3,1,FALSE)),#N/A,VLOOKUP(L$35,CycleDB!$A$1:$AB$31,MATCH($AK36,CycleDB!$A$1:$AB$1,0),FALSE))","v":{"$error":"#N/A"}},{"$f":"IF(ISERROR(HLOOKUP($A$1,M3:$AF3,1,FALSE)),#N/A,VLOOKUP(M$35,CycleDB!$A$1:$AB$31,MATCH($AK36,CycleDB!$A$1:$AB$1,0),FALSE))","v":{"$error":"#N/A"}},{"$f":"IF(ISERROR(HLOOKUP($A$1,N3:$AF3,1,FALSE)),#N/A,VLOOKUP(N$35,CycleDB!$A$1:$AB$31,MATCH($AK36,CycleDB!$A$1:$AB$1,0),FALSE))","v":{"$error":"#N/A"}},null,null,null,null,null,null,null,null,null,null,null,null,null,null,null,null,null,null,null,{"$f":"B36","v":"Identified for HWC support in this cycle"},{"$f":"HLOOKUP(AI35,C35:AF36,2,FALSE)","v":0},null,"Behav_CycleHWC_Cycle"]
[null,"Identified for HWC support so far this school year",{"$f":"IF(ISERROR(HLOOKUP($A$1,C3:$AF3,1,FALSE)),#N/A,VLOOKUP(C$35,CycleDB!$A$1:$AB$31,MATCH($AK37,CycleDB!$A$1:$AB$1,0),FALSE))","v":0},{"$f":"IF(ISERROR(HLOOKUP($A$1,D3:$AF3,1,FALSE)),#N/A,VLOOKUP(D$35,CycleDB!$A$1:$AB$31,MATCH($AK37,CycleDB!$A$1:$AB$1,0),FALSE))","v":0},{"$f":"IF(ISERROR(HLOOKUP($A$1,E3:$AF3,1,FALSE)),#N/A,VLOOKUP(E$35,CycleDB!$A$1:$AB$31,MATCH($AK37,CycleDB!$A$1:$AB$1,0),FALSE))","v":{"$error":"#N/A"}},{"$f":"IF(ISERROR(HLOOKUP($A$1,F3:$AF3,1,FALSE)),#N/A,VLOOKUP(F$35,CycleDB!$A$1:$AB$31,MATCH($AK37,CycleDB!$A$1:$AB$1,0),FALSE))","v":{"$error":"#N/A"}},{"$f":"IF(ISERROR(HLOOKUP($A$1,G3:$AF3,1,FALSE)),#N/A,VLOOKUP(G$35,CycleDB!$A$1:$AB$31,MATCH($AK37,CycleDB!$A$1:$AB$1,0),FALSE))","v":{"$error":"#N/A"}},{"$f":"IF(ISERROR(HLOOKUP($A$1,H3:$AF3,1,FALSE)),#N/A,VLOOKUP(H$35,CycleDB!$A$1:$AB$31,MATCH($AK37,CycleDB!$A$1:$AB$1,0),FALSE))","v":{"$error":"#N/A"}},{"$f":"IF(ISERROR(HLOOKUP($A$1,I3:$AF3,1,FALSE)),#N/A,VLOOKUP(I$35,CycleDB!$A$1:$AB$31,MATCH($AK37,CycleDB!$A$1:$AB$1,0),FALSE))","v":{"$error":"#N/A"}},{"$f":"IF(ISERROR(HLOOKUP($A$1,J3:$AF3,1,FALSE)),#N/A,VLOOKUP(J$35,CycleDB!$A$1:$AB$31,MATCH($AK37,CycleDB!$A$1:$AB$1,0),FALSE))","v":{"$error":"#N/A"}},{"$f":"IF(ISERROR(HLOOKUP($A$1,K3:$AF3,1,FALSE)),#N/A,VLOOKUP(K$35,CycleDB!$A$1:$AB$31,MATCH($AK37,CycleDB!$A$1:$AB$1,0),FALSE))","v":{"$error":"#N/A"}},{"$f":"IF(ISERROR(HLOOKUP($A$1,L3:$AF3,1,FALSE)),#N/A,VLOOKUP(L$35,CycleDB!$A$1:$AB$31,MATCH($AK37,CycleDB!$A$1:$AB$1,0),FALSE))","v":{"$error":"#N/A"}},{"$f":"IF(ISERROR(HLOOKUP($A$1,M3:$AF3,1,FALSE)),#N/A,VLOOKUP(M$35,CycleDB!$A$1:$AB$31,MATCH($AK37,CycleDB!$A$1:$AB$1,0),FALSE))","v":{"$error":"#N/A"}},{"$f":"IF(ISERROR(HLOOKUP($A$1,N3:$AF3,1,FALSE)),#N/A,VLOOKUP(N$35,CycleDB!$A$1:$AB$31,MATCH($AK37,CycleDB!$A$1:$AB$1,0),FALSE))","v":{"$error":"#N/A"}},null,null,null,null,null,null,null,null,null,null,null,null,null,null,null,null,null,null,null,"Identified for HWC support so far this school year",{"$f":"HLOOKUP(AI35,C35:AF37,3,FALSE)","v":0},null,"Behav_CumulHWC_Cycle"]
[null,"In the whole school",{"$f":"IF(ISERROR(HLOOKUP($A$1,C3:$AF3,1,FALSE)),#N/A,VLOOKUP(C$35,CycleDB!$A$1:$AB$31,MATCH($AK38,CycleDB!$A$1:$AB$1,0),FALSE))","v":0},{"$f":"IF(ISERROR(HLOOKUP($A$1,D3:$AF3,1,FALSE)),#N/A,VLOOKUP(D$35,CycleDB!$A$1:$AB$31,MATCH($AK38,CycleDB!$A$1:$AB$1,0),FALSE))","v":0},{"$f":"IF(ISERROR(HLOOKUP($A$1,E3:$AF3,1,FALSE)),#N/A,VLOOKUP(E$35,CycleDB!$A$1:$AB$31,MATCH($AK38,CycleDB!$A$1:$AB$1,0),FALSE))","v":{"$error":"#N/A"}},{"$f":"IF(ISERROR(HLOOKUP($A$1,F3:$AF3,1,FALSE)),#N/A,VLOOKUP(F$35,CycleDB!$A$1:$AB$31,MATCH($AK38,CycleDB!$A$1:$AB$1,0),FALSE))","v":{"$error":"#N/A"}},{"$f":"IF(ISERROR(HLOOKUP($A$1,G3:$AF3,1,FALSE)),#N/A,VLOOKUP(G$35,CycleDB!$A$1:$AB$31,MATCH($AK38,CycleDB!$A$1:$AB$1,0),FALSE))","v":{"$error":"#N/A"}},{"$f":"IF(ISERROR(HLOOKUP($A$1,H3:$AF3,1,FALSE)),#N/A,VLOOKUP(H$35,CycleDB!$A$1:$AB$31,MATCH($AK38,CycleDB!$A$1:$AB$1,0),FALSE))","v":{"$error":"#N/A"}},{"$f":"IF(ISERROR(HLOOKUP($A$1,I3:$AF3,1,FALSE)),#N/A,VLOOKUP(I$35,CycleDB!$A$1:$AB$31,MATCH($AK38,CycleDB!$A$1:$AB$1,0),FALSE))","v":{"$error":"#N/A"}},{"$f":"IF(ISERROR(HLOOKUP($A$1,J3:$AF3,1,FALSE)),#N/A,VLOOKUP(J$35,CycleDB!$A$1:$AB$31,MATCH($AK38,CycleDB!$A$1:$AB$1,0),FALSE))","v":{"$error":"#N/A"}},{"$f":"IF(ISERROR(HLOOKUP($A$1,K3:$AF3,1,FALSE)),#N/A,VLOOKUP(K$35,CycleDB!$A$1:$AB$31,MATCH($AK38,CycleDB!$A$1:$AB$1,0),FALSE))","v":{"$error":"#N/A"}},{"$f":"IF(ISERROR(HLOOKUP($A$1,L3:$AF3,1,FALSE)),#N/A,VLOOKUP(L$35,CycleDB!$A$1:$AB$31,MATCH($AK38,CycleDB!$A$1:$AB$1,0),FALSE))","v":{"$error":"#N/A"}},{"$f":"IF(ISERROR(HLOOKUP($A$1,M3:$AF3,1,FALSE)),#N/A,VLOOKUP(M$35,CycleDB!$A$1:$AB$31,MATCH($AK38,CycleDB!$A$1:$AB$1,0),FALSE))","v":{"$error":"#N/A"}},{"$f":"IF(ISERROR(HLOOKUP($A$1,N3:$AF3,1,FALSE)),#N/A,VLOOKUP(N$35,CycleDB!$A$1:$AB$31,MATCH($AK38,CycleDB!$A$1:$AB$1,0),FALSE))","v":{"$error":"#N/A"}},null,null,null,null,null,null,null,null,null,null,null,null,null,null,null,null,null,null,null,{"$f":"B38","v":"In the whole school"},{"$f":"HLOOKUP(AI35,C35:AF38,4,FALSE)","v":0},null,"Behav_Schoolwide_Cycle"]
[]
[null,null,null,null,null,null,null,null,null,null,null,null,null,null,null,null,null,null,null,null,null,null,null,null,null,null,null,null,null,null,null,null,null,null,"THIS CYCLE"]
["Behavior","Number of Behavior Incidents per Student for Students…: Year to Current Cycle","Summer","Cycle 1","Cycle 2","Cycle 3","Cycle 4","Cycle 5","Cycle 6","Cycle 7","Cycle 8","Cycle 9","Cycle 10","Cycle 11",null,null,null,null,null,null,null,null,null,null,null,null,null,null,null,null,null,null,null,{"$f":"SUBSTITUTE(B41,\"Cumulative\",\"Year to This Cycle\")","v":"Number of Behavior Incidents per Student for Students…: Year to Current Cycle"},{"$f":"$A$1","v":"Cycle 1"}]
[null,"Identified for HWC support in this cycle",{"$f":"C30/C24","v":{"$error":"#DIV/0!"}},{"$f":"D30/D24","v":{"$error":"#DIV/0!"}},{"$error":"#N/A"},{"$error":"#N/A"},{"$error":"#N/A"},{"$f":"H30/H24","v":{"$error":"#N/A"}},{"$error":"#N/A"},{"$error":"#N/A"},{"$error":"#N/A"},{"$error":"#N/A"},{"$error":"#N/A"},{"$error":"#N/A"},null,null,null,null,null,null,null,null,null,null,null,null,null,null,null,null,null,null,null,{"$f":"B42","v":"Identified for HWC support in this cycle"},{"$f":"HLOOKUP(AI41,C41:AF42,2,FALSE)","v":{"$error":"#DIV/0!"}},null,"Behav_CycleHWC_YTD"]
[null,"Identified for HWC support so far this school year",{"$f":"C31/C19","v":{"$error":"#DIV/0!"}},{"$f":"D31/D19","v":{"$error":"#DIV/0!"}},{"$error":"#N/A"},{"$error":"#N/A"},{"$error":"#N/A"},{"$error":"#N/A"},{"$error":"#N/A"},{"$error":"#N/A"},{"$error":"#N/A"},{"$error":"#N/A"},{"$error":"#N/A"},{"$error":"#N/A"},null,null,null,null,null,null,null,null,null,null,null,null,null,null,null,null,null,null,null,"Identified for HWC support so far this school year",{"$f":"HLOOKUP(AI41,C41:AF43,3,FALSE)","v":{"$error":"#DIV/0!"}},null,"Behav_CumulHWC_YTD"]
[null,"In the whole school",{"$f":"C32/C20","v":{"$error":"#DIV/0!"}},{"$f":"D32/D20","v":{"$error":"#DIV/0!"}},{"$error":"#N/A"},{"$error":"#N/A"},{"$error":"#N/A"},{"$error":"#N/A"},{"$error":"#N/A"},{"$error":"#N/A"},{"$error":"#N/A"},{"$error":"#N/A"},{"$error":"#N/A"},{"$error":"#N/A"},null,null,null,null,null,null,null,null,null,null,null,null,null,null,null,null,null,null,null,{"$f":"B44","v":"In the whole school"},{"$f":"HLOOKUP(AI41,C41:AF44,4,FALSE)","v":{"$error":"#DIV/0!"}},null,"Behav_Schoolwide_YTD"]
[]
[null,null,null,null,null,null,null,null,null,null,null,null,null,null,null,null,null,null,null,null,null,null,null,null,null,null,null,null,null,null,null,null,null,null,"THIS CYCLE"]
[null,"Number of Behavior Incidents per Student for Students…: All Cycles (to Current)","Summer","Cycle 1","Cycle 2","Cycle 3","Cycle 4","Cycle 5","Cycle 6","Cycle 7","Cycle 8","Cycle 9","Cycle 10","Cycle 11",null,null,null,null,null,null,null,null,null,null,null,null,null,null,null,null,null,null,null,{"$f":"SUBSTITUTE(B47,\"All Cycles (to Current)\",\"This Cycle\")","v":"Number of Behavior Incidents per Student for Students…: This Cycle"},{"$f":"$A$1","v":"Cycle 1"}]
[null,"Identified for HWC support in this cycle",{"$f":"C36/C24","v":{"$error":"#DIV/0!"}},{"$f":"D36/D24","v":{"$error":"#DIV/0!"}},{"$error":"#N/A"},{"$error":"#N/A"},{"$error":"#N/A"},{"$error":"#N/A"},{"$error":"#N/A"},{"$error":"#N/A"},{"$f":"K36/K24","v":{"$error":"#N/A"}},{"$error":"#N/A"},{"$error":"#N/A"},{"$error":"#N/A"},null,null,null,null,null,null,null,null,null,null,null,null,null,null,null,null,null,null,null,{"$f":"B48","v":"Identified for HWC support in this cycle"},{"$f":"HLOOKUP(AI47,C47:AF48,2,FALSE)","v":{"$error":"#DIV/0!"}},null,"Behav_CycleHWC_Cycle"]
[null,"Identified for HWC support so far this school year",{"$f":"C37/C19","v":{"$error":"#DIV/0!"}},{"$f":"D37/D19","v":{"$error":"#DIV/0!"}},{"$error":"#N/A"},{"$error":"#N/A"},{"$error":"#N/A"},{"$error":"#N/A"},{"$error":"#N/A"},{"$error":"#N/A"},{"$error":"#N/A"},{"$error":"#N/A"},{"$error":"#N/A"},{"$error":"#N/A"},null,null,null,null,null,null,null,null,null,null,null,null,null,null,null,null,null,null,null,"Identified for HWC support so far this school year",{"$f":"HLOOKUP(AI47,C47:AF49,3,FALSE)","v":{"$error":"#DIV/0!"}},null,"Behav_CumulHWC_Cycle"]
[null,"In the whole school",{"$f":"C38/C26","v":{"$error":"#DIV/0!"}},{"$f":"D38/D26","v":{"$error":"#DIV/0!"}},{"$f":"E38/E26","v":{"$error":"#N/A"}},{"$error":"#N/A"},{"$error":"#N/A"},{"$error":"#N/A"},{"$error":"#N/A"},{"$error":"#N/A"},{"$error":"#N/A"},{"$error":"#N/A"},{"$error":"#N/A"},{"$error":"#N/A"},null,null,null,null,null,null,null,null,null,null,null,null,null,null,null,null,null,null,null,{"$f":"B50","v":"In the whole school"},{"$f":"HLOOKUP(AI47,C47:AF50,4,FALSE)","v":{"$error":"#DIV/0!"}},null,"Behav_Schoolwide_Cycle"]
[]
[]
["Behavior","FOR DISPLAY TO SHOW \"<1\": \nNumber of Behavior Incidents per Student for Students…: Cumulative","Summer","Cycle 1","Cycle 2","Cycle 3","Cycle 4","Cycle 5","Cycle 6","Cycle 7","Cycle 8","Cycle 9","Cycle 10","Cycle 11"]
[null,"Identified for HWC support in this cycle",{"$f":"IF(ROUNDDOWN(C42,0)<1,\"<1\",ROUND(C42,0))","v":{"$error":"#DIV/0!"}},{"$f":"IF(ROUNDDOWN(D42,0)<1,\"<1\",ROUND(D42,0))","v":{"$error":"#DIV/0!"}},{"$error":"#N/A"},{"$error":"#N/A"},{"$error":"#N/A"},{"$error":"#N/A"},{"$error":"#N/A"},{"$error":"#N/A"},{"$error":"#N/A"},{"$error":"#N/A"},{"$error":"#N/A"},{"$error":"#N/A"}]
[null,"Identified for HWC support so far this school year",{"$f":"IF(ROUNDDOWN(C43,0)<1,\"<1\",ROUND(C43,0))","v":{"$error":"#DIV/0!"}},{"$error":"#DIV/0!"},{"$error":"#N/A"},{"$error":"#N/A"},{"$error":"#N/A"},{"$error":"#N/A"},{"$error":"#N/A"},{"$error":"#N/A"},{"$error":"#N/A"},{"$error":"#N/A"},{"$error":"#N/A"},{"$error":"#N/A"}]
[null,"In the whole school",{"$f":"IF(ROUNDDOWN(C44,0)<1,\"<1\",ROUND(C44,0))","v":{"$error":"#DIV/0!"}},{"$error":"#DIV/0!"},{"$error":"#N/A"},{"$error":"#N/A"},{"$error":"#N/A"},{"$error":"#N/A"},{"$error":"#N/A"},{"$error":"#N/A"},{"$error":"#N/A"},{"$error":"#N/A"},{"$error":"#N/A"},{"$error":"#N/A"}]
[]
[]
[null,"FOR DISPLAY TO SHOW \"<1\": \nNumber of Behavior Incidents per Student for Students…: All Cycles (to Current)","Summer","Cycle 1","Cycle 2","Cycle 3","Cycle 4","Cycle 5","Cycle 6","Cycle 7","Cycle 8","Cycle 9","Cycle 10","Cycle 11"]
[null,"Identified for HWC support in this cycle",{"$f":"IF(ROUNDDOWN(C48,0)<1,\"<1\",ROUND(C48,0))","v":{"$error":"#DIV/0!"}},{"$f":"IF(ROUNDDOWN(D48,0)<1,\"<1\",ROUND(D48,0))","v":{"$error":"#DIV/0!"}},{"$error":"#N/A"},{"$error":"#N/A"},{"$error":"#N/A"},{"$error":"#N/A"},{"$error":"#N/A"},{"$error":"#N/A"},{"$error":"#N/A"},{"$error":"#N/A"},{"$error":"#N/A"},{"$error":"#N/A"}]
[null,"Identified for HWC support so far this school year",{"$f":"IF(ROUNDDOWN(C49,0)<1,\"<1\",ROUND(C49,0))","v":{"$error":"#DIV/0!"}},{"$error":"#DIV/0!"},{"$error":"#N/A"},{"$error":"#N/A"},{"$error":"#N/A"},{"$error":"#N/A"},{"$error":"#N/A"},{"$error":"#N/A"},{"$error":"#N/A"},{"$error":"#N/A"},{"$error":"#N/A"},{"$error":"#N/A"}]
[null,"In the whole school",{"$f":"IF(ROUNDDOWN(C50,0)<1,\"<1\",ROUND(C50,0))","v":{"$error":"#DIV/0!"}},{"$error":"#DIV/0!"},{"$error":"#N/A"},{"$error":"#N/A"},{"$error":"#N/A"},{"$error":"#N/A"},{"$error":"#N/A"},{"$error":"#N/A"},{"$error":"#N/A"},{"$error":"#N/A"},{"$error":"#N/A"},{"$error":"#N/A"}]
[]
[null,null,null,null,null,null,null,null,null,null,null,null,null,null,null,null,null,null,null,null,null,null,null,null,null,null,null,null,null,null,null,null,null,null,"THIS CYCLE"]
["Attendance","Attendance for Students…: Year to Current Cycle","Summer","Cycle 1","Cycle 2","Cycle 3","Cycle 4","Cycle 5","Cycle 6","Cycle 7","Cycle 8","Cycle 9","Cycle 10","Cycle 11",null,null,null,null,null,null,null,null,null,null,null,null,null,null,null,null,null,null,null,{"$f":"SUBSTITUTE(B65,\"Cumulative\",\"Year to This Cycle\")","v":"Attendance for Students…: Year to Current Cycle"},{"$f":"$A$1","v":"Cycle 1"}]
[null,"Identified for HWC support in this cycle",{"$f":"IF(ISERROR(HLOOKUP($A$1,C3:$AF3,1,FALSE)),#N/A,VLOOKUP(C$65,CycleDB!$A$1:$AB$31,MATCH($AK66,CycleDB!$A$1:$AB$1,0),FALSE))","v":0},{"$f":"IF(ISERROR(HLOOKUP($A$1,D3:$AF3,1,FALSE)),#N/A,VLOOKUP(D$65,CycleDB!$A$1:$AB$31,MATCH($AK66,CycleDB!$A$1:$AB$1,0),FALSE))","v":0},{"$f":"IF(ISERROR(HLOOKUP($A$1,E3:$AF3,1,FALSE)),#N/A,VLOOKUP(E$65,CycleDB!$A$1:$AB$31,MATCH($AK66,CycleDB!$A$1:$AB$1,0),FALSE))","v":{"$error":"#N/A"}},{"$f":"IF(ISERROR(HLOOKUP($A$1,F3:$AF3,1,FALSE)),#N/A,VLOOKUP(F$65,CycleDB!$A$1:$AB$31,MATCH($AK66,CycleDB!$A$1:$AB$1,0),FALSE))","v":{"$error":"#N/A"}},{"$f":"IF(ISERROR(HLOOKUP($A$1,G3:$AF3,1,FALSE)),#N/A,VLOOKUP(G$65,CycleDB!$A$1:$AB$31,MATCH($AK66,CycleDB!$A$1:$AB$1,0),FALSE))","v":{"$error":"#N/A"}},{"$f":"IF(ISERROR(HLOOKUP($A$1,H3:$AF3,1,FALSE)),#N/A,VLOOKUP(H$65,CycleDB!$A$1:$AB$31,MATCH($AK66,CycleDB!$A$1:$AB$1,0),FALSE))","v":{"$error":"#N/A"}},{"$f":"IF(ISERROR(HLOOKUP($A$1,I3:$AF3,1,FALSE)),#N/A,VLOOKUP(I$65,CycleDB!$A$1:$AB$31,MATCH($AK66,CycleDB!$A$1:$AB$1,0),FALSE))","v":{"$error":"#N/A"}},{"$f":"IF(ISERROR(HLOOKUP($A$1,J3:$AF3,1,FALSE)),#N/A,VLOOKUP(J$65,CycleDB!$A$1:$AB$31,MATCH($AK66,CycleDB!$A$1:$AB$1,0),FALSE))","v":{"$error":"#N/A"}},{"$f":"IF(ISERROR(HLOOKUP($A$1,K3:$AF3,1,FALSE)),#N/A,VLOOKUP(K$65,CycleDB!$A$1:$AB$31,MATCH($AK66,CycleDB!$A$1:$AB$1,0),FALSE))","v":{"$error":"#N/A"}},{"$f":"IF(ISERROR(HLOOKUP($A$1,L3:$AF3,1,FALSE)),#N/A,VLOOKUP(L$65,CycleDB!$A$1:$AB$31,MATCH($AK66,CycleDB!$A$1:$AB$1,0),FALSE))","v":{"$error":"#N/A"}},{"$f":"IF(ISERROR(HLOOKUP($A$1,M3:$AF3,1,FALSE)),#N/A,VLOOKUP(M$65,CycleDB!$A$1:$AB$31,MATCH($AK66,CycleDB!$A$1:$AB$1,0),FALSE))","v":{"$error":"#N/A"}},{"$f":"IF(ISERROR(HLOOKUP($A$1,N3:$AF3,1,FALSE)),#N/A,VLOOKUP(N$65,CycleDB!$A$1:$AB$31,MATCH($AK66,CycleDB!$A$1:$AB$1,0),FALSE))","v":{"$error":"#N/A"}},null,null,null,null,null,null,null,null,null,null,null,null,null,null,null,null,null,null,null,{"$f":"B66","v":"Identified for HWC support in this cycle"},{"$f":"HLOOKUP(AI65,C65:AF66,2,FALSE)","v":0},null,"Attend_CycleHWC_YTD"]
[null,"Identified for HWC support so far this school year",{"$f":"IF(ISERROR(HLOOKUP($A$1,C3:$AF3,1,FALSE)),#N/A,VLOOKUP(C$65,CycleDB!$A$1:$AB$31,MATCH($AK67,CycleDB!$A$1:$AB$1,0),FALSE))","v":0},{"$f":"IF(ISERROR(HLOOKUP($A$1,D3:$AF3,1,FALSE)),#N/A,VLOOKUP(D$65,CycleDB!$A$1:$AB$31,MATCH($AK67,CycleDB!$A$1:$AB$1,0),FALSE))","v":0},{"$f":"IF(ISERROR(HLOOKUP($A$1,E3:$AF3,1,FALSE)),#N/A,VLOOKUP(E$65,CycleDB!$A$1:$AB$31,MATCH($AK67,CycleDB!$A$1:$AB$1,0),FALSE))","v":{"$error":"#N/A"}},{"$f":"IF(ISERROR(HLOOKUP($A$1,F3:$AF3,1,FALSE)),#N/A,VLOOKUP(F$65,CycleDB!$A$1:$AB$31,MATCH($AK67,CycleDB!$A$1:$AB$1,0),FALSE))","v":{"$error":"#N/A"}},{"$f":"IF(ISERROR(HLOOKUP($A$1,G3:$AF3,1,FALSE)),#N/A,VLOOKUP(G$65,CycleDB!$A$1:$AB$31,MATCH($AK67,CycleDB!$A$1:$AB$1,0),FALSE))","v":{"$error":"#N/A"}},{"$f":"IF(ISERROR(HLOOKUP($A$1,H3:$AF3,1,FALSE)),#N/A,VLOOKUP(H$65,CycleDB!$A$1:$AB$31,MATCH($AK67,CycleDB!$A$1:$AB$1,0),FALSE))","v":{"$error":"#N/A"}},{"$f":"IF(ISERROR(HLOOKUP($A$1,I3:$AF3,1,FALSE)),#N/A,VLOOKUP(I$65,CycleDB!$A$1:$AB$31,MATCH($AK67,CycleDB!$A$1:$AB$1,0),FALSE))","v":{"$error":"#N/A"}},{"$f":"IF(ISERROR(HLOOKUP($A$1,J3:$AF3,1,FALSE)),#N/A,VLOOKUP(J$65,CycleDB!$A$1:$AB$31,MATCH($AK67,CycleDB!$A$1:$AB$1,0),FALSE))","v":{"$error":"#N/A"}},{"$f":"IF(ISERROR(HLOOKUP($A$1,K3:$AF3,1,FALSE)),#N/A,VLOOKUP(K$65,CycleDB!$A$1:$AB$31,MATCH($AK67,CycleDB!$A$1:$AB$1,0),FALSE))","v":{"$error":"#N/A"}},{"$f":"IF(ISERROR(HLOOKUP($A$1,L3:$AF3,1,FALSE)),#N/A,VLOOKUP(L$65,CycleDB!$A$1:$AB$31,MATCH($AK67,CycleDB!$A$1:$AB$1,0),FALSE))","v":{"$error":"#N/A"}},{"$f":"IF(ISERROR(HLOOKUP($A$1,M3:$AF3,1,FALSE)),#N/A,VLOOKUP(M$65,CycleDB!$A$1:$AB$31,MATCH($AK67,CycleDB!$A$1:$AB$1,0),FALSE))","v":{"$error":"#N/A"}},{"$f":"IF(ISERROR(HLOOKUP($A$1,N3:$AF3,1,FALSE)),#N/A,VLOOKUP(N$65,CycleDB!$A$1:$AB$31,MATCH($AK67,CycleDB!$A$1:$AB$1,0),FALSE))","v":{"$error":"#N/A"}},null,null,null,null,null,null,null,null,null,null,null,null,null,null,null,null,null,null,null,"Identified for HWC support so far this school year",{"$f":"HLOOKUP(AI65,C65:AF67,3,FALSE)","v":0},null,"Attend_CumulHWC_YTD"]
[null,"In the whole school",{"$f":"IF(ISERROR(HLOOKUP($A$1,C3:$AF3,1,FALSE)),#N/A,VLOOKUP(C$65,CycleDB!$A$1:$AB$31,MATCH($AK68,CycleDB!$A$1:$AB$1,0),FALSE))","v":0},{"$f":"IF(ISERROR(HLOOKUP($A$1,D3:$AF3,1,FALSE)),#N/A,VLOOKUP(D$65,CycleDB!$A$1:$AB$31,MATCH($AK68,CycleDB!$A$1:$AB$1,0),FALSE))","v":0},{"$f":"IF(ISERROR(HLOOKUP($A$1,E3:$AF3,1,FALSE)),#N/A,VLOOKUP(E$65,CycleDB!$A$1:$AB$31,MATCH($AK68,CycleDB!$A$1:$AB$1,0),FALSE))","v":{"$error":"#N/A"}},{"$f":"IF(ISERROR(HLOOKUP($A$1,F3:$AF3,1,FALSE)),#N/A,VLOOKUP(F$65,CycleDB!$A$1:$AB$31,MATCH($AK68,CycleDB!$A$1:$AB$1,0),FALSE))","v":{"$error":"#N/A"}},{"$f":"IF(ISERROR(HLOOKUP($A$1,G3:$AF3,1,FALSE)),#N/A,VLOOKUP(G$65,CycleDB!$A$1:$AB$31,MATCH($AK68,CycleDB!$A$1:$AB$1,0),FALSE))","v":{"$error":"#N/A"}},{"$f":"IF(ISERROR(HLOOKUP($A$1,H3:$AF3,1,FALSE)),#N/A,VLOOKUP(H$65,CycleDB!$A$1:$AB$31,MATCH($AK68,CycleDB!$A$1:$AB$1,0),FALSE))","v":{"$error":"#N/A"}},{"$f":"IF(ISERROR(HLOOKUP($A$1,I3:$AF3,1,FALSE)),#N/A,VLOOKUP(I$65,CycleDB!$A$1:$AB$31,MATCH($AK68,CycleDB!$A$1:$AB$1,0),FALSE))","v":{"$error":"#N/A"}},{"$f":"IF(ISERROR(HLOOKUP($A$1,J3:$AF3,1,FALSE)),#N/A,VLOOKUP(J$65,CycleDB!$A$1:$AB$31,MATCH($AK68,CycleDB!$A$1:$AB$1,0),FALSE))","v":{"$error":"#N/A"}},{"$f":"IF(ISERROR(HLOOKUP($A$1,K3:$AF3,1,FALSE)),#N/A,VLOOKUP(K$65,CycleDB!$A$1:$AB$31,MATCH($AK68,CycleDB!$A$1:$AB$1,0),FALSE))","v":{"$error":"#N/A"}},{"$f":"IF(ISERROR(HLOOKUP($A$1,L3:$AF3,1,FALSE)),#N/A,VLOOKUP(L$65,CycleDB!$A$1:$AB$31,MATCH($AK68,CycleDB!$A$1:$AB$1,0),FALSE))","v":{"$error":"#N/A"}},{"$f":"IF(ISERROR(HLOOKUP($A$1,M3:$AF3,1,FALSE)),#N/A,VLOOKUP(M$65,CycleDB!$A$1:$AB$31,MATCH($AK68,CycleDB!$A$1:$AB$1,0),FALSE))","v":{"$error":"#N/A"}},{"$f":"IF(ISERROR(HLOOKUP($A$1,N3:$AF3,1,FALSE)),#N/A,VLOOKUP(N$65,CycleDB!$A$1:$AB$31,MATCH($AK68,CycleDB!$A$1:$AB$1,0),FALSE))","v":{"$error":"#N/A"}},null,null,null,null,null,null,null,null,null,null,null,null,null,null,null,null,null,null,null,{"$f":"B68","v":"In the whole school"},{"$f":"HLOOKUP(AI65,C65:AF68,4,FALSE)","v":0},null,"Attend_Schoolwide_YTD"]
[]
[null,null,null,null,null,null,null,null,null,null,null,null,null,null,null,null,null,null,null,null,null,null,null,null,null,null,null,null,null,null,null,null,null,null,"THIS CYCLE"]
[null,"Attendance for Students…: All Cycles (to Current)","Summer","Cycle 1","Cycle 2","Cycle 3","Cycle 4","Cycle 5","Cycle 6","Cycle 7","Cycle 8","Cycle 9","Cycle 10","Cycle 11",null,null,null,null,null,null,null,null,null,null,null,null,null,null,null,null,null,null,null,{"$f":"SUBSTITUTE(B71,\"All Cycles (to Current)\",\"This Cycle\")","v":"Attendance for Students…: This Cycle"},{"$f":"$A$1","v":"Cycle 1"}]
[null,"Identified for HWC support in this cycle",{"$f":"IF(ISERROR(HLOOKUP($A$1,C3:$AF3,1,FALSE)),#N/A,VLOOKUP(C$71,CycleDB!$A$1:$AB$31,MATCH($AK72,CycleDB!$A$1:$AB$1,0),FALSE))","v":0},{"$f":"IF(ISERROR(HLOOKUP($A$1,D3:$AF3,1,FALSE)),#N/A,VLOOKUP(D$71,CycleDB!$A$1:$AB$31,MATCH($AK72,CycleDB!$A$1:$AB$1,0),FALSE))","v":0},{"$f":"IF(ISERROR(HLOOKUP($A$1,E3:$AF3,1,FALSE)),#N/A,VLOOKUP(E$71,CycleDB!$A$1:$AB$31,MATCH($AK72,CycleDB!$A$1:$AB$1,0),FALSE))","v":{"$error":"#N/A"}},{"$f":"IF(ISERROR(HLOOKUP($A$1,F3:$AF3,1,FALSE)),#N/A,VLOOKUP(F$71,CycleDB!$A$1:$AB$31,MATCH($AK72,CycleDB!$A$1:$AB$1,0),FALSE))","v":{"$error":"#N/A"}},{"$f":"IF(ISERROR(HLOOKUP($A$1,G3:$AF3,1,FALSE)),#N/A,VLOOKUP(G$71,CycleDB!$A$1:$AB$31,MATCH($AK72,CycleDB!$A$1:$AB$1,0),FALSE))","v":{"$error":"#N/A"}},{"$f":"IF(ISERROR(HLOOKUP($A$1,H3:$AF3,1,FALSE)),#N/A,VLOOKUP(H$71,CycleDB!$A$1:$AB$31,MATCH($AK72,CycleDB!$A$1:$AB$1,0),FALSE))","v":{"$error":"#N/A"}},{"$f":"IF(ISERROR(HLOOKUP($A$1,I3:$AF3,1,FALSE)),#N/A,VLOOKUP(I$71,CycleDB!$A$1:$AB$31,MATCH($AK72,CycleDB!$A$1:$AB$1,0),FALSE))","v":{"$error":"#N/A"}},{"$f":"IF(ISERROR(HLOOKUP($A$1,J3:$AF3,1,FALSE)),#N/A,VLOOKUP(J$71,CycleDB!$A$1:$AB$31,MATCH($AK72,CycleDB!$A$1:$AB$1,0),FALSE))","v":{"$error":"#N/A"}},{"$f":"IF(ISERROR(HLOOKUP($A$1,K3:$AF3,1,FALSE)),#N/A,VLOOKUP(K$71,CycleDB!$A$1:$AB$31,MATCH($AK72,CycleDB!$A$1:$AB$1,0),FALSE))","v":{"$error":"#N/A"}},{"$f":"IF(ISERROR(HLOOKUP($A$1,L3:$AF3,1,FALSE)),#N/A,VLOOKUP(L$71,CycleDB!$A$1:$AB$31,MATCH($AK72,CycleDB!$A$1:$AB$1,0),FALSE))","v":{"$error":"#N/A"}},{"$f":"IF(ISERROR(HLOOKUP($A$1,M3:$AF3,1,FALSE)),#N/A,VLOOKUP(M$71,CycleDB!$A$1:$AB$31,MATCH($AK72,CycleDB!$A$1:$AB$1,0),FALSE))","v":{"$error":"#N/A"}},{"$f":"IF(ISERROR(HLOOKUP($A$1,N3:$AF3,1,FALSE)),#N/A,VLOOKUP(N$71,CycleDB!$A$1:$AB$31,MATCH($AK72,CycleDB!$A$1:$AB$1,0),FALSE))","v":{"$error":"#N/A"}},null,null,null,null,null,null,null,null,null,null,null,null,null,null,null,null,null,null,null,{"$f":"B72","v":"Identified for HWC support in this cycle"},{"$f":"HLOOKUP(AI71,C71:AF72,2,FALSE)","v":0},null,"Attend_CycleHWC_Cycle"]
[null,"Identified for HWC support so far this school year",{"$f":"IF(ISERROR(HLOOKUP($A$1,C3:$AF3,1,FALSE)),#N/A,VLOOKUP(C$71,CycleDB!$A$1:$AB$31,MATCH($AK73,CycleDB!$A$1:$AB$1,0),FALSE))","v":0},{"$f":"IF(ISERROR(HLOOKUP($A$1,D3:$AF3,1,FALSE)),#N/A,VLOOKUP(D$71,CycleDB!$A$1:$AB$31,MATCH($AK73,CycleDB!$A$1:$AB$1,0),FALSE))","v":0},{"$f":"IF(ISERROR(HLOOKUP($A$1,E3:$AF3,1,FALSE)),#N/A,VLOOKUP(E$71,CycleDB!$A$1:$AB$31,MATCH($AK73,CycleDB!$A$1:$AB$1,0),FALSE))","v":{"$error":"#N/A"}},{"$f":"IF(ISERROR(HLOOKUP($A$1,F3:$AF3,1,FALSE)),#N/A,VLOOKUP(F$71,CycleDB!$A$1:$AB$31,MATCH($AK73,CycleDB!$A$1:$AB$1,0),FALSE))","v":{"$error":"#N/A"}},{"$f":"IF(ISERROR(HLOOKUP($A$1,G3:$AF3,1,FALSE)),#N/A,VLOOKUP(G$71,CycleDB!$A$1:$AB$31,MATCH($AK73,CycleDB!$A$1:$AB$1,0),FALSE))","v":{"$error":"#N/A"}},{"$f":"IF(ISERROR(HLOOKUP($A$1,H3:$AF3,1,FALSE)),#N/A,VLOOKUP(H$71,CycleDB!$A$1:$AB$31,MATCH($AK73,CycleDB!$A$1:$AB$1,0),FALSE))","v":{"$error":"#N/A"}},{"$f":"IF(ISERROR(HLOOKUP($A$1,I3:$AF3,1,FALSE)),#N/A,VLOOKUP(I$71,CycleDB!$A$1:$AB$31,MATCH($AK73,CycleDB!$A$1:$AB$1,0),FALSE))","v":{"$error":"#N/A"}},{"$f":"IF(ISERROR(HLOOKUP($A$1,J3:$AF3,1,FALSE)),#N/A,VLOOKUP(J$71,CycleDB!$A$1:$AB$31,MATCH($AK73,CycleDB!$A$1:$AB$1,0),FALSE))","v":{"$error":"#N/A"}},{"$f":"IF(ISERROR(HLOOKUP($A$1,K3:$AF3,1,FALSE)),#N/A,VLOOKUP(K$71,CycleDB!$A$1:$AB$31,MATCH($AK73,CycleDB!$A$1:$AB$1,0),FALSE))","v":{"$error":"#N/A"}},{"$f":"IF(ISERROR(HLOOKUP($A$1,L3:$AF3,1,FALSE)),#N/A,VLOOKUP(L$71,CycleDB!$A$1:$AB$31,MATCH($AK73,CycleDB!$A$1:$AB$1,0),FALSE))","v":{"$error":"#N/A"}},{"$f":"IF(ISERROR(HLOOKUP($A$1,M3:$AF3,1,FALSE)),#N/A,VLOOKUP(M$71,CycleDB!$A$1:$AB$31,MATCH($AK73,CycleDB!$A$1:$AB$1,0),FALSE))","v":{"$error":"#N/A"}},{"$f":"IF(ISERROR(HLOOKUP($A$1,N3:$AF3,1,FALSE)),#N/A,VLOOKUP(N$71,CycleDB!$A$1:$AB$31,MATCH($AK73,CycleDB!$A$1:$AB$1,0),FALSE))","v":{"$error":"#N/A"}},null,null,null,null,null,null,null,null,null,null,null,null,null,null,null,null,null,null,null,"Identified for HWC support so far this school year",{"$f":"HLOOKUP(AI71,C71:AF73,3,FALSE)","v":0},null,"Attend_CumulHWC_Cycle"]
[null,"In the whole school",{"$f":"IF(ISERROR(HLOOKUP($A$1,C3:$AF3,1,FALSE)),#N/A,VLOOKUP(C$71,CycleDB!$A$1:$AB$31,MATCH($AK74,CycleDB!$A$1:$AB$1,0),FALSE))","v":0},{"$f":"IF(ISERROR(HLOOKUP($A$1,D3:$AF3,1,FALSE)),#N/A,VLOOKUP(D$71,CycleDB!$A$1:$AB$31,MATCH($AK74,CycleDB!$A$1:$AB$1,0),FALSE))","v":0},{"$f":"IF(ISERROR(HLOOKUP($A$1,E3:$AF3,1,FALSE)),#N/A,VLOOKUP(E$71,CycleDB!$A$1:$AB$31,MATCH($AK74,CycleDB!$A$1:$AB$1,0),FALSE))","v":{"$error":"#N/A"}},{"$f":"IF(ISERROR(HLOOKUP($A$1,F3:$AF3,1,FALSE)),#N/A,VLOOKUP(F$71,CycleDB!$A$1:$AB$31,MATCH($AK74,CycleDB!$A$1:$AB$1,0),FALSE))","v":{"$error":"#N/A"}},{"$f":"IF(ISERROR(HLOOKUP($A$1,G3:$AF3,1,FALSE)),#N/A,VLOOKUP(G$71,CycleDB!$A$1:$AB$31,MATCH($AK74,CycleDB!$A$1:$AB$1,0),FALSE))","v":{"$error":"#N/A"}},{"$f":"IF(ISERROR(HLOOKUP($A$1,H3:$AF3,1,FALSE)),#N/A,VLOOKUP(H$71,CycleDB!$A$1:$AB$31,MATCH($AK74,CycleDB!$A$1:$AB$1,0),FALSE))","v":{"$error":"#N/A"}},{"$f":"IF(ISERROR(HLOOKUP($A$1,I3:$AF3,1,FALSE)),#N/A,VLOOKUP(I$71,CycleDB!$A$1:$AB$31,MATCH($AK74,CycleDB!$A$1:$AB$1,0),FALSE))","v":{"$error":"#N/A"}},{"$f":"IF(ISERROR(HLOOKUP($A$1,J3:$AF3,1,FALSE)),#N/A,VLOOKUP(J$71,CycleDB!$A$1:$AB$31,MATCH($AK74,CycleDB!$A$1:$AB$1,0),FALSE))","v":{"$error":"#N/A"}},{"$f":"IF(ISERROR(HLOOKUP($A$1,K3:$AF3,1,FALSE)),#N/A,VLOOKUP(K$71,CycleDB!$A$1:$AB$31,MATCH($AK74,CycleDB!$A$1:$AB$1,0),FALSE))","v":{"$error":"#N/A"}},{"$f":"IF(ISERROR(HLOOKUP($A$1,L3:$AF3,1,FALSE)),#N/A,VLOOKUP(L$71,CycleDB!$A$1:$AB$31,MATCH($AK74,CycleDB!$A$1:$AB$1,0),FALSE))","v":{"$error":"#N/A"}},{"$f":"IF(ISERROR(HLOOKUP($A$1,M3:$AF3,1,FALSE)),#N/A,VLOOKUP(M$71,CycleDB!$A$1:$AB$31,MATCH($AK74,CycleDB!$A$1:$AB$1,0),FALSE))","v":{"$error":"#N/A"}},{"$f":"IF(ISERROR(HLOOKUP($A$1,N3:$AF3,1,FALSE)),#N/A,VLOOKUP(N$71,CycleDB!$A$1:$AB$31,MATCH($AK74,CycleDB!$A$1:$AB$1,0),FALSE))","v":{"$error":"#N/A"}},null,null,null,null,null,null,null,null,null,null,null,null,null,null,null,null,null,null,null,{"$f":"B74","v":"In the whole school"},{"$f":"HLOOKUP(AI71,C71:AF74,4,FALSE)","v":0},null,"Attend_Schoolwide_Cycle"]
[]
[null,null,null,null,null,null,null,null,null,null,null,null,null,null,null,null,null,null,null,null,null,null,null,null,null,null,null,null,null,null,null,null,null,null,"THIS CYCLE"]
["Achievement","Achievement for Students…: Year to Current Cycle","Summer","Cycle 1","Cycle 2","Cycle 3","Cycle 4","Cycle 5","Cycle 6","Cycle 7","Cycle 8","Cycle 9","Cycle 10","Cycle 11",null,null,null,null,null,null,null,null,null,null,null,null,null,null,null,null,null,null,null,{"$f":"SUBSTITUTE(B77,\"Cumulative\",\"Year to This Cycle\")","v":"Achievement for Students…: Year to Current Cycle"},{"$f":"$A$1","v":"Cycle 1"}]
[null,"Identified for HWC support in this cycle",{"$f":"IF(ISERROR(HLOOKUP($A$1,C3:$AF3,1,FALSE)),#N/A,VLOOKUP(C$77,CycleDB!$A$1:$AB$31,MATCH($AK78,CycleDB!$A$1:$AB$1,0),FALSE))","v":0},{"$f":"IF(ISERROR(HLOOKUP($A$1,D3:$AF3,1,FALSE)),#N/A,VLOOKUP(D$77,CycleDB!$A$1:$AB$31,MATCH($AK78,CycleDB!$A$1:$AB$1,0),FALSE))","v":0},{"$f":"IF(ISERROR(HLOOKUP($A$1,E3:$AF3,1,FALSE)),#N/A,VLOOKUP(E$77,CycleDB!$A$1:$AB$31,MATCH($AK78,CycleDB!$A$1:$AB$1,0),FALSE))","v":{"$error":"#N/A"}},{"$f":"IF(ISERROR(HLOOKUP($A$1,F3:$AF3,1,FALSE)),#N/A,VLOOKUP(F$77,CycleDB!$A$1:$AB$31,MATCH($AK78,CycleDB!$A$1:$AB$1,0),FALSE))","v":{"$error":"#N/A"}},{"$f":"IF(ISERROR(HLOOKUP($A$1,G3:$AF3,1,FALSE)),#N/A,VLOOKUP(G$77,CycleDB!$A$1:$AB$31,MATCH($AK78,CycleDB!$A$1:$AB$1,0),FALSE))","v":{"$error":"#N/A"}},{"$f":"IF(ISERROR(HLOOKUP($A$1,H3:$AF3,1,FALSE)),#N/A,VLOOKUP(H$77,CycleDB!$A$1:$AB$31,MATCH($AK78,CycleDB!$A$1:$AB$1,0),FALSE))","v":{"$error":"#N/A"}},{"$f":"IF(ISERROR(HLOOKUP($A$1,I3:$AF3,1,FALSE)),#N/A,VLOOKUP(I$77,CycleDB!$A$1:$AB$31,MATCH($AK78,CycleDB!$A$1:$AB$1,0),FALSE))","v":{"$error":"#N/A"}},{"$f":"IF(ISERROR(HLOOKUP($A$1,J3:$AF3,1,FALSE)),#N/A,VLOOKUP(J$77,CycleDB!$A$1:$AB$31,MATCH($AK78,CycleDB!$A$1:$AB$1,0),FALSE))","v":{"$error":"#N/A"}},{"$f":"IF(ISERROR(HLOOKUP($A$1,K3:$AF3,1,FALSE)),#N/A,VLOOKUP(K$77,CycleDB!$A$1:$AB$31,MATCH($AK78,CycleDB!$A$1:$AB$1,0),FALSE))","v":{"$error":"#N/A"}},{"$f":"IF(ISERROR(HLOOKUP($A$1,L3:$AF3,1,FALSE)),#N/A,VLOOKUP(L$77,CycleDB!$A$1:$AB$31,MATCH($AK78,CycleDB!$A$1:$AB$1,0),FALSE))","v":{"$error":"#N/A"}},{"$f":"IF(ISERROR(HLOOKUP($A$1,M3:$AF3,1,FALSE)),#N/A,VLOOKUP(M$77,CycleDB!$A$1:$AB$31,MATCH($AK78,CycleDB!$A$1:$AB$1,0),FALSE))","v":{"$error":"#N/A"}},{"$f":"IF(ISERROR(HLOOKUP($A$1,N3:$AF3,1,FALSE)),#N/A,VLOOKUP(N$77,CycleDB!$A$1:$AB$31,MATCH($AK78,CycleDB!$A$1:$AB$1,0),FALSE))","v":{"$error":"#N/A"}},null,null,null,null,null,null,null,null,null,null,null,null,null,null,null,null,null,null,null,{"$f":"B78","v":"Identified for HWC support in this cycle"},{"$f":"HLOOKUP(AI77,C77:AF78,2,FALSE)","v":0},null,"Achvmt_CycleHWC_YTD"]
[null,"Identified for HWC support so far this school year",{"$f":"IF(ISERROR(HLOOKUP($A$1,C3:$AF3,1,FALSE)),#N/A,VLOOKUP(C$77,CycleDB!$A$1:$AB$31,MATCH($AK79,CycleDB!$A$1:$AB$1,0),FALSE))","v":0},{"$f":"IF(ISERROR(HLOOKUP($A$1,D3:$AF3,1,FALSE)),#N/A,VLOOKUP(D$77,CycleDB!$A$1:$AB$31,MATCH($AK79,CycleDB!$A$1:$AB$1,0),FALSE))","v":0},{"$f":"IF(ISERROR(HLOOKUP($A$1,E3:$AF3,1,FALSE)),#N/A,VLOOKUP(E$77,CycleDB!$A$1:$AB$31,MATCH($AK79,CycleDB!$A$1:$AB$1,0),FALSE))","v":{"$error":"#N/A"}},{"$f":"IF(ISERROR(HLOOKUP($A$1,F3:$AF3,1,FALSE)),#N/A,VLOOKUP(F$77,CycleDB!$A$1:$AB$31,MATCH($AK79,CycleDB!$A$1:$AB$1,0),FALSE))","v":{"$error":"#N/A"}},{"$f":"IF(ISERROR(HLOOKUP($A$1,G3:$AF3,1,FALSE)),#N/A,VLOOKUP(G$77,CycleDB!$A$1:$AB$31,MATCH($AK79,CycleDB!$A$1:$AB$1,0),FALSE))","v":{"$error":"#N/A"}},{"$f":"IF(ISERROR(HLOOKUP($A$1,H3:$AF3,1,FALSE)),#N/A,VLOOKUP(H$77,CycleDB!$A$1:$AB$31,MATCH($AK79,CycleDB!$A$1:$AB$1,0),FALSE))","v":{"$error":"#N/A"}},{"$f":"IF(ISERROR(HLOOKUP($A$1,I3:$AF3,1,FALSE)),#N/A,VLOOKUP(I$77,CycleDB!$A$1:$AB$31,MATCH($AK79,CycleDB!$A$1:$AB$1,0),FALSE))","v":{"$error":"#N/A"}},{"$f":"IF(ISERROR(HLOOKUP($A$1,J3:$AF3,1,FALSE)),#N/A,VLOOKUP(J$77,CycleDB!$A$1:$AB$31,MATCH($AK79,CycleDB!$A$1:$AB$1,0),FALSE))","v":{"$error":"#N/A"}},{"$f":"IF(ISERROR(HLOOKUP($A$1,K3:$AF3,1,FALSE)),#N/A,VLOOKUP(K$77,CycleDB!$A$1:$AB$31,MATCH($AK79,CycleDB!$A$1:$AB$1,0),FALSE))","v":{"$error":"#N/A"}},{"$f":"IF(ISERROR(HLOOKUP($A$1,L3:$AF3,1,FALSE)),#N/A,VLOOKUP(L$77,CycleDB!$A$1:$AB$31,MATCH($AK79,CycleDB!$A$1:$AB$1,0),FALSE))","v":{"$error":"#N/A"}},{"$f":"IF(ISERROR(HLOOKUP($A$1,M3:$AF3,1,FALSE)),#N/A,VLOOKUP(M$77,CycleDB!$A$1:$AB$31,MATCH($AK79,CycleDB!$A$1:$AB$1,0),FALSE))","v":{"$error":"#N/A"}},{"$f":"IF(ISERROR(HLOOKUP($A$1,N3:$AF3,1,FALSE)),#N/A,VLOOKUP(N$77,CycleDB!$A$1:$AB$31,MATCH($AK79,CycleDB!$A$1:$AB$1,0),FALSE))","v":{"$error":"#N/A"}},null,null,null,null,null,null,null,null,null,null,null,null,null,null,null,null,null,null,null,"Identified for HWC support so far this school year",{"$f":"HLOOKUP(AI77,C77:AF79,3,FALSE)","v":0},null,"Achvmt_CumulHWC_YTD"]
[null,"In the whole school",{"$f":"IF(ISERROR(HLOOKUP($A$1,C3:$AF3,1,FALSE)),#N/A,VLOOKUP(C$77,CycleDB!$A$1:$AB$31,MATCH($AK80,CycleDB!$A$1:$AB$1,0),FALSE))","v":0},{"$f":"IF(ISERROR(HLOOKUP($A$1,D3:$AF3,1,FALSE)),#N/A,VLOOKUP(D$77,CycleDB!$A$1:$AB$31,MATCH($AK80,CycleDB!$A$1:$AB$1,0),FALSE))","v":0},{"$f":"IF(ISERROR(HLOOKUP($A$1,E3:$AF3,1,FALSE)),#N/A,VLOOKUP(E$77,CycleDB!$A$1:$AB$31,MATCH($AK80,CycleDB!$A$1:$AB$1,0),FALSE))","v":{"$error":"#N/A"}},{"$f":"IF(ISERROR(HLOOKUP($A$1,F3:$AF3,1,FALSE)),#N/A,VLOOKUP(F$77,CycleDB!$A$1:$AB$31,MATCH($AK80,CycleDB!$A$1:$AB$1,0),FALSE))","v":{"$error":"#N/A"}},{"$f":"IF(ISERROR(HLOOKUP($A$1,G3:$AF3,1,FALSE)),#N/A,VLOOKUP(G$77,CycleDB!$A$1:$AB$31,MATCH($AK80,CycleDB!$A$1:$AB$1,0),FALSE))","v":{"$error":"#N/A"}},{"$f":"IF(ISERROR(HLOOKUP($A$1,H3:$AF3,1,FALSE)),#N/A,VLOOKUP(H$77,CycleDB!$A$1:$AB$31,MATCH($AK80,CycleDB!$A$1:$AB$1,0),FALSE))","v":{"$error":"#N/A"}},{"$f":"IF(ISERROR(HLOOKUP($A$1,I3:$AF3,1,FALSE)),#N/A,VLOOKUP(I$77,CycleDB!$A$1:$AB$31,MATCH($AK80,CycleDB!$A$1:$AB$1,0),FALSE))","v":{"$error":"#N/A"}},{"$f":"IF(ISERROR(HLOOKUP($A$1,J3:$AF3,1,FALSE)),#N/A,VLOOKUP(J$77,CycleDB!$A$1:$AB$31,MATCH($AK80,CycleDB!$A$1:$AB$1,0),FALSE))","v":{"$error":"#N/A"}},{"$f":"IF(ISERROR(HLOOKUP($A$1,K3:$AF3,1,FALSE)),#N/A,VLOOKUP(K$77,CycleDB!$A$1:$AB$31,MATCH($AK80,CycleDB!$A$1:$AB$1,0),FALSE))","v":{"$error":"#N/A"}},{"$f":"IF(ISERROR(HLOOKUP($A$1,L3:$AF3,1,FALSE)),#N/A,VLOOKUP(L$77,CycleDB!$A$1:$AB$31,MATCH($AK80,CycleDB!$A$1:$AB$1,0),FALSE))","v":{"$error":"#N/A"}},{"$f":"IF(ISERROR(HLOOKUP($A$1,M3:$AF3,1,FALSE)),#N/A,VLOOKUP(M$77,CycleDB!$A$1:$AB$31,MATCH($AK80,CycleDB!$A$1:$AB$1,0),FALSE))","v":{"$error":"#N/A"}},{"$f":"IF(ISERROR(HLOOKUP($A$1,N3:$AF3,1,FALSE)),#N/A,VLOOKUP(N$77,CycleDB!$A$1:$AB$31,MATCH($AK80,CycleDB!$A$1:$AB$1,0),FALSE))","v":{"$error":"#N/A"}},null,null,null,null,null,null,null,null,null,null,null,null,null,null,null,null,null,null,null,{"$f":"B80","v":"In the whole school"},{"$f":"HLOOKUP(AI77,C77:AF80,4,FALSE)","v":0},null,"Achvmt_Schoolwide_YTD"]
[]
[null,null,null,null,null,null,null,null,null,null,null,null,null,null,null,null,null,null,null,null,null,null,null,null,null,null,null,null,null,null,null,null,null,null,"THIS CYCLE"]
[null,"Achievement for Students…: All Cycles (to Current)","Summer","Cycle 1","Cycle 2","Cycle 3","Cycle 4","Cycle 5","Cycle 6","Cycle 7","Cycle 8","Cycle 9","Cycle 10","Cycle 11",null,null,null,null,null,null,null,null,null,null,null,null,null,null,null,null,null,null,null,{"$f":"SUBSTITUTE(B83,\"All Cycles (to Current)\",\"This Cycle\")","v":"Achievement for Students…: This Cycle"},{"$f":"$A$1","v":"Cycle 1"}]
[null,"Identified for HWC support in this cycle",{"$f":"IF(ISERROR(HLOOKUP($A$1,C3:$AF3,1,FALSE)),#N/A,VLOOKUP(C$83,CycleDB!$A$1:$AB$31,MATCH($AK84,CycleDB!$A$1:$AB$1,0),FALSE))","v":0},{"$f":"IF(ISERROR(HLOOKUP($A$1,D3:$AF3,1,FALSE)),#N/A,VLOOKUP(D$83,CycleDB!$A$1:$AB$31,MATCH($AK84,CycleDB!$A$1:$AB$1,0),FALSE))","v":0},{"$f":"IF(ISERROR(HLOOKUP($A$1,E3:$AF3,1,FALSE)),#N/A,VLOOKUP(E$83,CycleDB!$A$1:$AB$31,MATCH($AK84,CycleDB!$A$1:$AB$1,0),FALSE))","v":{"$error":"#N/A"}},{"$f":"IF(ISERROR(HLOOKUP($A$1,F3:$AF3,1,FALSE)),#N/A,VLOOKUP(F$83,CycleDB!$A$1:$AB$31,MATCH($AK84,CycleDB!$A$1:$AB$1,0),FALSE))","v":{"$error":"#N/A"}},{"$f":"IF(ISERROR(HLOOKUP($A$1,G3:$AF3,1,FALSE)),#N/A,VLOOKUP(G$83,CycleDB!$A$1:$AB$31,MATCH($AK84,CycleDB!$A$1:$AB$1,0),FALSE))","v":{"$error":"#N/A"}},{"$f":"IF(ISERROR(HLOOKUP($A$1,H3:$AF3,1,FALSE)),#N/A,VLOOKUP(H$83,CycleDB!$A$1:$AB$31,MATCH($AK84,CycleDB!$A$1:$AB$1,0),FALSE))","v":{"$error":"#N/A"}},{"$f":"IF(ISERROR(HLOOKUP($A$1,I3:$AF3,1,FALSE)),#N/A,VLOOKUP(I$83,CycleDB!$A$1:$AB$31,MATCH($AK84,CycleDB!$A$1:$AB$1,0),FALSE))","v":{"$error":"#N/A"}},{"$f":"IF(ISERROR(HLOOKUP($A$1,J3:$AF3,1,FALSE)),#N/A,VLOOKUP(J$83,CycleDB!$A$1:$AB$31,MATCH($AK84,CycleDB!$A$1:$AB$1,0),FALSE))","v":{"$error":"#N/A"}},{"$f":"IF(ISERROR(HLOOKUP($A$1,K3:$AF3,1,FALSE)),#N/A,VLOOKUP(K$83,CycleDB!$A$1:$AB$31,MATCH($AK84,CycleDB!$A$1:$AB$1,0),FALSE))","v":{"$error":"#N/A"}},{"$f":"IF(ISERROR(HLOOKUP($A$1,L3:$AF3,1,FALSE)),#N/A,VLOOKUP(L$83,CycleDB!$A$1:$AB$31,MATCH($AK84,CycleDB!$A$1:$AB$1,0),FALSE))","v":{"$error":"#N/A"}},{"$f":"IF(ISERROR(HLOOKUP($A$1,M3:$AF3,1,FALSE)),#N/A,VLOOKUP(M$83,CycleDB!$A$1:$AB$31,MATCH($AK84,CycleDB!$A$1:$AB$1,0),FALSE))","v":{"$error":"#N/A"}},{"$f":"IF(ISERROR(HLOOKUP($A$1,N3:$AF3,1,FALSE)),#N/A,VLOOKUP(N$83,CycleDB!$A$1:$AB$31,MATCH($AK84,CycleDB!$A$1:$AB$1,0),FALSE))","v":{"$error":"#N/A"}},null,null,null,null,null,null,null,null,null,null,null,null,null,null,null,null,null,null,null,{"$f":"B84","v":"Identified for HWC support in this cycle"},{"$f":"HLOOKUP(AI83,C83:AF84,2,FALSE)","v":0},null,"Achvmt_CycleHWC_Cycle"]
[null,"Identified for HWC support so far this school year",{"$f":"IF(ISERROR(HLOOKUP($A$1,C3:$AF3,1,FALSE)),#N/A,VLOOKUP(C$83,CycleDB!$A$1:$AB$31,MATCH($AK85,CycleDB!$A$1:$AB$1,0),FALSE))","v":0},{"$f":"IF(ISERROR(HLOOKUP($A$1,D3:$AF3,1,FALSE)),#N/A,VLOOKUP(D$83,CycleDB!$A$1:$AB$31,MATCH($AK85,CycleDB!$A$1:$AB$1,0),FALSE))","v":0},{"$f":"IF(ISERROR(HLOOKUP($A$1,E3:$AF3,1,FALSE)),#N/A,VLOOKUP(E$83,CycleDB!$A$1:$AB$31,MATCH($AK85,CycleDB!$A$1:$AB$1,0),FALSE))","v":{"$error":"#N/A"}},{"$f":"IF(ISERROR(HLOOKUP($A$1,F3:$AF3,1,FALSE)),#N/A,VLOOKUP(F$83,CycleDB!$A$1:$AB$31,MATCH($AK85,CycleDB!$A$1:$AB$1,0),FALSE))","v":{"$error":"#N/A"}},{"$f":"IF(ISERROR(HLOOKUP($A$1,G3:$AF3,1,FALSE)),#N/A,VLOOKUP(G$83,CycleDB!$A$1:$AB$31,MATCH($AK85,CycleDB!$A$1:$AB$1,0),FALSE))","v":{"$error":"#N/A"}},{"$f":"IF(ISERROR(HLOOKUP($A$1,H3:$AF3,1,FALSE)),#N/A,VLOOKUP(H$83,CycleDB!$A$1:$AB$31,MATCH($AK85,CycleDB!$A$1:$AB$1,0),FALSE))","v":{"$error":"#N/A"}},{"$f":"IF(ISERROR(HLOOKUP($A$1,I3:$AF3,1,FALSE)),#N/A,VLOOKUP(I$83,CycleDB!$A$1:$AB$31,MATCH($AK85,CycleDB!$A$1:$AB$1,0),FALSE))","v":{"$error":"#N/A"}},{"$f":"IF(ISERROR(HLOOKUP($A$1,J3:$AF3,1,FALSE)),#N/A,VLOOKUP(J$83,CycleDB!$A$1:$AB$31,MATCH($AK85,CycleDB!$A$1:$AB$1,0),FALSE))","v":{"$error":"#N/A"}},{"$f":"IF(ISERROR(HLOOKUP($A$1,K3:$AF3,1,FALSE)),#N/A,VLOOKUP(K$83,CycleDB!$A$1:$AB$31,MATCH($AK85,CycleDB!$A$1:$AB$1,0),FALSE))","v":{"$error":"#N/A"}},{"$f":"IF(ISERROR(HLOOKUP($A$1,L3:$AF3,1,FALSE)),#N/A,VLOOKUP(L$83,CycleDB!$A$1:$AB$31,MATCH($AK85,CycleDB!$A$1:$AB$1,0),FALSE))","v":{"$error":"#N/A"}},{"$f":"IF(ISERROR(HLOOKUP($A$1,M3:$AF3,1,FALSE)),#N/A,VLOOKUP(M$83,CycleDB!$A$1:$AB$31,MATCH($AK85,CycleDB!$A$1:$AB$1,0),FALSE))","v":{"$error":"#N/A"}},{"$f":"IF(ISERROR(HLOOKUP($A$1,N3:$AF3,1,FALSE)),#N/A,VLOOKUP(N$83,CycleDB!$A$1:$AB$31,MATCH($AK85,CycleDB!$A$1:$AB$1,0),FALSE))","v":{"$error":"#N/A"}},null,null,null,null,null,null,null,null,null,null,null,null,null,null,null,null,null,null,null,"Identified for HWC support so far this school year",{"$f":"HLOOKUP(AI83,C83:AF85,3,FALSE)","v":0},null,"Achvmt_CumulHWC_Cycle"]
[null,"In the whole school",{"$f":"IF(ISERROR(HLOOKUP($A$1,C3:$AF3,1,FALSE)),#N/A,VLOOKUP(C$83,CycleDB!$A$1:$AB$31,MATCH($AK86,CycleDB!$A$1:$AB$1,0),FALSE))","v":0},{"$f":"IF(ISERROR(HLOOKUP($A$1,D3:$AF3,1,FALSE)),#N/A,VLOOKUP(D$83,CycleDB!$A$1:$AB$31,MATCH($AK86,CycleDB!$A$1:$AB$1,0),FALSE))","v":0},{"$f":"IF(ISERROR(HLOOKUP($A$1,E3:$AF3,1,FALSE)),#N/A,VLOOKUP(E$83,CycleDB!$A$1:$AB$31,MATCH($AK86,CycleDB!$A$1:$AB$1,0),FALSE))","v":{"$error":"#N/A"}},{"$f":"IF(ISERROR(HLOOKUP($A$1,F3:$AF3,1,FALSE)),#N/A,VLOOKUP(F$83,CycleDB!$A$1:$AB$31,MATCH($AK86,CycleDB!$A$1:$AB$1,0),FALSE))","v":{"$error":"#N/A"}},{"$f":"IF(ISERROR(HLOOKUP($A$1,G3:$AF3,1,FALSE)),#N/A,VLOOKUP(G$83,CycleDB!$A$1:$AB$31,MATCH($AK86,CycleDB!$A$1:$AB$1,0),FALSE))","v":{"$error":"#N/A"}},{"$f":"IF(ISERROR(HLOOKUP($A$1,H3:$AF3,1,FALSE)),#N/A,VLOOKUP(H$83,CycleDB!$A$1:$AB$31,MATCH($AK86,CycleDB!$A$1:$AB$1,0),FALSE))","v":{"$error":"#N/A"}},{"$f":"IF(ISERROR(HLOOKUP($A$1,I3:$AF3,1,FALSE)),#N/A,VLOOKUP(I$83,CycleDB!$A$1:$AB$31,MATCH($AK86,CycleDB!$A$1:$AB$1,0),FALSE))","v":{"$error":"#N/A"}},{"$f":"IF(ISERROR(HLOOKUP($A$1,J3:$AF3,1,FALSE)),#N/A,VLOOKUP(J$83,CycleDB!$A$1:$AB$31,MATCH($AK86,CycleDB!$A$1:$AB$1,0),FALSE))","v":{"$error":"#N/A"}},{"$f":"IF(ISERROR(HLOOKUP($A$1,K3:$AF3,1,FALSE)),#N/A,VLOOKUP(K$83,CycleDB!$A$1:$AB$31,MATCH($AK86,CycleDB!$A$1:$AB$1,0),FALSE))","v":{"$error":"#N/A"}},{"$f":"IF(ISERROR(HLOOKUP($A$1,L3:$AF3,1,FALSE)),#N/A,VLOOKUP(L$83,CycleDB!$A$1:$AB$31,MATCH($AK86,CycleDB!$A$1:$AB$1,0),FALSE))","v":{"$error":"#N/A"}},{"$f":"IF(ISERROR(HLOOKUP($A$1,M3:$AF3,1,FALSE)),#N/A,VLOOKUP(M$83,CycleDB!$A$1:$AB$31,MATCH($AK86,CycleDB!$A$1:$AB$1,0),FALSE))","v":{"$error":"#N/A"}},{"$f":"IF(ISERROR(HLOOKUP($A$1,N3:$AF3,1,FALSE)),#N/A,VLOOKUP(N$83,CycleDB!$A$1:$AB$31,MATCH($AK86,CycleDB!$A$1:$AB$1,0),FALSE))","v":{"$error":"#N/A"}},null,null,null,null,null,null,null,null,null,null,null,null,null,null,null,null,null,null,null,{"$f":"B86","v":"In the whole school"},{"$f":"HLOOKUP(AI83,C83:AF86,4,FALSE)","v":0},null,"Achvmt_Schoolwide_Cycle"]

{"sheet":"Implementation Data Dashboard","index":15,"n_rows":37,"n_cols":34,"rows_kept":37,"cut":false,"hidden":false,"merged":[[36,1,64,13],[7,1,7,8],[7,9,7,11],[7,12,7,13],[8,1,8,8],[8,9,8,11],[8,12,8,13],[16,1,16,8],[16,9,16,10],[10,1,10,8],[10,9,10,11],[10,12,10,13],[15,1,15,8],[14,1,14,8],[14,9,14,11],[14,12,14,13],[1,10,1,11],[3,10,3,11],[1,12,1,13],[3,12,3,13],[6,1,6,8],[6,9,6,13],[1,8,2,8],[1,1,3,6],[9,1,9,8],[9,9,9,11],[9,12,9,13],[11,1,11,8],[11,9,11,11],[11,12,11,13],[12,1,12,8],[12,9,12,11],[12,12,12,13],[20,1,20,8],[20,9,20,11],[20,12,20,13],[24,1,24,8],[24,9,24,13],[18,1,18,8],[18,9,18,11],[18,12,18,13],[19,1,19,8],[19,9,19,11],[19,12,19,13],[28,1,28,8],[28,9,28,11],[28,12,28,13],[25,1,25,8],[25,9,25,11],[25,12,25,13],[26,1,26,8],[26,9,26,11],[26,12,26,13],[27,1,27,8],[27,9,27,11],[27,12,27,13],[35,1,35,14],[31,1,31,8],[32,1,32,8],[30,1,30,8],[30,9,30,11],[30,12,30,13],[31,9,31,11],[32,9,32,11],[30,15,32,15],[14,15,20,15],[7,15,11,15],[24,15,28,15],[15,9,15,10]]}
[{"$f":"I4&\"_\"&TEXT(TODAY(),\"yyyymmdd\")","v":"Cycle 1_20211209"}]
[null,"Implementation Data Dashboard",null,null,null,null,null,null,"Select a Cycle",null,"Start Date:",null,{"$f":"IFERROR(VLOOKUP(I4,CycleDB!A:C,2,FALSE),\"\")","v":"00:00:00"}]
[]
[null,null,null,null,null,null,null,null,"Cycle 1",null,"End Date:",null,{"$f":"IFERROR(VLOOKUP(I4,CycleDB!A:C,3,FALSE),\"\")","v":"00:00:00"},null,null,null,null,null,null,null,null,null,null,null,null,null,null,null,"ThisC"]
[]
[]
[null,"About HWC Notices",null,null,null,null,null,null,null,null,null,null,null,null,null,null,null,null,null,null,null,null,null,null,null,null,null,null,{"$f":"IF(I4=\"Summer\",1,VALUE(RIGHT(I4,2))+1)","v":2},"#Refs","#Stu","%Notif","GC/MH"]
[null,"Number of HWC Notices",null,null,null,null,null,null,null,"This Cycle",null,null,"Year to Current Cycle",null,null,"Enter Student Data",null,null,null,null,null,null,null,null,null,null,null,null,null,1,2,3,4]
[null,"Total",null,null,null,null,null,null,null,{"$f":"IFERROR(HLOOKUP($I$4,output_calc!$C$8:$AF$11,4,FALSE),\"\")","v":0},null,null,{"$f":"IFERROR(HLOOKUP($I$4,output_calc!$C$3:$AF$6,4,FALSE),\"\")","v":0},null,null,null,null,null,null,null,null,null,null,null,null,null,null,null,"ThisC",{"$f":"IFERROR(\"Number of HWC notices during this cycle (\"&I4&\"):\"&CHAR(10)&IF(J10=1,\"There was 1 HWC notice for a student\",\"There were \"&J10&\" HWC notices for students\")&\" with only one (1) HWC notice during \"&LOWER(I4)&\".\"&CHAR(10)&IF(J11=1,\"There was 1 HWC notice \",\"There were \"&J11&\" HWC notices \")&\"for student(s) with two (2) or more HWC notices during \"&LOWER(I4)&\".\",\"No results to display\")","v":"Number of HWC notices during this cycle (Cycle 1):\nThere were 0 HWC notices for students with only one (1) HWC notice during cycle 1.\nThere were 0 HWC notices for student(s) with two (2) or more HWC notices during cycle 1."},{"$f":"IFERROR(\"Number of students identified for HWC support during this cycle (\"&I4&\"):\"&CHAR(10)&IF(J28=1,\"There was 1 student\",\"There were \"&J28&\" students\")&\" identified for HWC support with only one (1) HWC notice during this cycle.\"&CHAR(10)&IF(J29=1,\"There was 1 student\",\"There were \"&J29&\" students\")&\" identified for HWC support with two (2) or more HWC notices during this cycle.\",\"No results to display\")","v":"Number of students identified for HWC support during this cycle (Cycle 1):\nThere were 0 students identified for HWC support with only one (1) HWC notice during this cycle.\nThere were 0 students identified for HWC support with two (2) or more HWC notices during this cycle."},{"$f":"IFERROR(\"Percentage of HWC notices during this cycle (\"&I4&\") for which all teachers and all other staff were informed:\"&CHAR(10)&\"All teachers were informed in \"&J16&\" of the \"&HLOOKUP($I$4,output_calc!$C$78:$AF$82,5,FALSE)&\" HWC notice(s) (\"&TEXT(-L16,\"0%\")&\");  all other staff were informed in \"&J17&\" of the \"&HLOOKUP($I$4,output_calc!$C$107:$AF$111,5,FALSE)&\" HWC notice(s) (\"&TEXT(-L17,\"0%\")&\").\",\"No results to display\")","v":"No results to display"},{"$f":"IFERROR(\"Number of students identified for HWC support that were referred to a school counselor / external mental health provider during this cycle (\"&I4&\"):\"&CHAR(10)&IF(J32=1,\"1 student identified for HWC support was\",J32&\" students identified for HWC support were\")&\" referred to a school counselor;  \"&IF(J33=1,\"1 student identified for HWC support was\",J33&\" students identified for HWC support were\")&\" referred to an external mental health provider.\",\"No results to display\")","v":"Number of students identified for HWC support that were referred to a school counselor / external mental health provider during this cycle (Cycle 1):\n0 students identified for HWC support were referred to a school counselor;  0 students identified for HWC support were referred to an external mental health provider."},"."]
[null,"For students with only one (1) HWC notice",null,null,null,null,null,null,null,{"$f":"IFERROR(HLOOKUP($I$4,output_calc!$C$8:$AF$11,2,FALSE),\"\")","v":0},null,null,{"$f":"IFERROR(HLOOKUP($I$4,output_calc!$C$3:$AF$6,2,FALSE),\"\")","v":0},null,null,null,null,null,null,null,null,null,null,null,null,null,null,null,"EachC",{"$f":"IFERROR(AD9&CHAR(10)&CHAR(10)&\nIF($AC$7=1,\"\",\"For each of the cycles through \"&LOWER(I4)&\", the number of HWC notices for students with only one (1) HWC notice during this cycle and students with two (2) or more HWC notices during this cycle:\"&CHAR(10)&\nIF(ISERROR(output_calc!C9),\"\",\"Summer: \"&output_calc!C9&\" HWC notices for students with only one (1); \"&output_calc!C10&\" HWC notices for students with two (2) or more.\"&CHAR(10))&\nIF(ISERROR(output_calc!D9),\"\",\"Cycle 1: \"&output_calc!D9&\" HWC notices for students with only one (1); \"&output_calc!D10&\" HWC notices for students with two (2) or more.\"&CHAR(10))&\nIF(ISERROR(output_calc!E9),\"\",\"Cycle 2: \"&output_calc!E9&\" HWC notices for students with only one (1); \"&output_calc!E10&\" HWC notices for students with two (2) or more.\"&CHAR(10))&\nIF(ISERROR(output_calc!F9),\"\",\"Cycle 3: \"&output_calc!F9&\" HWC notices for students with only one (1); \"&output_calc!F10&\" HWC notices for students with two (2) or more.\"&CHAR(10))&\nIF(ISERROR(output_calc!G9),\"\",\"Cycle 4: \"&output_calc!G9&\" HWC notices for students with only one (1); \"&output_calc!G10&\" HWC notices for students with two (2) or more.\"&CHAR(10))&\nIF(ISERROR(output_calc!H9),\"\",\"Cycle 5: \"&output_calc!H9&\" HWC notices for students with only one (1); \"&output_calc!H10&\" HWC notices for students with two (2) or more.\"&CHAR(10))&\nIF(ISERROR(output_calc!I9),\"\",\"Cycle 6: \"&output_calc!I9&\" HWC notices for students with only one (1); \"&output_calc!I10&\" HWC notices for students with two (2) or more.\"&CHAR(10))&\nIF(ISERROR(output_calc!J9),\"\",\"Cycle 7: \"&output_calc!J9&\" HWC notices for students with only one (1); \"&output_calc!J10&\" HWC notices for students with two (2) or more.\"&CHAR(10))&\nIF(ISERROR(output_calc!K9),\"\",\"Cycle 8: \"&output_calc!K9&\" HWC notices for students with only one (1); \"&output_calc!K10&\" HWC notices for students with two (2) or more.\"&CHAR(10))&\nIF(ISERROR(output_calc!L9),\"\",\"Cycle 9: \"&output_calc!L9&\" HWC notices for students with only one (1); \"&output_calc!L10&\" HWC notices for students with two (2) or more.\"&CHAR(10))&\nIF(ISERROR(output_calc!M9),\"\",\"Cycle 10: \"&output_calc!M9&\" HWC notices for students with only one (1); \"&output_calc!M10&\" HWC notices for students with two (2) or more.\"&CHAR(10))&\nIF(ISERROR(output_calc!N9),\"\",\"Cycle 11: \"&output_calc!N9&\" HWC notices for students with only one (1); \"&output_calc!N10&\" HWC notices for students with two (2) or more.\")),\"No results to display\")","v":"Number of HWC notices during this cycle (Cycle 1):\nThere were 0 HWC notices for students with only one (1) HWC notice during cycle 1.\nThere were 0 HWC notices for student(s) with two (2) or more HWC notices during cycle 1.\n\nFor each of the cycles through cycle 1, the number of HWC notices for students with only one (1) HWC notice during this cycle and students with two (2) or more HWC notices during this cycle:\nSummer: 0 HWC notices for students with only one (1); 0 HWC notices for students with two (2) or more.\nCycle 1: 0 HWC notices for students with only one (1); 0 HWC notices for students with two (2) or more.\n"},{"$f":"IFERROR(AE9&CHAR(10)&CHAR(10)&\nIF($AC$7=1,\"\",\"For each of the cycles through \"&LOWER(I4)&\", the number of students identified for HWC support with only one (1) HWC notice during this cycle and the number of students identified for HWC support with two (2) or more HWC notices during this cycle:\"&CHAR(10)&\nIF(ISERROR(output_calc!C23),\"\",\"Summer: \"&output_calc!C23&\" students with only one (1); \"&output_calc!C24&\" students with two (2) or more.\"&CHAR(10))&\nIF(ISERROR(output_calc!D23),\"\",\"Cycle 1: \"&output_calc!D23&\" students with only one (1); \"&output_calc!D24&\" students with two (2) or more.\"&CHAR(10))&\nIF(ISERROR(output_calc!E23),\"\",\"Cycle 2: \"&output_calc!E23&\" students with only one (1); \"&output_calc!E24&\" students with two (2) or more.\"&CHAR(10))&\nIF(ISERROR(output_calc!F23),\"\",\"Cycle 3: \"&output_calc!F23&\" students with only one (1); \"&output_calc!F24&\" students with two (2) or more.\"&CHAR(10))&\nIF(ISERROR(output_calc!G23),\"\",\"Cycle 4: \"&output_calc!G23&\" students with only one (1); \"&output_calc!G24&\" students with two (2) or more.\"&CHAR(10))&\nIF(ISERROR(output_calc!H23),\"\",\"Cycle 5: \"&output_calc!H23&\" students with only one (1); \"&output_calc!H24&\" students with two (2) or more.\"&CHAR(10))&\nIF(ISERROR(output_calc!I23),\"\",\"Cycle 6: \"&output_calc!I23&\" students with only one (1); \"&output_calc!I24&\" students with two (2) or more.\"&CHAR(10))&\nIF(ISERROR(output_calc!J23),\"\",\"Cycle 7: \"&output_calc!J23&\" students with only one (1); \"&output_calc!J24&\" students with two (2) or more.\"&CHAR(10))&\nIF(ISERROR(output_calc!K23),\"\",\"Cycle 8: \"&output_calc!K23&\" students with only one (1); \"&output_calc!K24&\" students with two (2) or more.\"&CHAR(10))&\nIF(ISERROR(output_calc!L23),\"\",\"Cycle 9: \"&output_calc!L23&\" students with only one (1); \"&output_calc!L24&\" students with two (2) or more.\"&CHAR(10))&\nIF(ISERROR(output_calc!M23),\"\",\"Cycle 10: \"&output_calc!M23&\" students with only one (1); \"&output_calc!M24&\" students with two (2) or more.\"&CHAR(10))&\nIF(ISERROR(output_calc!N23),\"\",\"Cycle 11: \"&output_calc!N23&\" students with only one (1); \"&output_calc!N24&\" students with two (2) or more.\")),\"No results to display\")","v":"Number of students identified for HWC support during this cycle (Cycle 1):\nThere were 0 students identified for HWC support with only one (1) HWC notice during this cycle.\nThere were 0 students identified for HWC support with two (2) or more HWC notices during this cycle.\n\nFor each of the cycles through cycle 1, the number of students identified for HWC support with only one (1) HWC notice during this cycle and the number of students identified for HWC support with two (2) or more HWC notices during this cycle:\nSummer: 0 students with only one (1); 0 students with two (2) or more.\nCycle 1: 0 students with only one (1); 0 students with two (2) or more.\n"},{"$f":"IFERROR(AF9&CHAR(10)&CHAR(10)&\nIF($AC$7=1,\"\",\"For each of the cycles through \"&LOWER(I4)&\", the percentage of HWC notices for which all teachers were informed and the percentage of HWC notices for which all other staff were informed:\"&CHAR(10)&\nIF(AND(ISERROR(output_calc!C92),ISERROR(output_calc!C122)),\"\",\"Summer: Teachers: \"&IFERROR(TEXT(output_calc!C92,\"0%\"),\"N/A\")&\"; Other Staff: \"&IFERROR(TEXT(output_calc!C122,\"0%\"),\"N/A\")&CHAR(10))&\nIF(AND(ISERROR(output_calc!D92),ISERROR(output_calc!D122)),\"\",\"Cycle 1: Teachers: \"&IFERROR(TEXT(output_calc!D92,\"0%\"),\"N/A\")&\"; Other Staff: \"&IFERROR(TEXT(output_calc!D122,\"0%\"),\"N/A\")&CHAR(10))&\nIF(AND(ISERROR(output_calc!E92),ISERROR(output_calc!E122)),\"\",\"Cycle 2: Teachers: \"&IFERROR(TEXT(output_calc!E92,\"0%\"),\"N/A\")&\"; Other Staff: \"&IFERROR(TEXT(output_calc!E122,\"0%\"),\"N/A\")&CHAR(10))&\nIF(AND(ISERROR(output_calc!F92),ISERROR(output_calc!F122)),\"\",\"Cycle 3: Teachers: \"&IFERROR(TEXT(output_calc!F92,\"0%\"),\"N/A\")&\"; Other Staff: \"&IFERROR(TEXT(output_calc!F122,\"0%\"),\"N/A\")&CHAR(10))&\nIF(AND(ISERROR(output_calc!G92),ISERROR(output_calc!G122)),\"\",\"Cycle 4: Teachers: \"&IFERROR(TEXT(output_calc!G92,\"0%\"),\"N/A\")&\"; Other Staff: \"&IFERROR(TEXT(output_calc!G122,\"0%\"),\"N/A\")&CHAR(10))&\nIF(AND(ISERROR(output_calc!H92),ISERROR(output_calc!H122)),\"\",\"Cycle 5: Teachers: \"&IFERROR(TEXT(output_calc!H92,\"0%\"),\"N/A\")&\"; Other Staff: \"&IFERROR(TEXT(output_calc!H122,\"0%\"),\"N/A\")&CHAR(10))&\nIF(AND(ISERROR(output_calc!I92),ISERROR(output_calc!I122)),\"\",\"Cycle 6: Teachers: \"&IFERROR(TEXT(output_calc!I92,\"0%\"),\"N/A\")&\"; Other Staff: \"&IFERROR(TEXT(output_calc!I122,\"0%\"),\"N/A\")&CHAR(10))&\nIF(AND(ISERROR(output_calc!J92),ISERROR(output_calc!J122)),\"\",\"Cycle 7: Teachers: \"&IFERROR(TEXT(output_calc!J92,\"0%\"),\"N/A\")&\"; Other Staff: \"&IFERROR(TEXT(output_calc!J122,\"0%\"),\"N/A\")&CHAR(10))&\nIF(AND(ISERROR(output_calc!K92),ISERROR(output_calc!K122)),\"\",\"Cycle 8: Teachers: \"&IFERROR(TEXT(output_calc!K92,\"0%\"),\"N/A\")&\"; Other Staff: \"&IFERROR(TEXT(output_calc!K122,\"0%\"),\"N/A\")&CHAR(10))&\nIF(AND(ISERROR(output_calc!L92),ISERROR(output_calc!L122)),\"\",\"Cycle 9: Teachers: \"&IFERROR(TEXT(output_calc!L92,\"0%\"),\"N/A\")&\"; Other Staff: \"&IFERROR(TEXT(output_calc!L122,\"0%\"),\"N/A\")&CHAR(10))&\nIF(AND(ISERROR(output_calc!M92),ISERROR(output_calc!M122)),\"\",\"Cycle 10: Teachers: \"&IFERROR(TEXT(output_calc!M92,\"0%\"),\"N/A\")&\"; Other Staff: \"&IFERROR(TEXT(output_calc!M122,\"0%\"),\"N/A\")&CHAR(10))&\nIF(AND(ISERROR(output_calc!N92),ISERROR(output_calc!N122)),\"\",\"Cycle 11: Teachers: \"&IFERROR(TEXT(output_calc!N92,\"0%\"),\"N/A\")&\"; Other Staff: \"&IFERROR(TEXT(output_calc!N122,\"0%\"),\"N/A\"))),\"No results to display\")","v":"No results to display\n\nFor each of the cycles through cycle 1, the percentage of HWC notices for which all teachers were informed and the percentage of HWC notices for which all other staff were informed:\n"},{"$f":"IFERROR(AG9&CHAR(10)&CHAR(10)&\nIF($AC$7=1,\"\",\"For each of the cycles through \"&LOWER(I4)&\", the number of students identified for HWC that were referred to a school counselor and to an external mental health provider:\"&CHAR(10)&\nIF(ISERROR(output_calc!C51),\"\",\"Summer: \"&output_calc!C39&\" (school counselor); \"&output_calc!C51&\" (external mental health provider).\"&CHAR(10))&\nIF(ISERROR(output_calc!D51),\"\",\"Cycle 1: \"&output_calc!D39&\" (school counselor); \"&output_calc!D51&\" (external mental health provider).\"&CHAR(10))&\nIF(ISERROR(output_calc!E51),\"\",\"Cycle 2: \"&output_calc!E39&\" (school counselor); \"&output_calc!E51&\" (external mental health provider).\"&CHAR(10))&\nIF(ISERROR(output_calc!F51),\"\",\"Cycle 3: \"&output_calc!F39&\" (school counselor); \"&output_calc!F51&\" (external mental health provider).\"&CHAR(10))&\nIF(ISERROR(output_calc!G51),\"\",\"Cycle 4: \"&output_calc!G39&\" (school counselor); \"&output_calc!G51&\" (external mental health provider).\"&CHAR(10))&\nIF(ISERROR(output_calc!H51),\"\",\"Cycle 5: \"&output_calc!H39&\" (school counselor); \"&output_calc!H51&\" (external mental health provider).\"&CHAR(10))&\nIF(ISERROR(output_calc!I51),\"\",\"Cycle 6: \"&output_calc!I39&\" (school counselor); \"&output_calc!I51&\" (external mental health provider).\"&CHAR(10))&\nIF(ISERROR(output_calc!J51),\"\",\"Cycle 7: \"&output_calc!J39&\" (school counselor); \"&output_calc!J51&\" (external mental health provider).\"&CHAR(10))&\nIF(ISERROR(output_calc!K51),\"\",\"Cycle 8: \"&output_calc!K39&\" (school counselor); \"&output_calc!K51&\" (external mental health provider).\"&CHAR(10))&\nIF(ISERROR(output_calc!L51),\"\",\"Cycle 9: \"&output_calc!L39&\" (school counselor); \"&output_calc!L51&\" (external mental health provider).\"&CHAR(10))&\nIF(ISERROR(output_calc!M51),\"\",\"Cycle 10: \"&output_calc!M39&\" (school counselor); \"&output_calc!M51&\" (external mental health provider).\"&CHAR(10))&\nIF(ISERROR(output_calc!N51),\"\",\"Cycle 11: \"&output_calc!N39&\" (school counselor); \"&output_calc!N51&\" (external mental health provider).\")),\"No results to display\")","v":"Number of students identified for HWC support that were referred to a school counselor / external mental health provider during this cycle (Cycle 1):\n0 students identified for HWC support were referred to a school counselor;  0 students identified for HWC support were referred to an external mental health provider.\n\nFor each of the cycles through cycle 1, the number of students identified for HWC that were referred to a school counselor and to an external mental health provider:\nSummer: 0 (school counselor); 0 (external mental health provider).\nCycle 1: 0 (school counselor); 0 (external mental health provider).\n"},"."]
[null,"For students with two (2) or more HWC notices",null,null,null,null,null,null,null,{"$f":"IFERROR(HLOOKUP($I$4,output_calc!$C$8:$AF$11,3,FALSE),\"\")","v":0},null,null,{"$f":"IFERROR(HLOOKUP($I$4,output_calc!$C$3:$AF$6,3,FALSE),\"\")","v":0},null,null,null,null,null,null,null,null,null,null,null,null,null,null,null,"Cumul",{"$f":"IFERROR(\"Number of HWC notices from the beginning of the year through this cycle (\"&I4&\"): \"&CHAR(10)&M10&\" HWC notice(s) involving students with only one (1) HWC notice, and \"&M11&\" HWC notice(s) involving students with two (2) or more HWC notices.\"&CHAR(10)&CHAR(10)&\nIF($AC$7=1,\"\",\"For each cycle, the number of HWC notices for students with only one (1) HWC notice so far this school year and for students with two (2) or more HWC notices so far this school year:\"&CHAR(10)&\nIF(ISERROR(output_calc!C6),\"\",\"Summer: \"&output_calc!C4&\" HWC notice(s) for students with only one (1); \"&output_calc!C5&\" HWC notice(s) for students with two (2) or more.\"&CHAR(10))&\nIF(ISERROR(output_calc!D6),\"\",\"Cycle 1: \"&output_calc!D4&\" HWC notice(s) for students with only one (1); \"&output_calc!D5&\" HWC notice(s) for students with two (2) or more.\"&CHAR(10))&\nIF(ISERROR(output_calc!E6),\"\",\"Cycle 2: \"&output_calc!E4&\" HWC notice(s) for students with only one (1); \"&output_calc!E5&\" HWC notice(s) for students with two (2) or more.\"&CHAR(10))&\nIF(ISERROR(output_calc!F6),\"\",\"Cycle 3: \"&output_calc!F4&\" HWC notice(s) for students with only one (1); \"&output_calc!F5&\" HWC notice(s) for students with two (2) or more.\"&CHAR(10))&\nIF(ISERROR(output_calc!G6),\"\",\"Cycle 4: \"&output_calc!G4&\" HWC notice(s) for students with only one (1); \"&output_calc!G5&\" HWC notice(s) for students with two (2) or more.\"&CHAR(10))&\nIF(ISERROR(output_calc!H6),\"\",\"Cycle 5: \"&output_calc!H4&\" HWC notice(s) for students with only one (1); \"&output_calc!H5&\" HWC notice(s) for students with two (2) or more.\"&CHAR(10))&\nIF(ISERROR(output_calc!I6),\"\",\"Cycle 6: \"&output_calc!I4&\" HWC notice(s) for students with only one (1); \"&output_calc!I5&\" HWC notice(s) for students with two (2) or more.\"&CHAR(10))&\nIF(ISERROR(output_calc!J6),\"\",\"Cycle 7: \"&output_calc!J4&\" HWC notice(s) for students with only one (1); \"&output_calc!J5&\" HWC notice(s) for students with two (2) or more.\"&CHAR(10))&\nIF(ISERROR(output_calc!K6),\"\",\"Cycle 8: \"&output_calc!K4&\" HWC notice(s) for students with only one (1); \"&output_calc!K5&\" HWC notice(s) for students with two (2) or more.\"&CHAR(10))&\nIF(ISERROR(output_calc!L6),\"\",\"Cycle 9: \"&output_calc!L4&\" HWC notice(s) for students with only one (1); \"&output_calc!L5&\" HWC notice(s) for students with two (2) or more.\"&CHAR(10))&\nIF(ISERROR(output_calc!M6),\"\",\"Cycle 10: \"&output_calc!M4&\" HWC notice(s) for students with only one (1); \"&output_calc!M5&\" HWC notice(s) for students with two (2) or more.\"&CHAR(10))&\nIF(ISERROR(output_calc!N6),\"\",\"Cycle 11: \"&output_calc!N4&\" HWC notice(s) for students with only one (1); \"&output_calc!N5&\" HWC notice(s) for students with two (2) or more.\")&AD15),\"No results to display\")","v":"Number of HWC notices from the beginning of the year through this cycle (Cycle 1): \n0 HWC notice(s) involving students with only one (1) HWC notice, and 0 HWC notice(s) involving students with two (2) or more HWC notices.\n\nFor each cycle, the number of HWC notices for students with only one (1) HWC notice so far this school year and for students with two (2) or more HWC notices so far this school year:\nSummer: 0 HWC notice(s) for students with only one (1); 0 HWC notice(s) for students with two (2) or more.\nCycle 1: 0 HWC notice(s) for students with only one (1); 0 HWC notice(s) for students with two (2) or more.\n"},{"$f":"IFERROR(\"Number of students identified for HWC support from the beginning of the year through this cycle (\"&I4&\"): \"&CHAR(10)&IF(M28=1,\"There was 1 student\",\"There were \"&M28&\" students\")&\" identified for HWC support with only one (1) HWC notice.\"&CHAR(10)&IF(M29=1,\"There was 1 student\",\"There were \"&M29&\" students\")&\" identified for HWC support with two (2) or more HWC notices.\"&CHAR(10)&CHAR(10)&\nIF($AC$7=1,\"\",\"For each cycle, the number of students with only one (1) HWC notice so far this school year and the number of students with two (2) or more HWC notices so far this school year:\"&CHAR(10)&\nIF(ISERROR(output_calc!C20),\"\",\"Summer: \"&output_calc!C18&\" student(s) with only one (1); \"&output_calc!C19&\" student(s) with two (2) or more.\"&CHAR(10))&\nIF(ISERROR(output_calc!D20),\"\",\"Cycle 1: \"&output_calc!D18&\" student(s) with only one (1); \"&output_calc!D19&\" student(s) with two (2) or more.\"&CHAR(10))&\nIF(ISERROR(output_calc!E20),\"\",\"Cycle 2: \"&output_calc!E18&\" student(s) with only one (1); \"&output_calc!E19&\" student(s) with two (2) or more.\"&CHAR(10))&\nIF(ISERROR(output_calc!F20),\"\",\"Cycle 3: \"&output_calc!F18&\" student(s) with only one (1); \"&output_calc!F19&\" student(s) with two (2) or more.\"&CHAR(10))&\nIF(ISERROR(output_calc!G20),\"\",\"Cycle 4: \"&output_calc!G18&\" student(s) with only one (1); \"&output_calc!G19&\" student(s) with two (2) or more.\"&CHAR(10))&\nIF(ISERROR(output_calc!H20),\"\",\"Cycle 5: \"&output_calc!H18&\" student(s) with only one (1); \"&output_calc!H19&\" student(s) with two (2) or more.\"&CHAR(10))&\nIF(ISERROR(output_calc!I20),\"\",\"Cycle 6: \"&output_calc!I18&\" student(s) with only one (1); \"&output_calc!I19&\" student(s) with two (2) or more.\"&CHAR(10))&\nIF(ISERROR(output_calc!J20),\"\",\"Cycle 7: \"&output_calc!J18&\" student(s) with only one (1); \"&output_calc!J19&\" student(s) with two (2) or more.\"&CHAR(10))&\nIF(ISERROR(output_calc!K20),\"\",\"Cycle 8: \"&output_calc!K18&\" student(s) with only one (1); \"&output_calc!K19&\" student(s) with two (2) or more.\"&CHAR(10))&\nIF(ISERROR(output_calc!L20),\"\",\"Cycle 9: \"&output_calc!L18&\" student(s) with only one (1); \"&output_calc!L19&\" student(s) with two (2) or more.\"&CHAR(10))&\nIF(ISERROR(output_calc!M20),\"\",\"Cycle 10: \"&output_calc!M18&\" student(s) with only one (1); \"&output_calc!M19&\" student(s) with two (2) or more.\"&CHAR(10))&\nIF(ISERROR(output_calc!N20),\"\",\"Cycle 11: \"&output_calc!N18&\" student(s) with only one (1); \"&output_calc!N19&\" student(s) with two (2) or more.\")&AE15),\"No results to display\")","v":"Number of students identified for HWC support from the beginning of the year through this cycle (Cycle 1): \nThere were 0 students identified for HWC support with only one (1) HWC notice.\nThere were 0 students identified for HWC support with two (2) or more HWC notices.\n\nFor each cycle, the number of students with only one (1) HWC notice so far this school year and the number of students with two (2) or more HWC notices so far this school year:\nSummer: 0 student(s) with only one (1); 0 student(s) with two (2) or more.\nCycle 1: 0 student(s) with only one (1); 0 student(s) with two (2) or more.\n"},{"$f":"IFERROR(\"Percentage of HWC notices for which all teachers/other staff were informed from the beginning of the year through this cycle (\"&I4&\"): \"&CHAR(10)&\"All teachers were informed in \"&SUBSTITUTE(SUBSTITUTE(N16,\"(\",\"\"),\")\",\"\")&\" of all HWC notices from the beginning of the year through the current cycle; \"&CHAR(10)&\"All other staff were informed in \"&SUBSTITUTE(SUBSTITUTE(N17,\"(\",\"\"),\")\",\"\")&\" of all HWC notices from the beginning of the year through the current cycle.\"&CHAR(10)&CHAR(10)&\nIF($AC$7=1,\"\",\"For each cycle, the year-to-date percentage of HWC notices for which all teachers and all other staff were informed:\"&CHAR(10)&\nIF(AND(ISERROR(output_calc!C86),ISERROR(output_calc!C116)),\"\",\"Summer: \"&IFERROR(\"All teachers informed in \"&TEXT(output_calc!C86,\"0%\")&\" of HWC notices; \",\"\")&IFERROR(\"All other staff informed in \"&TEXT(output_calc!C116,\"0%\")&\" of HWC notices.\",\"\")&CHAR(10))&\nIF(AND(ISERROR(output_calc!D86),ISERROR(output_calc!D116)),\"\",\"Cycle 1: \"&IFERROR(\"All teachers informed in \"&TEXT(output_calc!D86,\"0%\")&\" of HWC notices; \",\"\")&IFERROR(\"All other staff informed in \"&TEXT(output_calc!D116,\"0%\")&\" of HWC notices.\",\"\")&CHAR(10))&\nIF(AND(ISERROR(output_calc!E86),ISERROR(output_calc!E116)),\"\",\"Cycle 2: \"&IFERROR(\"All teachers informed in \"&TEXT(output_calc!E86,\"0%\")&\" of HWC notices; \",\"\")&IFERROR(\"All other staff informed in \"&TEXT(output_calc!E116,\"0%\")&\" of HWC notices.\",\"\")&CHAR(10))&\nIF(AND(ISERROR(output_calc!F86),ISERROR(output_calc!F116)),\"\",\"Cycle 3: \"&IFERROR(\"All teachers informed in \"&TEXT(output_calc!F86,\"0%\")&\" of HWC notices; \",\"\")&IFERROR(\"All other staff informed in \"&TEXT(output_calc!F116,\"0%\")&\" of HWC notices.\",\"\")&CHAR(10))&\nIF(AND(ISERROR(output_calc!G86),ISERROR(output_calc!G116)),\"\",\"Cycle 4: \"&IFERROR(\"All teachers informed in \"&TEXT(output_calc!G86,\"0%\")&\" of HWC notices; \",\"\")&IFERROR(\"All other staff informed in \"&TEXT(output_calc!G116,\"0%\")&\" of HWC notices.\",\"\")&CHAR(10))&\nIF(AND(ISERROR(output_calc!H86),ISERROR(output_calc!H116)),\"\",\"Cycle 5: \"&IFERROR(\"All teachers informed in \"&TEXT(output_calc!H86,\"0%\")&\" of HWC notices; \",\"\")&IFERROR(\"All other staff informed in \"&TEXT(output_calc!H116,\"0%\")&\" of HWC notices.\",\"\")&CHAR(10))&\nIF(AND(ISERROR(output_calc!I86),ISERROR(output_calc!I116)),\"\",\"Cycle 6: \"&IFERROR(\"All teachers informed in \"&TEXT(output_calc!I86,\"0%\")&\" of HWC notices; \",\"\")&IFERROR(\"All other staff informed in \"&TEXT(output_calc!I116,\"0%\")&\" of HWC notices.\",\"\")&CHAR(10))&\nIF(AND(ISERROR(output_calc!J86),ISERROR(output_calc!J116)),\"\",\"Cycle 7: \"&IFERROR(\"All teachers informed in \"&TEXT(output_calc!J86,\"0%\")&\" of HWC notices; \",\"\")&IFERROR(\"All other staff informed in \"&TEXT(output_calc!J116,\"0%\")&\" of HWC notices.\",\"\")&CHAR(10))&\nIF(AND(ISERROR(output_calc!K86),ISERROR(output_calc!K116)),\"\",\"Cycle 8: \"&IFERROR(\"All teachers informed in \"&TEXT(output_calc!K86,\"0%\")&\" of HWC notices; \",\"\")&IFERROR(\"All other staff informed in \"&TEXT(output_calc!K116,\"0%\")&\" of HWC notices.\",\"\")&CHAR(10))&\nIF(AND(ISERROR(output_calc!L86),ISERROR(output_calc!L116)),\"\",\"Cycle 9: \"&IFERROR(\"All teachers informed in \"&TEXT(output_calc!L86,\"0%\")&\" of HWC notices; \",\"\")&IFERROR(\"All other staff informed in \"&TEXT(output_calc!L116,\"0%\")&\" of HWC notices.\",\"\")&CHAR(10))&\nIF(AND(ISERROR(output_calc!M86),ISERROR(output_calc!M116)),\"\",\"Cycle 10: \"&IFERROR(\"All teachers informed in \"&TEXT(output_calc!M86,\"0%\")&\" of HWC notices; \",\"\")&IFERROR(\"All other staff informed in \"&TEXT(output_calc!M116,\"0%\")&\" of HWC notices.\",\"\")&CHAR(10))&\nIF(AND(ISERROR(output_calc!N86),ISERROR(output_calc!N116)),\"\",\"Cycle 11: \"&IFERROR(\"All teachers informed in \"&TEXT(output_calc!N86,\"0%\")&\" of HWC notices; \",\"\")&IFERROR(\"All other staff informed in \"&TEXT(output_calc!N116,\"0%\")&\" of HWC notices.\",\"\"))&AF15),\"No results to display\")","v":"Percentage of HWC notices for which all teachers/other staff were informed from the beginning of the year through this cycle (Cycle 1): \nAll teachers were informed in - of all HWC notices from the beginning of the year through the current cycle; \nAll other staff were informed in - of all HWC notices from the beginning of the year through the current cycle.\n\nFor each cycle, the year-to-date percentage of HWC notices for which all teachers and all other staff were informed:\n"},{"$f":"IFERROR(\"Number of students identified for HWC support that were referred to a school counselor / external mental health provider:  \"&CHAR(10)&\"Of the \"&IF(M27=1,\"1 student\",M27&\" students\")&\" identified for HWC support from the beginning of the year through this cycle (\"&I4&\"), \"&IF(M32=1,\"1 student has\",M32&\" students have\")&\" been referred to a school counselor; \"&IF(M33=1,\"1 student has\",M33&\" students have\")&\" been referred to an external mental health provider.\"&CHAR(10)&CHAR(10)&\nIF($AC$7=1,\"\",\"For each cycle, the total year-to-date number of students identified for HWC support, referred to a school counselor, referred to an external mental health provider:\"&CHAR(10)&\nIF(ISERROR(output_calc!C46),\"\",\"Summer: \"&output_calc!C45&\" (identified for HWC support); \"&output_calc!C34&\" (school counselor); \"&output_calc!C46&\" (external mental health provider).\"&IF(output_calc!C46>output_calc!C45,\" Please check data!\",\"\")&CHAR(10))&\nIF(ISERROR(output_calc!D46),\"\",\"Cycle 1: \"&output_calc!D45&\" (identified for HWC support); \"&output_calc!D34&\" (school counselor); \"&output_calc!D46&\" (external mental health provider).\"&IF(output_calc!D46>output_calc!D45,\" Please check data!\",\"\")&CHAR(10))&\nIF(ISERROR(output_calc!E46),\"\",\"Cycle 2: \"&output_calc!E45&\" (identified for HWC support); \"&output_calc!E34&\" (school counselor); \"&output_calc!E46&\" (external mental health provider).\"&IF(output_calc!E46>output_calc!E45,\" Please check data!\",\"\")&CHAR(10))&\nIF(ISERROR(output_calc!F46),\"\",\"Cycle 3: \"&output_calc!F45&\" (identified for HWC support); \"&output_calc!F34&\" (school counselor); \"&output_calc!F46&\" (external mental health provider).\"&IF(output_calc!F46>output_calc!F45,\" Please check data!\",\"\")&CHAR(10))&\nIF(ISERROR(output_calc!G46),\"\",\"Cycle 4: \"&output_calc!G45&\" (identified for HWC support); \"&output_calc!G34&\" (school counselor); \"&output_calc!G46&\" (external mental health provider).\"&IF(output_calc!G46>output_calc!G45,\" Please check data!\",\"\")&CHAR(10))&\nIF(ISERROR(output_calc!H46),\"\",\"Cycle 5: \"&output_calc!H45&\" (identified for HWC support); \"&output_calc!H34&\" (school counselor); \"&output_calc!H46&\" (external mental health provider).\"&IF(output_calc!H46>output_calc!H45,\" Please check data!\",\"\")&CHAR(10))&\nIF(ISERROR(output_calc!I46),\"\",\"Cycle 6: \"&output_calc!I45&\" (identified for HWC support); \"&output_calc!I34&\" (school counselor); \"&output_calc!I46&\" (external mental health provider).\"&IF(output_calc!I46>output_calc!I45,\" Please check data!\",\"\")&CHAR(10))&\nIF(ISERROR(output_calc!J46),\"\",\"Cycle 7: \"&output_calc!J45&\" (identified for HWC support); \"&output_calc!J34&\" (school counselor); \"&output_calc!J46&\" (external mental health provider).\"&IF(output_calc!J46>output_calc!J45,\" Please check data!\",\"\")&CHAR(10))&\nIF(ISERROR(output_calc!K46),\"\",\"Cycle 8: \"&output_calc!K45&\" (identified for HWC support); \"&output_calc!K34&\" (school counselor); \"&output_calc!K46&\" (external mental health provider).\"&IF(output_calc!K46>output_calc!K45,\" Please check data!\",\"\")&CHAR(10))&\nIF(ISERROR(output_calc!L46),\"\",\"Cycle 9: \"&output_calc!L45&\" (identified for HWC support); \"&output_calc!L34&\" (school counselor); \"&output_calc!L46&\" (external mental health provider).\"&IF(output_calc!L46>output_calc!L45,\" Please check data!\",\"\")&CHAR(10))&\nIF(ISERROR(output_calc!M46),\"\",\"Cycle 10: \"&output_calc!M45&\" (identified for HWC support); \"&output_calc!M34&\" (school counselor); \"&output_calc!M46&\" (external mental health provider).\"&IF(output_calc!M46>output_calc!M45,\" Please check data!\",\"\")&CHAR(10))&\nIF(ISERROR(output_calc!N46),\"\",\"Cycle 11: \"&output_calc!N45&\" (identified for HWC support); \"&output_calc!N34&\" (school counselor); \"&output_calc!N46&\" (external mental health provider).\"&IF(output_calc!N46>output_calc!N45,\" Please check data!\",\"\"))&AG15&AH15),\"No results to display\")","v":"Number of students identified for HWC support that were referred to a school counselor / external mental health provider:  \nOf the 0 students identified for HWC support from the beginning of the year through this cycle (Cycle 1), 0 students have been referred to a school counselor; 0 students have been referred to an external mental health provider.\n\nFor each cycle, the total year-to-date number of students identified for HWC support, referred to a school counselor, referred to an external mental health provider:\nSummer: 0 (identified for HWC support); 0 (school counselor); 0 (external mental health provider).\nCycle 1: 0 (identified for HWC support); 0 (school counselor); 0 (external mental health provider).\n"},"."]
[null,"Average number of HWC notices per student identified for HWC support",null,null,null,null,null,null,null,{"$f":"IFERROR(J9/J27,\"-\")","v":"-"},null,null,{"$f":"IFERROR(M9/M27,\"-\")","v":"-"}]
[]
[]
[null,"Number and Percentage of HWC Notices for Which",null,null,null,null,null,null,null,"This Cycle",null,null,"Year to Current Cycle",null,null,"Enter Student Data",null,null,null,null,null,null,null,null,null,null,null,null,null,{"$f":"IF(OR(output_calc!D7<output_calc!C7,output_calc!E7<output_calc!D7,output_calc!F7<output_calc!E7,output_calc!G7<output_calc!F7,output_calc!H7<output_calc!G7,output_calc!I7<output_calc!H7,output_calc!J7<output_calc!I7,output_calc!K7<output_calc!J7,output_calc!L7<output_calc!K7,output_calc!M7<output_calc!L7,output_calc!N7<output_calc!M7),CHAR(10)&AD16,\"\")","v":""},{"$f":"IF(OR(output_calc!D21<output_calc!C21,output_calc!E21<output_calc!D21,output_calc!F21<output_calc!E21,output_calc!G21<output_calc!F21,output_calc!H21<output_calc!G21,output_calc!I21<output_calc!H21,output_calc!J21<output_calc!I21,output_calc!K21<output_calc!J21,output_calc!L21<output_calc!K21,output_calc!M21<output_calc!L21,output_calc!N21<output_calc!M21),CHAR(10)&AE16,\"\")","v":""},{"$f":"\"\"","v":""},{"$f":"IF(SUM(output_calc!C35:N35)>0,CHAR(10)&AG16&CHAR(10),\"\")","v":""},{"$f":"IF(SUM(output_calc!C47:N47)>0,CHAR(10)&AH16,\"\")","v":""}]
[null,"All teachers were informed",null,null,null,null,null,null,null,{"$f":"IFERROR(HLOOKUP($I$4,output_calc!$C$78:$AF$81,2,FALSE),\"\")","v":0},null,{"$f":"IFERROR(\"(\"&TEXT(HLOOKUP($I$4,output_calc!$C$91:$AF$94,2,FALSE),\"0%\")&\")\",\"-\")","v":"-"},{"$f":"IFERROR(HLOOKUP($I$4,output_calc!$C$72:$AF$75,2,FALSE),\"\")","v":0},{"$f":"IFERROR(\"(\"&TEXT(HLOOKUP($I$4,output_calc!$C$85:$AF$88,2,FALSE),\"0%\")&\")\",\"-\")","v":"-"},null,null,null,null,null,null,null,null,null,null,null,null,null,null,null,"Note: The total number of HWC notices involving students with only one (1) HWC notice has decreased from one cycle to the next [you see this as a green bar that is SHORTER in a later cycle than in an earlier cycle] because at least one student has accrued a second (or more) HWC notice.  Essentially, this means that a student(s) has moved from the group of single-notices to multiple-notices.  The total number of notices involving students identified for HWC support who have two (2) or more HWC notices (the blue bars) will NEVER decrease from one cycle to the next.","Note: The total number of students with only one (1) HWC notice has decreased from one cycle to the next because at least one student has accrued a second (or more) HWC notice.  You see this in the graph as a green bar being shorter for one cycle than for a previous cycle. The total number of students identified for HWC support who have two (2) or more HWC notices will NEVER decrease from one cycle to the next (the blue bars).",{"$f":"\"\"","v":""},"Note: In at least one cycle, the total year-to-date number of students identified for HWC support that were referred to a school counselor was greater than the number of students identified for HWC support.  This is not possible.  Please check your data entry.","Note: In at least one cycle, the total year-to-date number of students identified for HWC support that were referred to an external mental health provider was greater than the number of students identified for HWC support.  This is not possible.  Please check your data entry."]
[null,"All other staff were informed",null,null,null,null,null,null,null,{"$f":"IFERROR(HLOOKUP($I$4,output_calc!$C$107:$AF$110,2,FALSE),\"\")","v":0},null,{"$f":"IFERROR(\"(\"&TEXT(HLOOKUP($I$4,output_calc!$C$121:$AF$124,2,FALSE),\"0%\")&\")\",\"-\")","v":"-"},{"$f":"IFERROR(HLOOKUP($I$4,output_calc!$C$101:$AF$104,2,FALSE),\"\")","v":0},{"$f":"IFERROR(\"(\"&TEXT(HLOOKUP($I$4,output_calc!$C$115:$AF$118,2,FALSE),\"0%\")&\")\",\"-\")","v":"-"}]
[]
[null,"Average number of days to inform",null,null,null,null,null,null,null,"This Cycle",null,null,"Year to Current Cycle"]
[null,"Teachers",null,null,null,null,null,null,null,{"$f":"IFERROR(AVERAGEIFS(StuDB!$BR:$BR,StuDB!$E:$E,\">=\"&$M$2,StuDB!$E:$E,\"<=\"&M$4,StuDB!$BP:$BP,\"<>\"&TRUE),\"-\")","v":"-"},null,null,{"$f":"IFERROR(AVERAGEIFS(StuDB!$BR:$BR,StuDB!$E:$E,\">=\"&MIN(CycleDB!B:B),StuDB!$E:$E,\"<=\"&M$4,StuDB!$BP:$BP,\"<>\"&TRUE),\"-\")","v":"-"}]
[null,"Other staff",null,null,null,null,null,null,null,{"$f":"IFERROR(AVERAGEIFS(StuDB!$BW:$BW,StuDB!$E:$E,\">=\"&$M$2,StuDB!$E:$E,\"<=\"&M$4,StuDB!$BU:$BU,\"<>\"&TRUE),\"-\")","v":"-"},null,null,{"$f":"IFERROR(AVERAGEIFS(StuDB!$BW:$BW,StuDB!$E:$E,\">=\"&MIN(CycleDB!B:B),StuDB!$E:$E,\"<=\"&M$4,StuDB!$BU:$BU,\"<>\"&TRUE),\"-\")","v":"-"}]
[]
[]
[]
[null,"About Students Identified for HWC Support",null,null,null,null,null,null,null,null,null,null,null,null,null,"Enter Student Data"]
[null,"Number of Students Identified for HWC Support",null,null,null,null,null,null,null,"This Cycle",null,null,"Year to Current Cycle"]
[null,"Total",null,null,null,null,null,null,null,{"$f":"IFERROR(HLOOKUP($I$4,output_calc!$C$22:$AF$25,4,FALSE),\"\")","v":0},null,null,{"$f":"IFERROR(HLOOKUP($I$4,output_calc!$C$17:$AF$20,4,FALSE),\"\")","v":0}]
[null,"With only one (1) HWC notice",null,null,null,null,null,null,null,{"$f":"IFERROR(HLOOKUP($I$4,output_calc!$C$22:$AF$25,2,FALSE),\"\")","v":0},null,null,{"$f":"IFERROR(HLOOKUP($I$4,output_calc!$C$17:$AF$20,2,FALSE),\"\")","v":0}]
[null,"With two (2) or more HWC notices",null,null,null,null,null,null,null,{"$f":"IFERROR(HLOOKUP($I$4,output_calc!$C$22:$AF$25,3,FALSE),\"\")","v":0},null,null,{"$f":"IFERROR(HLOOKUP($I$4,output_calc!$C$17:$AF$20,3,FALSE),\"\")","v":0}]
[]
[null,"Number of Students Identified for HWC Support",null,null,null,null,null,null,null,"This Cycle",null,null,"Year to Current Cycle",null,null,"Enter Cycle Data"]
[null,"Referred to school counselor",null,null,null,null,null,null,null,{"$f":"IFERROR(HLOOKUP($I$4,output_calc!$C$37:$AF$39,3,FALSE),\"\")","v":0},null,null,{"$f":"IFERROR(HLOOKUP($I$4,output_calc!$C$32:$AF$34,3,FALSE),\"\")","v":0},{"$f":"IFERROR(\"(\"&TEXT(M32/$M$27,\"0%\")&\")\",\"-\")","v":"-"}]
[null,"Referred to external mental health provider",null,null,null,null,null,null,null,{"$f":"IFERROR(HLOOKUP($I$4,output_calc!$C$49:$AF$51,3,FALSE),\"\")","v":0},null,null,{"$f":"IFERROR(HLOOKUP($I$4,output_calc!$C$44:$AF$46,3,FALSE),\"\")","v":0},{"$f":"IFERROR(\"(\"&TEXT(M33/$M$27,\"0%\")&\")\",\"-\")","v":"-"}]
[]
[]
[null,"Information about this graph (click on a graph to select it and show details below)"]
[null,{"$f":"AD9","v":"Number of HWC notices during this cycle (Cycle 1):\nThere were 0 HWC notices for students with only one (1) HWC notice during cycle 1.\nThere were 0 HWC notices for student(s) with two (2) or more HWC notices during cycle 1."}]

{"sheet":"Student Outcome Data Dashboard","index":16,"n_rows":46,"n_cols":33,"rows_kept":46,"cut":false,"hidden":false,"merged":[[45,1,73,14],[41,1,41,8],[41,9,41,11],[41,12,41,13],[40,1,40,8],[40,9,40,11],[40,12,40,13],[44,1,44,14],[38,12,38,13],[31,1,31,8],[31,9,31,11],[31,12,31,13],[32,1,32,8],[32,9,32,11],[32,12,32,13],[33,1,33,8],[33,9,33,11],[33,12,33,13],[37,1,37,8],[37,9,37,13],[39,1,39,8],[39,9,39,11],[21,1,21,8],[21,9,21,13],[22,1,22,8],[22,9,22,11],[22,12,22,13],[25,12,25,13],[29,1,29,8],[30,1,30,8],[30,9,30,11],[30,12,30,13],[24,1,24,8],[39,12,39,13],[38,1,38,8],[38,9,38,11],[24,9,24,11],[24,12,24,13],[25,1,25,8],[25,9,25,11],[29,9,29,13],[7,1,7,12],[8,1,8,12],[23,12,23,13],[14,9,14,13],[15,9,15,11],[15,12,15,13],[16,9,16,11],[16,12,16,13],[15,1,15,8],[23,1,23,8],[23,9,23,11],[17,12,17,13],[9,1,9,12],[10,1,10,12],[14,28,39,35],[1,8,2,8],[1,1,3,6],[18,1,18,8],[18,9,18,11],[18,12,18,13],[14,1,14,8],[1,10,1,11],[3,10,3,11],[1,12,1,13],[3,12,3,13],[6,1,6,8],[6,9,6,13],[16,1,16,8],[17,1,17,8],[17,9,17,11],[6,15,10,15],[14,15,18,15],[21,15,25,15],[29,15,33,15],[37,15,41,15]]}
[{"$f":"I4&\"_\"&TEXT(TODAY(),\"yyyymmdd\")","v":"Cycle 1_20211209"}]
[null,"Student Outcome Data Dashboard",null,null,null,null,null,null,"Select a Cycle",null,"Start Date:",null,{"$f":"IFERROR(VLOOKUP(I4,CycleDB!A:C,2,FALSE),\"\")","v":"00:00:00"}]
[]
[null,null,null,null,null,null,null,null,"Cycle 1",null,"End Date:",null,{"$f":"IFERROR(VLOOKUP(I4,CycleDB!A:C,3,FALSE),\"\")","v":"00:00:00"},null,null,null,null,null,null,null,null,null,null,null,null,null,null,null,"ThisC"]
[]
[]
[null,"STUDENTS",null,null,null,null,null,null,null,null,null,null,null,null,null,"Enter Cycle Data",null,null,null,null,null,null,null,null,null,null,null,null,{"$f":"VALUE(RIGHT(I4,2))","v":1},"Behav","PerStu","Attend","Achv"]
[null,"Number of Students",null,null,null,null,null,null,null,null,null,null,null,"N",null,null,null,null,null,null,null,null,null,null,null,null,null,null,null,1,2,3,4]
[null,"Identified for HWC support in this cycle (Cycle HWC Group)",null,null,null,null,null,null,null,null,null,null,null,{"$f":"IFERROR(HLOOKUP($I$4,output_calc2!$C$23:$AF$26,2,FALSE),\"\")","v":0},null,null,null,null,null,null,null,null,null,null,null,null,null,null,"This",{"$f":"IFERROR(\"Number of Behavior Incidents during this cycle (\"&I4&\"):\"&CHAR(10)&\nIF(J17=1,\"There was 1 incident \",\"There were \"&J17&\" incidents\")&\" involving one or more students identified for HWC support during this cycle (Cycle HWC Group).\"&CHAR(10)&\nIF(J18=1,\"There was 1 incident \",\"There were \"&J18&\" incidents\")&\" involving one or more students identified for HWC support at some point to date (Cumulative HWC Group).\"&CHAR(10)&\nIF(J19=1,\"There was 1 incident \",\"There were \"&J19&\" incidents \")&\"involving one or more students in the whole school (Schoolwide Group).\",\"No results to display\")","v":"Number of Behavior Incidents during this cycle (Cycle 1):\nThere were 0 incidents involving one or more students identified for HWC support during this cycle (Cycle HWC Group).\nThere were 0 incidents involving one or more students identified for HWC support at some point to date (Cumulative HWC Group).\nThere were 0 incidents involving one or more students in the whole school (Schoolwide Group)."},{"$f":"IFERROR(\"Number of Behavior Incidents PER STUDENT during this cycle (\"&I4&\"):\"&CHAR(10)&\nIF(J24=\"<1\",\"There was <1 incident\",IF(ROUND(J24,0)<=1,\"There was \"&TEXT(J24,\"#\")&\" incident\",\"There were \"&TEXT(J24,\"#\")&\" incidents\"))&\" per student reported for students identified for HWC support in this cycle (Cycle HWC Group).\"&CHAR(10)&\nIF(J25=\"<1\",\"There was <1 incident\",IF(ROUND(J25,0)<=1,\"There was \"&TEXT(J25,\"#\")&\" incident\",\"There were \"&TEXT(J25,\"#\")&\" incidents\"))&\" per student reported for students identified for HWC support so far this year (Cumulative HWC Group).\"&CHAR(10)&\nIF(J26=\"<1\",\"There was <1 incident\",IF(ROUND(J26,0)<=1,\"There was \"&TEXT(J26,\"#\")&\" incident\",\"There were\"&TEXT(J26,\"#\")&\" incidents\"))&\" per student reported for students in the whole school (Schoolwide Group).\",\"No results to display\")","v":"No results to display"},{"$f":"IFERROR(\"Attendance during this cycle (\"&I4&\"):\"&CHAR(10)&\n\"Attendance was \"&TEXT(J32,\"#\")&\" for students identified for HWC support in this cycle (Cycle HWC Group).\"&CHAR(10)&\n\"Attendance was \"&TEXT(J33,\"#\")&\" for students identified for HWC support so far this year (Cumulative HWC Group).\"&CHAR(10)&\n\"Attendance was \"&TEXT(J34,\"#\")&\" for students in the whole school (Schoolwide Group).\",\"No results to display\")","v":"Attendance during this cycle (Cycle 1):\nAttendance was  for students identified for HWC support in this cycle (Cycle HWC Group).\nAttendance was  for students identified for HWC support so far this year (Cumulative HWC Group).\nAttendance was  for students in the whole school (Schoolwide Group)."},{"$f":"IFERROR(\"Achievement during this cycle (\"&I4&\"):\"&CHAR(10)&\n\"Achievement was \"&TEXT(J40,\"#.0\")&\" for students identified for HWC support in this cycle (Cycle HWC Group).\"&CHAR(10)&\n\"Achievement was \"&TEXT(J41,\"#.0\")&\" for students identified for HWC support so far this year (Cumulative HWC Group).\"&CHAR(10)&\n\"Achievement was \"&TEXT(J42,\"#.0\")&\" for students in the whole school (Schoolwide Group).\",\"No results to display\")","v":"Achievement during this cycle (Cycle 1):\nAchievement was .0 for students identified for HWC support in this cycle (Cycle HWC Group).\nAchievement was .0 for students identified for HWC support so far this year (Cumulative HWC Group).\nAchievement was .0 for students in the whole school (Schoolwide Group)."}]
[null,"Identified for HWC support so far this school year (Cumulative HWC Group)",null,null,null,null,null,null,null,null,null,null,null,{"$f":"IFERROR(HLOOKUP($I$4,output_calc2!$C$17:$AF$20,3,FALSE),\"\")","v":0},null,null,null,null,null,null,null,null,null,null,null,null,null,null,"Each",{"$f":"IFERROR(\"Number of Behavior Incidents during this cycle (\"&I4&\"):\"&CHAR(10)&\"In \"&I4&IF(J17=1,\", there was 1 incident\",\", there were \"&J17&\" incidents\")&\" for the Cycle HWC group; \"&IF(J18=1,\"1 incident\",J18&\" incidents\")&\" for the Cumulative HWC group; and \"&IF(J19=1,\"1 incident\",J19&\" incidents\")&\" reported for the Schoolwide Group.\"&CHAR(10)&CHAR(10)&\nIF(AC7=1,\"\",\nIF(ISERROR(output_calc2!C36),\"\",\"Summer: \"&output_calc2!C36&\" incident\"&IF(output_calc2!C36=1,\"\",\"s\")&\" (Cycle HWC Group); \"&output_calc2!C37&\" incident\"&IF(output_calc2!C37=1,\"\",\"s\")&\" (Cumulative HWC Group); and \"&output_calc2!C38&\" incident\"&IF(output_calc2!C38=1,\"\",\"s\")&\" (Schoolwide Group).\"&CHAR(10))&\nIF(ISERROR(output_calc2!D36),\"\",\"Cycle 1: \"&output_calc2!D36&\" incident\"&IF(output_calc2!D36=1,\"\",\"s\")&\" (Cycle HWC Group); \"&output_calc2!D37&\" incident\"&IF(output_calc2!D37=1,\"\",\"s\")&\" (Cumulative HWC Group); and \"&output_calc2!D38&\" incident\"&IF(output_calc2!D38=1,\"\",\"s\")&\" (Schoolwide Group).\"&CHAR(10))&\nIF(ISERROR(output_calc2!E36),\"\",\"Cycle 2: \"&output_calc2!E36&\" incident\"&IF(output_calc2!E36=1,\"\",\"s\")&\" (Cycle HWC Group); \"&output_calc2!E37&\" incident\"&IF(output_calc2!E37=1,\"\",\"s\")&\" (Cumulative HWC Group); and \"&output_calc2!E38&\" incident\"&IF(output_calc2!E38=1,\"\",\"s\")&\" (Schoolwide Group).\"&CHAR(10))&\nIF(ISERROR(output_calc2!F36),\"\",\"Cycle 3: \"&output_calc2!F36&\" incident\"&IF(output_calc2!F36=1,\"\",\"s\")&\" (Cycle HWC Group); \"&output_calc2!F37&\" incident\"&IF(output_calc2!F37=1,\"\",\"s\")&\" (Cumulative HWC Group); and \"&output_calc2!F38&\" incident\"&IF(output_calc2!F38=1,\"\",\"s\")&\" (Schoolwide Group).\"&CHAR(10))&\nIF(ISERROR(output_calc2!G36),\"\",\"Cycle 4: \"&output_calc2!G36&\" incident\"&IF(output_calc2!G36=1,\"\",\"s\")&\" (Cycle HWC Group); \"&output_calc2!G37&\" incident\"&IF(output_calc2!G37=1,\"\",\"s\")&\" (Cumulative HWC Group); and \"&output_calc2!G38&\" incident\"&IF(output_calc2!G38=1,\"\",\"s\")&\" (Schoolwide Group).\"&CHAR(10))&\nIF(ISERROR(output_calc2!H36),\"\",\"Cycle 5: \"&output_calc2!H36&\" incident\"&IF(output_calc2!H36=1,\"\",\"s\")&\" (Cycle HWC Group); \"&output_calc2!H37&\" incident\"&IF(output_calc2!H37=1,\"\",\"s\")&\" (Cumulative HWC Group); and \"&output_calc2!H38&\" incident\"&IF(output_calc2!H38=1,\"\",\"s\")&\" (Schoolwide Group).\"&CHAR(10))&\nIF(ISERROR(output_calc2!I36),\"\",\"Cycle 6: \"&output_calc2!I36&\" incident\"&IF(output_calc2!I36=1,\"\",\"s\")&\" (Cycle HWC Group); \"&output_calc2!I37&\" incident\"&IF(output_calc2!I37=1,\"\",\"s\")&\" (Cumulative HWC Group); and \"&output_calc2!I38&\" incident\"&IF(output_calc2!I38=1,\"\",\"s\")&\" (Schoolwide Group).\"&CHAR(10))&\nIF(ISERROR(output_calc2!J36),\"\",\"Cycle 7: \"&output_calc2!J36&\" incident\"&IF(output_calc2!J36=1,\"\",\"s\")&\" (Cycle HWC Group); \"&output_calc2!J37&\" incident\"&IF(output_calc2!J37=1,\"\",\"s\")&\" (Cumulative HWC Group); and \"&output_calc2!J38&\" incident\"&IF(output_calc2!J38=1,\"\",\"s\")&\" (Schoolwide Group).\"&CHAR(10))&\nIF(ISERROR(output_calc2!K36),\"\",\"Cycle 8: \"&output_calc2!K36&\" incident\"&IF(output_calc2!K36=1,\"\",\"s\")&\" (Cycle HWC Group); \"&output_calc2!K37&\" incident\"&IF(output_calc2!K37=1,\"\",\"s\")&\" (Cumulative HWC Group); and \"&output_calc2!K38&\" incident\"&IF(output_calc2!K38=1,\"\",\"s\")&\" (Schoolwide Group).\"&CHAR(10))&\nIF(ISERROR(output_calc2!L36),\"\",\"Cycle 9: \"&output_calc2!L36&\" incident\"&IF(output_calc2!L36=1,\"\",\"s\")&\" (Cycle HWC Group); \"&output_calc2!L37&\" incident\"&IF(output_calc2!L37=1,\"\",\"s\")&\" (Cumulative HWC Group); and \"&output_calc2!L38&\" incident\"&IF(output_calc2!L38=1,\"\",\"s\")&\" (Schoolwide Group).\"&CHAR(10))&\nIF(ISERROR(output_calc2!M36),\"\",\"Cycle 10: \"&output_calc2!M36&\" incident\"&IF(output_calc2!M36=1,\"\",\"s\")&\" (Cycle HWC Group); \"&output_calc2!M37&\" incident\"&IF(output_calc2!M37=1,\"\",\"s\")&\" (Cumulative HWC Group); and \"&output_calc2!M38&\" incident\"&IF(output_calc2!M38=1,\"\",\"s\")&\" (Schoolwide Group).\"&CHAR(10))&\nIF(ISERROR(output_calc2!N36),\"\",\"Cycle 11: \"&output_calc2!N36&\" incident\"&IF(output_calc2!N36=1,\"\",\"s\")&\" (Cycle HWC Group); \"&output_calc2!N37&\" incident\"&IF(output_calc2!N37=1,\"\",\"s\")&\" (Cumulative HWC Group); and \"&output_calc2!N38&\" incident\"&IF(output_calc2!N38=1,\"\",\"s\")&\" (Schoolwide Group).\")),\"No results to display\")","v":"Number of Behavior Incidents during this cycle (Cycle 1):\nIn Cycle 1, there were 0 incidents for the Cycle HWC group; 0 incidents for the Cumulative HWC group; and 0 incidents reported for the Schoolwide Group.\n\n"},{"$f":"IFERROR(\"Number of Behavior Incidents PER STUDENT during this cycle (\"&I4&\"):\"&CHAR(10)&\"In \"&I4&\", there were \"&\nTEXT(J24,\"#\")&\" incidents per student for the Cycle HWC group; \"&\nTEXT(J25,\"#\")&\" incidents per student for the Cumulative HWC group; and \"&\nTEXT(J26,\"#\")&\" incidents per student for the Schoolwide Group.\"&CHAR(10)&CHAR(10)&\nIF(AC7=1,\"\",\"For each cycle there were the following number of Behavior Incidents PER STUDENT:\"&CHAR(10)&\nIF(ISERROR(output_calc2!C60),\"\",\"Summer: \"&TEXT(output_calc2!C60,\"#\")&\" (Cycle HWC Group); \"&TEXT(output_calc2!C61,\"#\")&\" (Cumulative HWC Group); and \"&TEXT(output_calc2!C62,\"#\")&\" (Schoolwide Group).\"&CHAR(10))&\nIF(ISERROR(output_calc2!D60),\"\",\"Cycle 1: \"&TEXT(output_calc2!D60,\"#\")&\" (Cycle HWC Group); \"&TEXT(output_calc2!D61,\"#\")&\" (Cumulative HWC Group); and \"&TEXT(output_calc2!D62,\"#\")&\" (Schoolwide Group).\"&CHAR(10))&\nIF(ISERROR(output_calc2!E60),\"\",\"Cycle 2: \"&TEXT(output_calc2!E60,\"#\")&\" (Cycle HWC Group); \"&TEXT(output_calc2!E61,\"#\")&\" (Cumulative HWC Group); and \"&TEXT(output_calc2!E62,\"#\")&\" (Schoolwide Group).\"&CHAR(10))&\nIF(ISERROR(output_calc2!F60),\"\",\"Cycle 3: \"&TEXT(output_calc2!F60,\"#\")&\" (Cycle HWC Group); \"&TEXT(output_calc2!F61,\"#\")&\" (Cumulative HWC Group); and \"&TEXT(output_calc2!F62,\"#\")&\" (Schoolwide Group).\"&CHAR(10))&\nIF(ISERROR(output_calc2!G60),\"\",\"Cycle 4: \"&TEXT(output_calc2!G60,\"#\")&\" (Cycle HWC Group); \"&TEXT(output_calc2!G61,\"#\")&\" (Cumulative HWC Group); and \"&TEXT(output_calc2!G62,\"#\")&\" (Schoolwide Group).\"&CHAR(10))&\nIF(ISERROR(output_calc2!H60),\"\",\"Cycle 5: \"&TEXT(output_calc2!H60,\"#\")&\" (Cycle HWC Group); \"&TEXT(output_calc2!H61,\"#\")&\" (Cumulative HWC Group); and \"&TEXT(output_calc2!H62,\"#\")&\" (Schoolwide Group).\"&CHAR(10))&\nIF(ISERROR(output_calc2!I60),\"\",\"Cycle 6: \"&TEXT(output_calc2!I60,\"#\")&\" (Cycle HWC Group); \"&TEXT(output_calc2!I61,\"#\")&\" (Cumulative HWC Group); and \"&TEXT(output_calc2!I62,\"#\")&\" (Schoolwide Group).\"&CHAR(10))&\nIF(ISERROR(output_calc2!J60),\"\",\"Cycle 7: \"&TEXT(output_calc2!J60,\"#\")&\" (Cycle HWC Group); \"&TEXT(output_calc2!J61,\"#\")&\" (Cumulative HWC Group); and \"&TEXT(output_calc2!J62,\"#\")&\" (Schoolwide Group).\"&CHAR(10))&\nIF(ISERROR(output_calc2!K60),\"\",\"Cycle 8: \"&TEXT(output_calc2!K60,\"#\")&\" (Cycle HWC Group); \"&TEXT(output_calc2!K61,\"#\")&\" (Cumulative HWC Group); and \"&TEXT(output_calc2!K62,\"#\")&\" (Schoolwide Group).\"&CHAR(10))&\nIF(ISERROR(output_calc2!L60),\"\",\"Cycle 9: \"&TEXT(output_calc2!L60,\"#\")&\" (Cycle HWC Group); \"&TEXT(output_calc2!L61,\"#\")&\" (Cumulative HWC Group); and \"&TEXT(output_calc2!L62,\"#\")&\" (Schoolwide Group).\"&CHAR(10))&\nIF(ISERROR(output_calc2!M60),\"\",\"Cycle 10: \"&TEXT(output_calc2!M60,\"#\")&\" (Cycle HWC Group); \"&TEXT(output_calc2!M61,\"#\")&\" (Cumulative HWC Group); and \"&TEXT(output_calc2!M62,\"#\")&\" (Schoolwide Group).\"&CHAR(10))&\nIF(ISERROR(output_calc2!N60),\"\",\"Cycle 11: \"&TEXT(output_calc2!N60,\"#\")&\" (Cycle HWC Group); \"&TEXT(output_calc2!N61,\"#\")&\" (Cumulative HWC Group); and \"&TEXT(output_calc2!N62,\"#\")&\" (Schoolwide Group).\")),\"No results to display\")","v":"Number of Behavior Incidents PER STUDENT during this cycle (Cycle 1):\nIn Cycle 1, there were  incidents per student for the Cycle HWC group;  incidents per student for the Cumulative HWC group; and  incidents per student for the Schoolwide Group.\n\n"},{"$f":"IFERROR(\"Attendance during this cycle (\"&I4&\"):\"&CHAR(10)&\"In \"&I4&\", attendance for the Cycle HWC group was \"&TEXT(J32,\"#\")&\"; attendance for the Cumulative HWC group was \"&TEXT(J33,\"#\")&\"; and attendance for the Schoolwide Group was \"&TEXT(J34,\"#\")&\".\"&CHAR(10)&CHAR(10)&\nIF(AC7=1,\"\",\"Attendance for each Cycle was:\"&CHAR(10)&\nIF(ISERROR(output_calc2!C72),\"\",\"Summer: \"&TEXT(output_calc2!C72,\"#\")&\" (Cycle HWC Group); \"&TEXT(output_calc2!C73,\"#\")&\" (Cumulative HWC Group); and \"&TEXT(output_calc2!C74,\"#\")&\" (Schoolwide Group).\"&CHAR(10))&\nIF(ISERROR(output_calc2!D72),\"\",\"Cycle 1: \"&TEXT(output_calc2!D72,\"#\")&\" (Cycle HWC Group); \"&TEXT(output_calc2!D73,\"#\")&\" (Cumulative HWC Group); and \"&TEXT(output_calc2!D74,\"#\")&\" (Schoolwide Group).\"&CHAR(10))&\nIF(ISERROR(output_calc2!E72),\"\",\"Cycle 2: \"&TEXT(output_calc2!E72,\"#\")&\" (Cycle HWC Group); \"&TEXT(output_calc2!E73,\"#\")&\" (Cumulative HWC Group); and \"&TEXT(output_calc2!E74,\"#\")&\" (Schoolwide Group).\"&CHAR(10))&\nIF(ISERROR(output_calc2!F72),\"\",\"Cycle 3: \"&TEXT(output_calc2!F72,\"#\")&\" (Cycle HWC Group); \"&TEXT(output_calc2!F73,\"#\")&\" (Cumulative HWC Group); and \"&TEXT(output_calc2!F74,\"#\")&\" (Schoolwide Group).\"&CHAR(10))&\nIF(ISERROR(output_calc2!G72),\"\",\"Cycle 4: \"&TEXT(output_calc2!G72,\"#\")&\" (Cycle HWC Group); \"&TEXT(output_calc2!G73,\"#\")&\" (Cumulative HWC Group); and \"&TEXT(output_calc2!G74,\"#\")&\" (Schoolwide Group).\"&CHAR(10))&\nIF(ISERROR(output_calc2!H72),\"\",\"Cycle 5: \"&TEXT(output_calc2!H72,\"#\")&\" (Cycle HWC Group); \"&TEXT(output_calc2!H73,\"#\")&\" (Cumulative HWC Group); and \"&TEXT(output_calc2!H74,\"#\")&\" (Schoolwide Group).\"&CHAR(10))&\nIF(ISERROR(output_calc2!I72),\"\",\"Cycle 6: \"&TEXT(output_calc2!I72,\"#\")&\" (Cycle HWC Group); \"&TEXT(output_calc2!I73,\"#\")&\" (Cumulative HWC Group); and \"&TEXT(output_calc2!I74,\"#\")&\" (Schoolwide Group).\"&CHAR(10))&\nIF(ISERROR(output_calc2!J72),\"\",\"Cycle 7: \"&TEXT(output_calc2!J72,\"#\")&\" (Cycle HWC Group); \"&TEXT(output_calc2!J73,\"#\")&\" (Cumulative HWC Group); and \"&TEXT(output_calc2!J74,\"#\")&\" (Schoolwide Group).\"&CHAR(10))&\nIF(ISERROR(output_calc2!K72),\"\",\"Cycle 8: \"&TEXT(output_calc2!K72,\"#\")&\" (Cycle HWC Group); \"&TEXT(output_calc2!K73,\"#\")&\" (Cumulative HWC Group); and \"&TEXT(output_calc2!K74,\"#\")&\" (Schoolwide Group).\"&CHAR(10))&\nIF(ISERROR(output_calc2!L72),\"\",\"Cycle 9: \"&TEXT(output_calc2!L72,\"#\")&\" (Cycle HWC Group); \"&TEXT(output_calc2!L73,\"#\")&\" (Cumulative HWC Group); and \"&TEXT(output_calc2!L74,\"#\")&\" (Schoolwide Group).\"&CHAR(10))&\nIF(ISERROR(output_calc2!M72),\"\",\"Cycle 10: \"&TEXT(output_calc2!M72,\"#\")&\" (Cycle HWC Group); \"&TEXT(output_calc2!M73,\"#\")&\" (Cumulative HWC Group); and \"&TEXT(output_calc2!M74,\"#\")&\" (Schoolwide Group).\"&CHAR(10))&\nIF(ISERROR(output_calc2!N72),\"\",\"Cycle 11: \"&TEXT(output_calc2!N72,\"#\")&\" (Cycle HWC Group); \"&TEXT(output_calc2!N73,\"#\")&\" (Cumulative HWC Group); and \"&TEXT(output_calc2!N74,\"#\")&\" (Schoolwide Group).\")),\"No results to display\")","v":"Attendance during this cycle (Cycle 1):\nIn Cycle 1, attendance for the Cycle HWC group was ; attendance for the Cumulative HWC group was ; and attendance for the Schoolwide Group was .\n\n"},{"$f":"IFERROR(\"Achievement during this cycle (\"&I4&\"):\"&CHAR(10)&\"In \"&I4&\", achievement for the Cycle HWC group was \"&TEXT(J40,\"#.0\")&\"; achievement for the Cumulative HWC group was \"&TEXT(J41,\"#.0\")&\"; and achievement for the Schoolwide Group was \"&TEXT(J42,\"#.0\")&\".\"&CHAR(10)&CHAR(10)&\nIF(AC7=1,\"\",\"Achievement for each Cycle was:\"&CHAR(10)&\nIF(ISERROR(output_calc2!C84),\"\",\"Summer: \"&TEXT(output_calc2!C84,\"#.0\")&\" (Cycle HWC Group); \"&TEXT(output_calc2!C85,\"#.0\")&\" (Cumulative HWC Group); and \"&TEXT(output_calc2!C86,\"#.0\")&\" (Schoolwide Group).\"&CHAR(10))&\nIF(ISERROR(output_calc2!D84),\"\",\"Cycle 1: \"&TEXT(output_calc2!D84,\"#.0\")&\" (Cycle HWC Group); \"&TEXT(output_calc2!D85,\"#.0\")&\" (Cumulative HWC Group); and \"&TEXT(output_calc2!D86,\"#.0\")&\" (Schoolwide Group).\"&CHAR(10))&\nIF(ISERROR(output_calc2!E84),\"\",\"Cycle 2: \"&TEXT(output_calc2!E84,\"#.0\")&\" (Cycle HWC Group); \"&TEXT(output_calc2!E85,\"#.0\")&\" (Cumulative HWC Group); and \"&TEXT(output_calc2!E86,\"#.0\")&\" (Schoolwide Group).\"&CHAR(10))&\nIF(ISERROR(output_calc2!F84),\"\",\"Cycle 3: \"&TEXT(output_calc2!F84,\"#.0\")&\" (Cycle HWC Group); \"&TEXT(output_calc2!F85,\"#.0\")&\" (Cumulative HWC Group); and \"&TEXT(output_calc2!F86,\"#.0\")&\" (Schoolwide Group).\"&CHAR(10))&\nIF(ISERROR(output_calc2!G84),\"\",\"Cycle 4: \"&TEXT(output_calc2!G84,\"#.0\")&\" (Cycle HWC Group); \"&TEXT(output_calc2!G85,\"#.0\")&\" (Cumulative HWC Group); and \"&TEXT(output_calc2!G86,\"#.0\")&\" (Schoolwide Group).\"&CHAR(10))&\nIF(ISERROR(output_calc2!H84),\"\",\"Cycle 5: \"&TEXT(output_calc2!H84,\"#.0\")&\" (Cycle HWC Group); \"&TEXT(output_calc2!H85,\"#.0\")&\" (Cumulative HWC Group); and \"&TEXT(output_calc2!H86,\"#.0\")&\" (Schoolwide Group).\"&CHAR(10))&\nIF(ISERROR(output_calc2!I84),\"\",\"Cycle 6: \"&TEXT(output_calc2!I84,\"#.0\")&\" (Cycle HWC Group); \"&TEXT(output_calc2!I85,\"#.0\")&\" (Cumulative HWC Group); and \"&TEXT(output_calc2!I86,\"#.0\")&\" (Schoolwide Group).\"&CHAR(10))&\nIF(ISERROR(output_calc2!J84),\"\",\"Cycle 7: \"&TEXT(output_calc2!J84,\"#.0\")&\" (Cycle HWC Group); \"&TEXT(output_calc2!J85,\"#.0\")&\" (Cumulative HWC Group); and \"&TEXT(output_calc2!J86,\"#.0\")&\" (Schoolwide Group).\"&CHAR(10))&\nIF(ISERROR(output_calc2!K84),\"\",\"Cycle 8: \"&TEXT(output_calc2!K84,\"#.0\")&\" (Cycle HWC Group); \"&TEXT(output_calc2!K85,\"#.0\")&\" (Cumulative HWC Group); and \"&TEXT(output_calc2!K86,\"#.0\")&\" (Schoolwide Group).\"&CHAR(10))&\nIF(ISERROR(output_calc2!L84),\"\",\"Cycle 9: \"&TEXT(output_calc2!L84,\"#.0\")&\" (Cycle HWC Group); \"&TEXT(output_calc2!L85,\"#.0\")&\" (Cumulative HWC Group); and \"&TEXT(output_calc2!L86,\"#.0\")&\" (Schoolwide Group).\"&CHAR(10))&\nIF(ISERROR(output_calc2!M84),\"\",\"Cycle 10: \"&TEXT(output_calc2!M84,\"#.0\")&\" (Cycle HWC Group); \"&TEXT(output_calc2!M85,\"#.0\")&\" (Cumulative HWC Group); and \"&TEXT(output_calc2!M86,\"#.0\")&\" (Schoolwide Group).\"&CHAR(10))&\nIF(ISERROR(output_calc2!N84),\"\",\"Cycle 11: \"&TEXT(output_calc2!N84,\"#.0\")&\" (Cycle HWC Group); \"&TEXT(output_calc2!N85,\"#.0\")&\" (Cumulative HWC Group); and \"&TEXT(output_calc2!N86,\"#.0\")&\" (Schoolwide Group).\")),\"No results to display\")","v":"Achievement during this cycle (Cycle 1):\nIn Cycle 1, achievement for the Cycle HWC group was .0; achievement for the Cumulative HWC group was .0; and achievement for the Schoolwide Group was .0.\n\n"}]
[null,"In the whole school (Schoolwide Group)",null,null,null,null,null,null,null,null,null,null,null,{"$f":"IFERROR(HLOOKUP($I$4,output_calc2!$C$23:$AF$26,4,FALSE),\"\")","v":0},null,null,null,null,null,null,null,null,null,null,null,null,null,null,"Cumul",{"$f":"IFERROR(\"Number of Behavior Incidents from the beginning of the year through this cycle (\"&I4&\"):\"&CHAR(10)&\"There were \"&M18&\" behavior incidents for the Cumulative HWC group and \"&M19&\" behavior incidents reported for the Schoolwide Group.\"&CHAR(10)&CHAR(10)&\nIF(AC7=1,\"\",\"From the beginning of the year through each cycle, there were the following number of behavior incidents:\"&CHAR(10)&\nIF(ISERROR(#N/A&output_calc2!C31),\"\",\"Summer: \"&output_calc2!C31&\" (Cumulative HWC Group); \"&output_calc2!C32&\" (Schoolwide Group).\"&CHAR(10))&\nIF(ISERROR(output_calc2!D31),\"\",\"Cycle 1: \"&output_calc2!D31&\" (Cumulative HWC Group); \"&output_calc2!D32&\" (Schoolwide Group).\"&CHAR(10))&\nIF(ISERROR(output_calc2!E31),\"\",\"Cycle 2: \"&output_calc2!E31&\" (Cumulative HWC Group); \"&output_calc2!E32&\" (Schoolwide Group).\"&CHAR(10))&\nIF(ISERROR(output_calc2!F31),\"\",\"Cycle 3: \"&output_calc2!F31&\" (Cumulative HWC Group); \"&output_calc2!F32&\" (Schoolwide Group).\"&CHAR(10))&\nIF(ISERROR(output_calc2!G31),\"\",\"Cycle 4:  \"&output_calc2!G31&\" (Cumulative HWC Group); \"&output_calc2!G32&\" (Schoolwide Group).\"&CHAR(10))&\nIF(ISERROR(output_calc2!H31),\"\",\"Cycle 5: \"&output_calc2!H31&\" (Cumulative HWC Group); \"&output_calc2!H32&\" (Schoolwide Group).\"&CHAR(10))&\nIF(ISERROR(output_calc2!I31),\"\",\"Cycle 6: \"&output_calc2!I31&\" (Cumulative HWC Group); \"&output_calc2!I32&\" (Schoolwide Group).\"&CHAR(10))&\nIF(ISERROR(output_calc2!J31),\"\",\"Cycle 7: \"&output_calc2!J31&\" (Cumulative HWC Group); \"&output_calc2!J32&\" (Schoolwide Group).\"&CHAR(10))&\nIF(ISERROR(output_calc2!K31),\"\",\"Cycle 8: \"&output_calc2!K31&\" (Cumulative HWC Group); \"&output_calc2!K32&\" (Schoolwide Group).\"&CHAR(10))&\nIF(ISERROR(output_calc2!L31),\"\",\"Cycle 9: \"&output_calc2!L31&\" (Cumulative HWC Group); \"&output_calc2!L32&\" (Schoolwide Group).\"&CHAR(10))&\nIF(ISERROR(output_calc2!M31),\"\",\"Cycle 10: \"&output_calc2!M31&\" (Cumulative HWC Group); \"&output_calc2!M32&\" (Schoolwide Group).\"&CHAR(10))&\nIF(ISERROR(output_calc2!N31),\"\",\"Cycle 11: \"&output_calc2!N31&\" (Cumulative HWC Group); \"&output_calc2!N32&\" (Schoolwide Group).\")),\"No results to display\")","v":"Number of Behavior Incidents from the beginning of the year through this cycle (Cycle 1):\nThere were 0 behavior incidents for the Cumulative HWC group and 0 behavior incidents reported for the Schoolwide Group.\n\n"},{"$f":"IFERROR(\"Number of Behavior Incidents PER STUDENT from the beginning of the year through this cycle (\"&I4&\"):\"&CHAR(10)&TEXT(M25,\"0\")&\" (Cumulative HWC group); \"&TEXT(M26,\"0\")&\" incidents per student (Schoolwide Group).\"&CHAR(10)&CHAR(10)&\nIF(AC7=1,\"\",\"From the beginning of the year through each cycle there were the following number of behavior incidents PER STUDENT:\"&CHAR(10)&\nIF(ISERROR(#N/A&output_calc2!C55),\"\",\"Summer: \"&TEXT(output_calc2!C55,\"0\")&\" (Cumulative HWC group); \"&TEXT(output_calc2!C56,\"0\")&\" (Schoolwide Group).\"&CHAR(10))&\nIF(ISERROR(output_calc2!D55),\"\",\"Cycle 1: \"&TEXT(output_calc2!D55,\"0\")&\" (Cumulative HWC group); \"&TEXT(output_calc2!D56,\"0\")&\" (Schoolwide Group).\"&CHAR(10))&\nIF(ISERROR(output_calc2!E55),\"\",\"Cycle 2: \"&TEXT(output_calc2!E55,\"0\")&\" (Cumulative HWC group); \"&TEXT(output_calc2!E56,\"0\")&\" (Schoolwide Group).\"&CHAR(10))&\nIF(ISERROR(output_calc2!F55),\"\",\"Cycle 3: \"&TEXT(output_calc2!F55,\"0\")&\" (Cumulative HWC group); \"&TEXT(output_calc2!F56,\"0\")&\" (Schoolwide Group).\"&CHAR(10))&\nIF(ISERROR(output_calc2!G55),\"\",\"Cycle 4: \"&TEXT(output_calc2!G55,\"0\")&\" (Cumulative HWC group); \"&TEXT(output_calc2!G56,\"0\")&\" (Schoolwide Group).\"&CHAR(10))&\nIF(ISERROR(output_calc2!H55),\"\",\"Cycle 5: \"&TEXT(output_calc2!H55,\"0\")&\" (Cumulative HWC group); \"&TEXT(output_calc2!H56,\"0\")&\" (Schoolwide Group).\"&CHAR(10))&\nIF(ISERROR(output_calc2!I55),\"\",\"Cycle 6: \"&TEXT(output_calc2!I55,\"0\")&\" (Cumulative HWC group); \"&TEXT(output_calc2!I56,\"0\")&\" (Schoolwide Group).\"&CHAR(10))&\nIF(ISERROR(output_calc2!J55),\"\",\"Cycle 7: \"&TEXT(output_calc2!J55,\"0\")&\" (Cumulative HWC group); \"&TEXT(output_calc2!J56,\"0\")&\" (Schoolwide Group).\"&CHAR(10))&\nIF(ISERROR(output_calc2!K55),\"\",\"Cycle 8: \"&TEXT(output_calc2!K55,\"0\")&\" (Cumulative HWC group); \"&TEXT(output_calc2!K56,\"0\")&\" (Schoolwide Group).\"&CHAR(10))&\nIF(ISERROR(output_calc2!L55),\"\",\"Cycle 9: \"&TEXT(output_calc2!L55,\"0\")&\" (Cumulative HWC group); \"&TEXT(output_calc2!L56,\"0\")&\" (Schoolwide Group).\"&CHAR(10))&\nIF(ISERROR(output_calc2!M55),\"\",\"Cycle 10: \"&TEXT(output_calc2!M55,\"0\")&\" (Cumulative HWC group); \"&TEXT(output_calc2!M56,\"0\")&\" (Schoolwide Group).\"&CHAR(10))&\nIF(ISERROR(output_calc2!N55),\"\",\"Cycle 11: \"&TEXT(output_calc2!N55,\"0\")&\" (Cumulative HWC group); \"&TEXT(output_calc2!N56,\"0\")&\" (Schoolwide Group).\")),\"No results to display\")","v":"Number of Behavior Incidents PER STUDENT from the beginning of the year through this cycle (Cycle 1):\n (Cumulative HWC group);  incidents per student (Schoolwide Group).\n\n"},{"$f":"IFERROR(\"Attendance from the beginning of the year through this cycle (\"&I4&\"):\"&CHAR(10)&\"For the Cumulative HWC group: \"&TEXT(M33,\"#\")&\"; and for the Schoolwide Group: \"&TEXT(M34,\"#\")&\".\"&CHAR(10)&CHAR(10)&\nIF(AC7=1,\"\",\"From the beginning of the year through each cycle, attendance was:\"&CHAR(10)&\nIF(ISERROR(#N/A&output_calc2!C67),\"\",\"Summer: \"&TEXT(output_calc2!C67,\"#\")&\" (Cumulative HWC Group); \"&TEXT(output_calc2!C68,\"#\")&\" (Schoolwide Group).\"&CHAR(10))&\nIF(ISERROR(output_calc2!D67),\"\",\"Cycle 1: \"&TEXT(output_calc2!D67,\"#\")&\" (Cumulative HWC Group); \"&TEXT(output_calc2!D68,\"#\")&\" (Schoolwide Group).\"&CHAR(10))&\nIF(ISERROR(output_calc2!E67),\"\",\"Cycle 2: \"&TEXT(output_calc2!E67,\"#\")&\" (Cumulative HWC Group); \"&TEXT(output_calc2!E68,\"#\")&\" (Schoolwide Group).\"&CHAR(10))&\nIF(ISERROR(output_calc2!F67),\"\",\"Cycle 3: \"&TEXT(output_calc2!F67,\"#\")&\" (Cumulative HWC Group); \"&TEXT(output_calc2!F68,\"#\")&\" (Schoolwide Group).\"&CHAR(10))&\nIF(ISERROR(output_calc2!G67),\"\",\"Cycle 4: \"&TEXT(output_calc2!G67,\"#\")&\" (Cumulative HWC Group); \"&TEXT(output_calc2!G68,\"#\")&\" (Schoolwide Group).\"&CHAR(10))&\nIF(ISERROR(output_calc2!H67),\"\",\"Cycle 5: \"&TEXT(output_calc2!H67,\"#\")&\" (Cumulative HWC Group); \"&TEXT(output_calc2!H68,\"#\")&\" (Schoolwide Group).\"&CHAR(10))&\nIF(ISERROR(output_calc2!I67),\"\",\"Cycle 6: \"&TEXT(output_calc2!I67,\"#\")&\" (Cumulative HWC Group); \"&TEXT(output_calc2!I68,\"#\")&\" (Schoolwide Group).\"&CHAR(10))&\nIF(ISERROR(output_calc2!J67),\"\",\"Cycle 7: \"&TEXT(output_calc2!J67,\"#\")&\" (Cumulative HWC Group); \"&TEXT(output_calc2!J68,\"#\")&\" (Schoolwide Group).\"&CHAR(10))&\nIF(ISERROR(output_calc2!K67),\"\",\"Cycle 8: \"&TEXT(output_calc2!K67,\"#\")&\" (Cumulative HWC Group); \"&TEXT(output_calc2!K68,\"#\")&\" (Schoolwide Group).\"&CHAR(10))&\nIF(ISERROR(output_calc2!L67),\"\",\"Cycle 9: \"&TEXT(output_calc2!L67,\"#\")&\" (Cumulative HWC Group); \"&TEXT(output_calc2!L68,\"#\")&\" (Schoolwide Group).\"&CHAR(10))&\nIF(ISERROR(output_calc2!M67),\"\",\"Cycle 10: \"&TEXT(output_calc2!M67,\"#\")&\" (Cumulative HWC Group); \"&TEXT(output_calc2!M68,\"#\")&\" (Schoolwide Group).\"&CHAR(10))&\nIF(ISERROR(output_calc2!N67),\"\",\"Cycle 11: \"&TEXT(output_calc2!N67,\"#\")&\" (Cumulative HWC Group); \"&TEXT(output_calc2!N68,\"#\")&\" (Schoolwide Group).\")),\"No results to display\")","v":"Attendance from the beginning of the year through this cycle (Cycle 1):\nFor the Cumulative HWC group: ; and for the Schoolwide Group: .\n\n"},{"$f":"IFERROR(\"Achievement from the beginning of the year through this cycle (\"&I4&\"):\"&CHAR(10)&\"For the Cumulative HWC group: \"&TEXT(M41,\"0.0\")&\"; and for the Schoolwide Group: \"&TEXT(M42,\"0.0\")&\".\"&CHAR(10)&CHAR(10)&\nIF(AC7=1,\"\",\"From the beginning of the year through each cycle, achievement was:\"&CHAR(10)&\nIF(ISERROR(#N/A&output_calc2!C79),\"\",\"Summer: \"&TEXT(output_calc2!C79,\"0.0\")&\" (Cumulative HWC Group); \"&TEXT(output_calc2!C80,\"0.0\")&\" (Schoolwide Group).\"&CHAR(10))&\nIF(ISERROR(output_calc2!D79),\"\",\"Cycle 1: \"&TEXT(output_calc2!D79,\"0.0\")&\" (Cumulative HWC Group); \"&TEXT(output_calc2!D80,\"0.0\")&\" (Schoolwide Group).\"&CHAR(10))&\nIF(ISERROR(output_calc2!E79),\"\",\"Cycle 2: \"&TEXT(output_calc2!E79,\"0.0\")&\" (Cumulative HWC Group); \"&TEXT(output_calc2!E80,\"0.0\")&\" (Schoolwide Group).\"&CHAR(10))&\nIF(ISERROR(output_calc2!F79),\"\",\"Cycle 3: \"&TEXT(output_calc2!F79,\"0.0\")&\" (Cumulative HWC Group); \"&TEXT(output_calc2!F80,\"0.0\")&\" (Schoolwide Group).\"&CHAR(10))&\nIF(ISERROR(output_calc2!G79),\"\",\"Cycle 4: \"&TEXT(output_calc2!G79,\"0.0\")&\" (Cumulative HWC Group); \"&TEXT(output_calc2!G80,\"0.0\")&\" (Schoolwide Group).\"&CHAR(10))&\nIF(ISERROR(output_calc2!H79),\"\",\"Cycle 5: \"&TEXT(output_calc2!H79,\"0.0\")&\" (Cumulative HWC Group); \"&TEXT(output_calc2!H80,\"0.0\")&\" (Schoolwide Group).\"&CHAR(10))&\nIF(ISERROR(output_calc2!I79),\"\",\"Cycle 6: \"&TEXT(output_calc2!I79,\"0.0\")&\" (Cumulative HWC Group); \"&TEXT(output_calc2!I80,\"0.0\")&\" (Schoolwide Group).\"&CHAR(10))&\nIF(ISERROR(output_calc2!J79),\"\",\"Cycle 7: \"&TEXT(output_calc2!J79,\"0.0\")&\" (Cumulative HWC Group); \"&TEXT(output_calc2!J80,\"0.0\")&\" (Schoolwide Group).\"&CHAR(10))&\nIF(ISERROR(output_calc2!K79),\"\",\"Cycle 8: \"&TEXT(output_calc2!K79,\"0.0\")&\" (Cumulative HWC Group); \"&TEXT(output_calc2!K80,\"0.0\")&\" (Schoolwide Group).\"&CHAR(10))&\nIF(ISERROR(output_calc2!L79),\"\",\"Cycle 9: \"&TEXT(output_calc2!L79,\"0.0\")&\" (Cumulative HWC Group); \"&TEXT(output_calc2!L80,\"0.0\")&\" (Schoolwide Group).\"&CHAR(10))&\nIF(ISERROR(output_calc2!M79),\"\",\"Cycle 10: \"&TEXT(output_calc2!M79,\"0.0\")&\" (Cumulative HWC Group); \"&TEXT(output_calc2!M80,\"0.0\")&\" (Schoolwide Group).\"&CHAR(10))&\nIF(ISERROR(output_calc2!N79),\"\",\"Cycle 11: \"&TEXT(output_calc2!N79,\"0.0\")&\" (Cumulative HWC Group); \"&TEXT(output_calc2!N80,\"0.0\")&\" (Schoolwide Group).\")),\"No results to display\")","v":"Achievement from the beginning of the year through this cycle (Cycle 1):\nFor the Cumulative HWC group: 0.0; and for the Schoolwide Group: 0.0.\n\n"}]
[]
[]
[]
[null,"Behavior Incidents",null,null,null,null,null,null,null,null,null,null,null,null,null,"Enter Cycle Data",null,null,null,null,null,null,null,null,null,null,null,null,{"$f":"IFERROR(\"Achievement from the beginning of the year through this cycle (\"&I4&\"):\"&CHAR(10)&\"For the Cumulative HWC group: \"&TEXT(M41,\"0.0\")&\"; and schoolwide: \"&TEXT(M42,\"0.0\")&\".\"&CHAR(10)&CHAR(10)&\nIF(AC7=1,\"\",\"From the beginning of the year through each cycle, achievement was:\"&CHAR(10)&\nIF(ISERROR(#N/A&output_calc2!C79),\"\",\"Summer: \"&TEXT(output_calc2!C79,\"0.0\")&\" (Cumulative HWC Group); \"&TEXT(output_calc2!C80,\"0.0\")&\" (Schoolwide Group).\"&CHAR(10))&\nIF(ISERROR(output_calc2!D79),\"\",\"Cycle 1: \"&TEXT(output_calc2!D79,\"0.0\")&\" (Cumulative HWC Group); \"&TEXT(output_calc2!D80,\"0.0\")&\" (Schoolwide Group).\"&CHAR(10))&\nIF(ISERROR(output_calc2!E79),\"\",\"Cycle 2: \"&TEXT(output_calc2!E79,\"0.0\")&\" (Cumulative HWC Group); \"&TEXT(output_calc2!E80,\"0.0\")&\" (Schoolwide Group).\"&CHAR(10))&\nIF(ISERROR(output_calc2!F79),\"\",\"Cycle 3: \"&TEXT(output_calc2!F79,\"0.0\")&\" (Cumulative HWC Group); \"&TEXT(output_calc2!F80,\"0.0\")&\" (Schoolwide Group).\"&CHAR(10))&\nIF(ISERROR(output_calc2!G79),\"\",\"Cycle 4: \"&TEXT(output_calc2!G79,\"0.0\")&\" (Cumulative HWC Group); \"&TEXT(output_calc2!G80,\"0.0\")&\" (Schoolwide Group).\"&CHAR(10))&\nIF(ISERROR(output_calc2!H79),\"\",\"Cycle 5: \"&TEXT(output_calc2!H79,\"0.0\")&\" (Cumulative HWC Group); \"&TEXT(output_calc2!H80,\"0.0\")&\" (Schoolwide Group).\"&CHAR(10))&\nIF(ISERROR(output_calc2!I79),\"\",\"Cycle 6: \"&TEXT(output_calc2!I79,\"0.0\")&\" (Cumulative HWC Group); \"&TEXT(output_calc2!I80,\"0.0\")&\" (Schoolwide Group).\"&CHAR(10))&\nIF(ISERROR(output_calc2!J79),\"\",\"Cycle 7: \"&TEXT(output_calc2!J79,\"0.0\")&\" (Cumulative HWC Group); \"&TEXT(output_calc2!J80,\"0.0\")&\" (Schoolwide Group).\"&CHAR(10))&\nIF(ISERROR(output_calc2!K79),\"\",\"Cycle 8: \"&TEXT(output_calc2!K79,\"0.0\")&\" (Cumulative HWC Group); \"&TEXT(output_calc2!K80,\"0.0\")&\" (Schoolwide Group).\"&CHAR(10))&\nIF(ISERROR(output_calc2!L79),\"\",\"Cycle 9: \"&TEXT(output_calc2!L79,\"0.0\")&\" (Cumulative HWC Group); \"&TEXT(output_calc2!L80,\"0.0\")&\" (Schoolwide Group).\"&CHAR(10))&\nIF(ISERROR(output_calc2!M79),\"\",\"Cycle 10: \"&TEXT(output_calc2!M79,\"0.0\")&\" (Cumulative HWC Group); \"&TEXT(output_calc2!M80,\"0.0\")&\" (Schoolwide Group).\"&CHAR(10))&\nIF(ISERROR(output_calc2!N79),\"\",\"Cycle 11: \"&TEXT(output_calc2!N79,\"0.0\")&\" (Cumulative HWC Group); \"&TEXT(output_calc2!N80,\"0.0\")&\" (Schoolwide Group).\")),\"No results to display\")","v":"Achievement from the beginning of the year through this cycle (Cycle 1):\nFor the Cumulative HWC group: 0.0; and schoolwide: 0.0.\n\n"}]
[null,"Number of behavior incidents reported for students…",null,null,null,null,null,null,null,"This Cycle",null,null,"Year to Current Cycle"]
[null,"Identified for HWC support in this cycle (Cycle HWC Group)",null,null,null,null,null,null,null,{"$f":"IFERROR(HLOOKUP($I$4,output_calc2!$C$35:$AF$38,2,FALSE),\"\")","v":0},null,null,"N/A"]
[null,"Identified for HWC support so far this school year (Cumulative HWC Group)",null,null,null,null,null,null,null,{"$f":"IFERROR(HLOOKUP($I$4,output_calc2!$C$35:$AF$38,3,FALSE),\"\")","v":0},null,null,{"$f":"IFERROR(HLOOKUP($I$4,output_calc2!$C$29:$AF$32,3,FALSE),\"\")","v":0}]
[null,"In the whole school (Schoolwide Group)",null,null,null,null,null,null,null,{"$f":"IFERROR(HLOOKUP($I$4,output_calc2!$C$35:$AF$38,4,FALSE),\"\")","v":0},null,null,{"$f":"IFERROR(HLOOKUP($I$4,output_calc2!$C$29:$AF$32,4,FALSE),\"\")","v":0}]
[]
[]
[null,"Behavior Incidents per Student",null,null,null,null,null,null,null,null,null,null,null,null,null,"Enter Cycle Data"]
[null,"Number of behavior incidents per student for students…",null,null,null,null,null,null,null,"This Cycle",null,null,"Year to Current Cycle"]
[null,"Identified for HWC support in this cycle (Cycle HWC Group)",null,null,null,null,null,null,null,{"$f":"IFERROR(IF(ROUNDDOWN(HLOOKUP($I$4,output_calc2!$C$47:$AF$50,2,FALSE),0)=0,\"<1\",HLOOKUP($I$4,output_calc2!$C$47:$AF$50,2,FALSE)),\"\")","v":""},null,null,"N/A"]
[null,"Identified for HWC support so far this school year (Cumulative HWC Group)",null,null,null,null,null,null,null,{"$f":"IFERROR(IF(ROUNDDOWN(HLOOKUP($I$4,output_calc2!$C$47:$AF$50,3,FALSE),0)=0,\"<1\",HLOOKUP($I$4,output_calc2!$C$47:$AF$50,3,FALSE)),\"\")","v":""},null,null,{"$f":"IFERROR(IF(ROUNDDOWN(HLOOKUP($I$4,output_calc2!$C$41:$AF$44,3,FALSE),0)=0,\"<1\",HLOOKUP($I$4,output_calc2!$C$41:$AF$44,3,FALSE)),\"\")","v":""}]
[null,"In the whole school (Schoolwide Group)",null,null,null,null,null,null,null,{"$f":"IFERROR(IF(ROUNDDOWN(HLOOKUP($I$4,output_calc2!$C$47:$AF$50,4,FALSE),0)=0,\"<1\",HLOOKUP($I$4,output_calc2!$C$47:$AF$50,4,FALSE)),\"\")","v":""},null,null,{"$f":"IFERROR(IF(ROUNDDOWN(HLOOKUP($I$4,output_calc2!$C$41:$AF$44,4,FALSE),0)=0,\"<1\",HLOOKUP($I$4,output_calc2!$C$41:$AF$44,4,FALSE)),\"\")","v":""}]
[]
[]
[]
[null,"Attendance",null,null,null,null,null,null,null,null,null,null,null,null,null,"Enter Cycle Data"]
[null,"Attendance for students…",null,null,null,null,null,null,null,"This Cycle",null,null,"Year to Current Cycle"]
[null,"Identified for HWC support in this cycle (Cycle HWC Group)",null,null,null,null,null,null,null,{"$f":"IFERROR(HLOOKUP($I$4,output_calc2!$C$71:$AF$74,2,FALSE),\"\")","v":0},null,null,"N/A"]
[null,"Identified for HWC support so far this school year (Cumulative HWC Group)",null,null,null,null,null,null,null,{"$f":"IFERROR(HLOOKUP($I$4,output_calc2!$C$71:$AF$74,3,FALSE),\"\")","v":0},null,null,{"$f":"IFERROR(HLOOKUP($I$4,output_calc2!$C$65:$AF$68,3,FALSE),\"\")","v":0}]
[null,"In the whole school (Schoolwide Group)",null,null,null,null,null,null,null,{"$f":"IFERROR(HLOOKUP($I$4,output_calc2!$C$71:$AF$74,4,FALSE),\"\")","v":0},null,null,{"$f":"IFERROR(HLOOKUP($I$4,output_calc2!$C$65:$AF$68,4,FALSE),\"\")","v":0}]
[]
[]
[]
[null,"Achievement",null,null,null,null,null,null,null,null,null,null,null,null,null,"Enter Cycle Data"]
[null,"Achievement for students…",null,null,null,null,null,null,null,"This Cycle",null,null,"Year to Current Cycle"]
[null,"Identified for HWC support in this cycle (Cycle HWC Group)",null,null,null,null,null,null,null,{"$f":"IFERROR(HLOOKUP($I$4,output_calc2!$C$83:$AF$86,2,FALSE),\"\")","v":0},null,null,"N/A"]
[null,"Identified for HWC support so far this school year (Cumulative HWC Group)",null,null,null,null,null,null,null,{"$f":"IFERROR(HLOOKUP($I$4,output_calc2!$C$83:$AF$86,3,FALSE),\"\")","v":0},null,null,{"$f":"IFERROR(HLOOKUP($I$4,output_calc2!$C$77:$AF$80,3,FALSE),\"\")","v":0}]
[null,"In the whole school (Schoolwide Group)",null,null,null,null,null,null,null,{"$f":"IFERROR(HLOOKUP($I$4,output_calc2!$C$83:$AF$86,4,FALSE),\"\")","v":0},null,null,{"$f":"IFERROR(HLOOKUP($I$4,output_calc2!$C$77:$AF$80,4,FALSE),\"\")","v":0}]
[]
[]
[null,"Information about this graph (click on a graph to select it and show details below)"]
[null,{"$f":"AD9","v":"Number of Behavior Incidents during this cycle (Cycle 1):\nThere were 0 incidents involving one or more students identified for HWC support during this cycle (Cycle HWC Group).\nThere were 0 incidents involving one or more students identified for HWC support at some point to date (Cumulative HWC Group).\nThere were 0 incidents involving one or more students in the whole school (Schoolwide Group)."}]

{"sheet":"HWC Notices Entered","index":17,"n_rows":48,"n_cols":16,"rows_kept":48,"cut":false,"hidden":true,"merged":[]}
["HWC Notice","Student ID","HWC Notice ID","HWC Notice Date","Cycle","Number of Teachers","Number of Teachers Informed","Record Dates Teachers Were Informed?","Have all teachers been informed for this HWC notice?","Average Number of Days to Inform Teachers","Number of Other Staff","Number of Other Staff Informed","Record Dates Other Staff Were Informed?","Have all Other Staff been informed for this HWC notice?","Average Number of Days to Inform Other Staff","LastUpdated"]
[1,1050,"1050_1","2019-09-05","Cycle 1",null,null,"No","All teachers have been Informed",null,3,1,"Yes","Not all other staff have been Informed",457.33333333333331,"2020-06-18"]
[2,1047,"1047_1","2019-09-10","Cycle 1",10,10,"Yes","All teachers have been informed",0.7,0,0,"Yes","Not all other staff have been Informed",null,"2021-05-25"]
[3,1070,"1070_1","2019-09-20","Cycle 1",1,1,"Yes","All teachers have been Informed",2,1,1,"Yes","All other staff have been Informed",0,"2020-04-21"]
[4,1099,"1099_1","2019-09-25","Cycle 1",10,10,"Yes","All teachers have been informed",1.3,0,0,"Yes","Not all other staff have been Informed",null,"2021-06-08"]
[5,1031,"1031_1","2019-09-30","Cycle 1",10,10,"Yes","All teachers have been Informed",0.7,1,1,"Yes","All other staff have been Informed",2,"2020-04-21"]
[6,1081,"1081_1","2019-09-30","Cycle 1",3,3,"Yes","All teachers have been Informed",1.6666666666666667,0,0,"Yes","Not all other staff have been Informed",null,"2020-04-27"]
[7,1097,"1097_1","2019-10-10","Cycle 2",null,null,"No","All teachers have been Informed",null,1,1,"Yes","All other staff have been Informed",1,"2021-03-26"]
[8,1008,"1008_1","2019-10-15","Cycle 2",10,10,"Yes","All teachers have been informed",1.1000000000000001,2,2,"Yes","All other staff have been informed",0.5,"2021-06-23"]
[9,1082,"1082_1","2019-10-20","Cycle 2",10,10,"Yes","All teachers have been Informed",0.9,1,1,"Yes","All other staff have been Informed",1,"2020-05-07"]
[10,1079,"1079_1","2019-10-25","Cycle 2",10,10,"Yes","All teachers have been Informed",1,0,0,"Yes","Not all other staff have been Informed",null,"2020-04-21"]
[11,1046,"1046_1","2019-11-01","Cycle 3",6,6,"Yes","All teachers have been Informed",1.3333333333333333,0,0,"Yes","Not all other staff have been Informed",null,"2020-04-21"]
[12,1054,"1054_1","2019-11-04","Cycle 3",3,3,"Yes","All teachers have been Informed",0.66666666666666663,0,0,"Yes","Not all other staff have been Informed",null,"2020-05-21"]
[13,1045,"1045_1","2019-11-09","Cycle 3",10,10,"Yes","All teachers have been Informed",0.6,0,0,"Yes","Not all other staff have been Informed",null,"2020-06-18"]
[14,1056,"1056_1","2019-11-14","Cycle 3",2,2,"Yes","All teachers have been Informed",0,0,0,"Yes","Not all other staff have been Informed",null,"2020-04-21"]
[15,1099,"1099_2","2019-11-19","Cycle 3",2,2,"Yes","All teachers have been Informed",2,0,0,"Yes","Not all other staff have been Informed",null,"2020-04-21"]
[16,1032,"1032_1","2019-11-24","Cycle 3",null,null,"No","All teachers have been Informed",null,null,null,"No","All other staff have been Informed",null,"2021-02-09"]
[17,1079,"1079_2","2019-11-29","Cycle 3",10,10,"Yes","All teachers have been Informed",0.5,0,0,"Yes","Not all other staff have been Informed",null,"2020-05-06"]
[18,1088,"1088_1","2019-12-04","Cycle 4",3,3,"Yes","All teachers have been Informed",1.6666666666666667,0,0,"Yes","Not all other staff have been Informed",null,"2020-05-07"]
[19,1049,"1049_1","2019-12-09","Cycle 4",2,2,"Yes","All teachers have been Informed",1.5,0,0,"Yes","Not all other staff have been Informed",null,"2020-04-21"]
[20,1044,"1044_1","2019-12-14","Cycle 4",1,1,"Yes","All teachers have been Informed",0,0,0,"Yes","Not all other staff have been Informed",null,"2020-04-21"]
[21,1027,"1027_1","2019-12-19","Cycle 4",10,9,"Yes","Not all teachers have been Informed",59.4,1,0,"Yes","Not all other staff have been Informed",581,"2020-06-18"]
[22,1057,"1057_1","2019-12-24","Cycle 4",2,2,"Yes","All teachers have been Informed",0.5,0,0,"Yes","Not all other staff have been Informed",null,"2020-04-21"]
[23,1076,"1076_1","2019-12-29","Cycle 4",2,2,"Yes","All teachers have been Informed",0.5,0,0,"Yes","Not all other staff have been Informed",null,"2020-04-21"]
[24,1084,"1084_1","2020-01-03","Cycle 5",2,2,"Yes","All teachers have been Informed",2,3,3,"Yes","All other staff have been Informed",0.66666666666666663,"2020-05-07"]
[25,1070,"1070_2","2020-01-08","Cycle 5",7,7,"Yes","All teachers have been Informed",1.1428571428571428,0,0,"Yes","Not all other staff have been Informed",null,"2020-04-21"]
[26,1008,"1008_2","2020-01-18","Cycle 5",10,9,"Yes","Not all teachers have been Informed",55.9,0,0,"Yes","Not all other staff have been Informed",null,"2020-06-18"]
[27,1002,"1002_1","2020-01-23","Cycle 5",10,10,"Yes","All teachers have been informed",1.4,4,4,"Yes","All other staff have been informed",0.25,"2021-07-22"]
[28,1015,"1015_1","2020-01-28","Cycle 5",6,6,"Yes","All teachers have been informed",0.66666666666666663,0,0,"Yes","Not all other staff have been Informed",null,"2021-05-13"]
[29,1034,"1034_1","2020-02-02","Cycle 6",null,null,"No","All teachers have been informed",null,2,1,"Yes","Not all other staff have been informed",268.5,"2021-07-22"]
[30,1099,"1099_3","2020-02-07","Cycle 6",3,3,"Yes","All teachers have been Informed",0.66666666666666663,3,3,"Yes","All other staff have been Informed",0.66666666666666663,"2020-04-29"]
[31,1099,"1099_4","2020-02-12","Cycle 6",10,10,"Yes","All teachers have been Informed",1.2,0,0,"Yes","Not all other staff have been Informed",null,"2020-05-07"]
[32,1099,"1099_5","2020-02-17","Cycle 6",10,10,"Yes","All teachers have been Informed",0.8,2,2,"Yes","All other staff have been Informed",1.5,"2020-04-27"]
[33,1099,"1099_6","2020-02-22","Cycle 6",1,0,"Yes","Not all teachers have been informed",516,0,0,"Yes","Not all other staff have been Informed",null,"2021-05-28"]
[34,1010,"1010_1","2020-02-27","Cycle 6",3,3,"Yes","All teachers have been Informed",1.3333333333333333,3,3,"Yes","All other staff have been Informed",0.66666666666666663,"2020-04-29"]
[35,1010,"1010_2","2020-03-03","Cycle 7",6,6,"Yes","All teachers have been Informed",0.66666666666666663,0,0,"Yes","Not all other staff have been Informed",null,"2020-04-29"]
[36,1011,"1011_1","2020-03-08","Cycle 7",10,9,"Yes","Not all teachers have been Informed",50.6,0,0,"Yes","Not all other staff have been Informed",null,"2020-06-18"]
[37,2033,"2033_1","2020-03-18","Cycle 7",1,1,"Yes","All teachers have been Informed",1,0,0,"Yes","Not all other staff have been Informed",null,"2020-04-27"]
[38,557,"557_1","2020-03-28","Cycle 7",2,2,"Yes","All teachers have been Informed",1.5,0,0,"Yes","Not all other staff have been Informed",null,"2020-04-29"]
[39,557,"557_2","2020-04-02","Cycle 8",2,2,"Yes","All teachers have been Informed",1,3,3,"Yes","All other staff have been Informed",0.66666666666666663,"2020-04-29"]
[40,1027,"1027_2","2020-04-07","Cycle 8",10,10,"Yes","All teachers have been Informed",0.7,0,0,"Yes","Not all other staff have been Informed",null,"2020-04-29"]
[41,1081,"1081_2","2020-04-17","Cycle 8",10,10,"Yes","All teachers have been Informed",0.6,0,0,"Yes","Not all other staff have been Informed",null,"2020-05-06"]
[42,1097,"1097_2","2020-04-22","Cycle 8",5,5,"Yes","All teachers have been Informed",1,0,0,"Yes","Not all other staff have been Informed",null,"2020-05-07"]
[43,999,"999_1","2020-04-27","Cycle 8",6,6,"Yes","All teachers have been Informed",1,0,0,"Yes","Not all other staff have been Informed",null,"2020-05-07"]
[44,1015,"1015_2","2020-05-02","Cycle 9",5,5,"Yes","All teachers have been Informed",1.2,1,1,"Yes","All other staff have been Informed",0,"2020-05-13"]
[45,1002,"1002_2","2020-05-07","Cycle 9",3,3,"Yes","All teachers have been Informed",0.66666666666666663,0,0,"Yes","Not all other staff have been Informed",null,"2020-06-17"]
[46,1084,"1084_2","2020-04-27","Cycle 8",6,6,"Yes","All teachers have been Informed",1,0,0,"Yes","Not all other staff have been Informed",null,"2020-05-07"]
[47,1002,"1002_3","2020-05-08","Cycle 9",1,0,"Yes","All teachers have been informed",440,0,0,"Yes","Not all other staff have been informed",null,"2021-06-22"]

{"sheet":"Cycle Data Entered","index":18,"n_rows":13,"n_cols":24,"rows_kept":13,"cut":false,"hidden":true,"merged":[]}
["Cycle","Start Date","End Date","Schoolwide Enrollment","Behavior Incidents: Cycle HWC Group (Cycle)","Behavior Incidents: Cumulative HWC Group (Cycle)","Behavior Incidents: Cumulative HWC Group (YtD)","Behavior Incidents: Schoolwide Group (Cycle)","Behavior Incidents: Schoolwide Group (YtD)","Attendance Rate: Cycle HWC Group (Cycle)","Attendance Rate: Cumulative HWC Group (Cycle)","Attendance Rate: Cumulative HWC Group (YtD)","Attendance Rate: Schoolwide Group (Cycle)","Attendance Rate: Schoolwide Group (YtD)","Achievement: Cycle HWC Group (Cycle)","Achievement: Cumulative HWC Group (Cycle)","Achievement: Cumulative HWC Group (YtD)","Achievement: Schoolwide Group (Cycle)","Achievement: Schoolwide Group (YtD)","Referrals to School Counselor: Cumulative HWC Group (Cycle)","Referrals to School Counselor: Cumulative HWC Group (YtD)","Referrals to Mental Health: Cumulative HWC Group (Cycle)","Referrals to Mental Health: Cumulative HWC Group (YtD)","Last Updated"]
["Summer","2019-07-01","2019-08-31",null,null,null,null,null,null,null,null,null,null,null,null,null,null,null,null,null,null,null,null,"2020-06-17"]
["Cycle 1","2019-09-01","2019-09-30",988,1,2,2,4,4,80,81,81,83,83,2.8,2.9,2.9,3.1,3.1,4,4,2,2,"2021-07-19"]
["Cycle 2","2019-10-01","2019-10-31",986,3,4,9,6,15,82,83,84,85,86,3,3.1,3.2,3.3,3.4,5,6,3,3,"2021-05-13"]
["Cycle 3","2019-11-01","2019-11-30",987,3,4,9,6,15,82,83,84,85,86,3,3.1,3.2,3.3,3.4,6,9,2,5,"2021-05-04"]
["Cycle 4","2019-12-01","2019-12-31",988,4,5,14,7,22,83,84,85,86,87,3.1,3.2,3.3,3.4,3.5,5,10,1,5,"2021-05-04"]
["Cycle 5","2020-01-01","2020-01-31",988,5,6,20,8,30,84,85,86,87,88,3.2,3.3,3.4,3.5,3.6,4,12,2,6,"2021-05-12"]
["Cycle 6","2020-02-01","2020-02-29",988,7,8,28,10,40,86,87,88,89,90,3.4,3.5,3.6,3.7,3.8,5,12,1,6,"2020-06-17"]
["Cycle 7","2020-03-01","2020-03-31",988,7,8,35,10,49,86,87,88,89,90,3.4,3.5,3.6,3.7,3.8,3,12,1,6,"2021-07-16"]
["Cycle 8","2020-04-01","2020-04-30",789,8,9,44,11,60,87,88,89,90,91,3.5,3.6,3.7,3.8,3.9,3,12,2,7,"2021-07-16"]
["Cycle 9","2020-05-01","2020-05-31",null,null,null,null,null,null,null,null,null,null,null,null,null,null,null,null,null,null,null,null,"2021-07-21"]
["Cycle 10"]
["Cycle 11"]